Workbook

Sheet Acolhimento
B3: Revista TecnoHospital | G3: Apoio à Decisão em
B4: Nº 134 - Março-Abril 2026 | G4: Gestão Operacional
G7: Rui Assis
G8: 2026-04-04
G9: rassis@rassis.com
G10: http://www.rassis.com
G12: Simulação de duas filas de espera concorrentes (multicanal e monofase) no
G13: caso de um equipamento hospitalar
G16: Células a azul para dados, verde claro para cálculos intermédios e amarelo para resultados

Sheet Chegadas
D2: Segundo distribuições de probabilidade Exponencial negativa
D3: (após um teste de hipótese de aderência de KS)
D5: Tipo I | G5: Tipo II
C6: MTBA = | D6: 1.01 | E6: dias | F6: MTBA = | G6: 9.1 | H6: dias | J6: Momentos de chegada dos tipos I e II
D7: TBA | E7: Chegada à fila | G7: TBA | H7: Chegada à fila | K7: Tipos de intervenção
C9: 1 | D9: =ROUND(-Chegadas!$D$6*LN(RAND()),2) -> 0.71 | E9: =D9 -> 0.71 | G9: =ROUND(-Chegadas!$G$6*LN(RAND()),2) -> 9.41 | H9: =G9 -> 9.41 | I9: II | J9: =SMALL($H$9:$H$1008,C9) -> 0.71 | K9: =VLOOKUP(J9,$H$9:$I$1008,2,0) -> I
C10: 2 | D10: =ROUND(-Chegadas!$D$6*LN(RAND()),2) -> 5.43 | E10: =E9+D10 -> 6.14 | G10: =ROUND(-Chegadas!$G$6*LN(RAND()),2) -> 14.04 | H10: =H9+G10 -> 23.45 | I10: II | J10: 6.14 | K10: =VLOOKUP(J10,$H$9:$I$1008,2,0) -> I
C11: 3 | D11: =ROUND(-Chegadas!$D$6*LN(RAND()),2) -> 0.84 | E11: =E10+D11 -> 6.98 | G11: =ROUND(-Chegadas!$G$6*LN(RAND()),2) -> 1.65 | H11: =H10+G11 -> 25.1 | I11: II | J11: 6.98 | K11: I
C12: 4 | D12: =ROUND(-Chegadas!$D$6*LN(RAND()),2) -> 0.38 | E12: 7.36 | G12: =ROUND(-Chegadas!$G$6*LN(RAND()),2) -> 45.76 | H12: 70.86 | I12: II | J12: 7.36 | K12: I
C13: 5 | D13: =ROUND(-Chegadas!$D$6*LN(RAND()),2) -> 0.01 | E13: 7.37 | G13: =ROUND(-Chegadas!$G$6*LN(RAND()),2) -> 10.61 | H13: 81.47 | I13: II | J13: 7.37 | K13: I
C14: 6 | D14: =ROUND(-Chegadas!$D$6*LN(RAND()),2) -> 0.12 | E14: 7.49 | G14: =ROUND(-Chegadas!$G$6*LN(RAND()),2) -> 7.07 | H14: 88.54 | I14: II | J14: 7.49 | K14: I
C15: 7 | D15: =ROUND(-Chegadas!$D$6*LN(RAND()),2) -> 0.19 | E15: 7.68 | G15: =ROUND(-Chegadas!$G$6*LN(RAND()),2) -> 12.73 | H15: 101.27 | I15: II | J15: 7.68 | K15: I
C16: 8 | D16: =ROUND(-Chegadas!$D$6*LN(RAND()),2) -> 0.79 | E16: 8.47 | G16: =ROUND(-Chegadas!$G$6*LN(RAND()),2) -> 18.8 | H16: 120.07 | I16: II | J16: 8.47 | K16: I
C17: 9 | D17: =ROUND(-Chegadas!$D$6*LN(RAND()),2) -> 0.91 | E17: 9.38 | G17: =ROUND(-Chegadas!$G$6*LN(RAND()),2) -> 14.16 | H17: 134.23 | I17: II | J17: 9.38 | K17: I
C18: 10 | D18: =ROUND(-Chegadas!$D$6*LN(RAND()),2) -> 0.88 | E18: 10.26 | G18: =ROUND(-Chegadas!$G$6*LN(RAND()),2) -> 1.93 | H18: 136.16 | I18: II | J18: 9.41 | K18: II
C19: 11 | D19: =ROUND(-Chegadas!$D$6*LN(RAND()),2) -> 4.04 | E19: 14.3 | G19: =ROUND(-Chegadas!$G$6*LN(RAND()),2) -> 12.74 | H19: 148.9 | I19: II | J19: 10.26 | K19: I
C20: 12 | D20: =ROUND(-Chegadas!$D$6*LN(RAND()),2) -> 2.02 | E20: 16.32 | G20: =ROUND(-Chegadas!$G$6*LN(RAND()),2) -> 8.18 | H20: 157.08 | I20: II | J20: 14.3 | K20: I
C21: 13 | D21: =ROUND(-Chegadas!$D$6*LN(RAND()),2) -> 0.18 | E21: 16.5 | G21: =ROUND(-Chegadas!$G$6*LN(RAND()),2) -> 15.15 | H21: 172.23 | I21: II | J21: 16.32 | K21: I
C22: 14 | D22: =ROUND(-Chegadas!$D$6*LN(RAND()),2) -> 0.21 | E22: 16.71 | G22: =ROUND(-Chegadas!$G$6*LN(RAND()),2) -> 5.84 | H22: 178.07 | I22: II | J22: 16.5 | K22: I
C23: 15 | D23: =ROUND(-Chegadas!$D$6*LN(RAND()),2) -> 0.28 | E23: 16.99 | G23: =ROUND(-Chegadas!$G$6*LN(RAND()),2) -> 13.35 | H23: 191.42 | I23: II | J23: 16.71 | K23: I
C24: 16 | D24: =ROUND(-Chegadas!$D$6*LN(RAND()),2) -> 0.41 | E24: 17.4 | G24: =ROUND(-Chegadas!$G$6*LN(RAND()),2) -> 3.62 | H24: 195.04 | I24: II | J24: 16.99 | K24: I
C25: 17 | D25: =ROUND(-Chegadas!$D$6*LN(RAND()),2) -> 0.07 | E25: 17.47 | G25: =ROUND(-Chegadas!$G$6*LN(RAND()),2) -> 2.45 | H25: 197.49 | I25: II | J25: 17.4 | K25: I
C26: 18 | D26: =ROUND(-Chegadas!$D$6*LN(RAND()),2) -> 1.16 | E26: 18.63 | G26: =ROUND(-Chegadas!$G$6*LN(RAND()),2) -> 3.83 | H26: 201.32 | I26: II | J26: 17.47 | K26: I
C27: 19 | D27: =ROUND(-Chegadas!$D$6*LN(RAND()),2) -> 0.17 | E27: 18.8 | G27: =ROUND(-Chegadas!$G$6*LN(RAND()),2) -> 1.01 | H27: 202.33 | I27: II | J27: 18.63 | K27: I
C28: 20 | D28: =ROUND(-Chegadas!$D$6*LN(RAND()),2) -> 0.57 | E28: 19.37 | G28: =ROUND(-Chegadas!$G$6*LN(RAND()),2) -> 13.95 | H28: 216.28 | I28: II | J28: 18.8 | K28: I
C29: 21 | D29: =ROUND(-Chegadas!$D$6*LN(RAND()),2) -> 0.27 | E29: 19.64 | G29: =ROUND(-Chegadas!$G$6*LN(RAND()),2) -> 2.19 | H29: 218.47 | I29: II | J29: 19.37 | K29: I
C30: 22 | D30: =ROUND(-Chegadas!$D$6*LN(RAND()),2) -> 0.03 | E30: 19.67 | G30: =ROUND(-Chegadas!$G$6*LN(RAND()),2) -> 52.1 | H30: 270.57 | I30: II | J30: 19.64 | K30: I
C31: 23 | D31: =ROUND(-Chegadas!$D$6*LN(RAND()),2) -> 0.41 | E31: 20.08 | G31: =ROUND(-Chegadas!$G$6*LN(RAND()),2) -> 4.31 | H31: 274.88 | I31: II | J31: 19.67 | K31: I
C32: 24 | D32: =ROUND(-Chegadas!$D$6*LN(RAND()),2) -> 0.37 | E32: 20.45 | G32: =ROUND(-Chegadas!$G$6*LN(RAND()),2) -> 0.92 | H32: 275.8 | I32: II | J32: 20.08 | K32: I
C33: 25 | D33: =ROUND(-Chegadas!$D$6*LN(RAND()),2) -> 1.1 | E33: 21.55 | G33: =ROUND(-Chegadas!$G$6*LN(RAND()),2) -> 21.59 | H33: 297.39 | I33: II | J33: 20.45 | K33: I
C34: 26 | D34: =ROUND(-Chegadas!$D$6*LN(RAND()),2) -> 0.5 | E34: 22.05 | G34: =ROUND(-Chegadas!$G$6*LN(RAND()),2) -> 4.97 | H34: 302.36 | I34: II | J34: 21.55 | K34: I
C35: 27 | D35: =ROUND(-Chegadas!$D$6*LN(RAND()),2) -> 0.44 | E35: 22.49 | G35: =ROUND(-Chegadas!$G$6*LN(RAND()),2) -> 10.01 | H35: 312.37 | I35: II | J35: 22.05 | K35: I
C36: 28 | D36: =ROUND(-Chegadas!$D$6*LN(RAND()),2) -> 0.08 | E36: 22.57 | G36: =ROUND(-Chegadas!$G$6*LN(RAND()),2) -> 1.5 | H36: 313.87 | I36: II | J36: 22.49 | K36: I
C37: 29 | D37: =ROUND(-Chegadas!$D$6*LN(RAND()),2) -> 0.45 | E37: 23.02 | G37: =ROUND(-Chegadas!$G$6*LN(RAND()),2) -> 8.22 | H37: 322.09 | I37: II | J37: 22.57 | K37: I
C38: 30 | D38: =ROUND(-Chegadas!$D$6*LN(RAND()),2) -> 0.11 | E38: 23.13 | G38: =ROUND(-Chegadas!$G$6*LN(RAND()),2) -> 2 | H38: 324.09 | I38: II | J38: 23.02 | K38: I
C39: 31 | D39: =ROUND(-Chegadas!$D$6*LN(RAND()),2) -> 0.32 | E39: 23.45 | G39: =ROUND(-Chegadas!$G$6*LN(RAND()),2) -> 2.15 | H39: 326.24 | I39: II | J39: 23.13 | K39: I
C40: 32 | D40: =ROUND(-Chegadas!$D$6*LN(RAND()),2) -> 0.42 | E40: 23.87 | G40: =ROUND(-Chegadas!$G$6*LN(RAND()),2) -> 3.78 | H40: 330.02 | I40: II | J40: 23.45 | K40: II
C41: 33 | D41: =ROUND(-Chegadas!$D$6*LN(RAND()),2) -> 0.21 | E41: 24.08 | G41: =ROUND(-Chegadas!$G$6*LN(RAND()),2) -> 4.04 | H41: 334.06 | I41: II | J41: 23.45 | K41: I
C42: 34 | D42: =ROUND(-Chegadas!$D$6*LN(RAND()),2) -> 1.36 | E42: 25.44 | G42: =ROUND(-Chegadas!$G$6*LN(RAND()),2) -> 2.8 | H42: 336.86 | I42: II | J42: 23.87 | K42: I
C43: 35 | D43: =ROUND(-Chegadas!$D$6*LN(RAND()),2) -> 0.19 | E43: 25.63 | G43: =ROUND(-Chegadas!$G$6*LN(RAND()),2) -> 6.39 | H43: 343.25 | I43: II | J43: 24.08 | K43: I
C44: 36 | D44: =ROUND(-Chegadas!$D$6*LN(RAND()),2) -> 0.05 | E44: 25.68 | G44: =ROUND(-Chegadas!$G$6*LN(RAND()),2) -> 7.19 | H44: 350.44 | I44: II | J44: 25.1 | K44: II
C45: 37 | D45: =ROUND(-Chegadas!$D$6*LN(RAND()),2) -> 1.2 | E45: 26.88 | G45: =ROUND(-Chegadas!$G$6*LN(RAND()),2) -> 28.67 | H45: 379.11 | I45: II | J45: 25.44 | K45: I
C46: 38 | D46: =ROUND(-Chegadas!$D$6*LN(RAND()),2) -> 0.14 | E46: 27.02 | G46: =ROUND(-Chegadas!$G$6*LN(RAND()),2) -> 1.87 | H46: 380.98 | I46: II | J46: 25.63 | K46: I
C47: 39 | D47: =ROUND(-Chegadas!$D$6*LN(RAND()),2) -> 1.23 | E47: 28.25 | G47: =ROUND(-Chegadas!$G$6*LN(RAND()),2) -> 9.76 | H47: 390.74 | I47: II | J47: 25.68 | K47: I
C48: 40 | D48: =ROUND(-Chegadas!$D$6*LN(RAND()),2) -> 0.14 | E48: 28.39 | G48: =ROUND(-Chegadas!$G$6*LN(RAND()),2) -> 10.16 | H48: 400.9 | I48: II | J48: 26.88 | K48: I
C49: 41 | D49: =ROUND(-Chegadas!$D$6*LN(RAND()),2) -> 1.55 | E49: 29.94 | G49: =ROUND(-Chegadas!$G$6*LN(RAND()),2) -> 11.28 | H49: 412.18 | I49: II | J49: 27.02 | K49: I
C50: 42 | D50: =ROUND(-Chegadas!$D$6*LN(RAND()),2) -> 0.39 | E50: 30.33 | G50: =ROUND(-Chegadas!$G$6*LN(RAND()),2) -> 1.07 | H50: 413.25 | I50: II | J50: 28.25 | K50: I
C51: 43 | D51: =ROUND(-Chegadas!$D$6*LN(RAND()),2) -> 1.66 | E51: 31.99 | G51: =ROUND(-Chegadas!$G$6*LN(RAND()),2) -> 10.49 | H51: 423.74 | I51: II | J51: 28.39 | K51: I
C52: 44 | D52: =ROUND(-Chegadas!$D$6*LN(RAND()),2) -> 0.16 | E52: 32.15 | G52: =ROUND(-Chegadas!$G$6*LN(RAND()),2) -> 24.33 | H52: 448.07 | I52: II | J52: 29.94 | K52: I
C53: 45 | D53: =ROUND(-Chegadas!$D$6*LN(RAND()),2) -> 1.69 | E53: 33.84 | G53: =ROUND(-Chegadas!$G$6*LN(RAND()),2) -> 0.02 | H53: 448.09 | I53: II | J53: 30.33 | K53: I
C54: 46 | D54: =ROUND(-Chegadas!$D$6*LN(RAND()),2) -> 2.31 | E54: 36.15 | G54: =ROUND(-Chegadas!$G$6*LN(RAND()),2) -> 0.47 | H54: 448.56 | I54: II | J54: 31.99 | K54: I
C55: 47 | D55: =ROUND(-Chegadas!$D$6*LN(RAND()),2) -> 0.08 | E55: 36.23 | G55: =ROUND(-Chegadas!$G$6*LN(RAND()),2) -> 18.74 | H55: 467.3 | I55: II | J55: 32.15 | K55: I
C56: 48 | D56: =ROUND(-Chegadas!$D$6*LN(RAND()),2) -> 5.34 | E56: 41.57 | G56: =ROUND(-Chegadas!$G$6*LN(RAND()),2) -> 12.41 | H56: 479.71 | I56: II | J56: 33.84 | K56: I
C57: 49 | D57: =ROUND(-Chegadas!$D$6*LN(RAND()),2) -> 0.03 | E57: 41.6 | G57: =ROUND(-Chegadas!$G$6*LN(RAND()),2) -> 3.78 | H57: 483.49 | I57: II | J57: 36.15 | K57: I
C58: 50 | D58: =ROUND(-Chegadas!$D$6*LN(RAND()),2) -> 0.22 | E58: 41.82 | G58: =ROUND(-Chegadas!$G$6*LN(RAND()),2) -> 10.03 | H58: 493.52 | I58: II | J58: 36.23 | K58: I
C59: 51 | D59: =ROUND(-Chegadas!$D$6*LN(RAND()),2) -> 2.5 | E59: 44.32 | G59: =ROUND(-Chegadas!$G$6*LN(RAND()),2) -> 17.49 | H59: 511.01 | I59: II | J59: 41.57 | K59: I
C60: 52 | D60: =ROUND(-Chegadas!$D$6*LN(RAND()),2) -> 2.2 | E60: 46.52 | G60: =ROUND(-Chegadas!$G$6*LN(RAND()),2) -> 20.55 | H60: 531.56 | I60: II | J60: 41.6 | K60: I
C61: 53 | D61: =ROUND(-Chegadas!$D$6*LN(RAND()),2) -> 0.27 | E61: 46.79 | G61: =ROUND(-Chegadas!$G$6*LN(RAND()),2) -> 10.93 | H61: 542.49 | I61: II | J61: 41.82 | K61: I
C62: 54 | D62: =ROUND(-Chegadas!$D$6*LN(RAND()),2) -> 0.42 | E62: 47.21 | G62: =ROUND(-Chegadas!$G$6*LN(RAND()),2) -> 10.66 | H62: 553.15 | I62: II | J62: 44.32 | K62: I
C63: 55 | D63: =ROUND(-Chegadas!$D$6*LN(RAND()),2) -> 0.86 | E63: 48.07 | G63: =ROUND(-Chegadas!$G$6*LN(RAND()),2) -> 13.66 | H63: 566.81 | I63: II | J63: 46.52 | K63: I
C64: 56 | D64: =ROUND(-Chegadas!$D$6*LN(RAND()),2) -> 0.02 | E64: 48.09 | G64: =ROUND(-Chegadas!$G$6*LN(RAND()),2) -> 17.04 | H64: 583.85 | I64: II | J64: 46.79 | K64: I
C65: 57 | D65: =ROUND(-Chegadas!$D$6*LN(RAND()),2) -> 1.12 | E65: 49.21 | G65: =ROUND(-Chegadas!$G$6*LN(RAND()),2) -> 13.36 | H65: 597.21 | I65: II | J65: 47.21 | K65: I
C66: 58 | D66: =ROUND(-Chegadas!$D$6*LN(RAND()),2) -> 1.33 | E66: 50.54 | G66: =ROUND(-Chegadas!$G$6*LN(RAND()),2) -> 7.73 | H66: 604.94 | I66: II | J66: 48.07 | K66: I
C67: 59 | D67: =ROUND(-Chegadas!$D$6*LN(RAND()),2) -> 1.11 | E67: 51.65 | G67: =ROUND(-Chegadas!$G$6*LN(RAND()),2) -> 10.41 | H67: 615.35 | I67: II | J67: 48.09 | K67: I
C68: 60 | D68: =ROUND(-Chegadas!$D$6*LN(RAND()),2) -> 0.16 | E68: 51.81 | G68: =ROUND(-Chegadas!$G$6*LN(RAND()),2) -> 4.07 | H68: 619.42 | I68: II | J68: 49.21 | K68: I
C69: 61 | D69: =ROUND(-Chegadas!$D$6*LN(RAND()),2) -> 0.59 | E69: 52.4 | G69: =ROUND(-Chegadas!$G$6*LN(RAND()),2) -> 4.6 | H69: 624.02 | I69: II | J69: 50.54 | K69: I
C70: 62 | D70: =ROUND(-Chegadas!$D$6*LN(RAND()),2) -> 3.41 | E70: 55.81 | G70: =ROUND(-Chegadas!$G$6*LN(RAND()),2) -> 3.77 | H70: 627.79 | I70: II | J70: 51.65 | K70: I
C71: 63 | D71: =ROUND(-Chegadas!$D$6*LN(RAND()),2) -> 2.38 | E71: 58.19 | G71: =ROUND(-Chegadas!$G$6*LN(RAND()),2) -> 0.95 | H71: 628.74 | I71: II | J71: 51.81 | K71: I
C72: 64 | D72: =ROUND(-Chegadas!$D$6*LN(RAND()),2) -> 1.42 | E72: 59.61 | G72: =ROUND(-Chegadas!$G$6*LN(RAND()),2) -> 16.87 | H72: 645.61 | I72: II | J72: 52.4 | K72: I
C73: 65 | D73: =ROUND(-Chegadas!$D$6*LN(RAND()),2) -> 1.79 | E73: 61.4 | G73: =ROUND(-Chegadas!$G$6*LN(RAND()),2) -> 1.62 | H73: 647.23 | I73: II | J73: =SMALL($H$9:$H$1008,C73) -> 55.81 | K73: I
C74: 66 | D74: =ROUND(-Chegadas!$D$6*LN(RAND()),2) -> 0.29 | E74: 61.69 | G74: =ROUND(-Chegadas!$G$6*LN(RAND()),2) -> 12.5 | H74: 659.73 | I74: II | J74: 58.19 | K74: =VLOOKUP(J74,$H$9:$I$1008,2,0) -> I
C75: 67 | D75: =ROUND(-Chegadas!$D$6*LN(RAND()),2) -> 0.98 | E75: =E74+D75 -> 62.67 | G75: =ROUND(-Chegadas!$G$6*LN(RAND()),2) -> 2.92 | H75: =H74+G75 -> 662.65 | I75: II | J75: 59.61 | K75: I
C76: 68 | D76: =ROUND(-Chegadas!$D$6*LN(RAND()),2) -> 0.48 | E76: 63.15 | G76: =ROUND(-Chegadas!$G$6*LN(RAND()),2) -> 2.86 | H76: 665.51 | I76: II | J76: 61.4 | K76: I
C77: 69 | D77: =ROUND(-Chegadas!$D$6*LN(RAND()),2) -> 0.14 | E77: 63.29 | G77: =ROUND(-Chegadas!$G$6*LN(RAND()),2) -> 45.31 | H77: 710.82 | I77: II | J77: 61.69 | K77: I
C78: 70 | D78: =ROUND(-Chegadas!$D$6*LN(RAND()),2) -> 0.42 | E78: 63.71 | G78: =ROUND(-Chegadas!$G$6*LN(RAND()),2) -> 1.81 | H78: 712.63 | I78: II | J78: 62.67 | K78: I
C79: 71 | D79: =ROUND(-Chegadas!$D$6*LN(RAND()),2) -> 0.06 | E79: 63.77 | G79: =ROUND(-Chegadas!$G$6*LN(RAND()),2) -> 0.2 | H79: 712.83 | I79: II | J79: 63.15 | K79: I
C80: 72 | D80: =ROUND(-Chegadas!$D$6*LN(RAND()),2) -> 0.21 | E80: 63.98 | G80: =ROUND(-Chegadas!$G$6*LN(RAND()),2) -> 4.45 | H80: 717.28 | I80: II | J80: 63.29 | K80: I
C81: 73 | D81: =ROUND(-Chegadas!$D$6*LN(RAND()),2) -> 1.24 | E81: 65.22 | G81: =ROUND(-Chegadas!$G$6*LN(RAND()),2) -> 9.84 | H81: 727.12 | I81: II | J81: 63.71 | K81: I
C82: 74 | D82: =ROUND(-Chegadas!$D$6*LN(RAND()),2) -> 2.92 | E82: 68.14 | G82: =ROUND(-Chegadas!$G$6*LN(RAND()),2) -> 18.89 | H82: 746.01 | I82: II | J82: 63.77 | K82: I
C83: 75 | D83: =ROUND(-Chegadas!$D$6*LN(RAND()),2) -> 0.36 | E83: 68.5 | G83: =ROUND(-Chegadas!$G$6*LN(RAND()),2) -> 22.69 | H83: 768.7 | I83: II | J83: 63.98 | K83: I
C84: 76 | D84: =ROUND(-Chegadas!$D$6*LN(RAND()),2) -> 2.44 | E84: 70.94 | G84: =ROUND(-Chegadas!$G$6*LN(RAND()),2) -> 9.55 | H84: 778.25 | I84: II | J84: 65.22 | K84: I
C85: 77 | D85: =ROUND(-Chegadas!$D$6*LN(RAND()),2) -> 0.55 | E85: 71.49 | G85: =ROUND(-Chegadas!$G$6*LN(RAND()),2) -> 3.5 | H85: 781.75 | I85: II | J85: 68.14 | K85: I
C86: 78 | D86: =ROUND(-Chegadas!$D$6*LN(RAND()),2) -> 0.53 | E86: 72.02 | G86: =ROUND(-Chegadas!$G$6*LN(RAND()),2) -> 10.7 | H86: 792.45 | I86: II | J86: 68.5 | K86: I
C87: 79 | D87: =ROUND(-Chegadas!$D$6*LN(RAND()),2) -> 0.35 | E87: 72.37 | G87: =ROUND(-Chegadas!$G$6*LN(RAND()),2) -> 12.5 | H87: 804.95 | I87: II | J87: 70.86 | K87: II
C88: 80 | D88: =ROUND(-Chegadas!$D$6*LN(RAND()),2) -> 1.18 | E88: 73.55 | G88: =ROUND(-Chegadas!$G$6*LN(RAND()),2) -> 12.39 | H88: 817.34 | I88: II | J88: 70.94 | K88: I
C89: 81 | D89: =ROUND(-Chegadas!$D$6*LN(RAND()),2) -> 1.14 | E89: 74.69 | G89: =ROUND(-Chegadas!$G$6*LN(RAND()),2) -> 5.95 | H89: 823.29 | I89: II | J89: 71.49 | K89: I
C90: 82 | D90: =ROUND(-Chegadas!$D$6*LN(RAND()),2) -> 1 | E90: 75.69 | G90: =ROUND(-Chegadas!$G$6*LN(RAND()),2) -> 4.36 | H90: 827.65 | I90: II | J90: 72.02 | K90: I
C91: 83 | D91: =ROUND(-Chegadas!$D$6*LN(RAND()),2) -> 0.29 | E91: 75.98 | G91: =ROUND(-Chegadas!$G$6*LN(RAND()),2) -> 4.09 | H91: 831.74 | I91: II | J91: 72.37 | K91: I
C92: 84 | D92: =ROUND(-Chegadas!$D$6*LN(RAND()),2) -> 0.65 | E92: 76.63 | G92: =ROUND(-Chegadas!$G$6*LN(RAND()),2) -> 12.68 | H92: 844.42 | I92: II | J92: 73.55 | K92: I
C93: 85 | D93: =ROUND(-Chegadas!$D$6*LN(RAND()),2) -> 2.67 | E93: 79.3 | G93: =ROUND(-Chegadas!$G$6*LN(RAND()),2) -> 5.08 | H93: 849.5 | I93: II | J93: 74.69 | K93: I
C94: 86 | D94: =ROUND(-Chegadas!$D$6*LN(RAND()),2) -> 0.58 | E94: 79.88 | G94: =ROUND(-Chegadas!$G$6*LN(RAND()),2) -> 9.74 | H94: 859.24 | I94: II | J94: 75.69 | K94: I
C95: 87 | D95: =ROUND(-Chegadas!$D$6*LN(RAND()),2) -> 1.8 | E95: 81.68 | G95: =ROUND(-Chegadas!$G$6*LN(RAND()),2) -> 3 | H95: 862.24 | I95: II | J95: 75.98 | K95: I
C96: 88 | D96: =ROUND(-Chegadas!$D$6*LN(RAND()),2) -> 0.05 | E96: 81.73 | G96: =ROUND(-Chegadas!$G$6*LN(RAND()),2) -> 13.9 | H96: 876.14 | I96: II | J96: 76.63 | K96: I
C97: 89 | D97: =ROUND(-Chegadas!$D$6*LN(RAND()),2) -> 0.1 | E97: 81.83 | G97: =ROUND(-Chegadas!$G$6*LN(RAND()),2) -> 8.28 | H97: 884.42 | I97: II | J97: 79.3 | K97: I
C98: 90 | D98: =ROUND(-Chegadas!$D$6*LN(RAND()),2) -> 0.56 | E98: 82.39 | G98: =ROUND(-Chegadas!$G$6*LN(RAND()),2) -> 12.05 | H98: 896.47 | I98: II | J98: 79.88 | K98: I
C99: 91 | D99: =ROUND(-Chegadas!$D$6*LN(RAND()),2) -> 1.02 | E99: 83.41 | G99: =ROUND(-Chegadas!$G$6*LN(RAND()),2) -> 1.39 | H99: 897.86 | I99: II | J99: 81.47 | K99: II
C100: 92 | D100: =ROUND(-Chegadas!$D$6*LN(RAND()),2) -> 0.55 | E100: 83.96 | G100: =ROUND(-Chegadas!$G$6*LN(RAND()),2) -> 7.04 | H100: 904.9 | I100: II | J100: 81.68 | K100: I
C101: 93 | D101: =ROUND(-Chegadas!$D$6*LN(RAND()),2) -> 2.01 | E101: 85.97 | G101: =ROUND(-Chegadas!$G$6*LN(RAND()),2) -> 11.2 | H101: 916.1 | I101: II | J101: 81.73 | K101: I
C102: 94 | D102: =ROUND(-Chegadas!$D$6*LN(RAND()),2) -> 0.1 | E102: 86.07 | G102: =ROUND(-Chegadas!$G$6*LN(RAND()),2) -> 2.53 | H102: 918.63 | I102: II | J102: 81.83 | K102: I
C103: 95 | D103: =ROUND(-Chegadas!$D$6*LN(RAND()),2) -> 0.63 | E103: 86.7 | G103: =ROUND(-Chegadas!$G$6*LN(RAND()),2) -> 7.6 | H103: 926.23 | I103: II | J103: 82.39 | K103: I
C104: 96 | D104: =ROUND(-Chegadas!$D$6*LN(RAND()),2) -> 1.1 | E104: 87.8 | G104: =ROUND(-Chegadas!$G$6*LN(RAND()),2) -> 2.8 | H104: 929.03 | I104: II | J104: 83.41 | K104: I
C105: 97 | D105: =ROUND(-Chegadas!$D$6*LN(RAND()),2) -> 0.04 | E105: 87.84 | G105: =ROUND(-Chegadas!$G$6*LN(RAND()),2) -> 6.19 | H105: 935.22 | I105: II | J105: 83.96 | K105: I
C106: 98 | D106: =ROUND(-Chegadas!$D$6*LN(RAND()),2) -> 1.4 | E106: 89.24 | G106: =ROUND(-Chegadas!$G$6*LN(RAND()),2) -> 1.86 | H106: 937.08 | I106: II | J106: 85.97 | K106: I
C107: 99 | D107: =ROUND(-Chegadas!$D$6*LN(RAND()),2) -> 2.09 | E107: 91.33 | G107: =ROUND(-Chegadas!$G$6*LN(RAND()),2) -> 0.92 | H107: 938 | I107: II | J107: 86.07 | K107: I
C108: 100 | D108: =ROUND(-Chegadas!$D$6*LN(RAND()),2) -> 0.63 | E108: 91.96 | G108: =ROUND(-Chegadas!$G$6*LN(RAND()),2) -> 2.46 | H108: 940.46 | I108: II | J108: 86.7 | K108: I
C109: 101 | D109: =ROUND(-Chegadas!$D$6*LN(RAND()),2) -> 0.95 | E109: 92.91 | G109: =ROUND(-Chegadas!$G$6*LN(RAND()),2) -> 1.68 | H109: 942.14 | I109: II | J109: 87.8 | K109: I
C110: 102 | D110: =ROUND(-Chegadas!$D$6*LN(RAND()),2) -> 0.55 | E110: 93.46 | G110: =ROUND(-Chegadas!$G$6*LN(RAND()),2) -> 0.02 | H110: 942.16 | I110: II | J110: 87.84 | K110: I
C111: 103 | D111: =ROUND(-Chegadas!$D$6*LN(RAND()),2) -> 1.22 | E111: 94.68 | G111: =ROUND(-Chegadas!$G$6*LN(RAND()),2) -> 0.82 | H111: 942.98 | I111: II | J111: 88.54 | K111: II
C112: 104 | D112: =ROUND(-Chegadas!$D$6*LN(RAND()),2) -> 0.28 | E112: 94.96 | G112: =ROUND(-Chegadas!$G$6*LN(RAND()),2) -> 0.54 | H112: 943.52 | I112: II | J112: 89.24 | K112: I
C113: 105 | D113: =ROUND(-Chegadas!$D$6*LN(RAND()),2) -> 0.36 | E113: 95.32 | G113: =ROUND(-Chegadas!$G$6*LN(RAND()),2) -> 9.27 | H113: 952.79 | I113: II | J113: 91.33 | K113: I
C114: 106 | D114: =ROUND(-Chegadas!$D$6*LN(RAND()),2) -> 1.04 | E114: 96.36 | G114: =ROUND(-Chegadas!$G$6*LN(RAND()),2) -> 33.06 | H114: 985.85 | I114: II | J114: 91.96 | K114: I
C115: 107 | D115: =ROUND(-Chegadas!$D$6*LN(RAND()),2) -> 0.67 | E115: 97.03 | G115: =ROUND(-Chegadas!$G$6*LN(RAND()),2) -> 0.06 | H115: 985.91 | I115: II | J115: 92.91 | K115: I
C116: 108 | D116: =ROUND(-Chegadas!$D$6*LN(RAND()),2) -> 0.62 | E116: 97.65 | G116: =ROUND(-Chegadas!$G$6*LN(RAND()),2) -> 6.7 | H116: 992.61 | I116: II | J116: 93.46 | K116: I
C117: 109 | D117: =ROUND(-Chegadas!$D$6*LN(RAND()),2) -> 1.13 | E117: 98.78 | G117: =ROUND(-Chegadas!$G$6*LN(RAND()),2) -> 1.93 | H117: 994.54 | I117: II | J117: 94.68 | K117: I
C118: 110 | D118: =ROUND(-Chegadas!$D$6*LN(RAND()),2) -> 0.25 | E118: 99.03 | G118: =ROUND(-Chegadas!$G$6*LN(RAND()),2) -> 2.75 | H118: 997.29 | I118: II | J118: 94.96 | K118: I
C119: 111 | D119: =ROUND(-Chegadas!$D$6*LN(RAND()),2) -> 0 | E119: 99.03 | G119: =ROUND(-Chegadas!$G$6*LN(RAND()),2) -> 2.44 | H119: 999.73 | I119: II | J119: 95.32 | K119: I
C120: 112 | D120: =ROUND(-Chegadas!$D$6*LN(RAND()),2) -> 0.7 | E120: 99.73 | G120: =ROUND(-Chegadas!$G$6*LN(RAND()),2) -> 6.04 | H120: 1005.77 | I120: II | J120: 96.36 | K120: I
C121: 113 | D121: =ROUND(-Chegadas!$D$6*LN(RAND()),2) -> 1.4 | E121: 101.13 | G121: =ROUND(-Chegadas!$G$6*LN(RAND()),2) -> 2.94 | H121: 1008.71 | I121: II | J121: 97.03 | K121: I
C122: 114 | D122: =ROUND(-Chegadas!$D$6*LN(RAND()),2) -> 0.84 | E122: 101.97 | G122: =ROUND(-Chegadas!$G$6*LN(RAND()),2) -> 14.34 | H122: 1023.05 | I122: II | J122: 97.65 | K122: I
C123: 115 | D123: =ROUND(-Chegadas!$D$6*LN(RAND()),2) -> 0.58 | E123: 102.55 | G123: =ROUND(-Chegadas!$G$6*LN(RAND()),2) -> 13.64 | H123: 1036.69 | I123: II | J123: 98.78 | K123: I
C124: 116 | D124: =ROUND(-Chegadas!$D$6*LN(RAND()),2) -> 0.26 | E124: 102.81 | G124: =ROUND(-Chegadas!$G$6*LN(RAND()),2) -> 0.74 | H124: 1037.43 | I124: II | J124: 99.03 | K124: I
C125: 117 | D125: =ROUND(-Chegadas!$D$6*LN(RAND()),2) -> 0.38 | E125: 103.19 | G125: =ROUND(-Chegadas!$G$6*LN(RAND()),2) -> 0.34 | H125: 1037.77 | I125: II | J125: 99.03 | K125: I
C126: 118 | D126: =ROUND(-Chegadas!$D$6*LN(RAND()),2) -> 3.27 | E126: 106.46 | G126: =ROUND(-Chegadas!$G$6*LN(RAND()),2) -> 19.25 | H126: 1057.02 | I126: II | J126: 99.73 | K126: I
C127: 119 | D127: =ROUND(-Chegadas!$D$6*LN(RAND()),2) -> 0.27 | E127: 106.73 | G127: =ROUND(-Chegadas!$G$6*LN(RAND()),2) -> 7.85 | H127: 1064.87 | I127: II | J127: 101.13 | K127: I
C128: 120 | D128: =ROUND(-Chegadas!$D$6*LN(RAND()),2) -> 1.07 | E128: 107.8 | G128: =ROUND(-Chegadas!$G$6*LN(RAND()),2) -> 12.6 | H128: 1077.47 | I128: II | J128: 101.27 | K128: II
C129: 121 | D129: =ROUND(-Chegadas!$D$6*LN(RAND()),2) -> 0.2 | E129: 108 | G129: =ROUND(-Chegadas!$G$6*LN(RAND()),2) -> 1.21 | H129: 1078.68 | I129: II | J129: 101.97 | K129: I
C130: 122 | D130: =ROUND(-Chegadas!$D$6*LN(RAND()),2) -> 0.01 | E130: 108.01 | G130: =ROUND(-Chegadas!$G$6*LN(RAND()),2) -> 24.66 | H130: 1103.34 | I130: II | J130: 102.55 | K130: I
C131: 123 | D131: =ROUND(-Chegadas!$D$6*LN(RAND()),2) -> 0.08 | E131: 108.09 | G131: =ROUND(-Chegadas!$G$6*LN(RAND()),2) -> 14.94 | H131: 1118.28 | I131: II | J131: 102.81 | K131: I
C132: 124 | D132: =ROUND(-Chegadas!$D$6*LN(RAND()),2) -> 0.43 | E132: 108.52 | G132: =ROUND(-Chegadas!$G$6*LN(RAND()),2) -> 6.56 | H132: 1124.84 | I132: II | J132: 103.19 | K132: I
C133: 125 | D133: =ROUND(-Chegadas!$D$6*LN(RAND()),2) -> 2.15 | E133: 110.67 | G133: =ROUND(-Chegadas!$G$6*LN(RAND()),2) -> 10.32 | H133: 1135.16 | I133: II | J133: 106.46 | K133: I
C134: 126 | D134: =ROUND(-Chegadas!$D$6*LN(RAND()),2) -> 0.05 | E134: 110.72 | G134: =ROUND(-Chegadas!$G$6*LN(RAND()),2) -> 0.88 | H134: 1136.04 | I134: II | J134: 106.73 | K134: I
C135: 127 | D135: =ROUND(-Chegadas!$D$6*LN(RAND()),2) -> 0.21 | E135: 110.93 | G135: =ROUND(-Chegadas!$G$6*LN(RAND()),2) -> 5.26 | H135: 1141.3 | I135: II | J135: 107.8 | K135: I
C136: 128 | D136: =ROUND(-Chegadas!$D$6*LN(RAND()),2) -> 1.51 | E136: 112.44 | G136: =ROUND(-Chegadas!$G$6*LN(RAND()),2) -> 20.4 | H136: 1161.7 | I136: II | J136: 108 | K136: I
C137: 129 | D137: =ROUND(-Chegadas!$D$6*LN(RAND()),2) -> 0.72 | E137: 113.16 | G137: =ROUND(-Chegadas!$G$6*LN(RAND()),2) -> 2.08 | H137: 1163.78 | I137: II | J137: =SMALL($H$9:$H$1008,C137) -> 108.01 | K137: I
C138: 130 | D138: =ROUND(-Chegadas!$D$6*LN(RAND()),2) -> 1.14 | E138: 114.3 | G138: =ROUND(-Chegadas!$G$6*LN(RAND()),2) -> 3.17 | H138: 1166.95 | I138: II | J138: 108.09 | K138: =VLOOKUP(J138,$H$9:$I$1008,2,0) -> I
C139: 131 | D139: =ROUND(-Chegadas!$D$6*LN(RAND()),2) -> 1.31 | E139: =E138+D139 -> 115.61 | G139: =ROUND(-Chegadas!$G$6*LN(RAND()),2) -> 1.75 | H139: =H138+G139 -> 1168.7 | I139: II | J139: 108.52 | K139: I
C140: 132 | D140: =ROUND(-Chegadas!$D$6*LN(RAND()),2) -> 0 | E140: 115.61 | G140: =ROUND(-Chegadas!$G$6*LN(RAND()),2) -> 1.76 | H140: 1170.46 | I140: II | J140: 110.67 | K140: I
C141: 133 | D141: =ROUND(-Chegadas!$D$6*LN(RAND()),2) -> 0.11 | E141: 115.72 | G141: =ROUND(-Chegadas!$G$6*LN(RAND()),2) -> 4.3 | H141: 1174.76 | I141: II | J141: 110.72 | K141: I
C142: 134 | D142: =ROUND(-Chegadas!$D$6*LN(RAND()),2) -> 0.8 | E142: 116.52 | G142: =ROUND(-Chegadas!$G$6*LN(RAND()),2) -> 7.09 | H142: 1181.85 | I142: II | J142: 110.93 | K142: I
C143: 135 | D143: =ROUND(-Chegadas!$D$6*LN(RAND()),2) -> 0.92 | E143: 117.44 | G143: =ROUND(-Chegadas!$G$6*LN(RAND()),2) -> 2.3 | H143: 1184.15 | I143: II | J143: 112.44 | K143: I
C144: 136 | D144: =ROUND(-Chegadas!$D$6*LN(RAND()),2) -> 3.44 | E144: 120.88 | G144: =ROUND(-Chegadas!$G$6*LN(RAND()),2) -> 7.24 | H144: 1191.39 | I144: II | J144: 113.16 | K144: I
C145: 137 | D145: =ROUND(-Chegadas!$D$6*LN(RAND()),2) -> 1.57 | E145: 122.45 | G145: =ROUND(-Chegadas!$G$6*LN(RAND()),2) -> 2.46 | H145: 1193.85 | I145: II | J145: 114.3 | K145: I
C146: 138 | D146: =ROUND(-Chegadas!$D$6*LN(RAND()),2) -> 1.16 | E146: 123.61 | G146: =ROUND(-Chegadas!$G$6*LN(RAND()),2) -> 13.26 | H146: 1207.11 | I146: II | J146: 115.61 | K146: I
C147: 139 | D147: =ROUND(-Chegadas!$D$6*LN(RAND()),2) -> 0.41 | E147: 124.02 | G147: =ROUND(-Chegadas!$G$6*LN(RAND()),2) -> 3.88 | H147: 1210.99 | I147: II | J147: 115.61 | K147: I
C148: 140 | D148: =ROUND(-Chegadas!$D$6*LN(RAND()),2) -> 0.15 | E148: 124.17 | G148: =ROUND(-Chegadas!$G$6*LN(RAND()),2) -> 1.1 | H148: 1212.09 | I148: II | J148: 115.72 | K148: I
C149: 141 | D149: =ROUND(-Chegadas!$D$6*LN(RAND()),2) -> 1.42 | E149: 125.59 | G149: =ROUND(-Chegadas!$G$6*LN(RAND()),2) -> 5.82 | H149: 1217.91 | I149: II | J149: 116.52 | K149: I
C150: 142 | D150: =ROUND(-Chegadas!$D$6*LN(RAND()),2) -> 0.53 | E150: 126.12 | G150: =ROUND(-Chegadas!$G$6*LN(RAND()),2) -> 6.04 | H150: 1223.95 | I150: II | J150: 117.44 | K150: I
C151: 143 | D151: =ROUND(-Chegadas!$D$6*LN(RAND()),2) -> 1.66 | E151: 127.78 | G151: =ROUND(-Chegadas!$G$6*LN(RAND()),2) -> 1.94 | H151: 1225.89 | I151: II | J151: 120.07 | K151: II
C152: 144 | D152: =ROUND(-Chegadas!$D$6*LN(RAND()),2) -> 0.22 | E152: 128 | G152: =ROUND(-Chegadas!$G$6*LN(RAND()),2) -> 13.73 | H152: 1239.62 | I152: II | J152: 120.88 | K152: I
C153: 145 | D153: =ROUND(-Chegadas!$D$6*LN(RAND()),2) -> 0.43 | E153: 128.43 | G153: =ROUND(-Chegadas!$G$6*LN(RAND()),2) -> 8.39 | H153: 1248.01 | I153: II | J153: 122.45 | K153: I
C154: 146 | D154: =ROUND(-Chegadas!$D$6*LN(RAND()),2) -> 0.53 | E154: 128.96 | G154: =ROUND(-Chegadas!$G$6*LN(RAND()),2) -> 5.65 | H154: 1253.66 | I154: II | J154: 123.61 | K154: I
C155: 147 | D155: =ROUND(-Chegadas!$D$6*LN(RAND()),2) -> 1.08 | E155: 130.04 | G155: =ROUND(-Chegadas!$G$6*LN(RAND()),2) -> 6.07 | H155: 1259.73 | I155: II | J155: 124.02 | K155: I
C156: 148 | D156: =ROUND(-Chegadas!$D$6*LN(RAND()),2) -> 2.43 | E156: 132.47 | G156: =ROUND(-Chegadas!$G$6*LN(RAND()),2) -> 13.28 | H156: 1273.01 | I156: II | J156: 124.17 | K156: I
C157: 149 | D157: =ROUND(-Chegadas!$D$6*LN(RAND()),2) -> 0.38 | E157: 132.85 | G157: =ROUND(-Chegadas!$G$6*LN(RAND()),2) -> 1.17 | H157: 1274.18 | I157: II | J157: 125.59 | K157: I
C158: 150 | D158: =ROUND(-Chegadas!$D$6*LN(RAND()),2) -> 0.66 | E158: 133.51 | G158: =ROUND(-Chegadas!$G$6*LN(RAND()),2) -> 13.3 | H158: 1287.48 | I158: II | J158: 126.12 | K158: I
C159: 151 | D159: =ROUND(-Chegadas!$D$6*LN(RAND()),2) -> 2.39 | E159: 135.9 | G159: =ROUND(-Chegadas!$G$6*LN(RAND()),2) -> 0.42 | H159: 1287.9 | I159: II | J159: 127.78 | K159: I
C160: 152 | D160: =ROUND(-Chegadas!$D$6*LN(RAND()),2) -> 1.52 | E160: 137.42 | G160: =ROUND(-Chegadas!$G$6*LN(RAND()),2) -> 0.45 | H160: 1288.35 | I160: II | J160: 128 | K160: I
C161: 153 | D161: =ROUND(-Chegadas!$D$6*LN(RAND()),2) -> 2.15 | E161: 139.57 | G161: =ROUND(-Chegadas!$G$6*LN(RAND()),2) -> 1.2 | H161: 1289.55 | I161: II | J161: 128.43 | K161: I
C162: 154 | D162: =ROUND(-Chegadas!$D$6*LN(RAND()),2) -> 1.78 | E162: 141.35 | G162: =ROUND(-Chegadas!$G$6*LN(RAND()),2) -> 12.97 | H162: 1302.52 | I162: II | J162: 128.96 | K162: I
C163: 155 | D163: =ROUND(-Chegadas!$D$6*LN(RAND()),2) -> 0.58 | E163: 141.93 | G163: =ROUND(-Chegadas!$G$6*LN(RAND()),2) -> 3.98 | H163: 1306.5 | I163: II | J163: 130.04 | K163: I
C164: 156 | D164: =ROUND(-Chegadas!$D$6*LN(RAND()),2) -> 0.89 | E164: 142.82 | G164: =ROUND(-Chegadas!$G$6*LN(RAND()),2) -> 2.89 | H164: 1309.39 | I164: II | J164: 132.47 | K164: I
C165: 157 | D165: =ROUND(-Chegadas!$D$6*LN(RAND()),2) -> 0.02 | E165: 142.84 | G165: =ROUND(-Chegadas!$G$6*LN(RAND()),2) -> 8.5 | H165: 1317.89 | I165: II | J165: 132.85 | K165: I
C166: 158 | D166: =ROUND(-Chegadas!$D$6*LN(RAND()),2) -> 2.16 | E166: 145 | G166: =ROUND(-Chegadas!$G$6*LN(RAND()),2) -> 0.38 | H166: 1318.27 | I166: II | J166: 133.51 | K166: I
C167: 159 | D167: =ROUND(-Chegadas!$D$6*LN(RAND()),2) -> 0.17 | E167: 145.17 | G167: =ROUND(-Chegadas!$G$6*LN(RAND()),2) -> 9.27 | H167: 1327.54 | I167: II | J167: 134.23 | K167: II
C168: 160 | D168: =ROUND(-Chegadas!$D$6*LN(RAND()),2) -> 0.29 | E168: 145.46 | G168: =ROUND(-Chegadas!$G$6*LN(RAND()),2) -> 6.45 | H168: 1333.99 | I168: II | J168: 135.9 | K168: I
C169: 161 | D169: =ROUND(-Chegadas!$D$6*LN(RAND()),2) -> 1.48 | E169: 146.94 | G169: =ROUND(-Chegadas!$G$6*LN(RAND()),2) -> 0.29 | H169: 1334.28 | I169: II | J169: 136.16 | K169: II
C170: 162 | D170: =ROUND(-Chegadas!$D$6*LN(RAND()),2) -> 0.37 | E170: 147.31 | G170: =ROUND(-Chegadas!$G$6*LN(RAND()),2) -> 5.05 | H170: 1339.33 | I170: II | J170: 137.42 | K170: I
C171: 163 | D171: =ROUND(-Chegadas!$D$6*LN(RAND()),2) -> 2.08 | E171: 149.39 | G171: =ROUND(-Chegadas!$G$6*LN(RAND()),2) -> 10.57 | H171: 1349.9 | I171: II | J171: 139.57 | K171: I
C172: 164 | D172: =ROUND(-Chegadas!$D$6*LN(RAND()),2) -> 0.1 | E172: 149.49 | G172: =ROUND(-Chegadas!$G$6*LN(RAND()),2) -> 11.91 | H172: 1361.81 | I172: II | J172: 141.35 | K172: I
C173: 165 | D173: =ROUND(-Chegadas!$D$6*LN(RAND()),2) -> 0.29 | E173: 149.78 | G173: =ROUND(-Chegadas!$G$6*LN(RAND()),2) -> 4.59 | H173: 1366.4 | I173: II | J173: 141.93 | K173: I
C174: 166 | D174: =ROUND(-Chegadas!$D$6*LN(RAND()),2) -> 0.6 | E174: 150.38 | G174: =ROUND(-Chegadas!$G$6*LN(RAND()),2) -> 0.22 | H174: 1366.62 | I174: II | J174: 142.82 | K174: I
C175: 167 | D175: =ROUND(-Chegadas!$D$6*LN(RAND()),2) -> 0.99 | E175: 151.37 | G175: =ROUND(-Chegadas!$G$6*LN(RAND()),2) -> 5.97 | H175: 1372.59 | I175: II | J175: 142.84 | K175: I
C176: 168 | D176: =ROUND(-Chegadas!$D$6*LN(RAND()),2) -> 0.53 | E176: 151.9 | G176: =ROUND(-Chegadas!$G$6*LN(RAND()),2) -> 7.46 | H176: 1380.05 | I176: II | J176: 145 | K176: I
C177: 169 | D177: =ROUND(-Chegadas!$D$6*LN(RAND()),2) -> 4.16 | E177: 156.06 | G177: =ROUND(-Chegadas!$G$6*LN(RAND()),2) -> 7.35 | H177: 1387.4 | I177: II | J177: 145.17 | K177: I
C178: 170 | D178: =ROUND(-Chegadas!$D$6*LN(RAND()),2) -> 0.33 | E178: 156.39 | G178: =ROUND(-Chegadas!$G$6*LN(RAND()),2) -> 4.56 | H178: 1391.96 | I178: II | J178: 145.46 | K178: I
C179: 171 | D179: =ROUND(-Chegadas!$D$6*LN(RAND()),2) -> 0.32 | E179: 156.71 | G179: =ROUND(-Chegadas!$G$6*LN(RAND()),2) -> 0.72 | H179: 1392.68 | I179: II | J179: 146.94 | K179: I
C180: 172 | D180: =ROUND(-Chegadas!$D$6*LN(RAND()),2) -> 1.13 | E180: 157.84 | G180: =ROUND(-Chegadas!$G$6*LN(RAND()),2) -> 2.35 | H180: 1395.03 | I180: II | J180: 147.31 | K180: I
C181: 173 | D181: =ROUND(-Chegadas!$D$6*LN(RAND()),2) -> 1.48 | E181: 159.32 | G181: =ROUND(-Chegadas!$G$6*LN(RAND()),2) -> 15.19 | H181: 1410.22 | I181: II | J181: 148.9 | K181: II
C182: 174 | D182: =ROUND(-Chegadas!$D$6*LN(RAND()),2) -> 0.88 | E182: 160.2 | G182: =ROUND(-Chegadas!$G$6*LN(RAND()),2) -> 6.25 | H182: 1416.47 | I182: II | J182: 149.39 | K182: I
C183: 175 | D183: =ROUND(-Chegadas!$D$6*LN(RAND()),2) -> 0.4 | E183: 160.6 | G183: =ROUND(-Chegadas!$G$6*LN(RAND()),2) -> 6.17 | H183: 1422.64 | I183: II | J183: 149.49 | K183: I
C184: 176 | D184: =ROUND(-Chegadas!$D$6*LN(RAND()),2) -> 1.14 | E184: 161.74 | G184: =ROUND(-Chegadas!$G$6*LN(RAND()),2) -> 24.24 | H184: 1446.88 | I184: II | J184: 149.78 | K184: I
C185: 177 | D185: =ROUND(-Chegadas!$D$6*LN(RAND()),2) -> 0.34 | E185: 162.08 | G185: =ROUND(-Chegadas!$G$6*LN(RAND()),2) -> 8.54 | H185: 1455.42 | I185: II | J185: 150.38 | K185: I
C186: 178 | D186: =ROUND(-Chegadas!$D$6*LN(RAND()),2) -> 0.17 | E186: 162.25 | G186: =ROUND(-Chegadas!$G$6*LN(RAND()),2) -> 12.67 | H186: 1468.09 | I186: II | J186: 151.37 | K186: I
C187: 179 | D187: =ROUND(-Chegadas!$D$6*LN(RAND()),2) -> 1.09 | E187: 163.34 | G187: =ROUND(-Chegadas!$G$6*LN(RAND()),2) -> 6.16 | H187: 1474.25 | I187: II | J187: 151.9 | K187: I
C188: 180 | D188: =ROUND(-Chegadas!$D$6*LN(RAND()),2) -> 0.12 | E188: 163.46 | G188: =ROUND(-Chegadas!$G$6*LN(RAND()),2) -> 1.66 | H188: 1475.91 | I188: II | J188: 156.06 | K188: I
C189: 181 | D189: =ROUND(-Chegadas!$D$6*LN(RAND()),2) -> 2.02 | E189: 165.48 | G189: =ROUND(-Chegadas!$G$6*LN(RAND()),2) -> 13.87 | H189: 1489.78 | I189: II | J189: 156.39 | K189: I
C190: 182 | D190: =ROUND(-Chegadas!$D$6*LN(RAND()),2) -> 0.04 | E190: 165.52 | G190: =ROUND(-Chegadas!$G$6*LN(RAND()),2) -> 6.04 | H190: 1495.82 | I190: II | J190: 156.71 | K190: I
C191: 183 | D191: =ROUND(-Chegadas!$D$6*LN(RAND()),2) -> 1.6 | E191: 167.12 | G191: =ROUND(-Chegadas!$G$6*LN(RAND()),2) -> 27.5 | H191: 1523.32 | I191: II | J191: 157.08 | K191: II
C192: 184 | D192: =ROUND(-Chegadas!$D$6*LN(RAND()),2) -> 2.36 | E192: 169.48 | G192: =ROUND(-Chegadas!$G$6*LN(RAND()),2) -> 11.34 | H192: 1534.66 | I192: II | J192: 157.84 | K192: I
C193: 185 | D193: =ROUND(-Chegadas!$D$6*LN(RAND()),2) -> 3.05 | E193: 172.53 | G193: =ROUND(-Chegadas!$G$6*LN(RAND()),2) -> 24.35 | H193: 1559.01 | I193: II | J193: 159.32 | K193: I
C194: 186 | D194: =ROUND(-Chegadas!$D$6*LN(RAND()),2) -> 0.49 | E194: 173.02 | G194: =ROUND(-Chegadas!$G$6*LN(RAND()),2) -> 23.08 | H194: 1582.09 | I194: II | J194: 160.2 | K194: I
C195: 187 | D195: =ROUND(-Chegadas!$D$6*LN(RAND()),2) -> 0.67 | E195: 173.69 | G195: =ROUND(-Chegadas!$G$6*LN(RAND()),2) -> 7.6 | H195: 1589.69 | I195: II | J195: 160.6 | K195: I
C196: 188 | D196: =ROUND(-Chegadas!$D$6*LN(RAND()),2) -> 0.22 | E196: 173.91 | G196: =ROUND(-Chegadas!$G$6*LN(RAND()),2) -> 0.73 | H196: 1590.42 | I196: II | J196: 161.74 | K196: I
C197: 189 | D197: =ROUND(-Chegadas!$D$6*LN(RAND()),2) -> 2.43 | E197: 176.34 | G197: =ROUND(-Chegadas!$G$6*LN(RAND()),2) -> 6.07 | H197: 1596.49 | I197: II | J197: 162.08 | K197: I
C198: 190 | D198: =ROUND(-Chegadas!$D$6*LN(RAND()),2) -> 0.09 | E198: 176.43 | G198: =ROUND(-Chegadas!$G$6*LN(RAND()),2) -> 10.45 | H198: 1606.94 | I198: II | J198: 162.25 | K198: I
C199: 191 | D199: =ROUND(-Chegadas!$D$6*LN(RAND()),2) -> 1.57 | E199: 178 | G199: =ROUND(-Chegadas!$G$6*LN(RAND()),2) -> 2.57 | H199: 1609.51 | I199: II | J199: 163.34 | K199: I
C200: 192 | D200: =ROUND(-Chegadas!$D$6*LN(RAND()),2) -> 1.57 | E200: 179.57 | G200: =ROUND(-Chegadas!$G$6*LN(RAND()),2) -> 3.3 | H200: 1612.81 | I200: II | J200: 163.46 | K200: I
C201: 193 | D201: =ROUND(-Chegadas!$D$6*LN(RAND()),2) -> 2.71 | E201: 182.28 | G201: =ROUND(-Chegadas!$G$6*LN(RAND()),2) -> 1.37 | H201: 1614.18 | I201: II | J201: =SMALL($H$9:$H$1008,C201) -> 165.48 | K201: I
C202: 194 | D202: =ROUND(-Chegadas!$D$6*LN(RAND()),2) -> 1.71 | E202: 183.99 | G202: =ROUND(-Chegadas!$G$6*LN(RAND()),2) -> 6.02 | H202: 1620.2 | I202: II | J202: 165.52 | K202: =VLOOKUP(J202,$H$9:$I$1008,2,0) -> I
C203: 195 | D203: =ROUND(-Chegadas!$D$6*LN(RAND()),2) -> 2.92 | E203: =E202+D203 -> 186.91 | G203: =ROUND(-Chegadas!$G$6*LN(RAND()),2) -> 0.49 | H203: =H202+G203 -> 1620.69 | I203: II | J203: 167.12 | K203: I
... 805 more rows

Sheet Atendimento
L5: Segundo uma distribuição de probabilidade Beta
L6: (após um teste de hipótese de aderência de KS)
D10: Dias de atendimento dos clientes do Tipo I | K10: Dias de atendimento dos clientes do Tipo II
D12: max = | E12: 21 | F12: média = | G12: =(E12+4*E14+E13)/6 -> 7.666666667 | K12: max = | L12: 2 | M12: média = | N12: =(L12+4*L14+L13)/6 -> 1.083333333
D13: min = | E13: 1 | F13: DP = | G13: =(E12-E13)/6 -> 3.333333333 | K13: min = | L13: 0.5 | M13: DP = | N13: =(L12-L13)/6 -> 0.25
D14: mp = | E14: 6 | F14: alfa = | G14: =(G12-E13)/(E12-E13)*((G12-E13)*(E12-G12)/G13^2-1) -> 2.333333333 | K14: mp = | L14: 1 | M14: alfa = | N14: =(N12-L13)/(L12-L13)*((N12-L13)*(L12-N12)/N13^2-1) -> 2.938271605
F15: beta = | G15: =(E12-G12)/(G12-E13)*G14 -> 4.666666667 | M15: beta = | N15: =(L12-N12)/(N12-L13)*N14 -> 4.617283951
D16: 1 | E16: =BETAINV(RAND(),G$14,G$15,E$13,E$12) -> 7.963737346 | K16: 1 | L16: =BETAINV(RAND(),N$14,N$15,L$13,L$12) -> 1.221944261
D17: 2 | E17: 8.317359385 | K17: 2 | L17: 1.086121486
D18: 3 | E18: =BETAINV(RAND(),G$14,G$15,E$13,E$12) -> 7.151233856 | K18: 3 | L18: 1.304788618
D19: 4 | E19: 6.17243071 | K19: 4 | L19: 0.8330619263
D20: 5 | E20: 2.853610271 | K20: 5 | L20: 0.8641994623
D21: 6 | E21: 8.179792261 | K21: 6 | L21: 1.5180671
D22: 7 | E22: 3.764393469 | K22: 7 | L22: 1.345414576
D23: 8 | E23: 8.683633697 | K23: 8 | L23: 1.051676453
D24: 9 | E24: 11.53280701 | K24: 9 | L24: 0.9426958237
D25: 10 | E25: 12.77393507 | K25: 10 | L25: 0.9423472412
D26: 11 | E26: 7.094619862 | K26: 11 | L26: 1.14551969
D27: 12 | E27: 3.536799525 | K27: 12 | L27: 0.9276509064
D28: 13 | E28: 4.51529055 | K28: 13 | L28: 0.7908508726
D29: 14 | E29: 10.84620712 | K29: 14 | L29: 0.8557809255
D30: 15 | E30: 6.64575612 | K30: 15 | L30: 1.008393962
D31: 16 | E31: 6.787491748 | K31: 16 | L31: 1.055453772
D32: 17 | E32: 6.516438238 | K32: 17 | L32: 1.062456259
D33: 18 | E33: 6.409122577 | K33: 18 | L33: 0.9068071484
D34: 19 | E34: 10.54417042 | K34: 19 | L34: 1.127695933
D35: 20 | E35: 2.226945874 | K35: 20 | L35: 1.146757715
D36: 21 | E36: 2.176437318 | K36: 21 | L36: 1.241941415
D37: 22 | E37: 11.88263889 | K37: 22 | L37: 0.871211497
D38: 23 | E38: 8.961555014 | K38: 23 | L38: 1.377739076
D39: 24 | E39: 8.546474228 | K39: 24 | L39: 0.7866039032
D40: 25 | E40: 3.240939903 | K40: 25 | L40: 0.7996249672
D41: 26 | E41: 10.47146866 | K41: 26 | L41: 1.537989117
D42: 27 | E42: 8.455489171 | K42: 27 | L42: 1.342602875
D43: 28 | E43: 5.715078498 | K43: 28 | L43: 0.8026614781
D44: 29 | E44: 5.05525574 | K44: 29 | L44: 1.348507238
D45: 30 | E45: 6.216023829 | K45: 30 | L45: 1.117594129
D46: 31 | E46: 9.915125394 | K46: 31 | L46: 0.994775377
D47: 32 | E47: 8.225763314 | K47: 32 | L47: 1.234712966
D48: 33 | E48: 8.577218816 | K48: 33 | L48: 1.118310487
D49: 34 | E49: 7.513881504 | K49: 34 | L49: 1.285796393
D50: 35 | E50: 8.323120856 | K50: 35 | L50: 0.9801036469
D51: 36 | E51: 7.775657935 | K51: 36 | L51: 1.564388549
D52: 37 | E52: 11.00939473 | K52: 37 | L52: 0.9887995785
D53: 38 | E53: 8.758240562 | K53: 38 | L53: 0.7563807385
D54: 39 | E54: 6.537563507 | K54: 39 | L54: 1.160460987
D55: 40 | E55: 3.88122756 | K55: 40 | L55: 0.8014607253
D56: 41 | E56: 9.386016086 | K56: 41 | L56: 1.198242536
D57: 42 | E57: 7.793891537 | K57: 42 | L57: 1.175129082
D58: 43 | E58: 11.95695406 | K58: 43 | L58: 0.9766229598
D59: 44 | E59: 8.464949403 | K59: 44 | L59: 0.7861721749
D60: 45 | E60: 6.372447259 | K60: 45 | L60: 0.7154627874
D61: 46 | E61: 7.270909748 | K61: 46 | L61: 1.26444343
D62: 47 | E62: 4.734965256 | K62: 47 | L62: 1.494004973
D63: 48 | E63: 3.607137079 | K63: 48 | L63: 1.494865981
D64: 49 | E64: 5.421676165 | K64: 49 | L64: 1.275131174
D65: 50 | E65: 4.510703322 | K65: 50 | L65: 1.235067303
D66: 51 | E66: 2.758287269 | K66: 51 | L66: 0.8212590913
D67: 52 | E67: 3.434623319 | K67: 52 | L67: 0.8793181864
D68: 53 | E68: 8.001649608 | K68: 53 | L68: 0.6799702088
D69: 54 | E69: 7.821068358 | K69: 54 | L69: 0.9090308087
D70: 55 | E70: 4.836571572 | K70: 55 | L70: 1.212608607
D71: 56 | E71: 7.99530524 | K71: 56 | L71: 1.221829498
D72: 57 | E72: 4.836940634 | K72: 57 | L72: 1.163939555
D73: 58 | E73: 7.267694163 | K73: 58 | L73: 1.459089718
D74: 59 | E74: 4.139369119 | K74: 59 | L74: 1.294542405
D75: 60 | E75: 8.983078271 | K75: 60 | L75: 0.9931886817
D76: 61 | E76: 7.031485965 | K76: 61 | L76: 0.791611498
D77: 62 | E77: 3.807522319 | K77: 62 | L77: 1.164267314
D78: 63 | E78: 15.10273109 | K78: 63 | L78: 1.17655748
D79: 64 | E79: 12.65975952 | K79: 64 | L79: 1.102080305
D80: 65 | E80: =BETAINV(RAND(),G$14,G$15,E$13,E$12) -> 5.043295598 | K80: 65 | L80: =BETAINV(RAND(),N$14,N$15,L$13,L$12) -> 0.9800801831
D81: 66 | E81: 6.939525119 | K81: 66 | L81: 0.9092179618
D82: 67 | E82: 5.463773022 | K82: 67 | L82: 1.5417744
D83: 68 | E83: 7.572809446 | K83: 68 | L83: 0.5785242638
D84: 69 | E84: 8.268024518 | K84: 69 | L84: 1.154627029
D85: 70 | E85: 9.825369958 | K85: 70 | L85: 1.408142652
D86: 71 | E86: 8.185333091 | K86: 71 | L86: 1.553038833
D87: 72 | E87: 3.224382981 | K87: 72 | L87: 1.21787785
D88: 73 | E88: 12.77063245 | K88: 73 | L88: 1.114319692
D89: 74 | E89: 3.22951204 | K89: 74 | L89: 1.367705326
D90: 75 | E90: 6.366807519 | K90: 75 | L90: 0.8736736104
D91: 76 | E91: 7.33707583 | K91: 76 | L91: 1.001292335
D92: 77 | E92: 2.415660404 | K92: 77 | L92: 0.6571086414
D93: 78 | E93: 7.319100372 | K93: 78 | L93: 1.199502278
D94: 79 | E94: 7.232255538 | K94: 79 | L94: 1.232151105
D95: 80 | E95: 7.292105414 | K95: 80 | L95: 0.8198261826
D96: 81 | E96: 8.620959836 | K96: 81 | L96: 1.211130581
D97: 82 | E97: 14.02855782 | K97: 82 | L97: 1.064008978
D98: 83 | E98: 14.00998593 | K98: 83 | L98: 0.9737547873
D99: 84 | E99: 2.412952066 | K99: 84 | L99: 1.146676726
D100: 85 | E100: 12.37587534 | K100: 85 | L100: 1.347167449
D101: 86 | E101: 9.860413371 | K101: 86 | L101: 1.356003326
D102: 87 | E102: 4.251671438 | K102: 87 | L102: 1.063663043
D103: 88 | E103: 5.058759191 | K103: 88 | L103: 0.9188560875
D104: 89 | E104: 11.01164739 | K104: 89 | L104: 0.8380091526
D105: 90 | E105: 11.09215961 | K105: 90 | L105: 0.9406745279
D106: 91 | E106: 4.553574588 | K106: 91 | L106: 1.284658812
D107: 92 | E107: 12.7391656 | K107: 92 | L107: 0.9430548492
D108: 93 | E108: 4.614259773 | K108: 93 | L108: 1.022692042
D109: 94 | E109: 2.853483591 | K109: 94 | L109: 1.263648016
D110: 95 | E110: 5.273496726 | K110: 95 | L110: 0.9299668357
D111: 96 | E111: 11.10881594 | K111: 96 | L111: 0.9835273235
D112: 97 | E112: 7.038693698 | K112: 97 | L112: 0.7790353498
D113: 98 | E113: 14.11646139 | K113: 98 | L113: 1.534015138
D114: 99 | E114: 12.90892841 | K114: 99 | L114: 0.8698582825
D115: 100 | E115: 9.297652566 | K115: 100 | L115: 0.8386301034
D116: 101 | E116: 8.348703384 | K116: 101 | L116: 0.7857638884
D117: 102 | E117: 3.17587238 | K117: 102 | L117: 0.6414397362
D118: 103 | E118: 2.666976202 | K118: 103 | L118: 1.452353577
D119: 104 | E119: 7.926551532 | K119: 104 | L119: 1.525560252
D120: 105 | E120: 14.35800118 | K120: 105 | L120: 0.9652781035
D121: 106 | E121: 7.853497918 | K121: 106 | L121: 1.26262479
D122: 107 | E122: 8.599519888 | K122: 107 | L122: 1.399780759
D123: 108 | E123: 7.612786026 | K123: 108 | L123: 1.435678864
D124: 109 | E124: 3.155195296 | K124: 109 | L124: 0.638588292
D125: 110 | E125: 8.307724758 | K125: 110 | L125: 0.9490287193
D126: 111 | E126: 5.741663996 | K126: 111 | L126: 0.8926283682
D127: 112 | E127: 7.111268511 | K127: 112 | L127: 1.112202052
D128: 113 | E128: 2.326078633 | K128: 113 | L128: 0.8461364285
D129: 114 | E129: 9.327455854 | K129: 114 | L129: 0.6768877945
D130: 115 | E130: 9.432422103 | K130: 115 | L130: 0.9523646671
D131: 116 | E131: 8.219200926 | K131: 116 | L131: 1.237926151
D132: 117 | E132: 7.690249369 | K132: 117 | L132: 1.079392084
D133: 118 | E133: 5.001410622 | K133: 118 | L133: 1.242539154
D134: 119 | E134: 7.528866674 | K134: 119 | L134: 0.7350660531
D135: 120 | E135: 7.660689176 | K135: 120 | L135: 0.7423776153
D136: 121 | E136: 5.497096288 | K136: 121 | L136: 0.9787436944
D137: 122 | E137: 10.84733556 | K137: 122 | L137: 0.8804415229
D138: 123 | E138: 8.427020195 | K138: 123 | L138: 0.8211102959
D139: 124 | E139: 7.228419221 | K139: 124 | L139: 1.752037621
D140: 125 | E140: 11.83545813 | K140: 125 | L140: 1.163629569
D141: 126 | E141: 9.431653764 | K141: 126 | L141: 1.274880224
D142: 127 | E142: 9.579206222 | K142: 127 | L142: 0.6060374012
D143: 128 | E143: 10.46579393 | K143: 128 | L143: 1.327397104
D144: 129 | E144: =BETAINV(RAND(),G$14,G$15,E$13,E$12) -> 4.842583072 | K144: 129 | L144: =BETAINV(RAND(),N$14,N$15,L$13,L$12) -> 1.14733045
D145: 130 | E145: 8.943482476 | K145: 130 | L145: 1.537110768
D146: 131 | E146: 6.051020529 | K146: 131 | L146: 0.7383839001
D147: 132 | E147: 3.37749863 | K147: 132 | L147: 1.204083741
D148: 133 | E148: 9.60703741 | K148: 133 | L148: 0.9666706485
D149: 134 | E149: 11.97333969 | K149: 134 | L149: 1.137364786
D150: 135 | E150: 13.68001507 | K150: 135 | L150: 1.032409849
D151: 136 | E151: 6.529657826 | K151: 136 | L151: 1.25618453
D152: 137 | E152: 8.151616106 | K152: 137 | L152: 1.008648303
D153: 138 | E153: 9.435518131 | K153: 138 | L153: 1.134338252
D154: 139 | E154: 12.18433814 | K154: 139 | L154: 1.595822766
D155: 140 | E155: 6.396639963 | K155: 140 | L155: 1.674822602
D156: 141 | E156: 13.27558729 | K156: 141 | L156: 0.9694752142
D157: 142 | E157: 11.74633629 | K157: 142 | L157: 1.580635976
D158: 143 | E158: 6.229981511 | K158: 143 | L158: 1.388115246
D159: 144 | E159: 9.316372268 | K159: 144 | L159: 1.285738314
D160: 145 | E160: 10.31972409 | K160: 145 | L160: 1.002801264
D161: 146 | E161: 10.9674025 | K161: 146 | L161: 1.090611496
D162: 147 | E162: 5.267540152 | K162: 147 | L162: 0.975395899
D163: 148 | E163: 14.95219306 | K163: 148 | L163: 0.8527136538
D164: 149 | E164: 9.14983062 | K164: 149 | L164: 0.6111669799
D165: 150 | E165: 9.95846627 | K165: 150 | L165: 0.7975440166
D166: 151 | E166: 5.547357112 | K166: 151 | L166: 1.0996373
D167: 152 | E167: 9.98777821 | K167: 152 | L167: 1.026554291
D168: 153 | E168: 8.400609443 | K168: 153 | L168: 1.012911721
D169: 154 | E169: 11.70887446 | K169: 154 | L169: 1.613941386
D170: 155 | E170: 5.609434884 | K170: 155 | L170: 0.9817273113
D171: 156 | E171: 9.220861165 | K171: 156 | L171: 1.256581142
D172: 157 | E172: 3.871006795 | K172: 157 | L172: 1.290897837
D173: 158 | E173: 6.845640558 | K173: 158 | L173: 0.7808032705
D174: 159 | E174: 10.3038474 | K174: 159 | L174: 1.23229699
D175: 160 | E175: 5.980448403 | K175: 160 | L175: 1.072998105
D176: 161 | E176: 9.268434397 | K176: 161 | L176: 0.7917308683
D177: 162 | E177: 9.244009881 | K177: 162 | L177: 0.9085831935
D178: 163 | E178: 14.24896945 | K178: 163 | L178: 1.318080166
D179: 164 | E179: 4.174277623 | K179: 164 | L179: 1.133808358
D180: 165 | E180: 5.891410798 | K180: 165 | L180: 1.490290978
D181: 166 | E181: 9.688459642 | K181: 166 | L181: 1.184090018
D182: 167 | E182: 15.9476827 | K182: 167 | L182: 0.7458665713
D183: 168 | E183: 2.092878247 | K183: 168 | L183: 0.6830467058
D184: 169 | E184: 4.256847216 | K184: 169 | L184: 0.7348933233
D185: 170 | E185: 3.214214494 | K185: 170 | L185: 0.9755502222
D186: 171 | E186: 7.148437032 | K186: 171 | L186: 1.050486487
D187: 172 | E187: 12.83646067 | K187: 172 | L187: 1.044420569
D188: 173 | E188: 6.401161408 | K188: 173 | L188: 1.32205621
D189: 174 | E189: 8.591132089 | K189: 174 | L189: 0.5827959513
D190: 175 | E190: 8.342023644 | K190: 175 | L190: 0.8417621802
D191: 176 | E191: 7.986656344 | K191: 176 | L191: 0.9808654138
D192: 177 | E192: 5.216082407 | K192: 177 | L192: 1.330470077
D193: 178 | E193: 10.0283904 | K193: 178 | L193: 1.486002495
D194: 179 | E194: 4.23778412 | K194: 179 | L194: 1.631485109
D195: 180 | E195: 9.553231803 | K195: 180 | L195: 0.6847013096
D196: 181 | E196: 6.417550267 | K196: 181 | L196: 0.775155307
D197: 182 | E197: 2.067163519 | K197: 182 | L197: 1.110365916
D198: 183 | E198: 6.807641446 | K198: 183 | L198: 1.330271117
D199: 184 | E199: 14.68878245 | K199: 184 | L199: 0.7551959149
D200: 185 | E200: 5.566866205 | K200: 185 | L200: 0.891848444
D201: 186 | E201: 9.035318831 | K201: 186 | L201: 1.219203712
D202: 187 | E202: 11.31152901 | K202: 187 | L202: 1.168104127
D203: 188 | E203: 6.633829773 | K203: 188 | L203: 0.7684658923
D204: 189 | E204: 8.55555996 | K204: 189 | L204: 1.258293797
D205: 190 | E205: 9.349994577 | K205: 190 | L205: 1.266374245
D206: 191 | E206: 2.054623702 | K206: 191 | L206: 0.9695980263
D207: 192 | E207: 8.494796495 | K207: 192 | L207: 0.9800412631
D208: 193 | E208: =BETAINV(RAND(),G$14,G$15,E$13,E$12) -> 7.887128938 | K208: 193 | L208: =BETAINV(RAND(),N$14,N$15,L$13,L$12) -> 0.6699093409
... 307 more rows

Sheet Simulação
D1: Nº de atendimentos = | E1: =COUNT(E8:E507) -> 54 | G1: =COUNT(G8:G507) -> 56 | I1: =COUNT(I8:I507) -> 49 | K1: =COUNT(K8:K507) -> 53 | M1: =COUNT(M8:M507) -> 47 | O1: =COUNT(O8:O507) -> 49 | Q1: =COUNT(Q8:Q507) -> 43 | S1: =COUNT(S8:S507) -> 37 | U1: =COUNT(U8:U507) -> 30 | W1: =COUNT(W8:W507) -> 23 | Y1: =COUNT(Y8:Y507) -> 23 | AA1: =COUNT(AA8:AA507) -> 16 | AC1: =COUNT(AC8:AC507) -> 8 | AE1: =COUNT(AE8:AE507) -> 6 | AG1: =COUNT(AG8:AG507) -> 2 | AI1: =COUNT(AI8:AI507) -> 1 | AK1: =COUNT(AK8:AK507) -> 1 | AM1: =COUNT(AM8:AM507) -> 1 | AO1: =COUNT(AO8:AO507) -> 1 | AQ1: =COUNT(AQ8:AQ507) -> 0
D2: Nº acumulado de atendimentos = | E2: =E1 -> 54 | G2: =SUM($E1:G1) -> 110 | I2: =SUM($E1:I1) -> 159 | K2: =SUM($E1:K1) -> 212 | M2: =SUM($E1:M1) -> 259 | O2: =SUM($E1:O1) -> 308 | Q2: =SUM($E1:Q1) -> 351 | S2: =SUM($E1:S1) -> 388 | U2: =SUM($E1:U1) -> 418 | W2: =SUM($E1:W1) -> 441 | Y2: =SUM($E1:Y1) -> 464 | AA2: =SUM($E1:AA1) -> 480 | AC2: =SUM($E1:AC1) -> 488 | AE2: =SUM($E1:AE1) -> 494 | AG2: =SUM($E1:AG1) -> 496 | AI2: =SUM($E1:AI1) -> 497 | AK2: =SUM($E1:AK1) -> 498 | AM2: =SUM($E1:AM1) -> 499 | AO2: =SUM($E1:AO1) -> 500 | AQ2: =SUM($E1:AQ1) -> 500
D3: Graus de prontidão | E3: =E2/500 -> 0.108 | G3: =G2/500 -> 0.22 | I3: =I2/500 -> 0.318 | K3: =K2/500 -> 0.424 | M3: =M2/500 -> 0.518 | O3: =O2/500 -> 0.616 | Q3: =Q2/500 -> 0.702 | S3: =S2/500 -> 0.776 | U3: =U2/500 -> 0.836 | W3: =W2/500 -> 0.882 | Y3: =Y2/500 -> 0.928 | AA3: =AA2/500 -> 0.96 | AC3: =AC2/500 -> 0.976 | AE3: =AE2/500 -> 0.988 | AG3: =AG2/500 -> 0.992 | AI3: =AI2/500 -> 0.994 | AK3: =AK2/500 -> 0.996 | AM3: =AM2/500 -> 0.998 | AO3: =AO2/500 -> 1 | AQ3: =AQ2/500 -> 1
C6: Chegada à fila | D6: Tempo atendimento | E6: 1º Ventilador | G6: 2º Ventilador | I6: 3º Ventilador | K6: 4º Ventilador | M6: 5º Ventilador | O6: 6º Ventilador | Q6: 7º Ventilador | S6: 8º Ventilador | U6: 9º Ventilador | W6: 10º Ventilador | Y6: 11º Ventilador | AA6: 12º Ventilador | AC6: 13º Ventilador | AE6: 14º Ventilador | AG6: 15º Ventilador | AI6: 16º Ventilador | AK6: 17º Ventilador | AM6: 18º Ventilador | AO6: 19º Ventilador | AQ6: 20º Ventilador
B7: Ordem | E7: Início | F7: Fim | G7: Início | H7: Fim | I7: Início | J7: Fim | K7: Início | L7: Fim | M7: Início | N7: Fim | O7: Início | P7: Fim | Q7: Início | R7: Fim | S7: Início | T7: Fim | U7: Início | V7: Fim | W7: Início | X7: Fim | Y7: Início | Z7: Fim | AA7: Início | AB7: Fim | AC7: Início | AD7: Fim | AE7: Início | AF7: Fim | AG7: Início | AH7: Fim | AI7: Início | AJ7: Fim | AK7: Início | AL7: Fim | AM7: Início | AN7: Fim | AO7: Início | AP7: Fim | AQ7: Início | AR7: Fim
B8: 1 | C8: =Chegadas!J9 -> 0.71 | D8: =IF(Chegadas!K9="I",Atendimento!E16,Atendimento!L16) -> 7.963737346 | E8: =C8 -> 0.71 | F8: =E8+D8 -> 8.673737346 | G8: - | H8: 0 | I8: - | J8: 0 | K8: - | L8: 0 | M8: - | N8: 0 | O8: - | P8: 0 | Q8: - | R8: 0 | S8: - | T8: 0 | U8: - | V8: 0 | W8: - | X8: 0 | Y8: - | Z8: 0 | AA8: - | AB8: 0 | AC8: - | AD8: 0 | AE8: - | AF8: 0 | AG8: - | AH8: 0 | AI8: - | AJ8: 0 | AK8: - | AL8: 0 | AM8: - | AN8: 0 | AO8: - | AP8: 0 | AQ8: - | AR8: 0
B9: 2 | C9: =Chegadas!J10 -> 6.14 | D9: =IF(Chegadas!K10="I",Atendimento!E17,Atendimento!L17) -> 8.317359385 | E9: =IF($C9>F8,$C9,"*") -> * | F9: =IF(E9="*",F8,E9+$D9) -> 8.673737346 | G9: =IF(E9<>"*","-",IF($C9>=H8,$C9,"*")) -> 6.14 | H9: =IF(OR(G9="-",G9="*"),H8,G9+$D9) -> 14.45735938 | I9: =IF(G9<>"*","-",IF($C9>=J8,$C9,"*")) -> - | J9: =IF(OR(I9="-",I9="*"),J8,I9+$D9) -> 0 | K9: =IF(I9<>"*","-",IF($C9>=L8,$C9,"*")) -> - | L9: =IF(OR(K9="-",K9="*"),L8,K9+$D9) -> 0 | M9: =IF(K9<>"*","-",IF($C9>=N8,$C9,"*")) -> - | N9: =IF(OR(M9="-",M9="*"),N8,M9+$D9) -> 0 | O9: =IF(M9<>"*","-",IF($C9>=P8,$C9,"*")) -> - | P9: =IF(OR(O9="-",O9="*"),P8,O9+$D9) -> 0 | Q9: =IF(O9<>"*","-",IF($C9>=R8,$C9,"*")) -> - | R9: =IF(OR(Q9="-",Q9="*"),R8,Q9+$D9) -> 0 | S9: =IF(Q9<>"*","-",IF($C9>=T8,$C9,"*")) -> - | T9: =IF(OR(S9="-",S9="*"),T8,S9+$D9) -> 0 | U9: =IF(S9<>"*","-",IF($C9>=V8,$C9,"*")) -> - | V9: =IF(OR(U9="-",U9="*"),V8,U9+$D9) -> 0 | W9: =IF(U9<>"*","-",IF($C9>=X8,$C9,"*")) -> - | X9: =IF(OR(W9="-",W9="*"),X8,W9+$D9) -> 0 | Y9: =IF(W9<>"*","-",IF($C9>=Z8,$C9,"*")) -> - | Z9: =IF(OR(Y9="-",Y9="*"),Z8,Y9+$D9) -> 0 | AA9: =IF(Y9<>"*","-",IF($C9>=AB8,$C9,"*")) -> - | AB9: =IF(OR(AA9="-",AA9="*"),AB8,AA9+$D9) -> 0 | AC9: =IF(AA9<>"*","-",IF($C9>=AD8,$C9,"*")) -> - | AD9: =IF(OR(AC9="-",AC9="*"),AD8,AC9+$D9) -> 0 | AE9: =IF(AC9<>"*","-",IF($C9>=AF8,$C9,"*")) -> - | AF9: =IF(OR(AE9="-",AE9="*"),AF8,AE9+$D9) -> 0 | AG9: =IF(AE9<>"*","-",IF($C9>=AH8,$C9,"*")) -> - | AH9: =IF(OR(AG9="-",AG9="*"),AH8,AG9+$D9) -> 0 | AI9: =IF(AG9<>"*","-",IF($C9>=AJ8,$C9,"*")) -> - | AJ9: =IF(OR(AI9="-",AI9="*"),AJ8,AI9+$D9) -> 0 | AK9: =IF(AI9<>"*","-",IF($C9>=AL8,$C9,"*")) -> - | AL9: =IF(OR(AK9="-",AK9="*"),AL8,AK9+$D9) -> 0 | AM9: =IF(AK9<>"*","-",IF($C9>=AN8,$C9,"*")) -> - | AN9: =IF(OR(AM9="-",AM9="*"),AN8,AM9+$D9) -> 0 | AO9: =IF(AM9<>"*","-",IF($C9>=AP8,$C9,"*")) -> - | AP9: =IF(OR(AO9="-",AO9="*"),AP8,AO9+$D9) -> 0 | AQ9: =IF(AO9<>"*","-",IF($C9>=AR8,$C9,"*")) -> - | AR9: =IF(OR(AQ9="-",AQ9="*"),AR8,AQ9+$D9) -> 0
B10: 3 | C10: =Chegadas!J11 -> 6.98 | D10: =IF(Chegadas!K11="I",Atendimento!E18,Atendimento!L18) -> 7.151233856 | E10: =IF($C10>F9,$C10,"*") -> * | F10: =IF(E10="*",F9,E10+$D10) -> 8.673737346 | G10: * | H10: =IF(OR(G10="-",G10="*"),H9,G10+$D10) -> 14.45735938 | I10: 6.98 | J10: =IF(OR(I10="-",I10="*"),J9,I10+$D10) -> 14.13123386 | K10: - | L10: =IF(OR(K10="-",K10="*"),L9,K10+$D10) -> 0 | M10: - | N10: =IF(OR(M10="-",M10="*"),N9,M10+$D10) -> 0 | O10: - | P10: =IF(OR(O10="-",O10="*"),P9,O10+$D10) -> 0 | Q10: - | R10: =IF(OR(Q10="-",Q10="*"),R9,Q10+$D10) -> 0 | S10: - | T10: 0 | U10: - | V10: 0 | W10: - | X10: 0 | Y10: - | Z10: 0 | AA10: - | AB10: 0 | AC10: - | AD10: 0 | AE10: - | AF10: 0 | AG10: - | AH10: 0 | AI10: - | AJ10: 0 | AK10: - | AL10: 0 | AM10: - | AN10: 0 | AO10: - | AP10: 0 | AQ10: - | AR10: 0
B11: 4 | C11: =Chegadas!J12 -> 7.36 | D11: =IF(Chegadas!K12="I",Atendimento!E19,Atendimento!L19) -> 6.17243071 | E11: * | F11: 8.673737346 | G11: * | H11: 14.45735938 | I11: * | J11: 14.13123386 | K11: 7.36 | L11: =IF(OR(K11="-",K11="*"),L10,K11+$D11) -> 13.53243071 | M11: - | N11: =IF(OR(M11="-",M11="*"),N10,M11+$D11) -> 0 | O11: - | P11: =IF(OR(O11="-",O11="*"),P10,O11+$D11) -> 0 | Q11: - | R11: =IF(OR(Q11="-",Q11="*"),R10,Q11+$D11) -> 0 | S11: - | T11: 0 | U11: - | V11: 0 | W11: - | X11: 0 | Y11: - | Z11: 0 | AA11: - | AB11: 0 | AC11: - | AD11: 0 | AE11: - | AF11: 0 | AG11: - | AH11: 0 | AI11: - | AJ11: 0 | AK11: - | AL11: 0 | AM11: - | AN11: 0 | AO11: - | AP11: 0 | AQ11: - | AR11: 0
B12: 5 | C12: =Chegadas!J13 -> 7.37 | D12: =IF(Chegadas!K13="I",Atendimento!E20,Atendimento!L20) -> 2.853610271 | E12: * | F12: 8.673737346 | G12: * | H12: 14.45735938 | I12: * | J12: 14.13123386 | K12: * | L12: 13.53243071 | M12: 7.37 | N12: =IF(OR(M12="-",M12="*"),N11,M12+$D12) -> 10.22361027 | O12: - | P12: =IF(OR(O12="-",O12="*"),P11,O12+$D12) -> 0 | Q12: - | R12: =IF(OR(Q12="-",Q12="*"),R11,Q12+$D12) -> 0 | S12: - | T12: 0 | U12: - | V12: 0 | W12: - | X12: 0 | Y12: - | Z12: 0 | AA12: - | AB12: 0 | AC12: - | AD12: 0 | AE12: - | AF12: 0 | AG12: - | AH12: 0 | AI12: - | AJ12: 0 | AK12: - | AL12: 0 | AM12: - | AN12: 0 | AO12: - | AP12: 0 | AQ12: - | AR12: 0
B13: 6 | C13: =Chegadas!J14 -> 7.49 | D13: =IF(Chegadas!K14="I",Atendimento!E21,Atendimento!L21) -> 8.179792261 | E13: * | F13: 8.673737346 | G13: * | H13: 14.45735938 | I13: * | J13: 14.13123386 | K13: * | L13: 13.53243071 | M13: * | N13: 10.22361027 | O13: 7.49 | P13: =IF(OR(O13="-",O13="*"),P12,O13+$D13) -> 15.66979226 | Q13: - | R13: =IF(OR(Q13="-",Q13="*"),R12,Q13+$D13) -> 0 | S13: - | T13: 0 | U13: - | V13: 0 | W13: - | X13: 0 | Y13: - | Z13: 0 | AA13: - | AB13: 0 | AC13: - | AD13: 0 | AE13: - | AF13: 0 | AG13: - | AH13: 0 | AI13: - | AJ13: 0 | AK13: - | AL13: 0 | AM13: - | AN13: 0 | AO13: - | AP13: 0 | AQ13: - | AR13: 0
B14: 7 | C14: =Chegadas!J15 -> 7.68 | D14: =IF(Chegadas!K15="I",Atendimento!E22,Atendimento!L22) -> 3.764393469 | E14: * | F14: 8.673737346 | G14: * | H14: 14.45735938 | I14: * | J14: 14.13123386 | K14: * | L14: 13.53243071 | M14: * | N14: 10.22361027 | O14: * | P14: 15.66979226 | Q14: 7.68 | R14: =IF(OR(Q14="-",Q14="*"),R13,Q14+$D14) -> 11.44439347 | S14: - | T14: 0 | U14: - | V14: 0 | W14: - | X14: 0 | Y14: - | Z14: 0 | AA14: - | AB14: 0 | AC14: - | AD14: 0 | AE14: - | AF14: 0 | AG14: - | AH14: 0 | AI14: - | AJ14: 0 | AK14: - | AL14: 0 | AM14: - | AN14: 0 | AO14: - | AP14: 0 | AQ14: - | AR14: 0
B15: 8 | C15: =Chegadas!J16 -> 8.47 | D15: =IF(Chegadas!K16="I",Atendimento!E23,Atendimento!L23) -> 8.683633697 | E15: * | F15: 8.673737346 | G15: * | H15: 14.45735938 | I15: * | J15: 14.13123386 | K15: * | L15: 13.53243071 | M15: * | N15: 10.22361027 | O15: * | P15: 15.66979226 | Q15: * | R15: 11.44439347 | S15: 8.47 | T15: =IF(OR(S15="-",S15="*"),T14,S15+$D15) -> 17.1536337 | U15: - | V15: 0 | W15: - | X15: 0 | Y15: - | Z15: 0 | AA15: - | AB15: 0 | AC15: - | AD15: 0 | AE15: - | AF15: 0 | AG15: - | AH15: 0 | AI15: - | AJ15: 0 | AK15: - | AL15: 0 | AM15: - | AN15: 0 | AO15: - | AP15: 0 | AQ15: - | AR15: 0
B16: 9 | C16: =Chegadas!J17 -> 9.38 | D16: =IF(Chegadas!K17="I",Atendimento!E24,Atendimento!L24) -> 11.53280701 | E16: 9.38 | F16: 20.91280701 | G16: - | H16: 14.45735938 | I16: - | J16: 14.13123386 | K16: - | L16: 13.53243071 | M16: - | N16: 10.22361027 | O16: - | P16: 15.66979226 | Q16: - | R16: 11.44439347 | S16: - | T16: 17.1536337 | U16: - | V16: =IF(OR(U16="-",U16="*"),V15,U16+$D16) -> 0 | W16: - | X16: 0 | Y16: - | Z16: 0 | AA16: - | AB16: 0 | AC16: - | AD16: 0 | AE16: - | AF16: 0 | AG16: - | AH16: 0 | AI16: - | AJ16: 0 | AK16: - | AL16: 0 | AM16: - | AN16: 0 | AO16: - | AP16: 0 | AQ16: - | AR16: 0
B17: 10 | C17: =Chegadas!J18 -> 9.41 | D17: =IF(Chegadas!K18="I",Atendimento!E25,Atendimento!L25) -> 0.9423472412 | E17: * | F17: 20.91280701 | G17: * | H17: 14.45735938 | I17: * | J17: 14.13123386 | K17: * | L17: 13.53243071 | M17: * | N17: 10.22361027 | O17: * | P17: 15.66979226 | Q17: * | R17: 11.44439347 | S17: * | T17: 17.1536337 | U17: 9.41 | V17: 10.35234724 | W17: - | X17: 0 | Y17: - | Z17: 0 | AA17: - | AB17: 0 | AC17: - | AD17: 0 | AE17: - | AF17: 0 | AG17: - | AH17: 0 | AI17: - | AJ17: 0 | AK17: - | AL17: 0 | AM17: - | AN17: 0 | AO17: - | AP17: 0 | AQ17: - | AR17: 0
B18: 11 | C18: =Chegadas!J19 -> 10.26 | D18: =IF(Chegadas!K19="I",Atendimento!E26,Atendimento!L26) -> 7.094619862 | E18: * | F18: 20.91280701 | G18: * | H18: 14.45735938 | I18: * | J18: 14.13123386 | K18: * | L18: 13.53243071 | M18: 10.26 | N18: 17.35461986 | O18: - | P18: 15.66979226 | Q18: - | R18: 11.44439347 | S18: - | T18: 17.1536337 | U18: - | V18: 10.35234724 | W18: - | X18: 0 | Y18: - | Z18: 0 | AA18: - | AB18: 0 | AC18: - | AD18: 0 | AE18: - | AF18: 0 | AG18: - | AH18: 0 | AI18: - | AJ18: 0 | AK18: - | AL18: 0 | AM18: - | AN18: 0 | AO18: - | AP18: 0 | AQ18: - | AR18: 0
B19: 12 | C19: =Chegadas!J20 -> 14.3 | D19: =IF(Chegadas!K20="I",Atendimento!E27,Atendimento!L27) -> 3.536799525 | E19: * | F19: 20.91280701 | G19: * | H19: 14.45735938 | I19: 14.3 | J19: 17.83679953 | K19: - | L19: 13.53243071 | M19: - | N19: 17.35461986 | O19: - | P19: 15.66979226 | Q19: - | R19: 11.44439347 | S19: - | T19: 17.1536337 | U19: - | V19: 10.35234724 | W19: - | X19: 0 | Y19: - | Z19: 0 | AA19: - | AB19: 0 | AC19: - | AD19: 0 | AE19: - | AF19: 0 | AG19: - | AH19: 0 | AI19: - | AJ19: 0 | AK19: - | AL19: 0 | AM19: - | AN19: 0 | AO19: - | AP19: 0 | AQ19: - | AR19: 0
B20: 13 | C20: =Chegadas!J21 -> 16.32 | D20: =IF(Chegadas!K21="I",Atendimento!E28,Atendimento!L28) -> 4.51529055 | E20: * | F20: 20.91280701 | G20: 16.32 | H20: 20.83529055 | I20: - | J20: 17.83679953 | K20: - | L20: 13.53243071 | M20: - | N20: 17.35461986 | O20: - | P20: 15.66979226 | Q20: - | R20: 11.44439347 | S20: - | T20: 17.1536337 | U20: - | V20: 10.35234724 | W20: - | X20: 0 | Y20: - | Z20: 0 | AA20: - | AB20: 0 | AC20: - | AD20: 0 | AE20: - | AF20: 0 | AG20: - | AH20: 0 | AI20: - | AJ20: 0 | AK20: - | AL20: 0 | AM20: - | AN20: 0 | AO20: - | AP20: 0 | AQ20: - | AR20: 0
B21: 14 | C21: =Chegadas!J22 -> 16.5 | D21: =IF(Chegadas!K22="I",Atendimento!E29,Atendimento!L29) -> 10.84620712 | E21: * | F21: 20.91280701 | G21: * | H21: 20.83529055 | I21: * | J21: 17.83679953 | K21: 16.5 | L21: 27.34620712 | M21: - | N21: 17.35461986 | O21: - | P21: 15.66979226 | Q21: - | R21: 11.44439347 | S21: - | T21: 17.1536337 | U21: - | V21: 10.35234724 | W21: - | X21: 0 | Y21: - | Z21: 0 | AA21: - | AB21: 0 | AC21: - | AD21: 0 | AE21: - | AF21: 0 | AG21: - | AH21: 0 | AI21: - | AJ21: 0 | AK21: - | AL21: 0 | AM21: - | AN21: 0 | AO21: - | AP21: 0 | AQ21: - | AR21: 0
B22: 15 | C22: =Chegadas!J23 -> 16.71 | D22: =IF(Chegadas!K23="I",Atendimento!E30,Atendimento!L30) -> 6.64575612 | E22: * | F22: 20.91280701 | G22: * | H22: 20.83529055 | I22: * | J22: 17.83679953 | K22: * | L22: 27.34620712 | M22: * | N22: 17.35461986 | O22: 16.71 | P22: 23.35575612 | Q22: - | R22: 11.44439347 | S22: - | T22: 17.1536337 | U22: - | V22: 10.35234724 | W22: - | X22: =IF(OR(W22="-",W22="*"),X21,W22+$D22) -> 0 | Y22: - | Z22: =IF(OR(Y22="-",Y22="*"),Z21,Y22+$D22) -> 0 | AA22: - | AB22: =IF(OR(AA22="-",AA22="*"),AB21,AA22+$D22) -> 0 | AC22: - | AD22: =IF(OR(AC22="-",AC22="*"),AD21,AC22+$D22) -> 0 | AE22: - | AF22: =IF(OR(AE22="-",AE22="*"),AF21,AE22+$D22) -> 0 | AG22: - | AH22: =IF(OR(AG22="-",AG22="*"),AH21,AG22+$D22) -> 0 | AI22: - | AJ22: 0 | AK22: - | AL22: 0 | AM22: - | AN22: 0 | AO22: - | AP22: 0 | AQ22: - | AR22: 0
B23: 16 | C23: =Chegadas!J24 -> 16.99 | D23: =IF(Chegadas!K24="I",Atendimento!E31,Atendimento!L31) -> 6.787491748 | E23: * | F23: 20.91280701 | G23: * | H23: 20.83529055 | I23: * | J23: 17.83679953 | K23: * | L23: 27.34620712 | M23: * | N23: 17.35461986 | O23: * | P23: 23.35575612 | Q23: 16.99 | R23: 23.77749175 | S23: - | T23: 17.1536337 | U23: - | V23: 10.35234724 | W23: - | X23: 0 | Y23: - | Z23: 0 | AA23: - | AB23: 0 | AC23: - | AD23: 0 | AE23: - | AF23: 0 | AG23: - | AH23: 0 | AI23: - | AJ23: 0 | AK23: - | AL23: 0 | AM23: - | AN23: 0 | AO23: - | AP23: 0 | AQ23: - | AR23: 0
B24: 17 | C24: =Chegadas!J25 -> 17.4 | D24: =IF(Chegadas!K25="I",Atendimento!E32,Atendimento!L32) -> 6.516438238 | E24: * | F24: 20.91280701 | G24: * | H24: 20.83529055 | I24: * | J24: 17.83679953 | K24: * | L24: 27.34620712 | M24: 17.4 | N24: 23.91643824 | O24: - | P24: 23.35575612 | Q24: - | R24: 23.77749175 | S24: - | T24: 17.1536337 | U24: - | V24: 10.35234724 | W24: - | X24: 0 | Y24: - | Z24: 0 | AA24: - | AB24: 0 | AC24: - | AD24: 0 | AE24: - | AF24: 0 | AG24: - | AH24: 0 | AI24: - | AJ24: 0 | AK24: - | AL24: 0 | AM24: - | AN24: 0 | AO24: - | AP24: 0 | AQ24: - | AR24: 0
B25: 18 | C25: =Chegadas!J26 -> 17.47 | D25: =IF(Chegadas!K26="I",Atendimento!E33,Atendimento!L33) -> 6.409122577 | E25: * | F25: 20.91280701 | G25: * | H25: 20.83529055 | I25: * | J25: 17.83679953 | K25: * | L25: 27.34620712 | M25: * | N25: 23.91643824 | O25: * | P25: 23.35575612 | Q25: * | R25: 23.77749175 | S25: 17.47 | T25: 23.87912258 | U25: - | V25: 10.35234724 | W25: - | X25: 0 | Y25: - | Z25: 0 | AA25: - | AB25: 0 | AC25: - | AD25: 0 | AE25: - | AF25: 0 | AG25: - | AH25: 0 | AI25: - | AJ25: 0 | AK25: - | AL25: 0 | AM25: - | AN25: 0 | AO25: - | AP25: 0 | AQ25: - | AR25: 0
B26: 19 | C26: =Chegadas!J27 -> 18.63 | D26: =IF(Chegadas!K27="I",Atendimento!E34,Atendimento!L34) -> 10.54417042 | E26: * | F26: 20.91280701 | G26: * | H26: 20.83529055 | I26: 18.63 | J26: 29.17417042 | K26: - | L26: 27.34620712 | M26: - | N26: 23.91643824 | O26: - | P26: 23.35575612 | Q26: - | R26: 23.77749175 | S26: - | T26: 23.87912258 | U26: - | V26: 10.35234724 | W26: - | X26: 0 | Y26: - | Z26: 0 | AA26: - | AB26: 0 | AC26: - | AD26: 0 | AE26: - | AF26: 0 | AG26: - | AH26: 0 | AI26: - | AJ26: 0 | AK26: - | AL26: 0 | AM26: - | AN26: 0 | AO26: - | AP26: 0 | AQ26: - | AR26: 0
B27: 20 | C27: =Chegadas!J28 -> 18.8 | D27: =IF(Chegadas!K28="I",Atendimento!E35,Atendimento!L35) -> 2.226945874 | E27: * | F27: 20.91280701 | G27: * | H27: 20.83529055 | I27: * | J27: 29.17417042 | K27: * | L27: 27.34620712 | M27: * | N27: 23.91643824 | O27: * | P27: 23.35575612 | Q27: * | R27: 23.77749175 | S27: * | T27: 23.87912258 | U27: 18.8 | V27: 21.02694587 | W27: - | X27: 0 | Y27: - | Z27: 0 | AA27: - | AB27: 0 | AC27: - | AD27: 0 | AE27: - | AF27: 0 | AG27: - | AH27: 0 | AI27: - | AJ27: =IF(OR(AI27="-",AI27="*"),AJ26,AI27+$D27) -> 0 | AK27: - | AL27: =IF(OR(AK27="-",AK27="*"),AL26,AK27+$D27) -> 0 | AM27: - | AN27: =IF(OR(AM27="-",AM27="*"),AN26,AM27+$D27) -> 0 | AO27: - | AP27: =IF(OR(AO27="-",AO27="*"),AP26,AO27+$D27) -> 0 | AQ27: - | AR27: =IF(OR(AQ27="-",AQ27="*"),AR26,AQ27+$D27) -> 0
B28: 21 | C28: =Chegadas!J29 -> 19.37 | D28: =IF(Chegadas!K29="I",Atendimento!E36,Atendimento!L36) -> 2.176437318 | E28: * | F28: 20.91280701 | G28: * | H28: 20.83529055 | I28: * | J28: 29.17417042 | K28: * | L28: =IF(OR(K28="-",K28="*"),L27,K28+$D28) -> 27.34620712 | M28: * | N28: =IF(OR(M28="-",M28="*"),N27,M28+$D28) -> 23.91643824 | O28: * | P28: =IF(OR(O28="-",O28="*"),P27,O28+$D28) -> 23.35575612 | Q28: * | R28: =IF(OR(Q28="-",Q28="*"),R27,Q28+$D28) -> 23.77749175 | S28: * | T28: =IF(OR(S28="-",S28="*"),T27,S28+$D28) -> 23.87912258 | U28: * | V28: =IF(OR(U28="-",U28="*"),V27,U28+$D28) -> 21.02694587 | W28: 19.37 | X28: =IF(OR(W28="-",W28="*"),X27,W28+$D28) -> 21.54643732 | Y28: - | Z28: 0 | AA28: - | AB28: 0 | AC28: - | AD28: 0 | AE28: - | AF28: 0 | AG28: - | AH28: 0 | AI28: - | AJ28: 0 | AK28: - | AL28: 0 | AM28: - | AN28: 0 | AO28: - | AP28: 0 | AQ28: - | AR28: 0
B29: 22 | C29: =Chegadas!J30 -> 19.64 | D29: =IF(Chegadas!K30="I",Atendimento!E37,Atendimento!L37) -> 11.88263889 | E29: * | F29: 20.91280701 | G29: * | H29: 20.83529055 | I29: * | J29: 29.17417042 | K29: * | L29: 27.34620712 | M29: * | N29: 23.91643824 | O29: * | P29: 23.35575612 | Q29: * | R29: 23.77749175 | S29: * | T29: 23.87912258 | U29: * | V29: 21.02694587 | W29: * | X29: 21.54643732 | Y29: 19.64 | Z29: 31.52263889 | AA29: - | AB29: 0 | AC29: - | AD29: 0 | AE29: - | AF29: 0 | AG29: - | AH29: 0 | AI29: - | AJ29: 0 | AK29: - | AL29: 0 | AM29: - | AN29: 0 | AO29: - | AP29: 0 | AQ29: - | AR29: 0
B30: 23 | C30: =Chegadas!J31 -> 19.67 | D30: =IF(Chegadas!K31="I",Atendimento!E38,Atendimento!L38) -> 8.961555014 | E30: * | F30: 20.91280701 | G30: * | H30: 20.83529055 | I30: * | J30: 29.17417042 | K30: * | L30: 27.34620712 | M30: * | N30: 23.91643824 | O30: * | P30: 23.35575612 | Q30: * | R30: 23.77749175 | S30: * | T30: 23.87912258 | U30: * | V30: 21.02694587 | W30: * | X30: 21.54643732 | Y30: * | Z30: 31.52263889 | AA30: 19.67 | AB30: 28.63155501 | AC30: - | AD30: 0 | AE30: - | AF30: 0 | AG30: - | AH30: 0 | AI30: - | AJ30: 0 | AK30: - | AL30: 0 | AM30: - | AN30: 0 | AO30: - | AP30: 0 | AQ30: - | AR30: 0
B31: 24 | C31: =Chegadas!J32 -> 20.08 | D31: =IF(Chegadas!K32="I",Atendimento!E39,Atendimento!L39) -> 8.546474228 | E31: * | F31: 20.91280701 | G31: * | H31: 20.83529055 | I31: * | J31: 29.17417042 | K31: * | L31: 27.34620712 | M31: * | N31: 23.91643824 | O31: * | P31: 23.35575612 | Q31: * | R31: 23.77749175 | S31: * | T31: 23.87912258 | U31: * | V31: 21.02694587 | W31: * | X31: 21.54643732 | Y31: * | Z31: 31.52263889 | AA31: * | AB31: 28.63155501 | AC31: 20.08 | AD31: 28.62647423 | AE31: - | AF31: 0 | AG31: - | AH31: 0 | AI31: - | AJ31: 0 | AK31: - | AL31: 0 | AM31: - | AN31: 0 | AO31: - | AP31: 0 | AQ31: - | AR31: 0
B32: 25 | C32: =Chegadas!J33 -> 20.45 | D32: =IF(Chegadas!K33="I",Atendimento!E40,Atendimento!L40) -> 3.240939903 | E32: * | F32: 20.91280701 | G32: * | H32: 20.83529055 | I32: * | J32: 29.17417042 | K32: * | L32: 27.34620712 | M32: * | N32: 23.91643824 | O32: * | P32: 23.35575612 | Q32: * | R32: 23.77749175 | S32: * | T32: 23.87912258 | U32: * | V32: 21.02694587 | W32: * | X32: 21.54643732 | Y32: * | Z32: 31.52263889 | AA32: * | AB32: 28.63155501 | AC32: * | AD32: 28.62647423 | AE32: 20.45 | AF32: 23.6909399 | AG32: - | AH32: 0 | AI32: - | AJ32: 0 | AK32: - | AL32: 0 | AM32: - | AN32: 0 | AO32: - | AP32: 0 | AQ32: - | AR32: 0
B33: 26 | C33: =Chegadas!J34 -> 21.55 | D33: =IF(Chegadas!K34="I",Atendimento!E41,Atendimento!L41) -> 10.47146866 | E33: 21.55 | F33: 32.02146866 | G33: - | H33: 20.83529055 | I33: - | J33: 29.17417042 | K33: - | L33: 27.34620712 | M33: - | N33: 23.91643824 | O33: - | P33: 23.35575612 | Q33: - | R33: 23.77749175 | S33: - | T33: 23.87912258 | U33: - | V33: 21.02694587 | W33: - | X33: 21.54643732 | Y33: - | Z33: 31.52263889 | AA33: - | AB33: 28.63155501 | AC33: - | AD33: 28.62647423 | AE33: - | AF33: 23.6909399 | AG33: - | AH33: 0 | AI33: - | AJ33: 0 | AK33: - | AL33: 0 | AM33: - | AN33: 0 | AO33: - | AP33: 0 | AQ33: - | AR33: 0
B34: 27 | C34: =Chegadas!J35 -> 22.05 | D34: =IF(Chegadas!K35="I",Atendimento!E42,Atendimento!L42) -> 8.455489171 | E34: * | F34: 32.02146866 | G34: 22.05 | H34: 30.50548917 | I34: - | J34: 29.17417042 | K34: - | L34: 27.34620712 | M34: - | N34: 23.91643824 | O34: - | P34: 23.35575612 | Q34: - | R34: 23.77749175 | S34: - | T34: 23.87912258 | U34: - | V34: 21.02694587 | W34: - | X34: 21.54643732 | Y34: - | Z34: 31.52263889 | AA34: - | AB34: 28.63155501 | AC34: - | AD34: 28.62647423 | AE34: - | AF34: 23.6909399 | AG34: - | AH34: 0 | AI34: - | AJ34: 0 | AK34: - | AL34: 0 | AM34: - | AN34: 0 | AO34: - | AP34: 0 | AQ34: - | AR34: 0
B35: 28 | C35: =Chegadas!J36 -> 22.49 | D35: =IF(Chegadas!K36="I",Atendimento!E43,Atendimento!L43) -> 5.715078498 | E35: * | F35: 32.02146866 | G35: * | H35: 30.50548917 | I35: * | J35: 29.17417042 | K35: * | L35: 27.34620712 | M35: * | N35: 23.91643824 | O35: * | P35: 23.35575612 | Q35: * | R35: 23.77749175 | S35: * | T35: 23.87912258 | U35: 22.49 | V35: 28.2050785 | W35: - | X35: 21.54643732 | Y35: - | Z35: 31.52263889 | AA35: - | AB35: 28.63155501 | AC35: - | AD35: 28.62647423 | AE35: - | AF35: 23.6909399 | AG35: - | AH35: 0 | AI35: - | AJ35: 0 | AK35: - | AL35: 0 | AM35: - | AN35: 0 | AO35: - | AP35: 0 | AQ35: - | AR35: 0
B36: 29 | C36: =Chegadas!J37 -> 22.57 | D36: =IF(Chegadas!K37="I",Atendimento!E44,Atendimento!L44) -> 5.05525574 | E36: * | F36: 32.02146866 | G36: * | H36: 30.50548917 | I36: * | J36: 29.17417042 | K36: * | L36: 27.34620712 | M36: * | N36: 23.91643824 | O36: * | P36: 23.35575612 | Q36: * | R36: 23.77749175 | S36: * | T36: 23.87912258 | U36: * | V36: 28.2050785 | W36: 22.57 | X36: 27.62525574 | Y36: - | Z36: 31.52263889 | AA36: - | AB36: 28.63155501 | AC36: - | AD36: 28.62647423 | AE36: - | AF36: 23.6909399 | AG36: - | AH36: 0 | AI36: - | AJ36: 0 | AK36: - | AL36: 0 | AM36: - | AN36: 0 | AO36: - | AP36: 0 | AQ36: - | AR36: 0
B37: 30 | C37: =Chegadas!J38 -> 23.02 | D37: =IF(Chegadas!K38="I",Atendimento!E45,Atendimento!L45) -> 6.216023829 | E37: * | F37: 32.02146866 | G37: * | H37: 30.50548917 | I37: * | J37: 29.17417042 | K37: * | L37: 27.34620712 | M37: * | N37: 23.91643824 | O37: * | P37: 23.35575612 | Q37: * | R37: 23.77749175 | S37: * | T37: 23.87912258 | U37: * | V37: 28.2050785 | W37: * | X37: 27.62525574 | Y37: * | Z37: 31.52263889 | AA37: * | AB37: 28.63155501 | AC37: * | AD37: 28.62647423 | AE37: * | AF37: 23.6909399 | AG37: 23.02 | AH37: 29.23602383 | AI37: - | AJ37: 0 | AK37: - | AL37: 0 | AM37: - | AN37: 0 | AO37: - | AP37: 0 | AQ37: - | AR37: 0
B38: 31 | C38: =Chegadas!J39 -> 23.13 | D38: =IF(Chegadas!K39="I",Atendimento!E46,Atendimento!L46) -> 9.915125394 | E38: * | F38: 32.02146866 | G38: * | H38: 30.50548917 | I38: * | J38: 29.17417042 | K38: * | L38: 27.34620712 | M38: * | N38: 23.91643824 | O38: * | P38: 23.35575612 | Q38: * | R38: 23.77749175 | S38: * | T38: 23.87912258 | U38: * | V38: 28.2050785 | W38: * | X38: 27.62525574 | Y38: * | Z38: 31.52263889 | AA38: * | AB38: 28.63155501 | AC38: * | AD38: 28.62647423 | AE38: * | AF38: 23.6909399 | AG38: * | AH38: 29.23602383 | AI38: 23.13 | AJ38: 33.04512539 | AK38: - | AL38: 0 | AM38: - | AN38: 0 | AO38: - | AP38: 0 | AQ38: - | AR38: 0
B39: 32 | C39: =Chegadas!J40 -> 23.45 | D39: =IF(Chegadas!K40="I",Atendimento!E47,Atendimento!L47) -> 1.234712966 | E39: * | F39: 32.02146866 | G39: * | H39: 30.50548917 | I39: * | J39: 29.17417042 | K39: * | L39: 27.34620712 | M39: * | N39: 23.91643824 | O39: 23.45 | P39: 24.68471297 | Q39: - | R39: 23.77749175 | S39: - | T39: 23.87912258 | U39: - | V39: 28.2050785 | W39: - | X39: 27.62525574 | Y39: - | Z39: 31.52263889 | AA39: - | AB39: 28.63155501 | AC39: - | AD39: 28.62647423 | AE39: - | AF39: 23.6909399 | AG39: - | AH39: 29.23602383 | AI39: - | AJ39: 33.04512539 | AK39: - | AL39: 0 | AM39: - | AN39: 0 | AO39: - | AP39: 0 | AQ39: - | AR39: 0
B40: 33 | C40: =Chegadas!J41 -> 23.45 | D40: =IF(Chegadas!K41="I",Atendimento!E48,Atendimento!L48) -> 8.577218816 | E40: * | F40: 32.02146866 | G40: * | H40: 30.50548917 | I40: * | J40: 29.17417042 | K40: * | L40: 27.34620712 | M40: * | N40: 23.91643824 | O40: * | P40: 24.68471297 | Q40: * | R40: 23.77749175 | S40: * | T40: 23.87912258 | U40: * | V40: 28.2050785 | W40: * | X40: 27.62525574 | Y40: * | Z40: 31.52263889 | AA40: * | AB40: 28.63155501 | AC40: * | AD40: 28.62647423 | AE40: * | AF40: 23.6909399 | AG40: * | AH40: 29.23602383 | AI40: * | AJ40: 33.04512539 | AK40: 23.45 | AL40: 32.02721882 | AM40: - | AN40: 0 | AO40: - | AP40: 0 | AQ40: - | AR40: 0
B41: 34 | C41: =Chegadas!J42 -> 23.87 | D41: =IF(Chegadas!K42="I",Atendimento!E49,Atendimento!L49) -> 7.513881504 | E41: * | F41: 32.02146866 | G41: * | H41: 30.50548917 | I41: * | J41: 29.17417042 | K41: * | L41: 27.34620712 | M41: * | N41: 23.91643824 | O41: * | P41: 24.68471297 | Q41: 23.87 | R41: 31.3838815 | S41: - | T41: 23.87912258 | U41: - | V41: 28.2050785 | W41: - | X41: 27.62525574 | Y41: - | Z41: 31.52263889 | AA41: - | AB41: 28.63155501 | AC41: - | AD41: 28.62647423 | AE41: - | AF41: 23.6909399 | AG41: - | AH41: 29.23602383 | AI41: - | AJ41: 33.04512539 | AK41: - | AL41: 32.02721882 | AM41: - | AN41: 0 | AO41: - | AP41: 0 | AQ41: - | AR41: 0
B42: 35 | C42: =Chegadas!J43 -> 24.08 | D42: =IF(Chegadas!K43="I",Atendimento!E50,Atendimento!L50) -> 8.323120856 | E42: * | F42: 32.02146866 | G42: * | H42: 30.50548917 | I42: * | J42: 29.17417042 | K42: * | L42: 27.34620712 | M42: 24.08 | N42: 32.40312086 | O42: - | P42: 24.68471297 | Q42: - | R42: 31.3838815 | S42: - | T42: 23.87912258 | U42: - | V42: 28.2050785 | W42: - | X42: 27.62525574 | Y42: - | Z42: 31.52263889 | AA42: - | AB42: 28.63155501 | AC42: - | AD42: 28.62647423 | AE42: - | AF42: 23.6909399 | AG42: - | AH42: 29.23602383 | AI42: - | AJ42: 33.04512539 | AK42: - | AL42: 32.02721882 | AM42: - | AN42: 0 | AO42: - | AP42: 0 | AQ42: - | AR42: 0
B43: 36 | C43: =Chegadas!J44 -> 25.1 | D43: =IF(Chegadas!K44="I",Atendimento!E51,Atendimento!L51) -> 1.564388549 | E43: * | F43: 32.02146866 | G43: * | H43: 30.50548917 | I43: * | J43: 29.17417042 | K43: * | L43: 27.34620712 | M43: * | N43: 32.40312086 | O43: 25.1 | P43: 26.66438855 | Q43: - | R43: 31.3838815 | S43: - | T43: 23.87912258 | U43: - | V43: 28.2050785 | W43: - | X43: 27.62525574 | Y43: - | Z43: 31.52263889 | AA43: - | AB43: 28.63155501 | AC43: - | AD43: 28.62647423 | AE43: - | AF43: 23.6909399 | AG43: - | AH43: 29.23602383 | AI43: - | AJ43: 33.04512539 | AK43: - | AL43: 32.02721882 | AM43: - | AN43: 0 | AO43: - | AP43: 0 | AQ43: - | AR43: 0
B44: 37 | C44: =Chegadas!J45 -> 25.44 | D44: =IF(Chegadas!K45="I",Atendimento!E52,Atendimento!L52) -> 11.00939473 | E44: * | F44: 32.02146866 | G44: * | H44: 30.50548917 | I44: * | J44: 29.17417042 | K44: * | L44: 27.34620712 | M44: * | N44: 32.40312086 | O44: * | P44: 26.66438855 | Q44: * | R44: 31.3838815 | S44: 25.44 | T44: 36.44939473 | U44: - | V44: 28.2050785 | W44: - | X44: 27.62525574 | Y44: - | Z44: 31.52263889 | AA44: - | AB44: 28.63155501 | AC44: - | AD44: 28.62647423 | AE44: - | AF44: 23.6909399 | AG44: - | AH44: 29.23602383 | AI44: - | AJ44: 33.04512539 | AK44: - | AL44: 32.02721882 | AM44: - | AN44: 0 | AO44: - | AP44: 0 | AQ44: - | AR44: 0
B45: 38 | C45: =Chegadas!J46 -> 25.63 | D45: =IF(Chegadas!K46="I",Atendimento!E53,Atendimento!L53) -> 8.758240562 | E45: * | F45: 32.02146866 | G45: * | H45: 30.50548917 | I45: * | J45: 29.17417042 | K45: * | L45: 27.34620712 | M45: * | N45: 32.40312086 | O45: * | P45: 26.66438855 | Q45: * | R45: 31.3838815 | S45: * | T45: 36.44939473 | U45: * | V45: 28.2050785 | W45: * | X45: 27.62525574 | Y45: * | Z45: 31.52263889 | AA45: * | AB45: 28.63155501 | AC45: * | AD45: 28.62647423 | AE45: 25.63 | AF45: 34.38824056 | AG45: - | AH45: 29.23602383 | AI45: - | AJ45: 33.04512539 | AK45: - | AL45: 32.02721882 | AM45: - | AN45: 0 | AO45: - | AP45: 0 | AQ45: - | AR45: 0
B46: 39 | C46: =Chegadas!J47 -> 25.68 | D46: =IF(Chegadas!K47="I",Atendimento!E54,Atendimento!L54) -> 6.537563507 | E46: * | F46: 32.02146866 | G46: * | H46: 30.50548917 | I46: * | J46: 29.17417042 | K46: * | L46: 27.34620712 | M46: * | N46: 32.40312086 | O46: * | P46: 26.66438855 | Q46: * | R46: 31.3838815 | S46: * | T46: 36.44939473 | U46: * | V46: 28.2050785 | W46: * | X46: 27.62525574 | Y46: * | Z46: 31.52263889 | AA46: * | AB46: 28.63155501 | AC46: * | AD46: 28.62647423 | AE46: * | AF46: 34.38824056 | AG46: * | AH46: 29.23602383 | AI46: * | AJ46: 33.04512539 | AK46: * | AL46: 32.02721882 | AM46: 25.68 | AN46: 32.21756351 | AO46: - | AP46: 0 | AQ46: - | AR46: 0
B47: 40 | C47: =Chegadas!J48 -> 26.88 | D47: =IF(Chegadas!K48="I",Atendimento!E55,Atendimento!L55) -> 3.88122756 | E47: * | F47: 32.02146866 | G47: * | H47: 30.50548917 | I47: * | J47: 29.17417042 | K47: * | L47: 27.34620712 | M47: * | N47: 32.40312086 | O47: 26.88 | P47: 30.76122756 | Q47: - | R47: 31.3838815 | S47: - | T47: 36.44939473 | U47: - | V47: 28.2050785 | W47: - | X47: 27.62525574 | Y47: - | Z47: 31.52263889 | AA47: - | AB47: 28.63155501 | AC47: - | AD47: 28.62647423 | AE47: - | AF47: 34.38824056 | AG47: - | AH47: 29.23602383 | AI47: - | AJ47: 33.04512539 | AK47: - | AL47: 32.02721882 | AM47: - | AN47: 32.21756351 | AO47: - | AP47: 0 | AQ47: - | AR47: 0
B48: 41 | C48: =Chegadas!J49 -> 27.02 | D48: =IF(Chegadas!K49="I",Atendimento!E56,Atendimento!L56) -> 9.386016086 | E48: * | F48: 32.02146866 | G48: * | H48: 30.50548917 | I48: * | J48: 29.17417042 | K48: * | L48: 27.34620712 | M48: * | N48: 32.40312086 | O48: * | P48: 30.76122756 | Q48: * | R48: 31.3838815 | S48: * | T48: 36.44939473 | U48: * | V48: 28.2050785 | W48: * | X48: 27.62525574 | Y48: * | Z48: 31.52263889 | AA48: * | AB48: 28.63155501 | AC48: * | AD48: 28.62647423 | AE48: * | AF48: 34.38824056 | AG48: * | AH48: 29.23602383 | AI48: * | AJ48: 33.04512539 | AK48: * | AL48: 32.02721882 | AM48: * | AN48: 32.21756351 | AO48: 27.02 | AP48: 36.40601609 | AQ48: - | AR48: 0
B49: 42 | C49: =Chegadas!J50 -> 28.25 | D49: =IF(Chegadas!K50="I",Atendimento!E57,Atendimento!L57) -> 7.793891537 | E49: * | F49: 32.02146866 | G49: * | H49: 30.50548917 | I49: * | J49: 29.17417042 | K49: 28.25 | L49: 36.04389154 | M49: - | N49: 32.40312086 | O49: - | P49: 30.76122756 | Q49: - | R49: 31.3838815 | S49: - | T49: 36.44939473 | U49: - | V49: 28.2050785 | W49: - | X49: 27.62525574 | Y49: - | Z49: 31.52263889 | AA49: - | AB49: 28.63155501 | AC49: - | AD49: 28.62647423 | AE49: - | AF49: 34.38824056 | AG49: - | AH49: 29.23602383 | AI49: - | AJ49: 33.04512539 | AK49: - | AL49: 32.02721882 | AM49: - | AN49: 32.21756351 | AO49: - | AP49: 36.40601609 | AQ49: - | AR49: 0
B50: 43 | C50: =Chegadas!J51 -> 28.39 | D50: =IF(Chegadas!K51="I",Atendimento!E58,Atendimento!L58) -> 11.95695406 | E50: * | F50: 32.02146866 | G50: * | H50: 30.50548917 | I50: * | J50: 29.17417042 | K50: * | L50: 36.04389154 | M50: * | N50: 32.40312086 | O50: * | P50: 30.76122756 | Q50: * | R50: 31.3838815 | S50: * | T50: 36.44939473 | U50: 28.39 | V50: 40.34695406 | W50: - | X50: 27.62525574 | Y50: - | Z50: 31.52263889 | AA50: - | AB50: 28.63155501 | AC50: - | AD50: 28.62647423 | AE50: - | AF50: 34.38824056 | AG50: - | AH50: 29.23602383 | AI50: - | AJ50: 33.04512539 | AK50: - | AL50: 32.02721882 | AM50: - | AN50: 32.21756351 | AO50: - | AP50: 36.40601609 | AQ50: - | AR50: 0
B51: 44 | C51: =Chegadas!J52 -> 29.94 | D51: =IF(Chegadas!K52="I",Atendimento!E59,Atendimento!L59) -> 8.464949403 | E51: * | F51: 32.02146866 | G51: * | H51: 30.50548917 | I51: 29.94 | J51: 38.4049494 | K51: - | L51: 36.04389154 | M51: - | N51: 32.40312086 | O51: - | P51: 30.76122756 | Q51: - | R51: 31.3838815 | S51: - | T51: 36.44939473 | U51: - | V51: 40.34695406 | W51: - | X51: 27.62525574 | Y51: - | Z51: 31.52263889 | AA51: - | AB51: 28.63155501 | AC51: - | AD51: 28.62647423 | AE51: - | AF51: 34.38824056 | AG51: - | AH51: 29.23602383 | AI51: - | AJ51: 33.04512539 | AK51: - | AL51: 32.02721882 | AM51: - | AN51: 32.21756351 | AO51: - | AP51: 36.40601609 | AQ51: - | AR51: 0
B52: 45 | C52: =Chegadas!J53 -> 30.33 | D52: =IF(Chegadas!K53="I",Atendimento!E60,Atendimento!L60) -> 6.372447259 | E52: * | F52: 32.02146866 | G52: * | H52: 30.50548917 | I52: * | J52: 38.4049494 | K52: * | L52: 36.04389154 | M52: * | N52: 32.40312086 | O52: * | P52: 30.76122756 | Q52: * | R52: 31.3838815 | S52: * | T52: 36.44939473 | U52: * | V52: 40.34695406 | W52: 30.33 | X52: 36.70244726 | Y52: - | Z52: 31.52263889 | AA52: - | AB52: 28.63155501 | AC52: - | AD52: 28.62647423 | AE52: - | AF52: 34.38824056 | AG52: - | AH52: 29.23602383 | AI52: - | AJ52: 33.04512539 | AK52: - | AL52: 32.02721882 | AM52: - | AN52: 32.21756351 | AO52: - | AP52: 36.40601609 | AQ52: - | AR52: 0
B53: 46 | C53: =Chegadas!J54 -> 31.99 | D53: =IF(Chegadas!K54="I",Atendimento!E61,Atendimento!L61) -> 7.270909748 | E53: * | F53: 32.02146866 | G53: 31.99 | H53: 39.26090975 | I53: - | J53: 38.4049494 | K53: - | L53: 36.04389154 | M53: - | N53: 32.40312086 | O53: - | P53: 30.76122756 | Q53: - | R53: 31.3838815 | S53: - | T53: 36.44939473 | U53: - | V53: 40.34695406 | W53: - | X53: 36.70244726 | Y53: - | Z53: 31.52263889 | AA53: - | AB53: 28.63155501 | AC53: - | AD53: 28.62647423 | AE53: - | AF53: 34.38824056 | AG53: - | AH53: 29.23602383 | AI53: - | AJ53: 33.04512539 | AK53: - | AL53: 32.02721882 | AM53: - | AN53: 32.21756351 | AO53: - | AP53: 36.40601609 | AQ53: - | AR53: 0
B54: 47 | C54: =Chegadas!J55 -> 32.15 | D54: =IF(Chegadas!K55="I",Atendimento!E62,Atendimento!L62) -> 4.734965256 | E54: 32.15 | F54: 36.88496526 | G54: - | H54: 39.26090975 | I54: - | J54: 38.4049494 | K54: - | L54: 36.04389154 | M54: - | N54: 32.40312086 | O54: - | P54: 30.76122756 | Q54: - | R54: 31.3838815 | S54: - | T54: 36.44939473 | U54: - | V54: 40.34695406 | W54: - | X54: 36.70244726 | Y54: - | Z54: 31.52263889 | AA54: - | AB54: 28.63155501 | AC54: - | AD54: 28.62647423 | AE54: - | AF54: 34.38824056 | AG54: - | AH54: 29.23602383 | AI54: - | AJ54: 33.04512539 | AK54: - | AL54: 32.02721882 | AM54: - | AN54: 32.21756351 | AO54: - | AP54: 36.40601609 | AQ54: - | AR54: 0
B55: 48 | C55: =Chegadas!J56 -> 33.84 | D55: =IF(Chegadas!K56="I",Atendimento!E63,Atendimento!L63) -> 3.607137079 | E55: * | F55: 36.88496526 | G55: * | H55: 39.26090975 | I55: * | J55: 38.4049494 | K55: * | L55: 36.04389154 | M55: 33.84 | N55: 37.44713708 | O55: - | P55: 30.76122756 | Q55: - | R55: 31.3838815 | S55: - | T55: 36.44939473 | U55: - | V55: 40.34695406 | W55: - | X55: 36.70244726 | Y55: - | Z55: 31.52263889 | AA55: - | AB55: 28.63155501 | AC55: - | AD55: 28.62647423 | AE55: - | AF55: 34.38824056 | AG55: - | AH55: 29.23602383 | AI55: - | AJ55: 33.04512539 | AK55: - | AL55: 32.02721882 | AM55: - | AN55: 32.21756351 | AO55: - | AP55: 36.40601609 | AQ55: - | AR55: 0
B56: 49 | C56: =Chegadas!J57 -> 36.15 | D56: =IF(Chegadas!K57="I",Atendimento!E64,Atendimento!L64) -> 5.421676165 | E56: * | F56: 36.88496526 | G56: * | H56: 39.26090975 | I56: * | J56: 38.4049494 | K56: 36.15 | L56: 41.57167616 | M56: - | N56: 37.44713708 | O56: - | P56: 30.76122756 | Q56: - | R56: 31.3838815 | S56: - | T56: 36.44939473 | U56: - | V56: 40.34695406 | W56: - | X56: 36.70244726 | Y56: - | Z56: 31.52263889 | AA56: - | AB56: 28.63155501 | AC56: - | AD56: 28.62647423 | AE56: - | AF56: 34.38824056 | AG56: - | AH56: 29.23602383 | AI56: - | AJ56: 33.04512539 | AK56: - | AL56: 32.02721882 | AM56: - | AN56: 32.21756351 | AO56: - | AP56: 36.40601609 | AQ56: - | AR56: 0
B57: 50 | C57: =Chegadas!J58 -> 36.23 | D57: =IF(Chegadas!K58="I",Atendimento!E65,Atendimento!L65) -> 4.510703322 | E57: * | F57: 36.88496526 | G57: * | H57: 39.26090975 | I57: * | J57: 38.4049494 | K57: * | L57: 41.57167616 | M57: * | N57: 37.44713708 | O57: 36.23 | P57: 40.74070332 | Q57: - | R57: 31.3838815 | S57: - | T57: 36.44939473 | U57: - | V57: 40.34695406 | W57: - | X57: 36.70244726 | Y57: - | Z57: 31.52263889 | AA57: - | AB57: 28.63155501 | AC57: - | AD57: 28.62647423 | AE57: - | AF57: 34.38824056 | AG57: - | AH57: 29.23602383 | AI57: - | AJ57: 33.04512539 | AK57: - | AL57: 32.02721882 | AM57: - | AN57: 32.21756351 | AO57: - | AP57: 36.40601609 | AQ57: - | AR57: 0
B58: 51 | C58: =Chegadas!J59 -> 41.57 | D58: =IF(Chegadas!K59="I",Atendimento!E66,Atendimento!L66) -> 2.758287269 | E58: 41.57 | F58: 44.32828727 | G58: - | H58: 39.26090975 | I58: - | J58: 38.4049494 | K58: - | L58: 41.57167616 | M58: - | N58: 37.44713708 | O58: - | P58: 40.74070332 | Q58: - | R58: 31.3838815 | S58: - | T58: 36.44939473 | U58: - | V58: 40.34695406 | W58: - | X58: 36.70244726 | Y58: - | Z58: 31.52263889 | AA58: - | AB58: 28.63155501 | AC58: - | AD58: 28.62647423 | AE58: - | AF58: 34.38824056 | AG58: - | AH58: 29.23602383 | AI58: - | AJ58: 33.04512539 | AK58: - | AL58: 32.02721882 | AM58: - | AN58: 32.21756351 | AO58: - | AP58: 36.40601609 | AQ58: - | AR58: 0
B59: 52 | C59: =Chegadas!J60 -> 41.6 | D59: =IF(Chegadas!K60="I",Atendimento!E67,Atendimento!L67) -> 3.434623319 | E59: * | F59: 44.32828727 | G59: 41.6 | H59: 45.03462332 | I59: - | J59: 38.4049494 | K59: - | L59: 41.57167616 | M59: - | N59: 37.44713708 | O59: - | P59: 40.74070332 | Q59: - | R59: 31.3838815 | S59: - | T59: 36.44939473 | U59: - | V59: 40.34695406 | W59: - | X59: 36.70244726 | Y59: - | Z59: 31.52263889 | AA59: - | AB59: 28.63155501 | AC59: - | AD59: 28.62647423 | AE59: - | AF59: 34.38824056 | AG59: - | AH59: 29.23602383 | AI59: - | AJ59: 33.04512539 | AK59: - | AL59: 32.02721882 | AM59: - | AN59: 32.21756351 | AO59: - | AP59: 36.40601609 | AQ59: - | AR59: 0
B60: 53 | C60: =Chegadas!J61 -> 41.82 | D60: =IF(Chegadas!K61="I",Atendimento!E68,Atendimento!L68) -> 8.001649608 | E60: * | F60: 44.32828727 | G60: * | H60: 45.03462332 | I60: 41.82 | J60: 49.82164961 | K60: - | L60: 41.57167616 | M60: - | N60: 37.44713708 | O60: - | P60: 40.74070332 | Q60: - | R60: 31.3838815 | S60: - | T60: 36.44939473 | U60: - | V60: 40.34695406 | W60: - | X60: 36.70244726 | Y60: - | Z60: 31.52263889 | AA60: - | AB60: 28.63155501 | AC60: - | AD60: 28.62647423 | AE60: - | AF60: 34.38824056 | AG60: - | AH60: 29.23602383 | AI60: - | AJ60: 33.04512539 | AK60: - | AL60: 32.02721882 | AM60: - | AN60: 32.21756351 | AO60: - | AP60: 36.40601609 | AQ60: - | AR60: 0
B61: 54 | C61: =Chegadas!J62 -> 44.32 | D61: =IF(Chegadas!K62="I",Atendimento!E69,Atendimento!L69) -> 7.821068358 | E61: * | F61: 44.32828727 | G61: * | H61: 45.03462332 | I61: * | J61: 49.82164961 | K61: 44.32 | L61: 52.14106836 | M61: - | N61: 37.44713708 | O61: - | P61: 40.74070332 | Q61: - | R61: 31.3838815 | S61: - | T61: 36.44939473 | U61: - | V61: 40.34695406 | W61: - | X61: 36.70244726 | Y61: - | Z61: 31.52263889 | AA61: - | AB61: 28.63155501 | AC61: - | AD61: 28.62647423 | AE61: - | AF61: 34.38824056 | AG61: - | AH61: 29.23602383 | AI61: - | AJ61: 33.04512539 | AK61: - | AL61: 32.02721882 | AM61: - | AN61: 32.21756351 | AO61: - | AP61: 36.40601609 | AQ61: - | AR61: 0
B62: 55 | C62: =Chegadas!J63 -> 46.52 | D62: =IF(Chegadas!K63="I",Atendimento!E70,Atendimento!L70) -> 4.836571572 | E62: 46.52 | F62: 51.35657157 | G62: - | H62: 45.03462332 | I62: - | J62: 49.82164961 | K62: - | L62: 52.14106836 | M62: - | N62: 37.44713708 | O62: - | P62: 40.74070332 | Q62: - | R62: 31.3838815 | S62: - | T62: 36.44939473 | U62: - | V62: 40.34695406 | W62: - | X62: 36.70244726 | Y62: - | Z62: 31.52263889 | AA62: - | AB62: 28.63155501 | AC62: - | AD62: 28.62647423 | AE62: - | AF62: 34.38824056 | AG62: - | AH62: 29.23602383 | AI62: - | AJ62: 33.04512539 | AK62: - | AL62: 32.02721882 | AM62: - | AN62: 32.21756351 | AO62: - | AP62: 36.40601609 | AQ62: - | AR62: 0
B63: 56 | C63: =Chegadas!J64 -> 46.79 | D63: =IF(Chegadas!K64="I",Atendimento!E71,Atendimento!L71) -> 7.99530524 | E63: * | F63: 51.35657157 | G63: 46.79 | H63: 54.78530524 | I63: - | J63: 49.82164961 | K63: - | L63: 52.14106836 | M63: - | N63: 37.44713708 | O63: - | P63: 40.74070332 | Q63: - | R63: 31.3838815 | S63: - | T63: 36.44939473 | U63: - | V63: 40.34695406 | W63: - | X63: 36.70244726 | Y63: - | Z63: 31.52263889 | AA63: - | AB63: 28.63155501 | AC63: - | AD63: 28.62647423 | AE63: - | AF63: 34.38824056 | AG63: - | AH63: 29.23602383 | AI63: - | AJ63: 33.04512539 | AK63: - | AL63: 32.02721882 | AM63: - | AN63: 32.21756351 | AO63: - | AP63: 36.40601609 | AQ63: - | AR63: 0
B64: 57 | C64: =Chegadas!J65 -> 47.21 | D64: =IF(Chegadas!K65="I",Atendimento!E72,Atendimento!L72) -> 4.836940634 | E64: * | F64: 51.35657157 | G64: * | H64: 54.78530524 | I64: * | J64: 49.82164961 | K64: * | L64: 52.14106836 | M64: 47.21 | N64: 52.04694063 | O64: - | P64: 40.74070332 | Q64: - | R64: 31.3838815 | S64: - | T64: 36.44939473 | U64: - | V64: 40.34695406 | W64: - | X64: 36.70244726 | Y64: - | Z64: 31.52263889 | AA64: - | AB64: 28.63155501 | AC64: - | AD64: 28.62647423 | AE64: - | AF64: 34.38824056 | AG64: - | AH64: 29.23602383 | AI64: - | AJ64: 33.04512539 | AK64: - | AL64: 32.02721882 | AM64: - | AN64: 32.21756351 | AO64: - | AP64: 36.40601609 | AQ64: - | AR64: 0
B65: 58 | C65: =Chegadas!J66 -> 48.07 | D65: =IF(Chegadas!K66="I",Atendimento!E73,Atendimento!L73) -> 7.267694163 | E65: * | F65: 51.35657157 | G65: * | H65: 54.78530524 | I65: * | J65: 49.82164961 | K65: * | L65: 52.14106836 | M65: * | N65: 52.04694063 | O65: 48.07 | P65: 55.33769416 | Q65: - | R65: 31.3838815 | S65: - | T65: 36.44939473 | U65: - | V65: 40.34695406 | W65: - | X65: 36.70244726 | Y65: - | Z65: 31.52263889 | AA65: - | AB65: 28.63155501 | AC65: - | AD65: 28.62647423 | AE65: - | AF65: 34.38824056 | AG65: - | AH65: 29.23602383 | AI65: - | AJ65: 33.04512539 | AK65: - | AL65: 32.02721882 | AM65: - | AN65: 32.21756351 | AO65: - | AP65: 36.40601609 | AQ65: - | AR65: 0
B66: 59 | C66: =Chegadas!J67 -> 48.09 | D66: =IF(Chegadas!K67="I",Atendimento!E74,Atendimento!L74) -> 4.139369119 | E66: * | F66: 51.35657157 | G66: * | H66: 54.78530524 | I66: * | J66: 49.82164961 | K66: * | L66: 52.14106836 | M66: * | N66: 52.04694063 | O66: * | P66: 55.33769416 | Q66: 48.09 | R66: 52.22936912 | S66: - | T66: 36.44939473 | U66: - | V66: 40.34695406 | W66: - | X66: 36.70244726 | Y66: - | Z66: 31.52263889 | AA66: - | AB66: 28.63155501 | AC66: - | AD66: 28.62647423 | AE66: - | AF66: 34.38824056 | AG66: - | AH66: 29.23602383 | AI66: - | AJ66: 33.04512539 | AK66: - | AL66: 32.02721882 | AM66: - | AN66: 32.21756351 | AO66: - | AP66: 36.40601609 | AQ66: - | AR66: 0
B67: 60 | C67: =Chegadas!J68 -> 49.21 | D67: =IF(Chegadas!K68="I",Atendimento!E75,Atendimento!L75) -> 8.983078271 | E67: * | F67: 51.35657157 | G67: * | H67: 54.78530524 | I67: * | J67: 49.82164961 | K67: * | L67: 52.14106836 | M67: * | N67: 52.04694063 | O67: * | P67: 55.33769416 | Q67: * | R67: 52.22936912 | S67: 49.21 | T67: 58.19307827 | U67: - | V67: 40.34695406 | W67: - | X67: 36.70244726 | Y67: - | Z67: 31.52263889 | AA67: - | AB67: 28.63155501 | AC67: - | AD67: 28.62647423 | AE67: - | AF67: 34.38824056 | AG67: - | AH67: 29.23602383 | AI67: - | AJ67: 33.04512539 | AK67: - | AL67: 32.02721882 | AM67: - | AN67: 32.21756351 | AO67: - | AP67: 36.40601609 | AQ67: - | AR67: 0
B68: 61 | C68: =Chegadas!J69 -> 50.54 | D68: =IF(Chegadas!K69="I",Atendimento!E76,Atendimento!L76) -> 7.031485965 | E68: * | F68: 51.35657157 | G68: * | H68: 54.78530524 | I68: 50.54 | J68: 57.57148596 | K68: - | L68: 52.14106836 | M68: - | N68: 52.04694063 | O68: - | P68: 55.33769416 | Q68: - | R68: 52.22936912 | S68: - | T68: 58.19307827 | U68: - | V68: 40.34695406 | W68: - | X68: 36.70244726 | Y68: - | Z68: 31.52263889 | AA68: - | AB68: 28.63155501 | AC68: - | AD68: 28.62647423 | AE68: - | AF68: 34.38824056 | AG68: - | AH68: 29.23602383 | AI68: - | AJ68: 33.04512539 | AK68: - | AL68: 32.02721882 | AM68: - | AN68: 32.21756351 | AO68: - | AP68: 36.40601609 | AQ68: - | AR68: 0
B69: 62 | C69: =Chegadas!J70 -> 51.65 | D69: =IF(Chegadas!K70="I",Atendimento!E77,Atendimento!L77) -> 3.807522319 | E69: 51.65 | F69: 55.45752232 | G69: - | H69: 54.78530524 | I69: - | J69: 57.57148596 | K69: - | L69: 52.14106836 | M69: - | N69: 52.04694063 | O69: - | P69: 55.33769416 | Q69: - | R69: 52.22936912 | S69: - | T69: 58.19307827 | U69: - | V69: 40.34695406 | W69: - | X69: 36.70244726 | Y69: - | Z69: 31.52263889 | AA69: - | AB69: 28.63155501 | AC69: - | AD69: 28.62647423 | AE69: - | AF69: 34.38824056 | AG69: - | AH69: 29.23602383 | AI69: - | AJ69: 33.04512539 | AK69: - | AL69: 32.02721882 | AM69: - | AN69: 32.21756351 | AO69: - | AP69: 36.40601609 | AQ69: - | AR69: 0
B70: 63 | C70: =Chegadas!J71 -> 51.81 | D70: =IF(Chegadas!K71="I",Atendimento!E78,Atendimento!L78) -> 15.10273109 | E70: * | F70: 55.45752232 | G70: * | H70: 54.78530524 | I70: * | J70: 57.57148596 | K70: * | L70: 52.14106836 | M70: * | N70: 52.04694063 | O70: * | P70: 55.33769416 | Q70: * | R70: 52.22936912 | S70: * | T70: 58.19307827 | U70: 51.81 | V70: 66.91273109 | W70: - | X70: 36.70244726 | Y70: - | Z70: 31.52263889 | AA70: - | AB70: 28.63155501 | AC70: - | AD70: 28.62647423 | AE70: - | AF70: 34.38824056 | AG70: - | AH70: 29.23602383 | AI70: - | AJ70: 33.04512539 | AK70: - | AL70: 32.02721882 | AM70: - | AN70: 32.21756351 | AO70: - | AP70: 36.40601609 | AQ70: - | AR70: 0
B71: 64 | C71: =Chegadas!J72 -> 52.4 | D71: =IF(Chegadas!K72="I",Atendimento!E79,Atendimento!L79) -> 12.65975952 | E71: * | F71: 55.45752232 | G71: * | H71: 54.78530524 | I71: * | J71: 57.57148596 | K71: 52.4 | L71: 65.05975952 | M71: - | N71: 52.04694063 | O71: - | P71: 55.33769416 | Q71: - | R71: 52.22936912 | S71: - | T71: 58.19307827 | U71: - | V71: 66.91273109 | W71: - | X71: 36.70244726 | Y71: - | Z71: 31.52263889 | AA71: - | AB71: 28.63155501 | AC71: - | AD71: 28.62647423 | AE71: - | AF71: 34.38824056 | AG71: - | AH71: 29.23602383 | AI71: - | AJ71: 33.04512539 | AK71: - | AL71: 32.02721882 | AM71: - | AN71: 32.21756351 | AO71: - | AP71: 36.40601609 | AQ71: - | AR71: 0
B72: 65 | C72: =Chegadas!J73 -> 55.81 | D72: =IF(Chegadas!K73="I",Atendimento!E80,Atendimento!L80) -> 5.043295598 | E72: 55.81 | F72: 60.8532956 | G72: - | H72: 54.78530524 | I72: - | J72: 57.57148596 | K72: - | L72: 65.05975952 | M72: - | N72: 52.04694063 | O72: - | P72: 55.33769416 | Q72: - | R72: 52.22936912 | S72: - | T72: 58.19307827 | U72: - | V72: 66.91273109 | W72: - | X72: 36.70244726 | Y72: - | Z72: 31.52263889 | AA72: - | AB72: 28.63155501 | AC72: - | AD72: 28.62647423 | AE72: - | AF72: 34.38824056 | AG72: - | AH72: 29.23602383 | AI72: - | AJ72: 33.04512539 | AK72: - | AL72: 32.02721882 | AM72: - | AN72: 32.21756351 | AO72: - | AP72: 36.40601609 | AQ72: - | AR72: 0
B73: 66 | C73: =Chegadas!J74 -> 58.19 | D73: =IF(Chegadas!K74="I",Atendimento!E81,Atendimento!L81) -> 6.939525119 | E73: * | F73: 60.8532956 | G73: =IF(E73<>"*","-",IF($C73>=H72,$C73,"*")) -> 58.19 | H73: 65.12952512 | I73: =IF(G73<>"*","-",IF($C73>=J72,$C73,"*")) -> - | J73: 57.57148596 | K73: =IF(I73<>"*","-",IF($C73>=L72,$C73,"*")) -> - | L73: 65.05975952 | M73: =IF(K73<>"*","-",IF($C73>=N72,$C73,"*")) -> - | N73: 52.04694063 | O73: =IF(M73<>"*","-",IF($C73>=P72,$C73,"*")) -> - | P73: 55.33769416 | Q73: =IF(O73<>"*","-",IF($C73>=R72,$C73,"*")) -> - | R73: 52.22936912 | S73: =IF(Q73<>"*","-",IF($C73>=T72,$C73,"*")) -> - | T73: 58.19307827 | U73: =IF(S73<>"*","-",IF($C73>=V72,$C73,"*")) -> - | V73: 66.91273109 | W73: =IF(U73<>"*","-",IF($C73>=X72,$C73,"*")) -> - | X73: 36.70244726 | Y73: =IF(W73<>"*","-",IF($C73>=Z72,$C73,"*")) -> - | Z73: 31.52263889 | AA73: =IF(Y73<>"*","-",IF($C73>=AB72,$C73,"*")) -> - | AB73: 28.63155501 | AC73: =IF(AA73<>"*","-",IF($C73>=AD72,$C73,"*")) -> - | AD73: 28.62647423 | AE73: =IF(AC73<>"*","-",IF($C73>=AF72,$C73,"*")) -> - | AF73: 34.38824056 | AG73: =IF(AE73<>"*","-",IF($C73>=AH72,$C73,"*")) -> - | AH73: 29.23602383 | AI73: =IF(AG73<>"*","-",IF($C73>=AJ72,$C73,"*")) -> - | AJ73: 33.04512539 | AK73: =IF(AI73<>"*","-",IF($C73>=AL72,$C73,"*")) -> - | AL73: 32.02721882 | AM73: =IF(AK73<>"*","-",IF($C73>=AN72,$C73,"*")) -> - | AN73: 32.21756351 | AO73: =IF(AM73<>"*","-",IF($C73>=AP72,$C73,"*")) -> - | AP73: 36.40601609 | AQ73: =IF(AO73<>"*","-",IF($C73>=AR72,$C73,"*")) -> - | AR73: 0
B74: 67 | C74: =Chegadas!J75 -> 59.61 | D74: =IF(Chegadas!K75="I",Atendimento!E82,Atendimento!L82) -> 5.463773022 | E74: =IF($C74>F73,$C74,"*") -> * | F74: =IF(E74="*",F73,E74+$D74) -> 60.8532956 | G74: * | H74: =IF(OR(G74="-",G74="*"),H73,G74+$D74) -> 65.12952512 | I74: 59.61 | J74: =IF(OR(I74="-",I74="*"),J73,I74+$D74) -> 65.07377302 | K74: - | L74: 65.05975952 | M74: - | N74: 52.04694063 | O74: - | P74: 55.33769416 | Q74: - | R74: 52.22936912 | S74: - | T74: 58.19307827 | U74: - | V74: 66.91273109 | W74: - | X74: 36.70244726 | Y74: - | Z74: 31.52263889 | AA74: - | AB74: 28.63155501 | AC74: - | AD74: 28.62647423 | AE74: - | AF74: 34.38824056 | AG74: - | AH74: 29.23602383 | AI74: - | AJ74: 33.04512539 | AK74: - | AL74: 32.02721882 | AM74: - | AN74: 32.21756351 | AO74: - | AP74: 36.40601609 | AQ74: - | AR74: 0
B75: 68 | C75: =Chegadas!J76 -> 61.4 | D75: =IF(Chegadas!K76="I",Atendimento!E83,Atendimento!L83) -> 7.572809446 | E75: 61.4 | F75: 68.97280945 | G75: - | H75: 65.12952512 | I75: - | J75: 65.07377302 | K75: - | L75: 65.05975952 | M75: - | N75: 52.04694063 | O75: - | P75: 55.33769416 | Q75: - | R75: 52.22936912 | S75: - | T75: 58.19307827 | U75: - | V75: 66.91273109 | W75: - | X75: 36.70244726 | Y75: - | Z75: 31.52263889 | AA75: - | AB75: 28.63155501 | AC75: - | AD75: 28.62647423 | AE75: - | AF75: 34.38824056 | AG75: - | AH75: 29.23602383 | AI75: - | AJ75: 33.04512539 | AK75: - | AL75: 32.02721882 | AM75: - | AN75: 32.21756351 | AO75: - | AP75: 36.40601609 | AQ75: - | AR75: 0
B76: 69 | C76: =Chegadas!J77 -> 61.69 | D76: =IF(Chegadas!K77="I",Atendimento!E84,Atendimento!L84) -> 8.268024518 | E76: * | F76: 68.97280945 | G76: * | H76: 65.12952512 | I76: * | J76: 65.07377302 | K76: * | L76: 65.05975952 | M76: 61.69 | N76: 69.95802452 | O76: - | P76: 55.33769416 | Q76: - | R76: 52.22936912 | S76: - | T76: 58.19307827 | U76: - | V76: 66.91273109 | W76: - | X76: 36.70244726 | Y76: - | Z76: 31.52263889 | AA76: - | AB76: 28.63155501 | AC76: - | AD76: 28.62647423 | AE76: - | AF76: 34.38824056 | AG76: - | AH76: 29.23602383 | AI76: - | AJ76: 33.04512539 | AK76: - | AL76: 32.02721882 | AM76: - | AN76: 32.21756351 | AO76: - | AP76: 36.40601609 | AQ76: - | AR76: 0
B77: 70 | C77: =Chegadas!J78 -> 62.67 | D77: =IF(Chegadas!K78="I",Atendimento!E85,Atendimento!L85) -> 9.825369958 | E77: * | F77: 68.97280945 | G77: * | H77: 65.12952512 | I77: * | J77: 65.07377302 | K77: * | L77: 65.05975952 | M77: * | N77: 69.95802452 | O77: 62.67 | P77: 72.49536996 | Q77: - | R77: 52.22936912 | S77: - | T77: 58.19307827 | U77: - | V77: 66.91273109 | W77: - | X77: 36.70244726 | Y77: - | Z77: 31.52263889 | AA77: - | AB77: 28.63155501 | AC77: - | AD77: 28.62647423 | AE77: - | AF77: 34.38824056 | AG77: - | AH77: 29.23602383 | AI77: - | AJ77: 33.04512539 | AK77: - | AL77: 32.02721882 | AM77: - | AN77: 32.21756351 | AO77: - | AP77: 36.40601609 | AQ77: - | AR77: 0
B78: 71 | C78: =Chegadas!J79 -> 63.15 | D78: =IF(Chegadas!K79="I",Atendimento!E86,Atendimento!L86) -> 8.185333091 | E78: * | F78: 68.97280945 | G78: * | H78: 65.12952512 | I78: * | J78: 65.07377302 | K78: * | L78: 65.05975952 | M78: * | N78: 69.95802452 | O78: * | P78: 72.49536996 | Q78: 63.15 | R78: 71.33533309 | S78: - | T78: 58.19307827 | U78: - | V78: 66.91273109 | W78: - | X78: 36.70244726 | Y78: - | Z78: 31.52263889 | AA78: - | AB78: 28.63155501 | AC78: - | AD78: 28.62647423 | AE78: - | AF78: 34.38824056 | AG78: - | AH78: 29.23602383 | AI78: - | AJ78: 33.04512539 | AK78: - | AL78: 32.02721882 | AM78: - | AN78: 32.21756351 | AO78: - | AP78: 36.40601609 | AQ78: - | AR78: 0
B79: 72 | C79: =Chegadas!J80 -> 63.29 | D79: =IF(Chegadas!K80="I",Atendimento!E87,Atendimento!L87) -> 3.224382981 | E79: * | F79: 68.97280945 | G79: * | H79: 65.12952512 | I79: * | J79: 65.07377302 | K79: * | L79: 65.05975952 | M79: * | N79: 69.95802452 | O79: * | P79: 72.49536996 | Q79: * | R79: 71.33533309 | S79: 63.29 | T79: 66.51438298 | U79: - | V79: 66.91273109 | W79: - | X79: 36.70244726 | Y79: - | Z79: 31.52263889 | AA79: - | AB79: 28.63155501 | AC79: - | AD79: 28.62647423 | AE79: - | AF79: 34.38824056 | AG79: - | AH79: 29.23602383 | AI79: - | AJ79: 33.04512539 | AK79: - | AL79: 32.02721882 | AM79: - | AN79: 32.21756351 | AO79: - | AP79: 36.40601609 | AQ79: - | AR79: 0
B80: 73 | C80: =Chegadas!J81 -> 63.71 | D80: =IF(Chegadas!K81="I",Atendimento!E88,Atendimento!L88) -> 12.77063245 | E80: * | F80: 68.97280945 | G80: * | H80: 65.12952512 | I80: * | J80: 65.07377302 | K80: * | L80: 65.05975952 | M80: * | N80: 69.95802452 | O80: * | P80: 72.49536996 | Q80: * | R80: 71.33533309 | S80: * | T80: 66.51438298 | U80: * | V80: 66.91273109 | W80: 63.71 | X80: 76.48063245 | Y80: - | Z80: 31.52263889 | AA80: - | AB80: 28.63155501 | AC80: - | AD80: 28.62647423 | AE80: - | AF80: 34.38824056 | AG80: - | AH80: 29.23602383 | AI80: - | AJ80: 33.04512539 | AK80: - | AL80: 32.02721882 | AM80: - | AN80: 32.21756351 | AO80: - | AP80: 36.40601609 | AQ80: - | AR80: 0
B81: 74 | C81: =Chegadas!J82 -> 63.77 | D81: =IF(Chegadas!K82="I",Atendimento!E89,Atendimento!L89) -> 3.22951204 | E81: * | F81: 68.97280945 | G81: * | H81: 65.12952512 | I81: * | J81: 65.07377302 | K81: * | L81: 65.05975952 | M81: * | N81: 69.95802452 | O81: * | P81: 72.49536996 | Q81: * | R81: 71.33533309 | S81: * | T81: 66.51438298 | U81: * | V81: 66.91273109 | W81: * | X81: 76.48063245 | Y81: 63.77 | Z81: =IF(OR(Y81="-",Y81="*"),Z80,Y81+$D81) -> 66.99951204 | AA81: - | AB81: 28.63155501 | AC81: - | AD81: 28.62647423 | AE81: - | AF81: 34.38824056 | AG81: - | AH81: 29.23602383 | AI81: - | AJ81: 33.04512539 | AK81: - | AL81: 32.02721882 | AM81: - | AN81: 32.21756351 | AO81: - | AP81: 36.40601609 | AQ81: - | AR81: 0
B82: 75 | C82: =Chegadas!J83 -> 63.98 | D82: =IF(Chegadas!K83="I",Atendimento!E90,Atendimento!L90) -> 6.366807519 | E82: * | F82: 68.97280945 | G82: * | H82: 65.12952512 | I82: * | J82: 65.07377302 | K82: * | L82: 65.05975952 | M82: * | N82: 69.95802452 | O82: * | P82: 72.49536996 | Q82: * | R82: 71.33533309 | S82: * | T82: 66.51438298 | U82: * | V82: 66.91273109 | W82: * | X82: 76.48063245 | Y82: * | Z82: 66.99951204 | AA82: 63.98 | AB82: =IF(OR(AA82="-",AA82="*"),AB81,AA82+$D82) -> 70.34680752 | AC82: - | AD82: 28.62647423 | AE82: - | AF82: 34.38824056 | AG82: - | AH82: 29.23602383 | AI82: - | AJ82: 33.04512539 | AK82: - | AL82: 32.02721882 | AM82: - | AN82: 32.21756351 | AO82: - | AP82: 36.40601609 | AQ82: - | AR82: 0
B83: 76 | C83: =Chegadas!J84 -> 65.22 | D83: =IF(Chegadas!K84="I",Atendimento!E91,Atendimento!L91) -> 7.33707583 | E83: * | F83: 68.97280945 | G83: 65.22 | H83: 72.55707583 | I83: - | J83: 65.07377302 | K83: - | L83: 65.05975952 | M83: - | N83: 69.95802452 | O83: - | P83: 72.49536996 | Q83: - | R83: 71.33533309 | S83: - | T83: 66.51438298 | U83: - | V83: 66.91273109 | W83: - | X83: 76.48063245 | Y83: - | Z83: 66.99951204 | AA83: - | AB83: 70.34680752 | AC83: - | AD83: =IF(OR(AC83="-",AC83="*"),AD82,AC83+$D83) -> 28.62647423 | AE83: - | AF83: 34.38824056 | AG83: - | AH83: 29.23602383 | AI83: - | AJ83: 33.04512539 | AK83: - | AL83: 32.02721882 | AM83: - | AN83: 32.21756351 | AO83: - | AP83: 36.40601609 | AQ83: - | AR83: 0
B84: 77 | C84: =Chegadas!J85 -> 68.14 | D84: =IF(Chegadas!K85="I",Atendimento!E92,Atendimento!L92) -> 2.415660404 | E84: * | F84: 68.97280945 | G84: * | H84: 72.55707583 | I84: 68.14 | J84: 70.5556604 | K84: - | L84: 65.05975952 | M84: - | N84: 69.95802452 | O84: - | P84: 72.49536996 | Q84: - | R84: 71.33533309 | S84: - | T84: 66.51438298 | U84: - | V84: 66.91273109 | W84: - | X84: 76.48063245 | Y84: - | Z84: 66.99951204 | AA84: - | AB84: 70.34680752 | AC84: - | AD84: 28.62647423 | AE84: - | AF84: =IF(OR(AE84="-",AE84="*"),AF83,AE84+$D84) -> 34.38824056 | AG84: - | AH84: 29.23602383 | AI84: - | AJ84: 33.04512539 | AK84: - | AL84: 32.02721882 | AM84: - | AN84: 32.21756351 | AO84: - | AP84: 36.40601609 | AQ84: - | AR84: 0
B85: 78 | C85: =Chegadas!J86 -> 68.5 | D85: =IF(Chegadas!K86="I",Atendimento!E93,Atendimento!L93) -> 7.319100372 | E85: * | F85: 68.97280945 | G85: * | H85: 72.55707583 | I85: * | J85: 70.5556604 | K85: 68.5 | L85: 75.81910037 | M85: - | N85: 69.95802452 | O85: - | P85: 72.49536996 | Q85: - | R85: 71.33533309 | S85: - | T85: 66.51438298 | U85: - | V85: 66.91273109 | W85: - | X85: 76.48063245 | Y85: - | Z85: 66.99951204 | AA85: - | AB85: 70.34680752 | AC85: - | AD85: 28.62647423 | AE85: - | AF85: 34.38824056 | AG85: - | AH85: =IF(OR(AG85="-",AG85="*"),AH84,AG85+$D85) -> 29.23602383 | AI85: - | AJ85: 33.04512539 | AK85: - | AL85: 32.02721882 | AM85: - | AN85: 32.21756351 | AO85: - | AP85: 36.40601609 | AQ85: - | AR85: 0
B86: 79 | C86: =Chegadas!J87 -> 70.86 | D86: =IF(Chegadas!K87="I",Atendimento!E94,Atendimento!L94) -> 1.232151105 | E86: 70.86 | F86: 72.09215111 | G86: - | H86: 72.55707583 | I86: - | J86: 70.5556604 | K86: - | L86: 75.81910037 | M86: - | N86: 69.95802452 | O86: - | P86: 72.49536996 | Q86: - | R86: 71.33533309 | S86: - | T86: 66.51438298 | U86: - | V86: 66.91273109 | W86: - | X86: 76.48063245 | Y86: - | Z86: 66.99951204 | AA86: - | AB86: 70.34680752 | AC86: - | AD86: 28.62647423 | AE86: - | AF86: 34.38824056 | AG86: - | AH86: 29.23602383 | AI86: - | AJ86: =IF(OR(AI86="-",AI86="*"),AJ85,AI86+$D86) -> 33.04512539 | AK86: - | AL86: 32.02721882 | AM86: - | AN86: 32.21756351 | AO86: - | AP86: 36.40601609 | AQ86: - | AR86: 0
B87: 80 | C87: =Chegadas!J88 -> 70.94 | D87: =IF(Chegadas!K88="I",Atendimento!E95,Atendimento!L95) -> 7.292105414 | E87: * | F87: 72.09215111 | G87: * | H87: 72.55707583 | I87: 70.94 | J87: 78.23210541 | K87: - | L87: 75.81910037 | M87: - | N87: 69.95802452 | O87: - | P87: 72.49536996 | Q87: - | R87: 71.33533309 | S87: - | T87: 66.51438298 | U87: - | V87: 66.91273109 | W87: - | X87: 76.48063245 | Y87: - | Z87: 66.99951204 | AA87: - | AB87: 70.34680752 | AC87: - | AD87: 28.62647423 | AE87: - | AF87: 34.38824056 | AG87: - | AH87: 29.23602383 | AI87: - | AJ87: 33.04512539 | AK87: - | AL87: =IF(OR(AK87="-",AK87="*"),AL86,AK87+$D87) -> 32.02721882 | AM87: - | AN87: 32.21756351 | AO87: - | AP87: 36.40601609 | AQ87: - | AR87: 0
B88: 81 | C88: =Chegadas!J89 -> 71.49 | D88: =IF(Chegadas!K89="I",Atendimento!E96,Atendimento!L96) -> 8.620959836 | E88: * | F88: 72.09215111 | G88: * | H88: 72.55707583 | I88: * | J88: 78.23210541 | K88: * | L88: 75.81910037 | M88: 71.49 | N88: 80.11095984 | O88: - | P88: 72.49536996 | Q88: - | R88: 71.33533309 | S88: - | T88: 66.51438298 | U88: - | V88: 66.91273109 | W88: - | X88: 76.48063245 | Y88: - | Z88: 66.99951204 | AA88: - | AB88: 70.34680752 | AC88: - | AD88: 28.62647423 | AE88: - | AF88: 34.38824056 | AG88: - | AH88: 29.23602383 | AI88: - | AJ88: 33.04512539 | AK88: - | AL88: 32.02721882 | AM88: - | AN88: =IF(OR(AM88="-",AM88="*"),AN87,AM88+$D88) -> 32.21756351 | AO88: - | AP88: 36.40601609 | AQ88: - | AR88: 0
B89: 82 | C89: =Chegadas!J90 -> 72.02 | D89: =IF(Chegadas!K90="I",Atendimento!E97,Atendimento!L97) -> 14.02855782 | E89: * | F89: 72.09215111 | G89: * | H89: 72.55707583 | I89: * | J89: 78.23210541 | K89: * | L89: 75.81910037 | M89: * | N89: 80.11095984 | O89: * | P89: 72.49536996 | Q89: 72.02 | R89: 86.04855782 | S89: - | T89: 66.51438298 | U89: - | V89: 66.91273109 | W89: - | X89: 76.48063245 | Y89: - | Z89: 66.99951204 | AA89: - | AB89: 70.34680752 | AC89: - | AD89: 28.62647423 | AE89: - | AF89: 34.38824056 | AG89: - | AH89: 29.23602383 | AI89: - | AJ89: 33.04512539 | AK89: - | AL89: 32.02721882 | AM89: - | AN89: 32.21756351 | AO89: - | AP89: =IF(OR(AO89="-",AO89="*"),AP88,AO89+$D89) -> 36.40601609 | AQ89: - | AR89: 0
B90: 83 | C90: =Chegadas!J91 -> 72.37 | D90: =IF(Chegadas!K91="I",Atendimento!E98,Atendimento!L98) -> 14.00998593 | E90: 72.37 | F90: 86.37998593 | G90: - | H90: 72.55707583 | I90: - | J90: 78.23210541 | K90: - | L90: 75.81910037 | M90: - | N90: 80.11095984 | O90: - | P90: 72.49536996 | Q90: - | R90: 86.04855782 | S90: - | T90: 66.51438298 | U90: - | V90: 66.91273109 | W90: - | X90: 76.48063245 | Y90: - | Z90: 66.99951204 | AA90: - | AB90: 70.34680752 | AC90: - | AD90: 28.62647423 | AE90: - | AF90: 34.38824056 | AG90: - | AH90: 29.23602383 | AI90: - | AJ90: 33.04512539 | AK90: - | AL90: 32.02721882 | AM90: - | AN90: 32.21756351 | AO90: - | AP90: 36.40601609 | AQ90: - | AR90: =IF(OR(AQ90="-",AQ90="*"),AR89,AQ90+$D90) -> 0
B91: 84 | C91: =Chegadas!J92 -> 73.55 | D91: =IF(Chegadas!K92="I",Atendimento!E99,Atendimento!L99) -> 2.412952066 | E91: * | F91: 86.37998593 | G91: 73.55 | H91: 75.96295207 | I91: - | J91: 78.23210541 | K91: - | L91: 75.81910037 | M91: - | N91: 80.11095984 | O91: - | P91: 72.49536996 | Q91: - | R91: 86.04855782 | S91: - | T91: 66.51438298 | U91: - | V91: 66.91273109 | W91: - | X91: 76.48063245 | Y91: - | Z91: 66.99951204 | AA91: - | AB91: 70.34680752 | AC91: - | AD91: 28.62647423 | AE91: - | AF91: 34.38824056 | AG91: - | AH91: 29.23602383 | AI91: - | AJ91: 33.04512539 | AK91: - | AL91: 32.02721882 | AM91: - | AN91: 32.21756351 | AO91: - | AP91: 36.40601609 | AQ91: - | AR91: 0
B92: 85 | C92: =Chegadas!J93 -> 74.69 | D92: =IF(Chegadas!K93="I",Atendimento!E100,Atendimento!L100) -> 12.37587534 | E92: * | F92: 86.37998593 | G92: * | H92: 75.96295207 | I92: * | J92: 78.23210541 | K92: * | L92: =IF(OR(K92="-",K92="*"),L91,K92+$D92) -> 75.81910037 | M92: * | N92: =IF(OR(M92="-",M92="*"),N91,M92+$D92) -> 80.11095984 | O92: 74.69 | P92: =IF(OR(O92="-",O92="*"),P91,O92+$D92) -> 87.06587534 | Q92: - | R92: =IF(OR(Q92="-",Q92="*"),R91,Q92+$D92) -> 86.04855782 | S92: - | T92: =IF(OR(S92="-",S92="*"),T91,S92+$D92) -> 66.51438298 | U92: - | V92: =IF(OR(U92="-",U92="*"),V91,U92+$D92) -> 66.91273109 | W92: - | X92: =IF(OR(W92="-",W92="*"),X91,W92+$D92) -> 76.48063245 | Y92: - | Z92: 66.99951204 | AA92: - | AB92: 70.34680752 | AC92: - | AD92: 28.62647423 | AE92: - | AF92: 34.38824056 | AG92: - | AH92: 29.23602383 | AI92: - | AJ92: 33.04512539 | AK92: - | AL92: 32.02721882 | AM92: - | AN92: 32.21756351 | AO92: - | AP92: 36.40601609 | AQ92: - | AR92: 0
B93: 86 | C93: =Chegadas!J94 -> 75.69 | D93: =IF(Chegadas!K94="I",Atendimento!E101,Atendimento!L101) -> 9.860413371 | E93: * | F93: 86.37998593 | G93: * | H93: 75.96295207 | I93: * | J93: 78.23210541 | K93: * | L93: 75.81910037 | M93: * | N93: 80.11095984 | O93: * | P93: 87.06587534 | Q93: * | R93: 86.04855782 | S93: 75.69 | T93: 85.55041337 | U93: - | V93: 66.91273109 | W93: - | X93: 76.48063245 | Y93: - | Z93: 66.99951204 | AA93: - | AB93: 70.34680752 | AC93: - | AD93: 28.62647423 | AE93: - | AF93: 34.38824056 | AG93: - | AH93: 29.23602383 | AI93: - | AJ93: 33.04512539 | AK93: - | AL93: 32.02721882 | AM93: - | AN93: 32.21756351 | AO93: - | AP93: 36.40601609 | AQ93: - | AR93: 0
B94: 87 | C94: =Chegadas!J95 -> 75.98 | D94: =IF(Chegadas!K95="I",Atendimento!E102,Atendimento!L102) -> 4.251671438 | E94: * | F94: 86.37998593 | G94: 75.98 | H94: 80.23167144 | I94: - | J94: 78.23210541 | K94: - | L94: 75.81910037 | M94: - | N94: 80.11095984 | O94: - | P94: 87.06587534 | Q94: - | R94: 86.04855782 | S94: - | T94: 85.55041337 | U94: - | V94: 66.91273109 | W94: - | X94: 76.48063245 | Y94: - | Z94: 66.99951204 | AA94: - | AB94: 70.34680752 | AC94: - | AD94: 28.62647423 | AE94: - | AF94: 34.38824056 | AG94: - | AH94: 29.23602383 | AI94: - | AJ94: 33.04512539 | AK94: - | AL94: 32.02721882 | AM94: - | AN94: 32.21756351 | AO94: - | AP94: 36.40601609 | AQ94: - | AR94: 0
B95: 88 | C95: =Chegadas!J96 -> 76.63 | D95: =IF(Chegadas!K96="I",Atendimento!E103,Atendimento!L103) -> 5.058759191 | E95: * | F95: 86.37998593 | G95: * | H95: 80.23167144 | I95: * | J95: 78.23210541 | K95: 76.63 | L95: 81.68875919 | M95: - | N95: 80.11095984 | O95: - | P95: 87.06587534 | Q95: - | R95: 86.04855782 | S95: - | T95: 85.55041337 | U95: - | V95: 66.91273109 | W95: - | X95: 76.48063245 | Y95: - | Z95: 66.99951204 | AA95: - | AB95: 70.34680752 | AC95: - | AD95: 28.62647423 | AE95: - | AF95: 34.38824056 | AG95: - | AH95: 29.23602383 | AI95: - | AJ95: 33.04512539 | AK95: - | AL95: 32.02721882 | AM95: - | AN95: 32.21756351 | AO95: - | AP95: 36.40601609 | AQ95: - | AR95: 0
B96: 89 | C96: =Chegadas!J97 -> 79.3 | D96: =IF(Chegadas!K97="I",Atendimento!E104,Atendimento!L104) -> 11.01164739 | E96: * | F96: 86.37998593 | G96: * | H96: 80.23167144 | I96: 79.3 | J96: 90.31164739 | K96: - | L96: 81.68875919 | M96: - | N96: 80.11095984 | O96: - | P96: 87.06587534 | Q96: - | R96: 86.04855782 | S96: - | T96: 85.55041337 | U96: - | V96: 66.91273109 | W96: - | X96: 76.48063245 | Y96: - | Z96: 66.99951204 | AA96: - | AB96: 70.34680752 | AC96: - | AD96: 28.62647423 | AE96: - | AF96: 34.38824056 | AG96: - | AH96: 29.23602383 | AI96: - | AJ96: 33.04512539 | AK96: - | AL96: 32.02721882 | AM96: - | AN96: 32.21756351 | AO96: - | AP96: 36.40601609 | AQ96: - | AR96: 0
B97: 90 | C97: =Chegadas!J98 -> 79.88 | D97: =IF(Chegadas!K98="I",Atendimento!E105,Atendimento!L105) -> 11.09215961 | E97: * | F97: 86.37998593 | G97: * | H97: 80.23167144 | I97: * | J97: 90.31164739 | K97: * | L97: 81.68875919 | M97: * | N97: 80.11095984 | O97: * | P97: 87.06587534 | Q97: * | R97: 86.04855782 | S97: * | T97: 85.55041337 | U97: 79.88 | V97: 90.97215961 | W97: - | X97: 76.48063245 | Y97: - | Z97: 66.99951204 | AA97: - | AB97: 70.34680752 | AC97: - | AD97: 28.62647423 | AE97: - | AF97: 34.38824056 | AG97: - | AH97: 29.23602383 | AI97: - | AJ97: 33.04512539 | AK97: - | AL97: 32.02721882 | AM97: - | AN97: 32.21756351 | AO97: - | AP97: 36.40601609 | AQ97: - | AR97: 0
B98: 91 | C98: =Chegadas!J99 -> 81.47 | D98: =IF(Chegadas!K99="I",Atendimento!E106,Atendimento!L106) -> 1.284658812 | E98: * | F98: 86.37998593 | G98: 81.47 | H98: 82.75465881 | I98: - | J98: 90.31164739 | K98: - | L98: 81.68875919 | M98: - | N98: 80.11095984 | O98: - | P98: 87.06587534 | Q98: - | R98: 86.04855782 | S98: - | T98: 85.55041337 | U98: - | V98: 90.97215961 | W98: - | X98: 76.48063245 | Y98: - | Z98: 66.99951204 | AA98: - | AB98: 70.34680752 | AC98: - | AD98: 28.62647423 | AE98: - | AF98: 34.38824056 | AG98: - | AH98: 29.23602383 | AI98: - | AJ98: 33.04512539 | AK98: - | AL98: 32.02721882 | AM98: - | AN98: 32.21756351 | AO98: - | AP98: 36.40601609 | AQ98: - | AR98: 0
B99: 92 | C99: =Chegadas!J100 -> 81.68 | D99: =IF(Chegadas!K100="I",Atendimento!E107,Atendimento!L107) -> 12.7391656 | E99: * | F99: 86.37998593 | G99: * | H99: 82.75465881 | I99: * | J99: 90.31164739 | K99: * | L99: 81.68875919 | M99: 81.68 | N99: 94.4191656 | O99: - | P99: 87.06587534 | Q99: - | R99: 86.04855782 | S99: - | T99: 85.55041337 | U99: - | V99: 90.97215961 | W99: - | X99: 76.48063245 | Y99: - | Z99: 66.99951204 | AA99: - | AB99: 70.34680752 | AC99: - | AD99: 28.62647423 | AE99: - | AF99: 34.38824056 | AG99: - | AH99: 29.23602383 | AI99: - | AJ99: 33.04512539 | AK99: - | AL99: 32.02721882 | AM99: - | AN99: 32.21756351 | AO99: - | AP99: 36.40601609 | AQ99: - | AR99: 0
B100: 93 | C100: =Chegadas!J101 -> 81.73 | D100: =IF(Chegadas!K101="I",Atendimento!E108,Atendimento!L108) -> 4.614259773 | E100: * | F100: 86.37998593 | G100: * | H100: 82.75465881 | I100: * | J100: 90.31164739 | K100: 81.73 | L100: 86.34425977 | M100: - | N100: 94.4191656 | O100: - | P100: 87.06587534 | Q100: - | R100: 86.04855782 | S100: - | T100: 85.55041337 | U100: - | V100: 90.97215961 | W100: - | X100: 76.48063245 | Y100: - | Z100: 66.99951204 | AA100: - | AB100: 70.34680752 | AC100: - | AD100: 28.62647423 | AE100: - | AF100: 34.38824056 | AG100: - | AH100: 29.23602383 | AI100: - | AJ100: 33.04512539 | AK100: - | AL100: 32.02721882 | AM100: - | AN100: 32.21756351 | AO100: - | AP100: 36.40601609 | AQ100: - | AR100: 0
B101: 94 | C101: =Chegadas!J102 -> 81.83 | D101: =IF(Chegadas!K102="I",Atendimento!E109,Atendimento!L109) -> 2.853483591 | E101: * | F101: 86.37998593 | G101: * | H101: 82.75465881 | I101: * | J101: 90.31164739 | K101: * | L101: 86.34425977 | M101: * | N101: 94.4191656 | O101: * | P101: 87.06587534 | Q101: * | R101: 86.04855782 | S101: * | T101: 85.55041337 | U101: * | V101: 90.97215961 | W101: 81.83 | X101: 84.68348359 | Y101: - | Z101: 66.99951204 | AA101: - | AB101: 70.34680752 | AC101: - | AD101: 28.62647423 | AE101: - | AF101: 34.38824056 | AG101: - | AH101: 29.23602383 | AI101: - | AJ101: 33.04512539 | AK101: - | AL101: 32.02721882 | AM101: - | AN101: 32.21756351 | AO101: - | AP101: 36.40601609 | AQ101: - | AR101: 0
B102: 95 | C102: =Chegadas!J103 -> 82.39 | D102: =IF(Chegadas!K103="I",Atendimento!E110,Atendimento!L110) -> 5.273496726 | E102: * | F102: 86.37998593 | G102: * | H102: 82.75465881 | I102: * | J102: 90.31164739 | K102: * | L102: 86.34425977 | M102: * | N102: 94.4191656 | O102: * | P102: 87.06587534 | Q102: * | R102: 86.04855782 | S102: * | T102: 85.55041337 | U102: * | V102: 90.97215961 | W102: * | X102: 84.68348359 | Y102: 82.39 | Z102: 87.66349673 | AA102: - | AB102: 70.34680752 | AC102: - | AD102: 28.62647423 | AE102: - | AF102: 34.38824056 | AG102: - | AH102: 29.23602383 | AI102: - | AJ102: 33.04512539 | AK102: - | AL102: 32.02721882 | AM102: - | AN102: 32.21756351 | AO102: - | AP102: 36.40601609 | AQ102: - | AR102: 0
B103: 96 | C103: =Chegadas!J104 -> 83.41 | D103: =IF(Chegadas!K104="I",Atendimento!E111,Atendimento!L111) -> 11.10881594 | E103: * | F103: 86.37998593 | G103: 83.41 | H103: 94.51881594 | I103: - | J103: 90.31164739 | K103: - | L103: 86.34425977 | M103: - | N103: 94.4191656 | O103: - | P103: 87.06587534 | Q103: - | R103: 86.04855782 | S103: - | T103: 85.55041337 | U103: - | V103: 90.97215961 | W103: - | X103: 84.68348359 | Y103: - | Z103: 87.66349673 | AA103: - | AB103: 70.34680752 | AC103: - | AD103: 28.62647423 | AE103: - | AF103: 34.38824056 | AG103: - | AH103: 29.23602383 | AI103: - | AJ103: 33.04512539 | AK103: - | AL103: 32.02721882 | AM103: - | AN103: 32.21756351 | AO103: - | AP103: 36.40601609 | AQ103: - | AR103: 0
B104: 97 | C104: =Chegadas!J105 -> 83.96 | D104: =IF(Chegadas!K105="I",Atendimento!E112,Atendimento!L112) -> 7.038693698 | E104: * | F104: 86.37998593 | G104: * | H104: 94.51881594 | I104: * | J104: 90.31164739 | K104: * | L104: 86.34425977 | M104: * | N104: 94.4191656 | O104: * | P104: 87.06587534 | Q104: * | R104: 86.04855782 | S104: * | T104: 85.55041337 | U104: * | V104: 90.97215961 | W104: * | X104: 84.68348359 | Y104: * | Z104: 87.66349673 | AA104: 83.96 | AB104: 90.9986937 | AC104: - | AD104: 28.62647423 | AE104: - | AF104: 34.38824056 | AG104: - | AH104: 29.23602383 | AI104: - | AJ104: 33.04512539 | AK104: - | AL104: 32.02721882 | AM104: - | AN104: 32.21756351 | AO104: - | AP104: 36.40601609 | AQ104: - | AR104: 0
B105: 98 | C105: =Chegadas!J106 -> 85.97 | D105: =IF(Chegadas!K106="I",Atendimento!E113,Atendimento!L113) -> 14.11646139 | E105: * | F105: 86.37998593 | G105: * | H105: 94.51881594 | I105: * | J105: 90.31164739 | K105: * | L105: 86.34425977 | M105: * | N105: 94.4191656 | O105: * | P105: 87.06587534 | Q105: * | R105: 86.04855782 | S105: 85.97 | T105: 100.0864614 | U105: - | V105: 90.97215961 | W105: - | X105: 84.68348359 | Y105: - | Z105: 87.66349673 | AA105: - | AB105: 90.9986937 | AC105: - | AD105: 28.62647423 | AE105: - | AF105: 34.38824056 | AG105: - | AH105: 29.23602383 | AI105: - | AJ105: 33.04512539 | AK105: - | AL105: 32.02721882 | AM105: - | AN105: 32.21756351 | AO105: - | AP105: 36.40601609 | AQ105: - | AR105: 0
B106: 99 | C106: =Chegadas!J107 -> 86.07 | D106: =IF(Chegadas!K107="I",Atendimento!E114,Atendimento!L114) -> 12.90892841 | E106: * | F106: 86.37998593 | G106: * | H106: 94.51881594 | I106: * | J106: 90.31164739 | K106: * | L106: 86.34425977 | M106: * | N106: 94.4191656 | O106: * | P106: 87.06587534 | Q106: 86.07 | R106: 98.97892841 | S106: - | T106: 100.0864614 | U106: - | V106: 90.97215961 | W106: - | X106: 84.68348359 | Y106: - | Z106: 87.66349673 | AA106: - | AB106: 90.9986937 | AC106: - | AD106: 28.62647423 | AE106: - | AF106: 34.38824056 | AG106: - | AH106: 29.23602383 | AI106: - | AJ106: 33.04512539 | AK106: - | AL106: 32.02721882 | AM106: - | AN106: 32.21756351 | AO106: - | AP106: 36.40601609 | AQ106: - | AR106: 0
B107: 100 | C107: =Chegadas!J108 -> 86.7 | D107: =IF(Chegadas!K108="I",Atendimento!E115,Atendimento!L115) -> 9.297652566 | E107: 86.7 | F107: 95.99765257 | G107: - | H107: 94.51881594 | I107: - | J107: 90.31164739 | K107: - | L107: 86.34425977 | M107: - | N107: 94.4191656 | O107: - | P107: 87.06587534 | Q107: - | R107: 98.97892841 | S107: - | T107: 100.0864614 | U107: - | V107: 90.97215961 | W107: - | X107: 84.68348359 | Y107: - | Z107: 87.66349673 | AA107: - | AB107: 90.9986937 | AC107: - | AD107: 28.62647423 | AE107: - | AF107: 34.38824056 | AG107: - | AH107: 29.23602383 | AI107: - | AJ107: 33.04512539 | AK107: - | AL107: 32.02721882 | AM107: - | AN107: 32.21756351 | AO107: - | AP107: 36.40601609 | AQ107: - | AR107: 0
B108: 101 | C108: =Chegadas!J109 -> 87.8 | D108: =IF(Chegadas!K109="I",Atendimento!E116,Atendimento!L116) -> 8.348703384 | E108: * | F108: 95.99765257 | G108: * | H108: 94.51881594 | I108: * | J108: 90.31164739 | K108: 87.8 | L108: 96.14870338 | M108: - | N108: 94.4191656 | O108: - | P108: 87.06587534 | Q108: - | R108: 98.97892841 | S108: - | T108: 100.0864614 | U108: - | V108: 90.97215961 | W108: - | X108: 84.68348359 | Y108: - | Z108: 87.66349673 | AA108: - | AB108: 90.9986937 | AC108: - | AD108: 28.62647423 | AE108: - | AF108: 34.38824056 | AG108: - | AH108: 29.23602383 | AI108: - | AJ108: 33.04512539 | AK108: - | AL108: 32.02721882 | AM108: - | AN108: 32.21756351 | AO108: - | AP108: 36.40601609 | AQ108: - | AR108: 0
B109: 102 | C109: =Chegadas!J110 -> 87.84 | D109: =IF(Chegadas!K110="I",Atendimento!E117,Atendimento!L117) -> 3.17587238 | E109: * | F109: 95.99765257 | G109: * | H109: 94.51881594 | I109: * | J109: 90.31164739 | K109: * | L109: 96.14870338 | M109: * | N109: 94.4191656 | O109: 87.84 | P109: 91.01587238 | Q109: - | R109: 98.97892841 | S109: - | T109: 100.0864614 | U109: - | V109: 90.97215961 | W109: - | X109: 84.68348359 | Y109: - | Z109: 87.66349673 | AA109: - | AB109: 90.9986937 | AC109: - | AD109: 28.62647423 | AE109: - | AF109: 34.38824056 | AG109: - | AH109: 29.23602383 | AI109: - | AJ109: 33.04512539 | AK109: - | AL109: 32.02721882 | AM109: - | AN109: 32.21756351 | AO109: - | AP109: 36.40601609 | AQ109: - | AR109: 0
B110: 103 | C110: =Chegadas!J111 -> 88.54 | D110: =IF(Chegadas!K111="I",Atendimento!E118,Atendimento!L118) -> 1.452353577 | E110: * | F110: 95.99765257 | G110: * | H110: 94.51881594 | I110: * | J110: 90.31164739 | K110: * | L110: 96.14870338 | M110: * | N110: 94.4191656 | O110: * | P110: 91.01587238 | Q110: * | R110: 98.97892841 | S110: * | T110: 100.0864614 | U110: * | V110: 90.97215961 | W110: 88.54 | X110: 89.99235358 | Y110: - | Z110: 87.66349673 | AA110: - | AB110: 90.9986937 | AC110: - | AD110: 28.62647423 | AE110: - | AF110: 34.38824056 | AG110: - | AH110: 29.23602383 | AI110: - | AJ110: 33.04512539 | AK110: - | AL110: 32.02721882 | AM110: - | AN110: 32.21756351 | AO110: - | AP110: 36.40601609 | AQ110: - | AR110: 0
B111: 104 | C111: =Chegadas!J112 -> 89.24 | D111: =IF(Chegadas!K112="I",Atendimento!E119,Atendimento!L119) -> 7.926551532 | E111: * | F111: 95.99765257 | G111: * | H111: 94.51881594 | I111: * | J111: 90.31164739 | K111: * | L111: 96.14870338 | M111: * | N111: 94.4191656 | O111: * | P111: 91.01587238 | Q111: * | R111: 98.97892841 | S111: * | T111: 100.0864614 | U111: * | V111: 90.97215961 | W111: * | X111: 89.99235358 | Y111: 89.24 | Z111: 97.16655153 | AA111: - | AB111: 90.9986937 | AC111: - | AD111: 28.62647423 | AE111: - | AF111: 34.38824056 | AG111: - | AH111: 29.23602383 | AI111: - | AJ111: 33.04512539 | AK111: - | AL111: 32.02721882 | AM111: - | AN111: 32.21756351 | AO111: - | AP111: 36.40601609 | AQ111: - | AR111: 0
B112: 105 | C112: =Chegadas!J113 -> 91.33 | D112: =IF(Chegadas!K113="I",Atendimento!E120,Atendimento!L120) -> 14.35800118 | E112: * | F112: 95.99765257 | G112: * | H112: 94.51881594 | I112: 91.33 | J112: 105.6880012 | K112: - | L112: 96.14870338 | M112: - | N112: 94.4191656 | O112: - | P112: 91.01587238 | Q112: - | R112: 98.97892841 | S112: - | T112: 100.0864614 | U112: - | V112: 90.97215961 | W112: - | X112: 89.99235358 | Y112: - | Z112: 97.16655153 | AA112: - | AB112: 90.9986937 | AC112: - | AD112: 28.62647423 | AE112: - | AF112: 34.38824056 | AG112: - | AH112: 29.23602383 | AI112: - | AJ112: 33.04512539 | AK112: - | AL112: 32.02721882 | AM112: - | AN112: 32.21756351 | AO112: - | AP112: 36.40601609 | AQ112: - | AR112: 0
B113: 106 | C113: =Chegadas!J114 -> 91.96 | D113: =IF(Chegadas!K114="I",Atendimento!E121,Atendimento!L121) -> 7.853497918 | E113: * | F113: 95.99765257 | G113: * | H113: 94.51881594 | I113: * | J113: 105.6880012 | K113: * | L113: 96.14870338 | M113: * | N113: 94.4191656 | O113: 91.96 | P113: 99.81349792 | Q113: - | R113: 98.97892841 | S113: - | T113: 100.0864614 | U113: - | V113: 90.97215961 | W113: - | X113: 89.99235358 | Y113: - | Z113: 97.16655153 | AA113: - | AB113: 90.9986937 | AC113: - | AD113: 28.62647423 | AE113: - | AF113: 34.38824056 | AG113: - | AH113: 29.23602383 | AI113: - | AJ113: 33.04512539 | AK113: - | AL113: 32.02721882 | AM113: - | AN113: 32.21756351 | AO113: - | AP113: 36.40601609 | AQ113: - | AR113: 0
B114: 107 | C114: =Chegadas!J115 -> 92.91 | D114: =IF(Chegadas!K115="I",Atendimento!E122,Atendimento!L122) -> 8.599519888 | E114: * | F114: 95.99765257 | G114: * | H114: 94.51881594 | I114: * | J114: 105.6880012 | K114: * | L114: 96.14870338 | M114: * | N114: 94.4191656 | O114: * | P114: 99.81349792 | Q114: * | R114: 98.97892841 | S114: * | T114: 100.0864614 | U114: 92.91 | V114: 101.5095199 | W114: - | X114: 89.99235358 | Y114: - | Z114: 97.16655153 | AA114: - | AB114: 90.9986937 | AC114: - | AD114: 28.62647423 | AE114: - | AF114: 34.38824056 | AG114: - | AH114: 29.23602383 | AI114: - | AJ114: 33.04512539 | AK114: - | AL114: 32.02721882 | AM114: - | AN114: 32.21756351 | AO114: - | AP114: 36.40601609 | AQ114: - | AR114: 0
B115: 108 | C115: =Chegadas!J116 -> 93.46 | D115: =IF(Chegadas!K116="I",Atendimento!E123,Atendimento!L123) -> 7.612786026 | E115: * | F115: 95.99765257 | G115: * | H115: 94.51881594 | I115: * | J115: 105.6880012 | K115: * | L115: 96.14870338 | M115: * | N115: 94.4191656 | O115: * | P115: 99.81349792 | Q115: * | R115: 98.97892841 | S115: * | T115: 100.0864614 | U115: * | V115: 101.5095199 | W115: 93.46 | X115: 101.072786 | Y115: - | Z115: 97.16655153 | AA115: - | AB115: 90.9986937 | AC115: - | AD115: 28.62647423 | AE115: - | AF115: 34.38824056 | AG115: - | AH115: 29.23602383 | AI115: - | AJ115: 33.04512539 | AK115: - | AL115: 32.02721882 | AM115: - | AN115: 32.21756351 | AO115: - | AP115: 36.40601609 | AQ115: - | AR115: 0
B116: 109 | C116: =Chegadas!J117 -> 94.68 | D116: =IF(Chegadas!K117="I",Atendimento!E124,Atendimento!L124) -> 3.155195296 | E116: * | F116: 95.99765257 | G116: 94.68 | H116: 97.8351953 | I116: - | J116: 105.6880012 | K116: - | L116: 96.14870338 | M116: - | N116: 94.4191656 | O116: - | P116: 99.81349792 | Q116: - | R116: 98.97892841 | S116: - | T116: 100.0864614 | U116: - | V116: 101.5095199 | W116: - | X116: 101.072786 | Y116: - | Z116: 97.16655153 | AA116: - | AB116: 90.9986937 | AC116: - | AD116: 28.62647423 | AE116: - | AF116: 34.38824056 | AG116: - | AH116: 29.23602383 | AI116: - | AJ116: 33.04512539 | AK116: - | AL116: 32.02721882 | AM116: - | AN116: 32.21756351 | AO116: - | AP116: 36.40601609 | AQ116: - | AR116: 0
B117: 110 | C117: =Chegadas!J118 -> 94.96 | D117: =IF(Chegadas!K118="I",Atendimento!E125,Atendimento!L125) -> 8.307724758 | E117: * | F117: 95.99765257 | G117: * | H117: 97.8351953 | I117: * | J117: 105.6880012 | K117: * | L117: 96.14870338 | M117: 94.96 | N117: 103.2677248 | O117: - | P117: 99.81349792 | Q117: - | R117: 98.97892841 | S117: - | T117: 100.0864614 | U117: - | V117: 101.5095199 | W117: - | X117: 101.072786 | Y117: - | Z117: 97.16655153 | AA117: - | AB117: 90.9986937 | AC117: - | AD117: 28.62647423 | AE117: - | AF117: 34.38824056 | AG117: - | AH117: 29.23602383 | AI117: - | AJ117: 33.04512539 | AK117: - | AL117: 32.02721882 | AM117: - | AN117: 32.21756351 | AO117: - | AP117: 36.40601609 | AQ117: - | AR117: 0
B118: 111 | C118: =Chegadas!J119 -> 95.32 | D118: =IF(Chegadas!K119="I",Atendimento!E126,Atendimento!L126) -> 5.741663996 | E118: * | F118: 95.99765257 | G118: * | H118: 97.8351953 | I118: * | J118: 105.6880012 | K118: * | L118: 96.14870338 | M118: * | N118: 103.2677248 | O118: * | P118: 99.81349792 | Q118: * | R118: 98.97892841 | S118: * | T118: 100.0864614 | U118: * | V118: 101.5095199 | W118: * | X118: 101.072786 | Y118: * | Z118: 97.16655153 | AA118: 95.32 | AB118: 101.061664 | AC118: - | AD118: 28.62647423 | AE118: - | AF118: 34.38824056 | AG118: - | AH118: 29.23602383 | AI118: - | AJ118: 33.04512539 | AK118: - | AL118: 32.02721882 | AM118: - | AN118: 32.21756351 | AO118: - | AP118: 36.40601609 | AQ118: - | AR118: 0
B119: 112 | C119: =Chegadas!J120 -> 96.36 | D119: =IF(Chegadas!K120="I",Atendimento!E127,Atendimento!L127) -> 7.111268511 | E119: 96.36 | F119: 103.4712685 | G119: - | H119: 97.8351953 | I119: - | J119: 105.6880012 | K119: - | L119: 96.14870338 | M119: - | N119: 103.2677248 | O119: - | P119: 99.81349792 | Q119: - | R119: 98.97892841 | S119: - | T119: 100.0864614 | U119: - | V119: 101.5095199 | W119: - | X119: 101.072786 | Y119: - | Z119: 97.16655153 | AA119: - | AB119: 101.061664 | AC119: - | AD119: 28.62647423 | AE119: - | AF119: 34.38824056 | AG119: - | AH119: 29.23602383 | AI119: - | AJ119: 33.04512539 | AK119: - | AL119: 32.02721882 | AM119: - | AN119: 32.21756351 | AO119: - | AP119: 36.40601609 | AQ119: - | AR119: 0
B120: 113 | C120: =Chegadas!J121 -> 97.03 | D120: =IF(Chegadas!K121="I",Atendimento!E128,Atendimento!L128) -> 2.326078633 | E120: * | F120: 103.4712685 | G120: * | H120: 97.8351953 | I120: * | J120: 105.6880012 | K120: 97.03 | L120: 99.35607863 | M120: - | N120: 103.2677248 | O120: - | P120: 99.81349792 | Q120: - | R120: 98.97892841 | S120: - | T120: 100.0864614 | U120: - | V120: 101.5095199 | W120: - | X120: 101.072786 | Y120: - | Z120: 97.16655153 | AA120: - | AB120: 101.061664 | AC120: - | AD120: 28.62647423 | AE120: - | AF120: 34.38824056 | AG120: - | AH120: 29.23602383 | AI120: - | AJ120: 33.04512539 | AK120: - | AL120: 32.02721882 | AM120: - | AN120: 32.21756351 | AO120: - | AP120: 36.40601609 | AQ120: - | AR120: 0
B121: 114 | C121: =Chegadas!J122 -> 97.65 | D121: =IF(Chegadas!K122="I",Atendimento!E129,Atendimento!L129) -> 9.327455854 | E121: * | F121: 103.4712685 | G121: * | H121: 97.8351953 | I121: * | J121: 105.6880012 | K121: * | L121: 99.35607863 | M121: * | N121: 103.2677248 | O121: * | P121: 99.81349792 | Q121: * | R121: 98.97892841 | S121: * | T121: 100.0864614 | U121: * | V121: 101.5095199 | W121: * | X121: 101.072786 | Y121: 97.65 | Z121: 106.9774559 | AA121: - | AB121: 101.061664 | AC121: - | AD121: 28.62647423 | AE121: - | AF121: 34.38824056 | AG121: - | AH121: 29.23602383 | AI121: - | AJ121: 33.04512539 | AK121: - | AL121: 32.02721882 | AM121: - | AN121: 32.21756351 | AO121: - | AP121: 36.40601609 | AQ121: - | AR121: 0
B122: 115 | C122: =Chegadas!J123 -> 98.78 | D122: =IF(Chegadas!K123="I",Atendimento!E130,Atendimento!L130) -> 9.432422103 | E122: * | F122: 103.4712685 | G122: 98.78 | H122: 108.2124221 | I122: - | J122: 105.6880012 | K122: - | L122: 99.35607863 | M122: - | N122: 103.2677248 | O122: - | P122: 99.81349792 | Q122: - | R122: 98.97892841 | S122: - | T122: 100.0864614 | U122: - | V122: 101.5095199 | W122: - | X122: 101.072786 | Y122: - | Z122: 106.9774559 | AA122: - | AB122: 101.061664 | AC122: - | AD122: 28.62647423 | AE122: - | AF122: 34.38824056 | AG122: - | AH122: 29.23602383 | AI122: - | AJ122: 33.04512539 | AK122: - | AL122: 32.02721882 | AM122: - | AN122: 32.21756351 | AO122: - | AP122: 36.40601609 | AQ122: - | AR122: 0
B123: 116 | C123: =Chegadas!J124 -> 99.03 | D123: =IF(Chegadas!K124="I",Atendimento!E131,Atendimento!L131) -> 8.219200926 | E123: * | F123: 103.4712685 | G123: * | H123: 108.2124221 | I123: * | J123: 105.6880012 | K123: * | L123: 99.35607863 | M123: * | N123: 103.2677248 | O123: * | P123: 99.81349792 | Q123: 99.03 | R123: 107.2492009 | S123: - | T123: 100.0864614 | U123: - | V123: 101.5095199 | W123: - | X123: 101.072786 | Y123: - | Z123: 106.9774559 | AA123: - | AB123: 101.061664 | AC123: - | AD123: 28.62647423 | AE123: - | AF123: 34.38824056 | AG123: - | AH123: 29.23602383 | AI123: - | AJ123: 33.04512539 | AK123: - | AL123: 32.02721882 | AM123: - | AN123: 32.21756351 | AO123: - | AP123: 36.40601609 | AQ123: - | AR123: 0
B124: 117 | C124: =Chegadas!J125 -> 99.03 | D124: =IF(Chegadas!K125="I",Atendimento!E132,Atendimento!L132) -> 7.690249369 | E124: * | F124: 103.4712685 | G124: * | H124: 108.2124221 | I124: * | J124: 105.6880012 | K124: * | L124: 99.35607863 | M124: * | N124: 103.2677248 | O124: * | P124: 99.81349792 | Q124: * | R124: 107.2492009 | S124: * | T124: 100.0864614 | U124: * | V124: 101.5095199 | W124: * | X124: 101.072786 | Y124: * | Z124: 106.9774559 | AA124: * | AB124: 101.061664 | AC124: 99.03 | AD124: 106.7202494 | AE124: - | AF124: 34.38824056 | AG124: - | AH124: 29.23602383 | AI124: - | AJ124: 33.04512539 | AK124: - | AL124: 32.02721882 | AM124: - | AN124: 32.21756351 | AO124: - | AP124: 36.40601609 | AQ124: - | AR124: 0
B125: 118 | C125: =Chegadas!J126 -> 99.73 | D125: =IF(Chegadas!K126="I",Atendimento!E133,Atendimento!L133) -> 5.001410622 | E125: * | F125: 103.4712685 | G125: * | H125: 108.2124221 | I125: * | J125: 105.6880012 | K125: 99.73 | L125: 104.7314106 | M125: - | N125: 103.2677248 | O125: - | P125: 99.81349792 | Q125: - | R125: 107.2492009 | S125: - | T125: 100.0864614 | U125: - | V125: 101.5095199 | W125: - | X125: 101.072786 | Y125: - | Z125: 106.9774559 | AA125: - | AB125: 101.061664 | AC125: - | AD125: 106.7202494 | AE125: - | AF125: 34.38824056 | AG125: - | AH125: 29.23602383 | AI125: - | AJ125: 33.04512539 | AK125: - | AL125: 32.02721882 | AM125: - | AN125: 32.21756351 | AO125: - | AP125: 36.40601609 | AQ125: - | AR125: 0
B126: 119 | C126: =Chegadas!J127 -> 101.13 | D126: =IF(Chegadas!K127="I",Atendimento!E134,Atendimento!L134) -> 7.528866674 | E126: * | F126: 103.4712685 | G126: * | H126: 108.2124221 | I126: * | J126: 105.6880012 | K126: * | L126: 104.7314106 | M126: * | N126: 103.2677248 | O126: 101.13 | P126: 108.6588667 | Q126: - | R126: 107.2492009 | S126: - | T126: 100.0864614 | U126: - | V126: 101.5095199 | W126: - | X126: 101.072786 | Y126: - | Z126: 106.9774559 | AA126: - | AB126: 101.061664 | AC126: - | AD126: 106.7202494 | AE126: - | AF126: 34.38824056 | AG126: - | AH126: 29.23602383 | AI126: - | AJ126: 33.04512539 | AK126: - | AL126: 32.02721882 | AM126: - | AN126: 32.21756351 | AO126: - | AP126: 36.40601609 | AQ126: - | AR126: 0
B127: 120 | C127: =Chegadas!J128 -> 101.27 | D127: =IF(Chegadas!K128="I",Atendimento!E135,Atendimento!L135) -> 0.7423776153 | E127: * | F127: 103.4712685 | G127: * | H127: 108.2124221 | I127: * | J127: 105.6880012 | K127: * | L127: 104.7314106 | M127: * | N127: 103.2677248 | O127: * | P127: 108.6588667 | Q127: * | R127: 107.2492009 | S127: 101.27 | T127: 102.0123776 | U127: - | V127: 101.5095199 | W127: - | X127: 101.072786 | Y127: - | Z127: 106.9774559 | AA127: - | AB127: 101.061664 | AC127: - | AD127: 106.7202494 | AE127: - | AF127: 34.38824056 | AG127: - | AH127: 29.23602383 | AI127: - | AJ127: 33.04512539 | AK127: - | AL127: 32.02721882 | AM127: - | AN127: 32.21756351 | AO127: - | AP127: 36.40601609 | AQ127: - | AR127: 0
B128: 121 | C128: =Chegadas!J129 -> 101.97 | D128: =IF(Chegadas!K129="I",Atendimento!E136,Atendimento!L136) -> 5.497096288 | E128: * | F128: 103.4712685 | G128: * | H128: 108.2124221 | I128: * | J128: 105.6880012 | K128: * | L128: 104.7314106 | M128: * | N128: 103.2677248 | O128: * | P128: 108.6588667 | Q128: * | R128: 107.2492009 | S128: * | T128: 102.0123776 | U128: 101.97 | V128: 107.4670963 | W128: - | X128: 101.072786 | Y128: - | Z128: 106.9774559 | AA128: - | AB128: 101.061664 | AC128: - | AD128: 106.7202494 | AE128: - | AF128: 34.38824056 | AG128: - | AH128: 29.23602383 | AI128: - | AJ128: 33.04512539 | AK128: - | AL128: 32.02721882 | AM128: - | AN128: 32.21756351 | AO128: - | AP128: 36.40601609 | AQ128: - | AR128: 0
B129: 122 | C129: =Chegadas!J130 -> 102.55 | D129: =IF(Chegadas!K130="I",Atendimento!E137,Atendimento!L137) -> 10.84733556 | E129: * | F129: 103.4712685 | G129: * | H129: 108.2124221 | I129: * | J129: 105.6880012 | K129: * | L129: 104.7314106 | M129: * | N129: 103.2677248 | O129: * | P129: 108.6588667 | Q129: * | R129: 107.2492009 | S129: 102.55 | T129: 113.3973356 | U129: - | V129: 107.4670963 | W129: - | X129: 101.072786 | Y129: - | Z129: 106.9774559 | AA129: - | AB129: 101.061664 | AC129: - | AD129: 106.7202494 | AE129: - | AF129: 34.38824056 | AG129: - | AH129: 29.23602383 | AI129: - | AJ129: 33.04512539 | AK129: - | AL129: 32.02721882 | AM129: - | AN129: 32.21756351 | AO129: - | AP129: 36.40601609 | AQ129: - | AR129: 0
B130: 123 | C130: =Chegadas!J131 -> 102.81 | D130: =IF(Chegadas!K131="I",Atendimento!E138,Atendimento!L138) -> 8.427020195 | E130: * | F130: 103.4712685 | G130: * | H130: 108.2124221 | I130: * | J130: 105.6880012 | K130: * | L130: 104.7314106 | M130: * | N130: 103.2677248 | O130: * | P130: 108.6588667 | Q130: * | R130: 107.2492009 | S130: * | T130: 113.3973356 | U130: * | V130: 107.4670963 | W130: 102.81 | X130: 111.2370202 | Y130: - | Z130: 106.9774559 | AA130: - | AB130: 101.061664 | AC130: - | AD130: 106.7202494 | AE130: - | AF130: 34.38824056 | AG130: - | AH130: 29.23602383 | AI130: - | AJ130: 33.04512539 | AK130: - | AL130: 32.02721882 | AM130: - | AN130: 32.21756351 | AO130: - | AP130: 36.40601609 | AQ130: - | AR130: 0
B131: 124 | C131: =Chegadas!J132 -> 103.19 | D131: =IF(Chegadas!K132="I",Atendimento!E139,Atendimento!L139) -> 7.228419221 | E131: * | F131: 103.4712685 | G131: * | H131: 108.2124221 | I131: * | J131: 105.6880012 | K131: * | L131: 104.7314106 | M131: * | N131: 103.2677248 | O131: * | P131: 108.6588667 | Q131: * | R131: 107.2492009 | S131: * | T131: 113.3973356 | U131: * | V131: 107.4670963 | W131: * | X131: 111.2370202 | Y131: * | Z131: 106.9774559 | AA131: 103.19 | AB131: 110.4184192 | AC131: - | AD131: 106.7202494 | AE131: - | AF131: 34.38824056 | AG131: - | AH131: 29.23602383 | AI131: - | AJ131: 33.04512539 | AK131: - | AL131: 32.02721882 | AM131: - | AN131: 32.21756351 | AO131: - | AP131: 36.40601609 | AQ131: - | AR131: 0
B132: 125 | C132: =Chegadas!J133 -> 106.46 | D132: =IF(Chegadas!K133="I",Atendimento!E140,Atendimento!L140) -> 11.83545813 | E132: 106.46 | F132: 118.2954581 | G132: - | H132: 108.2124221 | I132: - | J132: 105.6880012 | K132: - | L132: 104.7314106 | M132: - | N132: 103.2677248 | O132: - | P132: 108.6588667 | Q132: - | R132: 107.2492009 | S132: - | T132: 113.3973356 | U132: - | V132: 107.4670963 | W132: - | X132: 111.2370202 | Y132: - | Z132: 106.9774559 | AA132: - | AB132: 110.4184192 | AC132: - | AD132: 106.7202494 | AE132: - | AF132: 34.38824056 | AG132: - | AH132: 29.23602383 | AI132: - | AJ132: 33.04512539 | AK132: - | AL132: 32.02721882 | AM132: - | AN132: 32.21756351 | AO132: - | AP132: 36.40601609 | AQ132: - | AR132: 0
B133: 126 | C133: =Chegadas!J134 -> 106.73 | D133: =IF(Chegadas!K134="I",Atendimento!E141,Atendimento!L141) -> 9.431653764 | E133: * | F133: 118.2954581 | G133: * | H133: 108.2124221 | I133: 106.73 | J133: 116.1616538 | K133: - | L133: 104.7314106 | M133: - | N133: 103.2677248 | O133: - | P133: 108.6588667 | Q133: - | R133: 107.2492009 | S133: - | T133: 113.3973356 | U133: - | V133: 107.4670963 | W133: - | X133: 111.2370202 | Y133: - | Z133: 106.9774559 | AA133: - | AB133: 110.4184192 | AC133: - | AD133: 106.7202494 | AE133: - | AF133: 34.38824056 | AG133: - | AH133: 29.23602383 | AI133: - | AJ133: 33.04512539 | AK133: - | AL133: 32.02721882 | AM133: - | AN133: 32.21756351 | AO133: - | AP133: 36.40601609 | AQ133: - | AR133: 0
B134: 127 | C134: =Chegadas!J135 -> 107.8 | D134: =IF(Chegadas!K135="I",Atendimento!E142,Atendimento!L142) -> 9.579206222 | E134: * | F134: 118.2954581 | G134: * | H134: 108.2124221 | I134: * | J134: 116.1616538 | K134: 107.8 | L134: 117.3792062 | M134: - | N134: 103.2677248 | O134: - | P134: 108.6588667 | Q134: - | R134: 107.2492009 | S134: - | T134: 113.3973356 | U134: - | V134: 107.4670963 | W134: - | X134: 111.2370202 | Y134: - | Z134: 106.9774559 | AA134: - | AB134: 110.4184192 | AC134: - | AD134: 106.7202494 | AE134: - | AF134: 34.38824056 | AG134: - | AH134: 29.23602383 | AI134: - | AJ134: 33.04512539 | AK134: - | AL134: 32.02721882 | AM134: - | AN134: 32.21756351 | AO134: - | AP134: 36.40601609 | AQ134: - | AR134: 0
B135: 128 | C135: =Chegadas!J136 -> 108 | D135: =IF(Chegadas!K136="I",Atendimento!E143,Atendimento!L143) -> 10.46579393 | E135: * | F135: 118.2954581 | G135: * | H135: 108.2124221 | I135: * | J135: 116.1616538 | K135: * | L135: 117.3792062 | M135: 108 | N135: 118.4657939 | O135: - | P135: 108.6588667 | Q135: - | R135: 107.2492009 | S135: - | T135: 113.3973356 | U135: - | V135: 107.4670963 | W135: - | X135: 111.2370202 | Y135: - | Z135: 106.9774559 | AA135: - | AB135: 110.4184192 | AC135: - | AD135: 106.7202494 | AE135: - | AF135: 34.38824056 | AG135: - | AH135: 29.23602383 | AI135: - | AJ135: 33.04512539 | AK135: - | AL135: 32.02721882 | AM135: - | AN135: 32.21756351 | AO135: - | AP135: 36.40601609 | AQ135: - | AR135: 0
B136: 129 | C136: =Chegadas!J137 -> 108.01 | D136: =IF(Chegadas!K137="I",Atendimento!E144,Atendimento!L144) -> 4.842583072 | E136: * | F136: 118.2954581 | G136: * | H136: 108.2124221 | I136: * | J136: 116.1616538 | K136: * | L136: 117.3792062 | M136: * | N136: 118.4657939 | O136: * | P136: 108.6588667 | Q136: 108.01 | R136: 112.8525831 | S136: - | T136: 113.3973356 | U136: - | V136: 107.4670963 | W136: - | X136: 111.2370202 | Y136: - | Z136: 106.9774559 | AA136: - | AB136: 110.4184192 | AC136: - | AD136: 106.7202494 | AE136: - | AF136: 34.38824056 | AG136: - | AH136: 29.23602383 | AI136: - | AJ136: 33.04512539 | AK136: - | AL136: 32.02721882 | AM136: - | AN136: 32.21756351 | AO136: - | AP136: 36.40601609 | AQ136: - | AR136: 0
B137: 130 | C137: =Chegadas!J138 -> 108.09 | D137: =IF(Chegadas!K138="I",Atendimento!E145,Atendimento!L145) -> 8.943482476 | E137: * | F137: 118.2954581 | G137: =IF(E137<>"*","-",IF($C137>=H136,$C137,"*")) -> * | H137: 108.2124221 | I137: =IF(G137<>"*","-",IF($C137>=J136,$C137,"*")) -> * | J137: 116.1616538 | K137: =IF(I137<>"*","-",IF($C137>=L136,$C137,"*")) -> * | L137: 117.3792062 | M137: =IF(K137<>"*","-",IF($C137>=N136,$C137,"*")) -> * | N137: 118.4657939 | O137: =IF(M137<>"*","-",IF($C137>=P136,$C137,"*")) -> * | P137: 108.6588667 | Q137: =IF(O137<>"*","-",IF($C137>=R136,$C137,"*")) -> * | R137: 112.8525831 | S137: =IF(Q137<>"*","-",IF($C137>=T136,$C137,"*")) -> * | T137: 113.3973356 | U137: =IF(S137<>"*","-",IF($C137>=V136,$C137,"*")) -> 108.09 | V137: 117.0334825 | W137: =IF(U137<>"*","-",IF($C137>=X136,$C137,"*")) -> - | X137: 111.2370202 | Y137: =IF(W137<>"*","-",IF($C137>=Z136,$C137,"*")) -> - | Z137: 106.9774559 | AA137: =IF(Y137<>"*","-",IF($C137>=AB136,$C137,"*")) -> - | AB137: 110.4184192 | AC137: =IF(AA137<>"*","-",IF($C137>=AD136,$C137,"*")) -> - | AD137: 106.7202494 | AE137: =IF(AC137<>"*","-",IF($C137>=AF136,$C137,"*")) -> - | AF137: 34.38824056 | AG137: =IF(AE137<>"*","-",IF($C137>=AH136,$C137,"*")) -> - | AH137: 29.23602383 | AI137: =IF(AG137<>"*","-",IF($C137>=AJ136,$C137,"*")) -> - | AJ137: 33.04512539 | AK137: =IF(AI137<>"*","-",IF($C137>=AL136,$C137,"*")) -> - | AL137: 32.02721882 | AM137: =IF(AK137<>"*","-",IF($C137>=AN136,$C137,"*")) -> - | AN137: 32.21756351 | AO137: =IF(AM137<>"*","-",IF($C137>=AP136,$C137,"*")) -> - | AP137: 36.40601609 | AQ137: =IF(AO137<>"*","-",IF($C137>=AR136,$C137,"*")) -> - | AR137: 0
B138: 131 | C138: =Chegadas!J139 -> 108.52 | D138: =IF(Chegadas!K139="I",Atendimento!E146,Atendimento!L146) -> 6.051020529 | E138: =IF($C138>F137,$C138,"*") -> * | F138: =IF(E138="*",F137,E138+$D138) -> 118.2954581 | G138: 108.52 | H138: =IF(OR(G138="-",G138="*"),H137,G138+$D138) -> 114.5710205 | I138: - | J138: =IF(OR(I138="-",I138="*"),J137,I138+$D138) -> 116.1616538 | K138: - | L138: 117.3792062 | M138: - | N138: 118.4657939 | O138: - | P138: 108.6588667 | Q138: - | R138: 112.8525831 | S138: - | T138: 113.3973356 | U138: - | V138: 117.0334825 | W138: - | X138: 111.2370202 | Y138: - | Z138: 106.9774559 | AA138: - | AB138: 110.4184192 | AC138: - | AD138: 106.7202494 | AE138: - | AF138: 34.38824056 | AG138: - | AH138: 29.23602383 | AI138: - | AJ138: 33.04512539 | AK138: - | AL138: 32.02721882 | AM138: - | AN138: 32.21756351 | AO138: - | AP138: 36.40601609 | AQ138: - | AR138: 0
B139: 132 | C139: =Chegadas!J140 -> 110.67 | D139: =IF(Chegadas!K140="I",Atendimento!E147,Atendimento!L147) -> 3.37749863 | E139: * | F139: 118.2954581 | G139: * | H139: 114.5710205 | I139: * | J139: 116.1616538 | K139: * | L139: 117.3792062 | M139: * | N139: 118.4657939 | O139: 110.67 | P139: 114.0474986 | Q139: - | R139: 112.8525831 | S139: - | T139: 113.3973356 | U139: - | V139: 117.0334825 | W139: - | X139: 111.2370202 | Y139: - | Z139: 106.9774559 | AA139: - | AB139: 110.4184192 | AC139: - | AD139: 106.7202494 | AE139: - | AF139: 34.38824056 | AG139: - | AH139: 29.23602383 | AI139: - | AJ139: 33.04512539 | AK139: - | AL139: 32.02721882 | AM139: - | AN139: 32.21756351 | AO139: - | AP139: 36.40601609 | AQ139: - | AR139: 0
B140: 133 | C140: =Chegadas!J141 -> 110.72 | D140: =IF(Chegadas!K141="I",Atendimento!E148,Atendimento!L148) -> 9.60703741 | E140: * | F140: 118.2954581 | G140: * | H140: 114.5710205 | I140: * | J140: 116.1616538 | K140: * | L140: 117.3792062 | M140: * | N140: 118.4657939 | O140: * | P140: 114.0474986 | Q140: * | R140: 112.8525831 | S140: * | T140: 113.3973356 | U140: * | V140: 117.0334825 | W140: * | X140: 111.2370202 | Y140: 110.72 | Z140: 120.3270374 | AA140: - | AB140: 110.4184192 | AC140: - | AD140: 106.7202494 | AE140: - | AF140: 34.38824056 | AG140: - | AH140: 29.23602383 | AI140: - | AJ140: 33.04512539 | AK140: - | AL140: 32.02721882 | AM140: - | AN140: 32.21756351 | AO140: - | AP140: 36.40601609 | AQ140: - | AR140: 0
B141: 134 | C141: =Chegadas!J142 -> 110.93 | D141: =IF(Chegadas!K142="I",Atendimento!E149,Atendimento!L149) -> 11.97333969 | E141: * | F141: 118.2954581 | G141: * | H141: 114.5710205 | I141: * | J141: 116.1616538 | K141: * | L141: 117.3792062 | M141: * | N141: 118.4657939 | O141: * | P141: 114.0474986 | Q141: * | R141: 112.8525831 | S141: * | T141: 113.3973356 | U141: * | V141: 117.0334825 | W141: * | X141: 111.2370202 | Y141: * | Z141: 120.3270374 | AA141: 110.93 | AB141: 122.9033397 | AC141: - | AD141: 106.7202494 | AE141: - | AF141: 34.38824056 | AG141: - | AH141: 29.23602383 | AI141: - | AJ141: 33.04512539 | AK141: - | AL141: 32.02721882 | AM141: - | AN141: 32.21756351 | AO141: - | AP141: 36.40601609 | AQ141: - | AR141: 0
B142: 135 | C142: =Chegadas!J143 -> 112.44 | D142: =IF(Chegadas!K143="I",Atendimento!E150,Atendimento!L150) -> 13.68001507 | E142: * | F142: 118.2954581 | G142: * | H142: 114.5710205 | I142: * | J142: 116.1616538 | K142: * | L142: 117.3792062 | M142: * | N142: 118.4657939 | O142: * | P142: 114.0474986 | Q142: * | R142: 112.8525831 | S142: * | T142: 113.3973356 | U142: * | V142: 117.0334825 | W142: 112.44 | X142: 126.1200151 | Y142: - | Z142: 120.3270374 | AA142: - | AB142: 122.9033397 | AC142: - | AD142: 106.7202494 | AE142: - | AF142: 34.38824056 | AG142: - | AH142: 29.23602383 | AI142: - | AJ142: 33.04512539 | AK142: - | AL142: 32.02721882 | AM142: - | AN142: 32.21756351 | AO142: - | AP142: 36.40601609 | AQ142: - | AR142: 0
B143: 136 | C143: =Chegadas!J144 -> 113.16 | D143: =IF(Chegadas!K144="I",Atendimento!E151,Atendimento!L151) -> 6.529657826 | E143: * | F143: 118.2954581 | G143: * | H143: 114.5710205 | I143: * | J143: 116.1616538 | K143: * | L143: 117.3792062 | M143: * | N143: 118.4657939 | O143: * | P143: 114.0474986 | Q143: 113.16 | R143: 119.6896578 | S143: - | T143: 113.3973356 | U143: - | V143: 117.0334825 | W143: - | X143: 126.1200151 | Y143: - | Z143: 120.3270374 | AA143: - | AB143: 122.9033397 | AC143: - | AD143: 106.7202494 | AE143: - | AF143: 34.38824056 | AG143: - | AH143: 29.23602383 | AI143: - | AJ143: 33.04512539 | AK143: - | AL143: 32.02721882 | AM143: - | AN143: 32.21756351 | AO143: - | AP143: 36.40601609 | AQ143: - | AR143: 0
B144: 137 | C144: =Chegadas!J145 -> 114.3 | D144: =IF(Chegadas!K145="I",Atendimento!E152,Atendimento!L152) -> 8.151616106 | E144: * | F144: 118.2954581 | G144: * | H144: 114.5710205 | I144: * | J144: 116.1616538 | K144: * | L144: 117.3792062 | M144: * | N144: 118.4657939 | O144: 114.3 | P144: 122.4516161 | Q144: - | R144: 119.6896578 | S144: - | T144: 113.3973356 | U144: - | V144: 117.0334825 | W144: - | X144: 126.1200151 | Y144: - | Z144: 120.3270374 | AA144: - | AB144: 122.9033397 | AC144: - | AD144: 106.7202494 | AE144: - | AF144: 34.38824056 | AG144: - | AH144: 29.23602383 | AI144: - | AJ144: 33.04512539 | AK144: - | AL144: 32.02721882 | AM144: - | AN144: 32.21756351 | AO144: - | AP144: 36.40601609 | AQ144: - | AR144: 0
B145: 138 | C145: =Chegadas!J146 -> 115.61 | D145: =IF(Chegadas!K146="I",Atendimento!E153,Atendimento!L153) -> 9.435518131 | E145: * | F145: 118.2954581 | G145: 115.61 | H145: 125.0455181 | I145: - | J145: 116.1616538 | K145: - | L145: 117.3792062 | M145: - | N145: 118.4657939 | O145: - | P145: 122.4516161 | Q145: - | R145: 119.6896578 | S145: - | T145: 113.3973356 | U145: - | V145: 117.0334825 | W145: - | X145: 126.1200151 | Y145: - | Z145: =IF(OR(Y145="-",Y145="*"),Z144,Y145+$D145) -> 120.3270374 | AA145: - | AB145: 122.9033397 | AC145: - | AD145: 106.7202494 | AE145: - | AF145: 34.38824056 | AG145: - | AH145: 29.23602383 | AI145: - | AJ145: 33.04512539 | AK145: - | AL145: 32.02721882 | AM145: - | AN145: 32.21756351 | AO145: - | AP145: 36.40601609 | AQ145: - | AR145: 0
B146: 139 | C146: =Chegadas!J147 -> 115.61 | D146: =IF(Chegadas!K147="I",Atendimento!E154,Atendimento!L154) -> 12.18433814 | E146: * | F146: 118.2954581 | G146: * | H146: 125.0455181 | I146: * | J146: 116.1616538 | K146: * | L146: 117.3792062 | M146: * | N146: 118.4657939 | O146: * | P146: 122.4516161 | Q146: * | R146: 119.6896578 | S146: 115.61 | T146: 127.7943381 | U146: - | V146: 117.0334825 | W146: - | X146: 126.1200151 | Y146: - | Z146: 120.3270374 | AA146: - | AB146: =IF(OR(AA146="-",AA146="*"),AB145,AA146+$D146) -> 122.9033397 | AC146: - | AD146: 106.7202494 | AE146: - | AF146: 34.38824056 | AG146: - | AH146: 29.23602383 | AI146: - | AJ146: 33.04512539 | AK146: - | AL146: 32.02721882 | AM146: - | AN146: 32.21756351 | AO146: - | AP146: 36.40601609 | AQ146: - | AR146: 0
B147: 140 | C147: =Chegadas!J148 -> 115.72 | D147: =IF(Chegadas!K148="I",Atendimento!E155,Atendimento!L155) -> 6.396639963 | E147: * | F147: 118.2954581 | G147: * | H147: 125.0455181 | I147: * | J147: 116.1616538 | K147: * | L147: 117.3792062 | M147: * | N147: 118.4657939 | O147: * | P147: 122.4516161 | Q147: * | R147: 119.6896578 | S147: * | T147: 127.7943381 | U147: * | V147: 117.0334825 | W147: * | X147: 126.1200151 | Y147: * | Z147: 120.3270374 | AA147: * | AB147: 122.9033397 | AC147: 115.72 | AD147: =IF(OR(AC147="-",AC147="*"),AD146,AC147+$D147) -> 122.11664 | AE147: - | AF147: 34.38824056 | AG147: - | AH147: 29.23602383 | AI147: - | AJ147: 33.04512539 | AK147: - | AL147: 32.02721882 | AM147: - | AN147: 32.21756351 | AO147: - | AP147: 36.40601609 | AQ147: - | AR147: 0
B148: 141 | C148: =Chegadas!J149 -> 116.52 | D148: =IF(Chegadas!K149="I",Atendimento!E156,Atendimento!L156) -> 13.27558729 | E148: * | F148: 118.2954581 | G148: * | H148: 125.0455181 | I148: 116.52 | J148: 129.7955873 | K148: - | L148: 117.3792062 | M148: - | N148: 118.4657939 | O148: - | P148: 122.4516161 | Q148: - | R148: 119.6896578 | S148: - | T148: 127.7943381 | U148: - | V148: 117.0334825 | W148: - | X148: 126.1200151 | Y148: - | Z148: 120.3270374 | AA148: - | AB148: 122.9033397 | AC148: - | AD148: 122.11664 | AE148: - | AF148: =IF(OR(AE148="-",AE148="*"),AF147,AE148+$D148) -> 34.38824056 | AG148: - | AH148: 29.23602383 | AI148: - | AJ148: 33.04512539 | AK148: - | AL148: 32.02721882 | AM148: - | AN148: 32.21756351 | AO148: - | AP148: 36.40601609 | AQ148: - | AR148: 0
B149: 142 | C149: =Chegadas!J150 -> 117.44 | D149: =IF(Chegadas!K150="I",Atendimento!E157,Atendimento!L157) -> 11.74633629 | E149: * | F149: 118.2954581 | G149: * | H149: 125.0455181 | I149: * | J149: 129.7955873 | K149: 117.44 | L149: 129.1863363 | M149: - | N149: 118.4657939 | O149: - | P149: 122.4516161 | Q149: - | R149: 119.6896578 | S149: - | T149: 127.7943381 | U149: - | V149: 117.0334825 | W149: - | X149: 126.1200151 | Y149: - | Z149: 120.3270374 | AA149: - | AB149: 122.9033397 | AC149: - | AD149: 122.11664 | AE149: - | AF149: 34.38824056 | AG149: - | AH149: =IF(OR(AG149="-",AG149="*"),AH148,AG149+$D149) -> 29.23602383 | AI149: - | AJ149: 33.04512539 | AK149: - | AL149: 32.02721882 | AM149: - | AN149: 32.21756351 | AO149: - | AP149: 36.40601609 | AQ149: - | AR149: 0
B150: 143 | C150: =Chegadas!J151 -> 120.07 | D150: =IF(Chegadas!K151="I",Atendimento!E158,Atendimento!L158) -> 1.388115246 | E150: 120.07 | F150: 121.4581152 | G150: - | H150: 125.0455181 | I150: - | J150: 129.7955873 | K150: - | L150: 129.1863363 | M150: - | N150: 118.4657939 | O150: - | P150: 122.4516161 | Q150: - | R150: 119.6896578 | S150: - | T150: 127.7943381 | U150: - | V150: 117.0334825 | W150: - | X150: 126.1200151 | Y150: - | Z150: 120.3270374 | AA150: - | AB150: 122.9033397 | AC150: - | AD150: 122.11664 | AE150: - | AF150: 34.38824056 | AG150: - | AH150: 29.23602383 | AI150: - | AJ150: =IF(OR(AI150="-",AI150="*"),AJ149,AI150+$D150) -> 33.04512539 | AK150: - | AL150: 32.02721882 | AM150: - | AN150: 32.21756351 | AO150: - | AP150: 36.40601609 | AQ150: - | AR150: 0
B151: 144 | C151: =Chegadas!J152 -> 120.88 | D151: =IF(Chegadas!K152="I",Atendimento!E159,Atendimento!L159) -> 9.316372268 | E151: * | F151: 121.4581152 | G151: * | H151: 125.0455181 | I151: * | J151: 129.7955873 | K151: * | L151: 129.1863363 | M151: 120.88 | N151: 130.1963723 | O151: - | P151: 122.4516161 | Q151: - | R151: 119.6896578 | S151: - | T151: 127.7943381 | U151: - | V151: 117.0334825 | W151: - | X151: 126.1200151 | Y151: - | Z151: 120.3270374 | AA151: - | AB151: 122.9033397 | AC151: - | AD151: 122.11664 | AE151: - | AF151: 34.38824056 | AG151: - | AH151: 29.23602383 | AI151: - | AJ151: 33.04512539 | AK151: - | AL151: =IF(OR(AK151="-",AK151="*"),AL150,AK151+$D151) -> 32.02721882 | AM151: - | AN151: 32.21756351 | AO151: - | AP151: 36.40601609 | AQ151: - | AR151: 0
B152: 145 | C152: =Chegadas!J153 -> 122.45 | D152: =IF(Chegadas!K153="I",Atendimento!E160,Atendimento!L160) -> 10.31972409 | E152: 122.45 | F152: 132.7697241 | G152: - | H152: 125.0455181 | I152: - | J152: 129.7955873 | K152: - | L152: 129.1863363 | M152: - | N152: 130.1963723 | O152: - | P152: 122.4516161 | Q152: - | R152: 119.6896578 | S152: - | T152: 127.7943381 | U152: - | V152: 117.0334825 | W152: - | X152: 126.1200151 | Y152: - | Z152: 120.3270374 | AA152: - | AB152: 122.9033397 | AC152: - | AD152: 122.11664 | AE152: - | AF152: 34.38824056 | AG152: - | AH152: 29.23602383 | AI152: - | AJ152: 33.04512539 | AK152: - | AL152: 32.02721882 | AM152: - | AN152: =IF(OR(AM152="-",AM152="*"),AN151,AM152+$D152) -> 32.21756351 | AO152: - | AP152: 36.40601609 | AQ152: - | AR152: 0
B153: 146 | C153: =Chegadas!J154 -> 123.61 | D153: =IF(Chegadas!K154="I",Atendimento!E161,Atendimento!L161) -> 10.9674025 | E153: * | F153: 132.7697241 | G153: * | H153: 125.0455181 | I153: * | J153: 129.7955873 | K153: * | L153: 129.1863363 | M153: * | N153: 130.1963723 | O153: 123.61 | P153: 134.5774025 | Q153: - | R153: 119.6896578 | S153: - | T153: 127.7943381 | U153: - | V153: 117.0334825 | W153: - | X153: 126.1200151 | Y153: - | Z153: 120.3270374 | AA153: - | AB153: 122.9033397 | AC153: - | AD153: 122.11664 | AE153: - | AF153: 34.38824056 | AG153: - | AH153: 29.23602383 | AI153: - | AJ153: 33.04512539 | AK153: - | AL153: 32.02721882 | AM153: - | AN153: 32.21756351 | AO153: - | AP153: =IF(OR(AO153="-",AO153="*"),AP152,AO153+$D153) -> 36.40601609 | AQ153: - | AR153: 0
B154: 147 | C154: =Chegadas!J155 -> 124.02 | D154: =IF(Chegadas!K155="I",Atendimento!E162,Atendimento!L162) -> 5.267540152 | E154: * | F154: 132.7697241 | G154: * | H154: 125.0455181 | I154: * | J154: 129.7955873 | K154: * | L154: 129.1863363 | M154: * | N154: 130.1963723 | O154: * | P154: 134.5774025 | Q154: 124.02 | R154: 129.2875402 | S154: - | T154: 127.7943381 | U154: - | V154: 117.0334825 | W154: - | X154: 126.1200151 | Y154: - | Z154: 120.3270374 | AA154: - | AB154: 122.9033397 | AC154: - | AD154: 122.11664 | AE154: - | AF154: 34.38824056 | AG154: - | AH154: 29.23602383 | AI154: - | AJ154: 33.04512539 | AK154: - | AL154: 32.02721882 | AM154: - | AN154: 32.21756351 | AO154: - | AP154: 36.40601609 | AQ154: - | AR154: =IF(OR(AQ154="-",AQ154="*"),AR153,AQ154+$D154) -> 0
B155: 148 | C155: =Chegadas!J156 -> 124.17 | D155: =IF(Chegadas!K156="I",Atendimento!E163,Atendimento!L163) -> 14.95219306 | E155: * | F155: 132.7697241 | G155: * | H155: 125.0455181 | I155: * | J155: 129.7955873 | K155: * | L155: 129.1863363 | M155: * | N155: 130.1963723 | O155: * | P155: 134.5774025 | Q155: * | R155: 129.2875402 | S155: * | T155: 127.7943381 | U155: 124.17 | V155: 139.1221931 | W155: - | X155: 126.1200151 | Y155: - | Z155: 120.3270374 | AA155: - | AB155: 122.9033397 | AC155: - | AD155: 122.11664 | AE155: - | AF155: 34.38824056 | AG155: - | AH155: 29.23602383 | AI155: - | AJ155: 33.04512539 | AK155: - | AL155: 32.02721882 | AM155: - | AN155: 32.21756351 | AO155: - | AP155: 36.40601609 | AQ155: - | AR155: 0
B156: 149 | C156: =Chegadas!J157 -> 125.59 | D156: =IF(Chegadas!K157="I",Atendimento!E164,Atendimento!L164) -> 9.14983062 | E156: * | F156: 132.7697241 | G156: 125.59 | H156: 134.7398306 | I156: - | J156: 129.7955873 | K156: - | L156: =IF(OR(K156="-",K156="*"),L155,K156+$D156) -> 129.1863363 | M156: - | N156: =IF(OR(M156="-",M156="*"),N155,M156+$D156) -> 130.1963723 | O156: - | P156: =IF(OR(O156="-",O156="*"),P155,O156+$D156) -> 134.5774025 | Q156: - | R156: =IF(OR(Q156="-",Q156="*"),R155,Q156+$D156) -> 129.2875402 | S156: - | T156: =IF(OR(S156="-",S156="*"),T155,S156+$D156) -> 127.7943381 | U156: - | V156: =IF(OR(U156="-",U156="*"),V155,U156+$D156) -> 139.1221931 | W156: - | X156: =IF(OR(W156="-",W156="*"),X155,W156+$D156) -> 126.1200151 | Y156: - | Z156: 120.3270374 | AA156: - | AB156: 122.9033397 | AC156: - | AD156: 122.11664 | AE156: - | AF156: 34.38824056 | AG156: - | AH156: 29.23602383 | AI156: - | AJ156: 33.04512539 | AK156: - | AL156: 32.02721882 | AM156: - | AN156: 32.21756351 | AO156: - | AP156: 36.40601609 | AQ156: - | AR156: 0
B157: 150 | C157: =Chegadas!J158 -> 126.12 | D157: =IF(Chegadas!K158="I",Atendimento!E165,Atendimento!L165) -> 9.95846627 | E157: * | F157: 132.7697241 | G157: * | H157: 134.7398306 | I157: * | J157: 129.7955873 | K157: * | L157: 129.1863363 | M157: * | N157: 130.1963723 | O157: * | P157: 134.5774025 | Q157: * | R157: 129.2875402 | S157: * | T157: 127.7943381 | U157: * | V157: 139.1221931 | W157: * | X157: 126.1200151 | Y157: 126.12 | Z157: 136.0784663 | AA157: - | AB157: 122.9033397 | AC157: - | AD157: 122.11664 | AE157: - | AF157: 34.38824056 | AG157: - | AH157: 29.23602383 | AI157: - | AJ157: 33.04512539 | AK157: - | AL157: 32.02721882 | AM157: - | AN157: 32.21756351 | AO157: - | AP157: 36.40601609 | AQ157: - | AR157: 0
B158: 151 | C158: =Chegadas!J159 -> 127.78 | D158: =IF(Chegadas!K159="I",Atendimento!E166,Atendimento!L166) -> 5.547357112 | E158: * | F158: 132.7697241 | G158: * | H158: 134.7398306 | I158: * | J158: 129.7955873 | K158: * | L158: 129.1863363 | M158: * | N158: 130.1963723 | O158: * | P158: 134.5774025 | Q158: * | R158: 129.2875402 | S158: * | T158: 127.7943381 | U158: * | V158: 139.1221931 | W158: 127.78 | X158: 133.3273571 | Y158: - | Z158: 136.0784663 | AA158: - | AB158: 122.9033397 | AC158: - | AD158: 122.11664 | AE158: - | AF158: 34.38824056 | AG158: - | AH158: 29.23602383 | AI158: - | AJ158: 33.04512539 | AK158: - | AL158: 32.02721882 | AM158: - | AN158: 32.21756351 | AO158: - | AP158: 36.40601609 | AQ158: - | AR158: 0
B159: 152 | C159: =Chegadas!J160 -> 128 | D159: =IF(Chegadas!K160="I",Atendimento!E167,Atendimento!L167) -> 9.98777821 | E159: * | F159: 132.7697241 | G159: * | H159: 134.7398306 | I159: * | J159: 129.7955873 | K159: * | L159: 129.1863363 | M159: * | N159: 130.1963723 | O159: * | P159: 134.5774025 | Q159: * | R159: 129.2875402 | S159: 128 | T159: 137.9877782 | U159: - | V159: 139.1221931 | W159: - | X159: 133.3273571 | Y159: - | Z159: 136.0784663 | AA159: - | AB159: 122.9033397 | AC159: - | AD159: 122.11664 | AE159: - | AF159: 34.38824056 | AG159: - | AH159: 29.23602383 | AI159: - | AJ159: 33.04512539 | AK159: - | AL159: 32.02721882 | AM159: - | AN159: 32.21756351 | AO159: - | AP159: 36.40601609 | AQ159: - | AR159: 0
B160: 153 | C160: =Chegadas!J161 -> 128.43 | D160: =IF(Chegadas!K161="I",Atendimento!E168,Atendimento!L168) -> 8.400609443 | E160: * | F160: 132.7697241 | G160: * | H160: 134.7398306 | I160: * | J160: 129.7955873 | K160: * | L160: 129.1863363 | M160: * | N160: 130.1963723 | O160: * | P160: 134.5774025 | Q160: * | R160: 129.2875402 | S160: * | T160: 137.9877782 | U160: * | V160: 139.1221931 | W160: * | X160: 133.3273571 | Y160: * | Z160: 136.0784663 | AA160: 128.43 | AB160: 136.8306094 | AC160: - | AD160: 122.11664 | AE160: - | AF160: 34.38824056 | AG160: - | AH160: 29.23602383 | AI160: - | AJ160: 33.04512539 | AK160: - | AL160: 32.02721882 | AM160: - | AN160: 32.21756351 | AO160: - | AP160: 36.40601609 | AQ160: - | AR160: 0
B161: 154 | C161: =Chegadas!J162 -> 128.96 | D161: =IF(Chegadas!K162="I",Atendimento!E169,Atendimento!L169) -> 11.70887446 | E161: * | F161: 132.7697241 | G161: * | H161: 134.7398306 | I161: * | J161: 129.7955873 | K161: * | L161: 129.1863363 | M161: * | N161: 130.1963723 | O161: * | P161: 134.5774025 | Q161: * | R161: 129.2875402 | S161: * | T161: 137.9877782 | U161: * | V161: 139.1221931 | W161: * | X161: 133.3273571 | Y161: * | Z161: 136.0784663 | AA161: * | AB161: 136.8306094 | AC161: 128.96 | AD161: 140.6688745 | AE161: - | AF161: 34.38824056 | AG161: - | AH161: 29.23602383 | AI161: - | AJ161: 33.04512539 | AK161: - | AL161: 32.02721882 | AM161: - | AN161: 32.21756351 | AO161: - | AP161: 36.40601609 | AQ161: - | AR161: 0
B162: 155 | C162: =Chegadas!J163 -> 130.04 | D162: =IF(Chegadas!K163="I",Atendimento!E170,Atendimento!L170) -> 5.609434884 | E162: * | F162: 132.7697241 | G162: * | H162: 134.7398306 | I162: 130.04 | J162: 135.6494349 | K162: - | L162: 129.1863363 | M162: - | N162: 130.1963723 | O162: - | P162: 134.5774025 | Q162: - | R162: 129.2875402 | S162: - | T162: 137.9877782 | U162: - | V162: 139.1221931 | W162: - | X162: 133.3273571 | Y162: - | Z162: 136.0784663 | AA162: - | AB162: 136.8306094 | AC162: - | AD162: 140.6688745 | AE162: - | AF162: 34.38824056 | AG162: - | AH162: 29.23602383 | AI162: - | AJ162: 33.04512539 | AK162: - | AL162: 32.02721882 | AM162: - | AN162: 32.21756351 | AO162: - | AP162: 36.40601609 | AQ162: - | AR162: 0
B163: 156 | C163: =Chegadas!J164 -> 132.47 | D163: =IF(Chegadas!K164="I",Atendimento!E171,Atendimento!L171) -> 9.220861165 | E163: * | F163: 132.7697241 | G163: * | H163: 134.7398306 | I163: * | J163: 135.6494349 | K163: 132.47 | L163: 141.6908612 | M163: - | N163: 130.1963723 | O163: - | P163: 134.5774025 | Q163: - | R163: 129.2875402 | S163: - | T163: 137.9877782 | U163: - | V163: 139.1221931 | W163: - | X163: 133.3273571 | Y163: - | Z163: 136.0784663 | AA163: - | AB163: 136.8306094 | AC163: - | AD163: 140.6688745 | AE163: - | AF163: 34.38824056 | AG163: - | AH163: 29.23602383 | AI163: - | AJ163: 33.04512539 | AK163: - | AL163: 32.02721882 | AM163: - | AN163: 32.21756351 | AO163: - | AP163: 36.40601609 | AQ163: - | AR163: 0
B164: 157 | C164: =Chegadas!J165 -> 132.85 | D164: =IF(Chegadas!K165="I",Atendimento!E172,Atendimento!L172) -> 3.871006795 | E164: 132.85 | F164: 136.7210068 | G164: - | H164: 134.7398306 | I164: - | J164: 135.6494349 | K164: - | L164: 141.6908612 | M164: - | N164: 130.1963723 | O164: - | P164: 134.5774025 | Q164: - | R164: 129.2875402 | S164: - | T164: 137.9877782 | U164: - | V164: 139.1221931 | W164: - | X164: 133.3273571 | Y164: - | Z164: 136.0784663 | AA164: - | AB164: 136.8306094 | AC164: - | AD164: 140.6688745 | AE164: - | AF164: 34.38824056 | AG164: - | AH164: 29.23602383 | AI164: - | AJ164: 33.04512539 | AK164: - | AL164: 32.02721882 | AM164: - | AN164: 32.21756351 | AO164: - | AP164: 36.40601609 | AQ164: - | AR164: 0
B165: 158 | C165: =Chegadas!J166 -> 133.51 | D165: =IF(Chegadas!K166="I",Atendimento!E173,Atendimento!L173) -> 6.845640558 | E165: * | F165: 136.7210068 | G165: * | H165: 134.7398306 | I165: * | J165: 135.6494349 | K165: * | L165: 141.6908612 | M165: 133.51 | N165: 140.3556406 | O165: - | P165: 134.5774025 | Q165: - | R165: 129.2875402 | S165: - | T165: 137.9877782 | U165: - | V165: 139.1221931 | W165: - | X165: 133.3273571 | Y165: - | Z165: 136.0784663 | AA165: - | AB165: 136.8306094 | AC165: - | AD165: 140.6688745 | AE165: - | AF165: 34.38824056 | AG165: - | AH165: 29.23602383 | AI165: - | AJ165: 33.04512539 | AK165: - | AL165: 32.02721882 | AM165: - | AN165: 32.21756351 | AO165: - | AP165: 36.40601609 | AQ165: - | AR165: 0
B166: 159 | C166: =Chegadas!J167 -> 134.23 | D166: =IF(Chegadas!K167="I",Atendimento!E174,Atendimento!L174) -> 1.23229699 | E166: * | F166: 136.7210068 | G166: * | H166: 134.7398306 | I166: * | J166: 135.6494349 | K166: * | L166: 141.6908612 | M166: * | N166: 140.3556406 | O166: * | P166: 134.5774025 | Q166: 134.23 | R166: 135.462297 | S166: - | T166: 137.9877782 | U166: - | V166: 139.1221931 | W166: - | X166: 133.3273571 | Y166: - | Z166: 136.0784663 | AA166: - | AB166: 136.8306094 | AC166: - | AD166: 140.6688745 | AE166: - | AF166: 34.38824056 | AG166: - | AH166: 29.23602383 | AI166: - | AJ166: 33.04512539 | AK166: - | AL166: 32.02721882 | AM166: - | AN166: 32.21756351 | AO166: - | AP166: 36.40601609 | AQ166: - | AR166: 0
B167: 160 | C167: =Chegadas!J168 -> 135.9 | D167: =IF(Chegadas!K168="I",Atendimento!E175,Atendimento!L175) -> 5.980448403 | E167: * | F167: 136.7210068 | G167: 135.9 | H167: 141.8804484 | I167: - | J167: 135.6494349 | K167: - | L167: 141.6908612 | M167: - | N167: 140.3556406 | O167: - | P167: 134.5774025 | Q167: - | R167: 135.462297 | S167: - | T167: 137.9877782 | U167: - | V167: 139.1221931 | W167: - | X167: 133.3273571 | Y167: - | Z167: 136.0784663 | AA167: - | AB167: 136.8306094 | AC167: - | AD167: 140.6688745 | AE167: - | AF167: 34.38824056 | AG167: - | AH167: 29.23602383 | AI167: - | AJ167: 33.04512539 | AK167: - | AL167: 32.02721882 | AM167: - | AN167: 32.21756351 | AO167: - | AP167: 36.40601609 | AQ167: - | AR167: 0
B168: 161 | C168: =Chegadas!J169 -> 136.16 | D168: =IF(Chegadas!K169="I",Atendimento!E176,Atendimento!L176) -> 0.7917308683 | E168: * | F168: 136.7210068 | G168: * | H168: 141.8804484 | I168: 136.16 | J168: 136.9517309 | K168: - | L168: 141.6908612 | M168: - | N168: 140.3556406 | O168: - | P168: 134.5774025 | Q168: - | R168: 135.462297 | S168: - | T168: 137.9877782 | U168: - | V168: 139.1221931 | W168: - | X168: 133.3273571 | Y168: - | Z168: 136.0784663 | AA168: - | AB168: 136.8306094 | AC168: - | AD168: 140.6688745 | AE168: - | AF168: 34.38824056 | AG168: - | AH168: 29.23602383 | AI168: - | AJ168: 33.04512539 | AK168: - | AL168: 32.02721882 | AM168: - | AN168: 32.21756351 | AO168: - | AP168: 36.40601609 | AQ168: - | AR168: 0
B169: 162 | C169: =Chegadas!J170 -> 137.42 | D169: =IF(Chegadas!K170="I",Atendimento!E177,Atendimento!L177) -> 9.244009881 | E169: 137.42 | F169: 146.6640099 | G169: - | H169: 141.8804484 | I169: - | J169: 136.9517309 | K169: - | L169: 141.6908612 | M169: - | N169: 140.3556406 | O169: - | P169: 134.5774025 | Q169: - | R169: 135.462297 | S169: - | T169: 137.9877782 | U169: - | V169: 139.1221931 | W169: - | X169: 133.3273571 | Y169: - | Z169: 136.0784663 | AA169: - | AB169: 136.8306094 | AC169: - | AD169: 140.6688745 | AE169: - | AF169: 34.38824056 | AG169: - | AH169: 29.23602383 | AI169: - | AJ169: 33.04512539 | AK169: - | AL169: 32.02721882 | AM169: - | AN169: 32.21756351 | AO169: - | AP169: 36.40601609 | AQ169: - | AR169: 0
B170: 163 | C170: =Chegadas!J171 -> 139.57 | D170: =IF(Chegadas!K171="I",Atendimento!E178,Atendimento!L178) -> 14.24896945 | E170: * | F170: 146.6640099 | G170: * | H170: 141.8804484 | I170: 139.57 | J170: 153.8189695 | K170: - | L170: 141.6908612 | M170: - | N170: 140.3556406 | O170: - | P170: 134.5774025 | Q170: - | R170: 135.462297 | S170: - | T170: 137.9877782 | U170: - | V170: 139.1221931 | W170: - | X170: 133.3273571 | Y170: - | Z170: 136.0784663 | AA170: - | AB170: 136.8306094 | AC170: - | AD170: 140.6688745 | AE170: - | AF170: 34.38824056 | AG170: - | AH170: 29.23602383 | AI170: - | AJ170: 33.04512539 | AK170: - | AL170: 32.02721882 | AM170: - | AN170: 32.21756351 | AO170: - | AP170: 36.40601609 | AQ170: - | AR170: 0
B171: 164 | C171: =Chegadas!J172 -> 141.35 | D171: =IF(Chegadas!K172="I",Atendimento!E179,Atendimento!L179) -> 4.174277623 | E171: * | F171: 146.6640099 | G171: * | H171: 141.8804484 | I171: * | J171: 153.8189695 | K171: * | L171: 141.6908612 | M171: 141.35 | N171: 145.5242776 | O171: - | P171: 134.5774025 | Q171: - | R171: 135.462297 | S171: - | T171: 137.9877782 | U171: - | V171: 139.1221931 | W171: - | X171: 133.3273571 | Y171: - | Z171: 136.0784663 | AA171: - | AB171: 136.8306094 | AC171: - | AD171: 140.6688745 | AE171: - | AF171: 34.38824056 | AG171: - | AH171: 29.23602383 | AI171: - | AJ171: 33.04512539 | AK171: - | AL171: 32.02721882 | AM171: - | AN171: 32.21756351 | AO171: - | AP171: 36.40601609 | AQ171: - | AR171: 0
B172: 165 | C172: =Chegadas!J173 -> 141.93 | D172: =IF(Chegadas!K173="I",Atendimento!E180,Atendimento!L180) -> 5.891410798 | E172: * | F172: 146.6640099 | G172: 141.93 | H172: 147.8214108 | I172: - | J172: 153.8189695 | K172: - | L172: 141.6908612 | M172: - | N172: 145.5242776 | O172: - | P172: 134.5774025 | Q172: - | R172: 135.462297 | S172: - | T172: 137.9877782 | U172: - | V172: 139.1221931 | W172: - | X172: 133.3273571 | Y172: - | Z172: 136.0784663 | AA172: - | AB172: 136.8306094 | AC172: - | AD172: 140.6688745 | AE172: - | AF172: 34.38824056 | AG172: - | AH172: 29.23602383 | AI172: - | AJ172: 33.04512539 | AK172: - | AL172: 32.02721882 | AM172: - | AN172: 32.21756351 | AO172: - | AP172: 36.40601609 | AQ172: - | AR172: 0
B173: 166 | C173: =Chegadas!J174 -> 142.82 | D173: =IF(Chegadas!K174="I",Atendimento!E181,Atendimento!L181) -> 9.688459642 | E173: * | F173: 146.6640099 | G173: * | H173: 147.8214108 | I173: * | J173: 153.8189695 | K173: 142.82 | L173: 152.5084596 | M173: - | N173: 145.5242776 | O173: - | P173: 134.5774025 | Q173: - | R173: 135.462297 | S173: - | T173: 137.9877782 | U173: - | V173: 139.1221931 | W173: - | X173: 133.3273571 | Y173: - | Z173: 136.0784663 | AA173: - | AB173: 136.8306094 | AC173: - | AD173: 140.6688745 | AE173: - | AF173: 34.38824056 | AG173: - | AH173: 29.23602383 | AI173: - | AJ173: 33.04512539 | AK173: - | AL173: 32.02721882 | AM173: - | AN173: 32.21756351 | AO173: - | AP173: 36.40601609 | AQ173: - | AR173: 0
B174: 167 | C174: =Chegadas!J175 -> 142.84 | D174: =IF(Chegadas!K175="I",Atendimento!E182,Atendimento!L182) -> 15.9476827 | E174: * | F174: 146.6640099 | G174: * | H174: 147.8214108 | I174: * | J174: 153.8189695 | K174: * | L174: 152.5084596 | M174: * | N174: 145.5242776 | O174: 142.84 | P174: 158.7876827 | Q174: - | R174: 135.462297 | S174: - | T174: 137.9877782 | U174: - | V174: 139.1221931 | W174: - | X174: 133.3273571 | Y174: - | Z174: 136.0784663 | AA174: - | AB174: 136.8306094 | AC174: - | AD174: 140.6688745 | AE174: - | AF174: 34.38824056 | AG174: - | AH174: 29.23602383 | AI174: - | AJ174: 33.04512539 | AK174: - | AL174: 32.02721882 | AM174: - | AN174: 32.21756351 | AO174: - | AP174: 36.40601609 | AQ174: - | AR174: 0
B175: 168 | C175: =Chegadas!J176 -> 145 | D175: =IF(Chegadas!K176="I",Atendimento!E183,Atendimento!L183) -> 2.092878247 | E175: * | F175: 146.6640099 | G175: * | H175: 147.8214108 | I175: * | J175: 153.8189695 | K175: * | L175: 152.5084596 | M175: * | N175: 145.5242776 | O175: * | P175: 158.7876827 | Q175: 145 | R175: 147.0928782 | S175: - | T175: 137.9877782 | U175: - | V175: 139.1221931 | W175: - | X175: 133.3273571 | Y175: - | Z175: 136.0784663 | AA175: - | AB175: 136.8306094 | AC175: - | AD175: 140.6688745 | AE175: - | AF175: 34.38824056 | AG175: - | AH175: 29.23602383 | AI175: - | AJ175: 33.04512539 | AK175: - | AL175: 32.02721882 | AM175: - | AN175: 32.21756351 | AO175: - | AP175: 36.40601609 | AQ175: - | AR175: 0
B176: 169 | C176: =Chegadas!J177 -> 145.17 | D176: =IF(Chegadas!K177="I",Atendimento!E184,Atendimento!L184) -> 4.256847216 | E176: * | F176: 146.6640099 | G176: * | H176: 147.8214108 | I176: * | J176: 153.8189695 | K176: * | L176: 152.5084596 | M176: * | N176: 145.5242776 | O176: * | P176: 158.7876827 | Q176: * | R176: 147.0928782 | S176: 145.17 | T176: 149.4268472 | U176: - | V176: 139.1221931 | W176: - | X176: 133.3273571 | Y176: - | Z176: 136.0784663 | AA176: - | AB176: 136.8306094 | AC176: - | AD176: 140.6688745 | AE176: - | AF176: 34.38824056 | AG176: - | AH176: 29.23602383 | AI176: - | AJ176: 33.04512539 | AK176: - | AL176: 32.02721882 | AM176: - | AN176: 32.21756351 | AO176: - | AP176: 36.40601609 | AQ176: - | AR176: 0
B177: 170 | C177: =Chegadas!J178 -> 145.46 | D177: =IF(Chegadas!K178="I",Atendimento!E185,Atendimento!L185) -> 3.214214494 | E177: * | F177: 146.6640099 | G177: * | H177: 147.8214108 | I177: * | J177: 153.8189695 | K177: * | L177: 152.5084596 | M177: * | N177: 145.5242776 | O177: * | P177: 158.7876827 | Q177: * | R177: 147.0928782 | S177: * | T177: 149.4268472 | U177: 145.46 | V177: 148.6742145 | W177: - | X177: 133.3273571 | Y177: - | Z177: 136.0784663 | AA177: - | AB177: 136.8306094 | AC177: - | AD177: 140.6688745 | AE177: - | AF177: 34.38824056 | AG177: - | AH177: 29.23602383 | AI177: - | AJ177: 33.04512539 | AK177: - | AL177: 32.02721882 | AM177: - | AN177: 32.21756351 | AO177: - | AP177: 36.40601609 | AQ177: - | AR177: 0
B178: 171 | C178: =Chegadas!J179 -> 146.94 | D178: =IF(Chegadas!K179="I",Atendimento!E186,Atendimento!L186) -> 7.148437032 | E178: 146.94 | F178: 154.088437 | G178: - | H178: 147.8214108 | I178: - | J178: 153.8189695 | K178: - | L178: 152.5084596 | M178: - | N178: 145.5242776 | O178: - | P178: 158.7876827 | Q178: - | R178: 147.0928782 | S178: - | T178: 149.4268472 | U178: - | V178: 148.6742145 | W178: - | X178: 133.3273571 | Y178: - | Z178: 136.0784663 | AA178: - | AB178: 136.8306094 | AC178: - | AD178: 140.6688745 | AE178: - | AF178: 34.38824056 | AG178: - | AH178: 29.23602383 | AI178: - | AJ178: 33.04512539 | AK178: - | AL178: 32.02721882 | AM178: - | AN178: 32.21756351 | AO178: - | AP178: 36.40601609 | AQ178: - | AR178: 0
B179: 172 | C179: =Chegadas!J180 -> 147.31 | D179: =IF(Chegadas!K180="I",Atendimento!E187,Atendimento!L187) -> 12.83646067 | E179: * | F179: 154.088437 | G179: * | H179: 147.8214108 | I179: * | J179: 153.8189695 | K179: * | L179: 152.5084596 | M179: 147.31 | N179: 160.1464607 | O179: - | P179: 158.7876827 | Q179: - | R179: 147.0928782 | S179: - | T179: 149.4268472 | U179: - | V179: 148.6742145 | W179: - | X179: 133.3273571 | Y179: - | Z179: 136.0784663 | AA179: - | AB179: 136.8306094 | AC179: - | AD179: 140.6688745 | AE179: - | AF179: 34.38824056 | AG179: - | AH179: 29.23602383 | AI179: - | AJ179: 33.04512539 | AK179: - | AL179: 32.02721882 | AM179: - | AN179: 32.21756351 | AO179: - | AP179: 36.40601609 | AQ179: - | AR179: 0
B180: 173 | C180: =Chegadas!J181 -> 148.9 | D180: =IF(Chegadas!K181="I",Atendimento!E188,Atendimento!L188) -> 1.32205621 | E180: * | F180: 154.088437 | G180: 148.9 | H180: 150.2220562 | I180: - | J180: 153.8189695 | K180: - | L180: 152.5084596 | M180: - | N180: 160.1464607 | O180: - | P180: 158.7876827 | Q180: - | R180: 147.0928782 | S180: - | T180: 149.4268472 | U180: - | V180: 148.6742145 | W180: - | X180: 133.3273571 | Y180: - | Z180: 136.0784663 | AA180: - | AB180: 136.8306094 | AC180: - | AD180: 140.6688745 | AE180: - | AF180: 34.38824056 | AG180: - | AH180: 29.23602383 | AI180: - | AJ180: 33.04512539 | AK180: - | AL180: 32.02721882 | AM180: - | AN180: 32.21756351 | AO180: - | AP180: 36.40601609 | AQ180: - | AR180: 0
B181: 174 | C181: =Chegadas!J182 -> 149.39 | D181: =IF(Chegadas!K182="I",Atendimento!E189,Atendimento!L189) -> 8.591132089 | E181: * | F181: 154.088437 | G181: * | H181: 150.2220562 | I181: * | J181: 153.8189695 | K181: * | L181: 152.5084596 | M181: * | N181: 160.1464607 | O181: * | P181: 158.7876827 | Q181: 149.39 | R181: 157.9811321 | S181: - | T181: 149.4268472 | U181: - | V181: 148.6742145 | W181: - | X181: 133.3273571 | Y181: - | Z181: 136.0784663 | AA181: - | AB181: 136.8306094 | AC181: - | AD181: 140.6688745 | AE181: - | AF181: 34.38824056 | AG181: - | AH181: 29.23602383 | AI181: - | AJ181: 33.04512539 | AK181: - | AL181: 32.02721882 | AM181: - | AN181: 32.21756351 | AO181: - | AP181: 36.40601609 | AQ181: - | AR181: 0
B182: 175 | C182: =Chegadas!J183 -> 149.49 | D182: =IF(Chegadas!K183="I",Atendimento!E190,Atendimento!L190) -> 8.342023644 | E182: * | F182: 154.088437 | G182: * | H182: 150.2220562 | I182: * | J182: 153.8189695 | K182: * | L182: 152.5084596 | M182: * | N182: 160.1464607 | O182: * | P182: 158.7876827 | Q182: * | R182: 157.9811321 | S182: 149.49 | T182: 157.8320236 | U182: - | V182: 148.6742145 | W182: - | X182: 133.3273571 | Y182: - | Z182: 136.0784663 | AA182: - | AB182: 136.8306094 | AC182: - | AD182: 140.6688745 | AE182: - | AF182: 34.38824056 | AG182: - | AH182: 29.23602383 | AI182: - | AJ182: 33.04512539 | AK182: - | AL182: 32.02721882 | AM182: - | AN182: 32.21756351 | AO182: - | AP182: 36.40601609 | AQ182: - | AR182: 0
B183: 176 | C183: =Chegadas!J184 -> 149.78 | D183: =IF(Chegadas!K184="I",Atendimento!E191,Atendimento!L191) -> 7.986656344 | E183: * | F183: 154.088437 | G183: * | H183: 150.2220562 | I183: * | J183: 153.8189695 | K183: * | L183: 152.5084596 | M183: * | N183: 160.1464607 | O183: * | P183: 158.7876827 | Q183: * | R183: 157.9811321 | S183: * | T183: 157.8320236 | U183: 149.78 | V183: 157.7666563 | W183: - | X183: 133.3273571 | Y183: - | Z183: 136.0784663 | AA183: - | AB183: 136.8306094 | AC183: - | AD183: 140.6688745 | AE183: - | AF183: 34.38824056 | AG183: - | AH183: 29.23602383 | AI183: - | AJ183: 33.04512539 | AK183: - | AL183: 32.02721882 | AM183: - | AN183: 32.21756351 | AO183: - | AP183: 36.40601609 | AQ183: - | AR183: 0
B184: 177 | C184: =Chegadas!J185 -> 150.38 | D184: =IF(Chegadas!K185="I",Atendimento!E192,Atendimento!L192) -> 5.216082407 | E184: * | F184: 154.088437 | G184: 150.38 | H184: 155.5960824 | I184: - | J184: 153.8189695 | K184: - | L184: 152.5084596 | M184: - | N184: 160.1464607 | O184: - | P184: 158.7876827 | Q184: - | R184: 157.9811321 | S184: - | T184: 157.8320236 | U184: - | V184: 157.7666563 | W184: - | X184: 133.3273571 | Y184: - | Z184: 136.0784663 | AA184: - | AB184: 136.8306094 | AC184: - | AD184: 140.6688745 | AE184: - | AF184: 34.38824056 | AG184: - | AH184: 29.23602383 | AI184: - | AJ184: 33.04512539 | AK184: - | AL184: 32.02721882 | AM184: - | AN184: 32.21756351 | AO184: - | AP184: 36.40601609 | AQ184: - | AR184: 0
B185: 178 | C185: =Chegadas!J186 -> 151.37 | D185: =IF(Chegadas!K186="I",Atendimento!E193,Atendimento!L193) -> 10.0283904 | E185: * | F185: 154.088437 | G185: * | H185: 155.5960824 | I185: * | J185: 153.8189695 | K185: * | L185: 152.5084596 | M185: * | N185: 160.1464607 | O185: * | P185: 158.7876827 | Q185: * | R185: 157.9811321 | S185: * | T185: 157.8320236 | U185: * | V185: 157.7666563 | W185: 151.37 | X185: 161.3983904 | Y185: - | Z185: 136.0784663 | AA185: - | AB185: 136.8306094 | AC185: - | AD185: 140.6688745 | AE185: - | AF185: 34.38824056 | AG185: - | AH185: 29.23602383 | AI185: - | AJ185: 33.04512539 | AK185: - | AL185: 32.02721882 | AM185: - | AN185: 32.21756351 | AO185: - | AP185: 36.40601609 | AQ185: - | AR185: 0
B186: 179 | C186: =Chegadas!J187 -> 151.9 | D186: =IF(Chegadas!K187="I",Atendimento!E194,Atendimento!L194) -> 4.23778412 | E186: * | F186: 154.088437 | G186: * | H186: 155.5960824 | I186: * | J186: 153.8189695 | K186: * | L186: 152.5084596 | M186: * | N186: 160.1464607 | O186: * | P186: 158.7876827 | Q186: * | R186: 157.9811321 | S186: * | T186: 157.8320236 | U186: * | V186: 157.7666563 | W186: * | X186: 161.3983904 | Y186: 151.9 | Z186: 156.1377841 | AA186: - | AB186: 136.8306094 | AC186: - | AD186: 140.6688745 | AE186: - | AF186: 34.38824056 | AG186: - | AH186: 29.23602383 | AI186: - | AJ186: 33.04512539 | AK186: - | AL186: 32.02721882 | AM186: - | AN186: 32.21756351 | AO186: - | AP186: 36.40601609 | AQ186: - | AR186: 0
B187: 180 | C187: =Chegadas!J188 -> 156.06 | D187: =IF(Chegadas!K188="I",Atendimento!E195,Atendimento!L195) -> 9.553231803 | E187: 156.06 | F187: 165.6132318 | G187: - | H187: 155.5960824 | I187: - | J187: 153.8189695 | K187: - | L187: 152.5084596 | M187: - | N187: 160.1464607 | O187: - | P187: 158.7876827 | Q187: - | R187: 157.9811321 | S187: - | T187: 157.8320236 | U187: - | V187: 157.7666563 | W187: - | X187: 161.3983904 | Y187: - | Z187: 156.1377841 | AA187: - | AB187: 136.8306094 | AC187: - | AD187: 140.6688745 | AE187: - | AF187: 34.38824056 | AG187: - | AH187: 29.23602383 | AI187: - | AJ187: 33.04512539 | AK187: - | AL187: 32.02721882 | AM187: - | AN187: 32.21756351 | AO187: - | AP187: 36.40601609 | AQ187: - | AR187: 0
B188: 181 | C188: =Chegadas!J189 -> 156.39 | D188: =IF(Chegadas!K189="I",Atendimento!E196,Atendimento!L196) -> 6.417550267 | E188: * | F188: 165.6132318 | G188: 156.39 | H188: 162.8075503 | I188: - | J188: 153.8189695 | K188: - | L188: 152.5084596 | M188: - | N188: 160.1464607 | O188: - | P188: 158.7876827 | Q188: - | R188: 157.9811321 | S188: - | T188: 157.8320236 | U188: - | V188: 157.7666563 | W188: - | X188: 161.3983904 | Y188: - | Z188: 156.1377841 | AA188: - | AB188: 136.8306094 | AC188: - | AD188: 140.6688745 | AE188: - | AF188: 34.38824056 | AG188: - | AH188: 29.23602383 | AI188: - | AJ188: 33.04512539 | AK188: - | AL188: 32.02721882 | AM188: - | AN188: 32.21756351 | AO188: - | AP188: 36.40601609 | AQ188: - | AR188: 0
B189: 182 | C189: =Chegadas!J190 -> 156.71 | D189: =IF(Chegadas!K190="I",Atendimento!E197,Atendimento!L197) -> 2.067163519 | E189: * | F189: 165.6132318 | G189: * | H189: 162.8075503 | I189: 156.71 | J189: 158.7771635 | K189: - | L189: 152.5084596 | M189: - | N189: 160.1464607 | O189: - | P189: 158.7876827 | Q189: - | R189: 157.9811321 | S189: - | T189: 157.8320236 | U189: - | V189: 157.7666563 | W189: - | X189: 161.3983904 | Y189: - | Z189: 156.1377841 | AA189: - | AB189: 136.8306094 | AC189: - | AD189: 140.6688745 | AE189: - | AF189: 34.38824056 | AG189: - | AH189: 29.23602383 | AI189: - | AJ189: 33.04512539 | AK189: - | AL189: 32.02721882 | AM189: - | AN189: 32.21756351 | AO189: - | AP189: 36.40601609 | AQ189: - | AR189: 0
B190: 183 | C190: =Chegadas!J191 -> 157.08 | D190: =IF(Chegadas!K191="I",Atendimento!E198,Atendimento!L198) -> 1.330271117 | E190: * | F190: 165.6132318 | G190: * | H190: 162.8075503 | I190: * | J190: 158.7771635 | K190: 157.08 | L190: 158.4102711 | M190: - | N190: 160.1464607 | O190: - | P190: 158.7876827 | Q190: - | R190: 157.9811321 | S190: - | T190: 157.8320236 | U190: - | V190: 157.7666563 | W190: - | X190: 161.3983904 | Y190: - | Z190: 156.1377841 | AA190: - | AB190: 136.8306094 | AC190: - | AD190: 140.6688745 | AE190: - | AF190: 34.38824056 | AG190: - | AH190: 29.23602383 | AI190: - | AJ190: 33.04512539 | AK190: - | AL190: 32.02721882 | AM190: - | AN190: 32.21756351 | AO190: - | AP190: 36.40601609 | AQ190: - | AR190: 0
B191: 184 | C191: =Chegadas!J192 -> 157.84 | D191: =IF(Chegadas!K192="I",Atendimento!E199,Atendimento!L199) -> 14.68878245 | E191: * | F191: 165.6132318 | G191: * | H191: 162.8075503 | I191: * | J191: 158.7771635 | K191: * | L191: 158.4102711 | M191: * | N191: 160.1464607 | O191: * | P191: 158.7876827 | Q191: * | R191: 157.9811321 | S191: 157.84 | T191: 172.5287824 | U191: - | V191: 157.7666563 | W191: - | X191: 161.3983904 | Y191: - | Z191: 156.1377841 | AA191: - | AB191: 136.8306094 | AC191: - | AD191: 140.6688745 | AE191: - | AF191: 34.38824056 | AG191: - | AH191: 29.23602383 | AI191: - | AJ191: 33.04512539 | AK191: - | AL191: 32.02721882 | AM191: - | AN191: 32.21756351 | AO191: - | AP191: 36.40601609 | AQ191: - | AR191: 0
B192: 185 | C192: =Chegadas!J193 -> 159.32 | D192: =IF(Chegadas!K193="I",Atendimento!E200,Atendimento!L200) -> 5.566866205 | E192: * | F192: 165.6132318 | G192: * | H192: 162.8075503 | I192: 159.32 | J192: 164.8868662 | K192: - | L192: 158.4102711 | M192: - | N192: 160.1464607 | O192: - | P192: 158.7876827 | Q192: - | R192: 157.9811321 | S192: - | T192: 172.5287824 | U192: - | V192: 157.7666563 | W192: - | X192: 161.3983904 | Y192: - | Z192: 156.1377841 | AA192: - | AB192: 136.8306094 | AC192: - | AD192: 140.6688745 | AE192: - | AF192: 34.38824056 | AG192: - | AH192: 29.23602383 | AI192: - | AJ192: 33.04512539 | AK192: - | AL192: 32.02721882 | AM192: - | AN192: 32.21756351 | AO192: - | AP192: 36.40601609 | AQ192: - | AR192: 0
B193: 186 | C193: =Chegadas!J194 -> 160.2 | D193: =IF(Chegadas!K194="I",Atendimento!E201,Atendimento!L201) -> 9.035318831 | E193: * | F193: 165.6132318 | G193: * | H193: 162.8075503 | I193: * | J193: 164.8868662 | K193: 160.2 | L193: 169.2353188 | M193: - | N193: 160.1464607 | O193: - | P193: 158.7876827 | Q193: - | R193: 157.9811321 | S193: - | T193: 172.5287824 | U193: - | V193: 157.7666563 | W193: - | X193: 161.3983904 | Y193: - | Z193: 156.1377841 | AA193: - | AB193: 136.8306094 | AC193: - | AD193: 140.6688745 | AE193: - | AF193: 34.38824056 | AG193: - | AH193: 29.23602383 | AI193: - | AJ193: 33.04512539 | AK193: - | AL193: 32.02721882 | AM193: - | AN193: 32.21756351 | AO193: - | AP193: 36.40601609 | AQ193: - | AR193: 0
B194: 187 | C194: =Chegadas!J195 -> 160.6 | D194: =IF(Chegadas!K195="I",Atendimento!E202,Atendimento!L202) -> 11.31152901 | E194: * | F194: 165.6132318 | G194: * | H194: 162.8075503 | I194: * | J194: 164.8868662 | K194: * | L194: 169.2353188 | M194: 160.6 | N194: 171.911529 | O194: - | P194: 158.7876827 | Q194: - | R194: 157.9811321 | S194: - | T194: 172.5287824 | U194: - | V194: 157.7666563 | W194: - | X194: 161.3983904 | Y194: - | Z194: 156.1377841 | AA194: - | AB194: 136.8306094 | AC194: - | AD194: 140.6688745 | AE194: - | AF194: 34.38824056 | AG194: - | AH194: 29.23602383 | AI194: - | AJ194: 33.04512539 | AK194: - | AL194: 32.02721882 | AM194: - | AN194: 32.21756351 | AO194: - | AP194: 36.40601609 | AQ194: - | AR194: 0
B195: 188 | C195: =Chegadas!J196 -> 161.74 | D195: =IF(Chegadas!K196="I",Atendimento!E203,Atendimento!L203) -> 6.633829773 | E195: * | F195: 165.6132318 | G195: * | H195: 162.8075503 | I195: * | J195: 164.8868662 | K195: * | L195: 169.2353188 | M195: * | N195: 171.911529 | O195: 161.74 | P195: 168.3738298 | Q195: - | R195: 157.9811321 | S195: - | T195: 172.5287824 | U195: - | V195: 157.7666563 | W195: - | X195: 161.3983904 | Y195: - | Z195: 156.1377841 | AA195: - | AB195: 136.8306094 | AC195: - | AD195: 140.6688745 | AE195: - | AF195: 34.38824056 | AG195: - | AH195: 29.23602383 | AI195: - | AJ195: 33.04512539 | AK195: - | AL195: 32.02721882 | AM195: - | AN195: 32.21756351 | AO195: - | AP195: 36.40601609 | AQ195: - | AR195: 0
B196: 189 | C196: =Chegadas!J197 -> 162.08 | D196: =IF(Chegadas!K197="I",Atendimento!E204,Atendimento!L204) -> 8.55555996 | E196: * | F196: 165.6132318 | G196: * | H196: 162.8075503 | I196: * | J196: 164.8868662 | K196: * | L196: 169.2353188 | M196: * | N196: 171.911529 | O196: * | P196: 168.3738298 | Q196: 162.08 | R196: 170.63556 | S196: - | T196: 172.5287824 | U196: - | V196: 157.7666563 | W196: - | X196: 161.3983904 | Y196: - | Z196: 156.1377841 | AA196: - | AB196: 136.8306094 | AC196: - | AD196: 140.6688745 | AE196: - | AF196: 34.38824056 | AG196: - | AH196: 29.23602383 | AI196: - | AJ196: 33.04512539 | AK196: - | AL196: 32.02721882 | AM196: - | AN196: 32.21756351 | AO196: - | AP196: 36.40601609 | AQ196: - | AR196: 0
B197: 190 | C197: =Chegadas!J198 -> 162.25 | D197: =IF(Chegadas!K198="I",Atendimento!E205,Atendimento!L205) -> 9.349994577 | E197: * | F197: 165.6132318 | G197: * | H197: 162.8075503 | I197: * | J197: 164.8868662 | K197: * | L197: 169.2353188 | M197: * | N197: 171.911529 | O197: * | P197: 168.3738298 | Q197: * | R197: 170.63556 | S197: * | T197: 172.5287824 | U197: 162.25 | V197: 171.5999946 | W197: - | X197: 161.3983904 | Y197: - | Z197: 156.1377841 | AA197: - | AB197: 136.8306094 | AC197: - | AD197: 140.6688745 | AE197: - | AF197: 34.38824056 | AG197: - | AH197: 29.23602383 | AI197: - | AJ197: 33.04512539 | AK197: - | AL197: 32.02721882 | AM197: - | AN197: 32.21756351 | AO197: - | AP197: 36.40601609 | AQ197: - | AR197: 0
B198: 191 | C198: =Chegadas!J199 -> 163.34 | D198: =IF(Chegadas!K199="I",Atendimento!E206,Atendimento!L206) -> 2.054623702 | E198: * | F198: 165.6132318 | G198: 163.34 | H198: 165.3946237 | I198: - | J198: 164.8868662 | K198: - | L198: 169.2353188 | M198: - | N198: 171.911529 | O198: - | P198: 168.3738298 | Q198: - | R198: 170.63556 | S198: - | T198: 172.5287824 | U198: - | V198: 171.5999946 | W198: - | X198: 161.3983904 | Y198: - | Z198: 156.1377841 | AA198: - | AB198: 136.8306094 | AC198: - | AD198: 140.6688745 | AE198: - | AF198: 34.38824056 | AG198: - | AH198: 29.23602383 | AI198: - | AJ198: 33.04512539 | AK198: - | AL198: 32.02721882 | AM198: - | AN198: 32.21756351 | AO198: - | AP198: 36.40601609 | AQ198: - | AR198: 0
B199: 192 | C199: =Chegadas!J200 -> 163.46 | D199: =IF(Chegadas!K200="I",Atendimento!E207,Atendimento!L207) -> 8.494796495 | E199: * | F199: 165.6132318 | G199: * | H199: 165.3946237 | I199: * | J199: 164.8868662 | K199: * | L199: 169.2353188 | M199: * | N199: 171.911529 | O199: * | P199: 168.3738298 | Q199: * | R199: 170.63556 | S199: * | T199: 172.5287824 | U199: * | V199: 171.5999946 | W199: 163.46 | X199: 171.9547965 | Y199: - | Z199: 156.1377841 | AA199: - | AB199: 136.8306094 | AC199: - | AD199: 140.6688745 | AE199: - | AF199: 34.38824056 | AG199: - | AH199: 29.23602383 | AI199: - | AJ199: 33.04512539 | AK199: - | AL199: 32.02721882 | AM199: - | AN199: 32.21756351 | AO199: - | AP199: 36.40601609 | AQ199: - | AR199: 0
B200: 193 | C200: =Chegadas!J201 -> 165.48 | D200: =IF(Chegadas!K201="I",Atendimento!E208,Atendimento!L208) -> 7.887128938 | E200: * | F200: 165.6132318 | G200: 165.48 | H200: 173.3671289 | I200: - | J200: 164.8868662 | K200: - | L200: 169.2353188 | M200: - | N200: 171.911529 | O200: - | P200: 168.3738298 | Q200: - | R200: 170.63556 | S200: - | T200: 172.5287824 | U200: - | V200: 171.5999946 | W200: - | X200: 171.9547965 | Y200: - | Z200: 156.1377841 | AA200: - | AB200: 136.8306094 | AC200: - | AD200: 140.6688745 | AE200: - | AF200: 34.38824056 | AG200: - | AH200: 29.23602383 | AI200: - | AJ200: 33.04512539 | AK200: - | AL200: 32.02721882 | AM200: - | AN200: 32.21756351 | AO200: - | AP200: 36.40601609 | AQ200: - | AR200: 0
B201: 194 | C201: =Chegadas!J202 -> 165.52 | D201: =IF(Chegadas!K202="I",Atendimento!E209,Atendimento!L209) -> 3.467714008 | E201: * | F201: 165.6132318 | G201: =IF(E201<>"*","-",IF($C201>=H200,$C201,"*")) -> * | H201: 173.3671289 | I201: =IF(G201<>"*","-",IF($C201>=J200,$C201,"*")) -> 165.52 | J201: 168.987714 | K201: =IF(I201<>"*","-",IF($C201>=L200,$C201,"*")) -> - | L201: 169.2353188 | M201: =IF(K201<>"*","-",IF($C201>=N200,$C201,"*")) -> - | N201: 171.911529 | O201: =IF(M201<>"*","-",IF($C201>=P200,$C201,"*")) -> - | P201: 168.3738298 | Q201: =IF(O201<>"*","-",IF($C201>=R200,$C201,"*")) -> - | R201: 170.63556 | S201: =IF(Q201<>"*","-",IF($C201>=T200,$C201,"*")) -> - | T201: 172.5287824 | U201: =IF(S201<>"*","-",IF($C201>=V200,$C201,"*")) -> - | V201: 171.5999946 | W201: =IF(U201<>"*","-",IF($C201>=X200,$C201,"*")) -> - | X201: 171.9547965 | Y201: =IF(W201<>"*","-",IF($C201>=Z200,$C201,"*")) -> - | Z201: 156.1377841 | AA201: =IF(Y201<>"*","-",IF($C201>=AB200,$C201,"*")) -> - | AB201: 136.8306094 | AC201: =IF(AA201<>"*","-",IF($C201>=AD200,$C201,"*")) -> - | AD201: 140.6688745 | AE201: =IF(AC201<>"*","-",IF($C201>=AF200,$C201,"*")) -> - | AF201: 34.38824056 | AG201: =IF(AE201<>"*","-",IF($C201>=AH200,$C201,"*")) -> - | AH201: 29.23602383 | AI201: =IF(AG201<>"*","-",IF($C201>=AJ200,$C201,"*")) -> - | AJ201: 33.04512539 | AK201: =IF(AI201<>"*","-",IF($C201>=AL200,$C201,"*")) -> - | AL201: 32.02721882 | AM201: =IF(AK201<>"*","-",IF($C201>=AN200,$C201,"*")) -> - | AN201: 32.21756351 | AO201: =IF(AM201<>"*","-",IF($C201>=AP200,$C201,"*")) -> - | AP201: 36.40601609 | AQ201: =IF(AO201<>"*","-",IF($C201>=AR200,$C201,"*")) -> - | AR201: 0
B202: 195 | C202: =Chegadas!J203 -> 167.12 | D202: =IF(Chegadas!K203="I",Atendimento!E210,Atendimento!L210) -> 8.050820948 | E202: =IF($C202>F201,$C202,"*") -> 167.12 | F202: =IF(E202="*",F201,E202+$D202) -> 175.1708209 | G202: - | H202: =IF(OR(G202="-",G202="*"),H201,G202+$D202) -> 173.3671289 | I202: - | J202: =IF(OR(I202="-",I202="*"),J201,I202+$D202) -> 168.987714 | K202: - | L202: 169.2353188 | M202: - | N202: 171.911529 | O202: - | P202: 168.3738298 | Q202: - | R202: 170.63556 | S202: - | T202: 172.5287824 | U202: - | V202: 171.5999946 | W202: - | X202: 171.9547965 | Y202: - | Z202: 156.1377841 | AA202: - | AB202: 136.8306094 | AC202: - | AD202: 140.6688745 | AE202: - | AF202: 34.38824056 | AG202: - | AH202: 29.23602383 | AI202: - | AJ202: 33.04512539 | AK202: - | AL202: 32.02721882 | AM202: - | AN202: 32.21756351 | AO202: - | AP202: 36.40601609 | AQ202: - | AR202: 0
... 305 more rows

Sheet Filtro
D1: Nº de atendimentos = | E1: =COUNT(E8:E508) -> 54 | G1: =COUNT(G9:G508) -> 56 | I1: =COUNT(I9:I508) -> 49 | K1: =COUNT(K9:K508) -> 53 | M1: =COUNT(M9:M508) -> 47 | O1: =COUNT(O9:O508) -> 49 | Q1: =COUNT(Q9:Q508) -> 43 | S1: =COUNT(S9:S508) -> 37 | U1: =COUNT(U9:U508) -> 30 | W1: =COUNT(W9:W508) -> 23 | Y1: =COUNT(Y9:Y508) -> 23 | AA1: =COUNT(AA9:AA508) -> 16 | AC1: =COUNT(AC9:AC508) -> 8 | AE1: =COUNT(AE9:AE508) -> 6 | AG1: =COUNT(AG9:AG508) -> 2 | AI1: =COUNT(AI9:AI508) -> 1 | AK1: =COUNT(AK9:AK508) -> 1 | AM1: =COUNT(AM9:AM508) -> 1 | AO1: =COUNT(AO9:AO508) -> 1 | AQ1: =COUNT(AQ9:AQ508) -> 0
D2: Nº acumulado de atendimentos = | E2: =E1 -> 54 | G2: =SUM($E1:G1) -> 110 | I2: =SUM($E1:I1) -> 159 | K2: =SUM($E1:K1) -> 212 | M2: =SUM($E1:M1) -> 259 | O2: =SUM($E1:O1) -> 308 | Q2: =SUM($E1:Q1) -> 351 | S2: =SUM($E1:S1) -> 388 | U2: =SUM($E1:U1) -> 418 | W2: =SUM($E1:W1) -> 441 | Y2: =SUM($E1:Y1) -> 464 | AA2: =SUM($E1:AA1) -> 480 | AC2: =SUM($E1:AC1) -> 488 | AE2: =SUM($E1:AE1) -> 494 | AG2: =SUM($E1:AG1) -> 496 | AI2: =SUM($E1:AI1) -> 497 | AK2: =SUM($E1:AK1) -> 498 | AM2: =SUM($E1:AM1) -> 499 | AO2: =SUM($E1:AO1) -> 500 | AQ2: =SUM($E1:AQ1) -> 500
D3: Prontidão = | E3: =E2/500 -> 0.108 | G3: =G2/500 -> 0.22 | I3: =I2/500 -> 0.318 | K3: =K2/500 -> 0.424 | M3: =M2/500 -> 0.518 | O3: =O2/500 -> 0.616 | Q3: =Q2/500 -> 0.702 | S3: =S2/500 -> 0.776 | U3: =U2/500 -> 0.836 | W3: =W2/500 -> 0.882 | Y3: =Y2/500 -> 0.928 | AA3: =AA2/500 -> 0.96 | AC3: =AC2/500 -> 0.976 | AE3: =AE2/500 -> 0.988 | AG3: =AG2/500 -> 0.992 | AI3: =AI2/500 -> 0.994 | AK3: =AK2/500 -> 0.996 | AM3: =AM2/500 -> 0.998 | AO3: =AO2/500 -> 1 | AQ3: =AQ2/500 -> 1
B5: Horizonte = | C5: =MIN(Chegadas!E508,Chegadas!H508) -> 489.28 | D5: dias
C6: Chegada à fila | D6: Tempo atendimento | E6: 1º Ventilador | G6: 2º Ventilador | I6: 3º Ventilador | K6: 4º Ventilador | M6: 5º Ventilador | O6: 6º Ventilador | Q6: 7º Ventilador | S6: 8º Ventilador | U6: 9º Ventilador | W6: 10º Ventilador | Y6: 11º Ventilador | AA6: 12º Ventilador | AC6: 13º Ventilador | AE6: 14º Ventilador | AG6: 15º Ventilador | AI6: 16º Ventilador | AK6: 17º Ventilador | AM6: 18º Ventilador | AO6: 19º Ventilador | AQ6: 20º Ventilador
B7: Ordem | E7: Início | F7: Fim | G7: Início | H7: Fim | I7: Início | J7: Fim | K7: Início | L7: Fim | M7: Início | N7: Fim | O7: Início | P7: Fim | Q7: Início | R7: Fim | S7: Início | T7: Fim | U7: Início | V7: Fim | W7: Início | X7: Fim | Y7: Início | Z7: Fim | AA7: Início | AB7: Fim | AC7: Início | AD7: Fim | AE7: Início | AF7: Fim | AG7: Início | AH7: Fim | AI7: Início | AJ7: Fim | AK7: Início | AL7: Fim | AM7: Início | AN7: Fim | AO7: Início | AP7: Fim | AQ7: Início | AR7: Fim
B8: 1 | C8: =Chegadas!J9 -> 0.71 | D8: =IF($C8="","",Simulação!D8) -> 7.963737346 | E8: =IF($C8="","",Simulação!E8) -> 0.71 | F8: =IF($C8="","",Simulação!F8) -> 8.673737346 | G8: - | H8: 0 | I8: - | J8: 0 | K8: - | L8: 0 | M8: - | N8: 0 | O8: - | P8: 0 | Q8: - | R8: 0 | S8: - | T8: 0 | U8: - | V8: 0 | W8: - | X8: 0 | Y8: - | Z8: 0 | AA8: - | AB8: 0 | AC8: - | AD8: 0 | AE8: - | AF8: 0 | AG8: - | AH8: 0 | AI8: - | AJ8: 0 | AK8: - | AL8: 0 | AM8: - | AN8: 0 | AO8: - | AP8: 0 | AQ8: - | AR8: 0
B9: 2 | C9: =IF(Chegadas!J10<=$C$5,Chegadas!J10,"") -> 6.14 | D9: =IF($C9="","",Simulação!D9) -> 8.317359385 | E9: =IF($C9="","",Simulação!E9) -> * | F9: =IF($C9="","",Simulação!F9) -> 8.673737346 | G9: =IF($C9="","",Simulação!G9) -> 6.14 | H9: =IF($C9="","",Simulação!H9) -> 14.45735938 | I9: =IF($C9="","",Simulação!I9) -> - | J9: =IF($C9="","",Simulação!J9) -> 0 | K9: =IF($C9="","",Simulação!K9) -> - | L9: =IF($C9="","",Simulação!L9) -> 0 | M9: =IF($C9="","",Simulação!M9) -> - | N9: =IF($C9="","",Simulação!N9) -> 0 | O9: =IF($C9="","",Simulação!O9) -> - | P9: =IF($C9="","",Simulação!P9) -> 0 | Q9: =IF($C9="","",Simulação!Q9) -> - | R9: =IF($C9="","",Simulação!R9) -> 0 | S9: =IF($C9="","",Simulação!S9) -> - | T9: =IF($C9="","",Simulação!T9) -> 0 | U9: =IF($C9="","",Simulação!U9) -> - | V9: =IF($C9="","",Simulação!V9) -> 0 | W9: =IF($C9="","",Simulação!W9) -> - | X9: =IF($C9="","",Simulação!X9) -> 0 | Y9: =IF($C9="","",Simulação!Y9) -> - | Z9: =IF($C9="","",Simulação!Z9) -> 0 | AA9: =IF($C9="","",Simulação!AA9) -> - | AB9: =IF($C9="","",Simulação!AB9) -> 0 | AC9: =IF($C9="","",Simulação!AC9) -> - | AD9: =IF($C9="","",Simulação!AD9) -> 0 | AE9: =IF($C9="","",Simulação!AE9) -> - | AF9: =IF($C9="","",Simulação!AF9) -> 0 | AG9: =IF($C9="","",Simulação!AG9) -> - | AH9: =IF($C9="","",Simulação!AH9) -> 0 | AI9: =IF($C9="","",Simulação!AI9) -> - | AJ9: =IF($C9="","",Simulação!AJ9) -> 0 | AK9: =IF($C9="","",Simulação!AK9) -> - | AL9: =IF($C9="","",Simulação!AL9) -> 0 | AM9: =IF($C9="","",Simulação!AM9) -> - | AN9: =IF($C9="","",Simulação!AN9) -> 0 | AO9: =IF($C9="","",Simulação!AO9) -> - | AP9: =IF($C9="","",Simulação!AP9) -> 0 | AQ9: =IF($C9="","",Simulação!AQ9) -> - | AR9: =IF($C9="","",Simulação!AR9) -> 0
B10: 3 | C10: =IF(Chegadas!J11<=$C$5,Chegadas!J11,"") -> 6.98 | D10: =IF($C10="","",Simulação!D10) -> 7.151233856 | E10: =IF($C10="","",Simulação!E10) -> * | F10: =IF($C10="","",Simulação!F10) -> 8.673737346 | G10: =IF($C10="","",Simulação!G10) -> * | H10: =IF($C10="","",Simulação!H10) -> 14.45735938 | I10: =IF($C10="","",Simulação!I10) -> 6.98 | J10: =IF($C10="","",Simulação!J10) -> 14.13123386 | K10: =IF($C10="","",Simulação!K10) -> - | L10: =IF($C10="","",Simulação!L10) -> 0 | M10: =IF($C10="","",Simulação!M10) -> - | N10: =IF($C10="","",Simulação!N10) -> 0 | O10: =IF($C10="","",Simulação!O10) -> - | P10: =IF($C10="","",Simulação!P10) -> 0 | Q10: =IF($C10="","",Simulação!Q10) -> - | R10: =IF($C10="","",Simulação!R10) -> 0 | S10: =IF($C10="","",Simulação!S10) -> - | T10: =IF($C10="","",Simulação!T10) -> 0 | U10: =IF($C10="","",Simulação!U10) -> - | V10: =IF($C10="","",Simulação!V10) -> 0 | W10: =IF($C10="","",Simulação!W10) -> - | X10: =IF($C10="","",Simulação!X10) -> 0 | Y10: =IF($C10="","",Simulação!Y10) -> - | Z10: =IF($C10="","",Simulação!Z10) -> 0 | AA10: =IF($C10="","",Simulação!AA10) -> - | AB10: =IF($C10="","",Simulação!AB10) -> 0 | AC10: =IF($C10="","",Simulação!AC10) -> - | AD10: =IF($C10="","",Simulação!AD10) -> 0 | AE10: =IF($C10="","",Simulação!AE10) -> - | AF10: =IF($C10="","",Simulação!AF10) -> 0 | AG10: =IF($C10="","",Simulação!AG10) -> - | AH10: =IF($C10="","",Simulação!AH10) -> 0 | AI10: =IF($C10="","",Simulação!AI10) -> - | AJ10: =IF($C10="","",Simulação!AJ10) -> 0 | AK10: =IF($C10="","",Simulação!AK10) -> - | AL10: =IF($C10="","",Simulação!AL10) -> 0 | AM10: =IF($C10="","",Simulação!AM10) -> - | AN10: =IF($C10="","",Simulação!AN10) -> 0 | AO10: =IF($C10="","",Simulação!AO10) -> - | AP10: =IF($C10="","",Simulação!AP10) -> 0 | AQ10: =IF($C10="","",Simulação!AQ10) -> - | AR10: =IF($C10="","",Simulação!AR10) -> 0
B11: 4 | C11: =IF(Chegadas!J12<=$C$5,Chegadas!J12,"") -> 7.36 | D11: =IF($C11="","",Simulação!D11) -> 6.17243071 | E11: =IF($C11="","",Simulação!E11) -> * | F11: =IF($C11="","",Simulação!F11) -> 8.673737346 | G11: =IF($C11="","",Simulação!G11) -> * | H11: =IF($C11="","",Simulação!H11) -> 14.45735938 | I11: =IF($C11="","",Simulação!I11) -> * | J11: =IF($C11="","",Simulação!J11) -> 14.13123386 | K11: =IF($C11="","",Simulação!K11) -> 7.36 | L11: =IF($C11="","",Simulação!L11) -> 13.53243071 | M11: =IF($C11="","",Simulação!M11) -> - | N11: =IF($C11="","",Simulação!N11) -> 0 | O11: =IF($C11="","",Simulação!O11) -> - | P11: =IF($C11="","",Simulação!P11) -> 0 | Q11: =IF($C11="","",Simulação!Q11) -> - | R11: =IF($C11="","",Simulação!R11) -> 0 | S11: =IF($C11="","",Simulação!S11) -> - | T11: =IF($C11="","",Simulação!T11) -> 0 | U11: =IF($C11="","",Simulação!U11) -> - | V11: =IF($C11="","",Simulação!V11) -> 0 | W11: =IF($C11="","",Simulação!W11) -> - | X11: =IF($C11="","",Simulação!X11) -> 0 | Y11: =IF($C11="","",Simulação!Y11) -> - | Z11: =IF($C11="","",Simulação!Z11) -> 0 | AA11: =IF($C11="","",Simulação!AA11) -> - | AB11: =IF($C11="","",Simulação!AB11) -> 0 | AC11: =IF($C11="","",Simulação!AC11) -> - | AD11: =IF($C11="","",Simulação!AD11) -> 0 | AE11: =IF($C11="","",Simulação!AE11) -> - | AF11: =IF($C11="","",Simulação!AF11) -> 0 | AG11: =IF($C11="","",Simulação!AG11) -> - | AH11: =IF($C11="","",Simulação!AH11) -> 0 | AI11: =IF($C11="","",Simulação!AI11) -> - | AJ11: =IF($C11="","",Simulação!AJ11) -> 0 | AK11: =IF($C11="","",Simulação!AK11) -> - | AL11: =IF($C11="","",Simulação!AL11) -> 0 | AM11: =IF($C11="","",Simulação!AM11) -> - | AN11: =IF($C11="","",Simulação!AN11) -> 0 | AO11: =IF($C11="","",Simulação!AO11) -> - | AP11: =IF($C11="","",Simulação!AP11) -> 0 | AQ11: =IF($C11="","",Simulação!AQ11) -> - | AR11: =IF($C11="","",Simulação!AR11) -> 0
B12: 5 | C12: =IF(Chegadas!J13<=$C$5,Chegadas!J13,"") -> 7.37 | D12: =IF($C12="","",Simulação!D12) -> 2.853610271 | E12: =IF($C12="","",Simulação!E12) -> * | F12: =IF($C12="","",Simulação!F12) -> 8.673737346 | G12: =IF($C12="","",Simulação!G12) -> * | H12: =IF($C12="","",Simulação!H12) -> 14.45735938 | I12: =IF($C12="","",Simulação!I12) -> * | J12: =IF($C12="","",Simulação!J12) -> 14.13123386 | K12: =IF($C12="","",Simulação!K12) -> * | L12: =IF($C12="","",Simulação!L12) -> 13.53243071 | M12: =IF($C12="","",Simulação!M12) -> 7.37 | N12: =IF($C12="","",Simulação!N12) -> 10.22361027 | O12: =IF($C12="","",Simulação!O12) -> - | P12: =IF($C12="","",Simulação!P12) -> 0 | Q12: =IF($C12="","",Simulação!Q12) -> - | R12: =IF($C12="","",Simulação!R12) -> 0 | S12: =IF($C12="","",Simulação!S12) -> - | T12: =IF($C12="","",Simulação!T12) -> 0 | U12: =IF($C12="","",Simulação!U12) -> - | V12: =IF($C12="","",Simulação!V12) -> 0 | W12: =IF($C12="","",Simulação!W12) -> - | X12: =IF($C12="","",Simulação!X12) -> 0 | Y12: =IF($C12="","",Simulação!Y12) -> - | Z12: =IF($C12="","",Simulação!Z12) -> 0 | AA12: =IF($C12="","",Simulação!AA12) -> - | AB12: =IF($C12="","",Simulação!AB12) -> 0 | AC12: =IF($C12="","",Simulação!AC12) -> - | AD12: =IF($C12="","",Simulação!AD12) -> 0 | AE12: =IF($C12="","",Simulação!AE12) -> - | AF12: =IF($C12="","",Simulação!AF12) -> 0 | AG12: =IF($C12="","",Simulação!AG12) -> - | AH12: =IF($C12="","",Simulação!AH12) -> 0 | AI12: =IF($C12="","",Simulação!AI12) -> - | AJ12: =IF($C12="","",Simulação!AJ12) -> 0 | AK12: =IF($C12="","",Simulação!AK12) -> - | AL12: =IF($C12="","",Simulação!AL12) -> 0 | AM12: =IF($C12="","",Simulação!AM12) -> - | AN12: =IF($C12="","",Simulação!AN12) -> 0 | AO12: =IF($C12="","",Simulação!AO12) -> - | AP12: =IF($C12="","",Simulação!AP12) -> 0 | AQ12: =IF($C12="","",Simulação!AQ12) -> - | AR12: =IF($C12="","",Simulação!AR12) -> 0
B13: 6 | C13: =IF(Chegadas!J14<=$C$5,Chegadas!J14,"") -> 7.49 | D13: =IF($C13="","",Simulação!D13) -> 8.179792261 | E13: =IF($C13="","",Simulação!E13) -> * | F13: =IF($C13="","",Simulação!F13) -> 8.673737346 | G13: =IF($C13="","",Simulação!G13) -> * | H13: =IF($C13="","",Simulação!H13) -> 14.45735938 | I13: =IF($C13="","",Simulação!I13) -> * | J13: =IF($C13="","",Simulação!J13) -> 14.13123386 | K13: =IF($C13="","",Simulação!K13) -> * | L13: =IF($C13="","",Simulação!L13) -> 13.53243071 | M13: =IF($C13="","",Simulação!M13) -> * | N13: =IF($C13="","",Simulação!N13) -> 10.22361027 | O13: =IF($C13="","",Simulação!O13) -> 7.49 | P13: =IF($C13="","",Simulação!P13) -> 15.66979226 | Q13: =IF($C13="","",Simulação!Q13) -> - | R13: =IF($C13="","",Simulação!R13) -> 0 | S13: =IF($C13="","",Simulação!S13) -> - | T13: =IF($C13="","",Simulação!T13) -> 0 | U13: =IF($C13="","",Simulação!U13) -> - | V13: =IF($C13="","",Simulação!V13) -> 0 | W13: =IF($C13="","",Simulação!W13) -> - | X13: =IF($C13="","",Simulação!X13) -> 0 | Y13: =IF($C13="","",Simulação!Y13) -> - | Z13: =IF($C13="","",Simulação!Z13) -> 0 | AA13: =IF($C13="","",Simulação!AA13) -> - | AB13: =IF($C13="","",Simulação!AB13) -> 0 | AC13: =IF($C13="","",Simulação!AC13) -> - | AD13: =IF($C13="","",Simulação!AD13) -> 0 | AE13: =IF($C13="","",Simulação!AE13) -> - | AF13: =IF($C13="","",Simulação!AF13) -> 0 | AG13: =IF($C13="","",Simulação!AG13) -> - | AH13: =IF($C13="","",Simulação!AH13) -> 0 | AI13: =IF($C13="","",Simulação!AI13) -> - | AJ13: =IF($C13="","",Simulação!AJ13) -> 0 | AK13: =IF($C13="","",Simulação!AK13) -> - | AL13: =IF($C13="","",Simulação!AL13) -> 0 | AM13: =IF($C13="","",Simulação!AM13) -> - | AN13: =IF($C13="","",Simulação!AN13) -> 0 | AO13: =IF($C13="","",Simulação!AO13) -> - | AP13: =IF($C13="","",Simulação!AP13) -> 0 | AQ13: =IF($C13="","",Simulação!AQ13) -> - | AR13: =IF($C13="","",Simulação!AR13) -> 0
B14: 7 | C14: =IF(Chegadas!J15<=$C$5,Chegadas!J15,"") -> 7.68 | D14: =IF($C14="","",Simulação!D14) -> 3.764393469 | E14: =IF($C14="","",Simulação!E14) -> * | F14: =IF($C14="","",Simulação!F14) -> 8.673737346 | G14: =IF($C14="","",Simulação!G14) -> * | H14: =IF($C14="","",Simulação!H14) -> 14.45735938 | I14: =IF($C14="","",Simulação!I14) -> * | J14: =IF($C14="","",Simulação!J14) -> 14.13123386 | K14: =IF($C14="","",Simulação!K14) -> * | L14: =IF($C14="","",Simulação!L14) -> 13.53243071 | M14: =IF($C14="","",Simulação!M14) -> * | N14: =IF($C14="","",Simulação!N14) -> 10.22361027 | O14: =IF($C14="","",Simulação!O14) -> * | P14: =IF($C14="","",Simulação!P14) -> 15.66979226 | Q14: =IF($C14="","",Simulação!Q14) -> 7.68 | R14: =IF($C14="","",Simulação!R14) -> 11.44439347 | S14: =IF($C14="","",Simulação!S14) -> - | T14: =IF($C14="","",Simulação!T14) -> 0 | U14: =IF($C14="","",Simulação!U14) -> - | V14: =IF($C14="","",Simulação!V14) -> 0 | W14: =IF($C14="","",Simulação!W14) -> - | X14: =IF($C14="","",Simulação!X14) -> 0 | Y14: =IF($C14="","",Simulação!Y14) -> - | Z14: =IF($C14="","",Simulação!Z14) -> 0 | AA14: =IF($C14="","",Simulação!AA14) -> - | AB14: =IF($C14="","",Simulação!AB14) -> 0 | AC14: =IF($C14="","",Simulação!AC14) -> - | AD14: =IF($C14="","",Simulação!AD14) -> 0 | AE14: =IF($C14="","",Simulação!AE14) -> - | AF14: =IF($C14="","",Simulação!AF14) -> 0 | AG14: =IF($C14="","",Simulação!AG14) -> - | AH14: =IF($C14="","",Simulação!AH14) -> 0 | AI14: =IF($C14="","",Simulação!AI14) -> - | AJ14: =IF($C14="","",Simulação!AJ14) -> 0 | AK14: =IF($C14="","",Simulação!AK14) -> - | AL14: =IF($C14="","",Simulação!AL14) -> 0 | AM14: =IF($C14="","",Simulação!AM14) -> - | AN14: =IF($C14="","",Simulação!AN14) -> 0 | AO14: =IF($C14="","",Simulação!AO14) -> - | AP14: =IF($C14="","",Simulação!AP14) -> 0 | AQ14: =IF($C14="","",Simulação!AQ14) -> - | AR14: =IF($C14="","",Simulação!AR14) -> 0
B15: 8 | C15: =IF(Chegadas!J16<=$C$5,Chegadas!J16,"") -> 8.47 | D15: =IF($C15="","",Simulação!D15) -> 8.683633697 | E15: =IF($C15="","",Simulação!E15) -> * | F15: =IF($C15="","",Simulação!F15) -> 8.673737346 | G15: =IF($C15="","",Simulação!G15) -> * | H15: =IF($C15="","",Simulação!H15) -> 14.45735938 | I15: =IF($C15="","",Simulação!I15) -> * | J15: =IF($C15="","",Simulação!J15) -> 14.13123386 | K15: =IF($C15="","",Simulação!K15) -> * | L15: =IF($C15="","",Simulação!L15) -> 13.53243071 | M15: =IF($C15="","",Simulação!M15) -> * | N15: =IF($C15="","",Simulação!N15) -> 10.22361027 | O15: =IF($C15="","",Simulação!O15) -> * | P15: =IF($C15="","",Simulação!P15) -> 15.66979226 | Q15: =IF($C15="","",Simulação!Q15) -> * | R15: =IF($C15="","",Simulação!R15) -> 11.44439347 | S15: =IF($C15="","",Simulação!S15) -> 8.47 | T15: =IF($C15="","",Simulação!T15) -> 17.1536337 | U15: =IF($C15="","",Simulação!U15) -> - | V15: =IF($C15="","",Simulação!V15) -> 0 | W15: =IF($C15="","",Simulação!W15) -> - | X15: =IF($C15="","",Simulação!X15) -> 0 | Y15: =IF($C15="","",Simulação!Y15) -> - | Z15: =IF($C15="","",Simulação!Z15) -> 0 | AA15: =IF($C15="","",Simulação!AA15) -> - | AB15: =IF($C15="","",Simulação!AB15) -> 0 | AC15: =IF($C15="","",Simulação!AC15) -> - | AD15: =IF($C15="","",Simulação!AD15) -> 0 | AE15: =IF($C15="","",Simulação!AE15) -> - | AF15: =IF($C15="","",Simulação!AF15) -> 0 | AG15: =IF($C15="","",Simulação!AG15) -> - | AH15: =IF($C15="","",Simulação!AH15) -> 0 | AI15: =IF($C15="","",Simulação!AI15) -> - | AJ15: =IF($C15="","",Simulação!AJ15) -> 0 | AK15: =IF($C15="","",Simulação!AK15) -> - | AL15: =IF($C15="","",Simulação!AL15) -> 0 | AM15: =IF($C15="","",Simulação!AM15) -> - | AN15: =IF($C15="","",Simulação!AN15) -> 0 | AO15: =IF($C15="","",Simulação!AO15) -> - | AP15: =IF($C15="","",Simulação!AP15) -> 0 | AQ15: =IF($C15="","",Simulação!AQ15) -> - | AR15: =IF($C15="","",Simulação!AR15) -> 0
B16: 9 | C16: =IF(Chegadas!J17<=$C$5,Chegadas!J17,"") -> 9.38 | D16: =IF($C16="","",Simulação!D16) -> 11.53280701 | E16: =IF($C16="","",Simulação!E16) -> 9.38 | F16: =IF($C16="","",Simulação!F16) -> 20.91280701 | G16: =IF($C16="","",Simulação!G16) -> - | H16: =IF($C16="","",Simulação!H16) -> 14.45735938 | I16: =IF($C16="","",Simulação!I16) -> - | J16: =IF($C16="","",Simulação!J16) -> 14.13123386 | K16: =IF($C16="","",Simulação!K16) -> - | L16: =IF($C16="","",Simulação!L16) -> 13.53243071 | M16: =IF($C16="","",Simulação!M16) -> - | N16: =IF($C16="","",Simulação!N16) -> 10.22361027 | O16: =IF($C16="","",Simulação!O16) -> - | P16: =IF($C16="","",Simulação!P16) -> 15.66979226 | Q16: =IF($C16="","",Simulação!Q16) -> - | R16: =IF($C16="","",Simulação!R16) -> 11.44439347 | S16: =IF($C16="","",Simulação!S16) -> - | T16: =IF($C16="","",Simulação!T16) -> 17.1536337 | U16: =IF($C16="","",Simulação!U16) -> - | V16: =IF($C16="","",Simulação!V16) -> 0 | W16: =IF($C16="","",Simulação!W16) -> - | X16: =IF($C16="","",Simulação!X16) -> 0 | Y16: =IF($C16="","",Simulação!Y16) -> - | Z16: =IF($C16="","",Simulação!Z16) -> 0 | AA16: =IF($C16="","",Simulação!AA16) -> - | AB16: =IF($C16="","",Simulação!AB16) -> 0 | AC16: =IF($C16="","",Simulação!AC16) -> - | AD16: =IF($C16="","",Simulação!AD16) -> 0 | AE16: =IF($C16="","",Simulação!AE16) -> - | AF16: =IF($C16="","",Simulação!AF16) -> 0 | AG16: =IF($C16="","",Simulação!AG16) -> - | AH16: =IF($C16="","",Simulação!AH16) -> 0 | AI16: =IF($C16="","",Simulação!AI16) -> - | AJ16: =IF($C16="","",Simulação!AJ16) -> 0 | AK16: =IF($C16="","",Simulação!AK16) -> - | AL16: =IF($C16="","",Simulação!AL16) -> 0 | AM16: =IF($C16="","",Simulação!AM16) -> - | AN16: =IF($C16="","",Simulação!AN16) -> 0 | AO16: =IF($C16="","",Simulação!AO16) -> - | AP16: =IF($C16="","",Simulação!AP16) -> 0 | AQ16: =IF($C16="","",Simulação!AQ16) -> - | AR16: =IF($C16="","",Simulação!AR16) -> 0
B17: 10 | C17: =IF(Chegadas!J18<=$C$5,Chegadas!J18,"") -> 9.41 | D17: =IF($C17="","",Simulação!D17) -> 0.9423472412 | E17: =IF($C17="","",Simulação!E17) -> * | F17: =IF($C17="","",Simulação!F17) -> 20.91280701 | G17: =IF($C17="","",Simulação!G17) -> * | H17: =IF($C17="","",Simulação!H17) -> 14.45735938 | I17: =IF($C17="","",Simulação!I17) -> * | J17: =IF($C17="","",Simulação!J17) -> 14.13123386 | K17: =IF($C17="","",Simulação!K17) -> * | L17: =IF($C17="","",Simulação!L17) -> 13.53243071 | M17: =IF($C17="","",Simulação!M17) -> * | N17: =IF($C17="","",Simulação!N17) -> 10.22361027 | O17: =IF($C17="","",Simulação!O17) -> * | P17: =IF($C17="","",Simulação!P17) -> 15.66979226 | Q17: =IF($C17="","",Simulação!Q17) -> * | R17: =IF($C17="","",Simulação!R17) -> 11.44439347 | S17: =IF($C17="","",Simulação!S17) -> * | T17: =IF($C17="","",Simulação!T17) -> 17.1536337 | U17: =IF($C17="","",Simulação!U17) -> 9.41 | V17: =IF($C17="","",Simulação!V17) -> 10.35234724 | W17: =IF($C17="","",Simulação!W17) -> - | X17: =IF($C17="","",Simulação!X17) -> 0 | Y17: =IF($C17="","",Simulação!Y17) -> - | Z17: =IF($C17="","",Simulação!Z17) -> 0 | AA17: =IF($C17="","",Simulação!AA17) -> - | AB17: =IF($C17="","",Simulação!AB17) -> 0 | AC17: =IF($C17="","",Simulação!AC17) -> - | AD17: =IF($C17="","",Simulação!AD17) -> 0 | AE17: =IF($C17="","",Simulação!AE17) -> - | AF17: =IF($C17="","",Simulação!AF17) -> 0 | AG17: =IF($C17="","",Simulação!AG17) -> - | AH17: =IF($C17="","",Simulação!AH17) -> 0 | AI17: =IF($C17="","",Simulação!AI17) -> - | AJ17: =IF($C17="","",Simulação!AJ17) -> 0 | AK17: =IF($C17="","",Simulação!AK17) -> - | AL17: =IF($C17="","",Simulação!AL17) -> 0 | AM17: =IF($C17="","",Simulação!AM17) -> - | AN17: =IF($C17="","",Simulação!AN17) -> 0 | AO17: =IF($C17="","",Simulação!AO17) -> - | AP17: =IF($C17="","",Simulação!AP17) -> 0 | AQ17: =IF($C17="","",Simulação!AQ17) -> - | AR17: =IF($C17="","",Simulação!AR17) -> 0
B18: 11 | C18: =IF(Chegadas!J19<=$C$5,Chegadas!J19,"") -> 10.26 | D18: =IF($C18="","",Simulação!D18) -> 7.094619862 | E18: =IF($C18="","",Simulação!E18) -> * | F18: =IF($C18="","",Simulação!F18) -> 20.91280701 | G18: =IF($C18="","",Simulação!G18) -> * | H18: =IF($C18="","",Simulação!H18) -> 14.45735938 | I18: =IF($C18="","",Simulação!I18) -> * | J18: =IF($C18="","",Simulação!J18) -> 14.13123386 | K18: =IF($C18="","",Simulação!K18) -> * | L18: =IF($C18="","",Simulação!L18) -> 13.53243071 | M18: =IF($C18="","",Simulação!M18) -> 10.26 | N18: =IF($C18="","",Simulação!N18) -> 17.35461986 | O18: =IF($C18="","",Simulação!O18) -> - | P18: =IF($C18="","",Simulação!P18) -> 15.66979226 | Q18: =IF($C18="","",Simulação!Q18) -> - | R18: =IF($C18="","",Simulação!R18) -> 11.44439347 | S18: =IF($C18="","",Simulação!S18) -> - | T18: =IF($C18="","",Simulação!T18) -> 17.1536337 | U18: =IF($C18="","",Simulação!U18) -> - | V18: =IF($C18="","",Simulação!V18) -> 10.35234724 | W18: =IF($C18="","",Simulação!W18) -> - | X18: =IF($C18="","",Simulação!X18) -> 0 | Y18: =IF($C18="","",Simulação!Y18) -> - | Z18: =IF($C18="","",Simulação!Z18) -> 0 | AA18: =IF($C18="","",Simulação!AA18) -> - | AB18: =IF($C18="","",Simulação!AB18) -> 0 | AC18: =IF($C18="","",Simulação!AC18) -> - | AD18: =IF($C18="","",Simulação!AD18) -> 0 | AE18: =IF($C18="","",Simulação!AE18) -> - | AF18: =IF($C18="","",Simulação!AF18) -> 0 | AG18: =IF($C18="","",Simulação!AG18) -> - | AH18: =IF($C18="","",Simulação!AH18) -> 0 | AI18: =IF($C18="","",Simulação!AI18) -> - | AJ18: =IF($C18="","",Simulação!AJ18) -> 0 | AK18: =IF($C18="","",Simulação!AK18) -> - | AL18: =IF($C18="","",Simulação!AL18) -> 0 | AM18: =IF($C18="","",Simulação!AM18) -> - | AN18: =IF($C18="","",Simulação!AN18) -> 0 | AO18: =IF($C18="","",Simulação!AO18) -> - | AP18: =IF($C18="","",Simulação!AP18) -> 0 | AQ18: =IF($C18="","",Simulação!AQ18) -> - | AR18: =IF($C18="","",Simulação!AR18) -> 0
B19: 12 | C19: =IF(Chegadas!J20<=$C$5,Chegadas!J20,"") -> 14.3 | D19: =IF($C19="","",Simulação!D19) -> 3.536799525 | E19: =IF($C19="","",Simulação!E19) -> * | F19: =IF($C19="","",Simulação!F19) -> 20.91280701 | G19: =IF($C19="","",Simulação!G19) -> * | H19: =IF($C19="","",Simulação!H19) -> 14.45735938 | I19: =IF($C19="","",Simulação!I19) -> 14.3 | J19: =IF($C19="","",Simulação!J19) -> 17.83679953 | K19: =IF($C19="","",Simulação!K19) -> - | L19: =IF($C19="","",Simulação!L19) -> 13.53243071 | M19: =IF($C19="","",Simulação!M19) -> - | N19: =IF($C19="","",Simulação!N19) -> 17.35461986 | O19: =IF($C19="","",Simulação!O19) -> - | P19: =IF($C19="","",Simulação!P19) -> 15.66979226 | Q19: =IF($C19="","",Simulação!Q19) -> - | R19: =IF($C19="","",Simulação!R19) -> 11.44439347 | S19: =IF($C19="","",Simulação!S19) -> - | T19: =IF($C19="","",Simulação!T19) -> 17.1536337 | U19: =IF($C19="","",Simulação!U19) -> - | V19: =IF($C19="","",Simulação!V19) -> 10.35234724 | W19: =IF($C19="","",Simulação!W19) -> - | X19: =IF($C19="","",Simulação!X19) -> 0 | Y19: =IF($C19="","",Simulação!Y19) -> - | Z19: =IF($C19="","",Simulação!Z19) -> 0 | AA19: =IF($C19="","",Simulação!AA19) -> - | AB19: =IF($C19="","",Simulação!AB19) -> 0 | AC19: =IF($C19="","",Simulação!AC19) -> - | AD19: =IF($C19="","",Simulação!AD19) -> 0 | AE19: =IF($C19="","",Simulação!AE19) -> - | AF19: =IF($C19="","",Simulação!AF19) -> 0 | AG19: =IF($C19="","",Simulação!AG19) -> - | AH19: =IF($C19="","",Simulação!AH19) -> 0 | AI19: =IF($C19="","",Simulação!AI19) -> - | AJ19: =IF($C19="","",Simulação!AJ19) -> 0 | AK19: =IF($C19="","",Simulação!AK19) -> - | AL19: =IF($C19="","",Simulação!AL19) -> 0 | AM19: =IF($C19="","",Simulação!AM19) -> - | AN19: =IF($C19="","",Simulação!AN19) -> 0 | AO19: =IF($C19="","",Simulação!AO19) -> - | AP19: =IF($C19="","",Simulação!AP19) -> 0 | AQ19: =IF($C19="","",Simulação!AQ19) -> - | AR19: =IF($C19="","",Simulação!AR19) -> 0
B20: 13 | C20: =IF(Chegadas!J21<=$C$5,Chegadas!J21,"") -> 16.32 | D20: =IF($C20="","",Simulação!D20) -> 4.51529055 | E20: =IF($C20="","",Simulação!E20) -> * | F20: =IF($C20="","",Simulação!F20) -> 20.91280701 | G20: =IF($C20="","",Simulação!G20) -> 16.32 | H20: =IF($C20="","",Simulação!H20) -> 20.83529055 | I20: =IF($C20="","",Simulação!I20) -> - | J20: =IF($C20="","",Simulação!J20) -> 17.83679953 | K20: =IF($C20="","",Simulação!K20) -> - | L20: =IF($C20="","",Simulação!L20) -> 13.53243071 | M20: =IF($C20="","",Simulação!M20) -> - | N20: =IF($C20="","",Simulação!N20) -> 17.35461986 | O20: =IF($C20="","",Simulação!O20) -> - | P20: =IF($C20="","",Simulação!P20) -> 15.66979226 | Q20: =IF($C20="","",Simulação!Q20) -> - | R20: =IF($C20="","",Simulação!R20) -> 11.44439347 | S20: =IF($C20="","",Simulação!S20) -> - | T20: =IF($C20="","",Simulação!T20) -> 17.1536337 | U20: =IF($C20="","",Simulação!U20) -> - | V20: =IF($C20="","",Simulação!V20) -> 10.35234724 | W20: =IF($C20="","",Simulação!W20) -> - | X20: =IF($C20="","",Simulação!X20) -> 0 | Y20: =IF($C20="","",Simulação!Y20) -> - | Z20: =IF($C20="","",Simulação!Z20) -> 0 | AA20: =IF($C20="","",Simulação!AA20) -> - | AB20: =IF($C20="","",Simulação!AB20) -> 0 | AC20: =IF($C20="","",Simulação!AC20) -> - | AD20: =IF($C20="","",Simulação!AD20) -> 0 | AE20: =IF($C20="","",Simulação!AE20) -> - | AF20: =IF($C20="","",Simulação!AF20) -> 0 | AG20: =IF($C20="","",Simulação!AG20) -> - | AH20: =IF($C20="","",Simulação!AH20) -> 0 | AI20: =IF($C20="","",Simulação!AI20) -> - | AJ20: =IF($C20="","",Simulação!AJ20) -> 0 | AK20: =IF($C20="","",Simulação!AK20) -> - | AL20: =IF($C20="","",Simulação!AL20) -> 0 | AM20: =IF($C20="","",Simulação!AM20) -> - | AN20: =IF($C20="","",Simulação!AN20) -> 0 | AO20: =IF($C20="","",Simulação!AO20) -> - | AP20: =IF($C20="","",Simulação!AP20) -> 0 | AQ20: =IF($C20="","",Simulação!AQ20) -> - | AR20: =IF($C20="","",Simulação!AR20) -> 0
B21: 14 | C21: =IF(Chegadas!J22<=$C$5,Chegadas!J22,"") -> 16.5 | D21: =IF($C21="","",Simulação!D21) -> 10.84620712 | E21: =IF($C21="","",Simulação!E21) -> * | F21: =IF($C21="","",Simulação!F21) -> 20.91280701 | G21: =IF($C21="","",Simulação!G21) -> * | H21: =IF($C21="","",Simulação!H21) -> 20.83529055 | I21: =IF($C21="","",Simulação!I21) -> * | J21: =IF($C21="","",Simulação!J21) -> 17.83679953 | K21: =IF($C21="","",Simulação!K21) -> 16.5 | L21: =IF($C21="","",Simulação!L21) -> 27.34620712 | M21: =IF($C21="","",Simulação!M21) -> - | N21: =IF($C21="","",Simulação!N21) -> 17.35461986 | O21: =IF($C21="","",Simulação!O21) -> - | P21: =IF($C21="","",Simulação!P21) -> 15.66979226 | Q21: =IF($C21="","",Simulação!Q21) -> - | R21: =IF($C21="","",Simulação!R21) -> 11.44439347 | S21: =IF($C21="","",Simulação!S21) -> - | T21: =IF($C21="","",Simulação!T21) -> 17.1536337 | U21: =IF($C21="","",Simulação!U21) -> - | V21: =IF($C21="","",Simulação!V21) -> 10.35234724 | W21: =IF($C21="","",Simulação!W21) -> - | X21: =IF($C21="","",Simulação!X21) -> 0 | Y21: =IF($C21="","",Simulação!Y21) -> - | Z21: =IF($C21="","",Simulação!Z21) -> 0 | AA21: =IF($C21="","",Simulação!AA21) -> - | AB21: =IF($C21="","",Simulação!AB21) -> 0 | AC21: =IF($C21="","",Simulação!AC21) -> - | AD21: =IF($C21="","",Simulação!AD21) -> 0 | AE21: =IF($C21="","",Simulação!AE21) -> - | AF21: =IF($C21="","",Simulação!AF21) -> 0 | AG21: =IF($C21="","",Simulação!AG21) -> - | AH21: =IF($C21="","",Simulação!AH21) -> 0 | AI21: =IF($C21="","",Simulação!AI21) -> - | AJ21: =IF($C21="","",Simulação!AJ21) -> 0 | AK21: =IF($C21="","",Simulação!AK21) -> - | AL21: =IF($C21="","",Simulação!AL21) -> 0 | AM21: =IF($C21="","",Simulação!AM21) -> - | AN21: =IF($C21="","",Simulação!AN21) -> 0 | AO21: =IF($C21="","",Simulação!AO21) -> - | AP21: =IF($C21="","",Simulação!AP21) -> 0 | AQ21: =IF($C21="","",Simulação!AQ21) -> - | AR21: =IF($C21="","",Simulação!AR21) -> 0
B22: 15 | C22: =IF(Chegadas!J23<=$C$5,Chegadas!J23,"") -> 16.71 | D22: =IF($C22="","",Simulação!D22) -> 6.64575612 | E22: =IF($C22="","",Simulação!E22) -> * | F22: =IF($C22="","",Simulação!F22) -> 20.91280701 | G22: =IF($C22="","",Simulação!G22) -> * | H22: =IF($C22="","",Simulação!H22) -> 20.83529055 | I22: =IF($C22="","",Simulação!I22) -> * | J22: =IF($C22="","",Simulação!J22) -> 17.83679953 | K22: =IF($C22="","",Simulação!K22) -> * | L22: =IF($C22="","",Simulação!L22) -> 27.34620712 | M22: =IF($C22="","",Simulação!M22) -> * | N22: =IF($C22="","",Simulação!N22) -> 17.35461986 | O22: =IF($C22="","",Simulação!O22) -> 16.71 | P22: =IF($C22="","",Simulação!P22) -> 23.35575612 | Q22: =IF($C22="","",Simulação!Q22) -> - | R22: =IF($C22="","",Simulação!R22) -> 11.44439347 | S22: =IF($C22="","",Simulação!S22) -> - | T22: =IF($C22="","",Simulação!T22) -> 17.1536337 | U22: =IF($C22="","",Simulação!U22) -> - | V22: =IF($C22="","",Simulação!V22) -> 10.35234724 | W22: =IF($C22="","",Simulação!W22) -> - | X22: =IF($C22="","",Simulação!X22) -> 0 | Y22: =IF($C22="","",Simulação!Y22) -> - | Z22: =IF($C22="","",Simulação!Z22) -> 0 | AA22: =IF($C22="","",Simulação!AA22) -> - | AB22: =IF($C22="","",Simulação!AB22) -> 0 | AC22: =IF($C22="","",Simulação!AC22) -> - | AD22: =IF($C22="","",Simulação!AD22) -> 0 | AE22: =IF($C22="","",Simulação!AE22) -> - | AF22: =IF($C22="","",Simulação!AF22) -> 0 | AG22: =IF($C22="","",Simulação!AG22) -> - | AH22: =IF($C22="","",Simulação!AH22) -> 0 | AI22: =IF($C22="","",Simulação!AI22) -> - | AJ22: =IF($C22="","",Simulação!AJ22) -> 0 | AK22: =IF($C22="","",Simulação!AK22) -> - | AL22: =IF($C22="","",Simulação!AL22) -> 0 | AM22: =IF($C22="","",Simulação!AM22) -> - | AN22: =IF($C22="","",Simulação!AN22) -> 0 | AO22: =IF($C22="","",Simulação!AO22) -> - | AP22: =IF($C22="","",Simulação!AP22) -> 0 | AQ22: =IF($C22="","",Simulação!AQ22) -> - | AR22: =IF($C22="","",Simulação!AR22) -> 0
B23: 16 | C23: =IF(Chegadas!J24<=$C$5,Chegadas!J24,"") -> 16.99 | D23: =IF($C23="","",Simulação!D23) -> 6.787491748 | E23: =IF($C23="","",Simulação!E23) -> * | F23: =IF($C23="","",Simulação!F23) -> 20.91280701 | G23: =IF($C23="","",Simulação!G23) -> * | H23: =IF($C23="","",Simulação!H23) -> 20.83529055 | I23: =IF($C23="","",Simulação!I23) -> * | J23: =IF($C23="","",Simulação!J23) -> 17.83679953 | K23: =IF($C23="","",Simulação!K23) -> * | L23: =IF($C23="","",Simulação!L23) -> 27.34620712 | M23: =IF($C23="","",Simulação!M23) -> * | N23: =IF($C23="","",Simulação!N23) -> 17.35461986 | O23: =IF($C23="","",Simulação!O23) -> * | P23: =IF($C23="","",Simulação!P23) -> 23.35575612 | Q23: =IF($C23="","",Simulação!Q23) -> 16.99 | R23: =IF($C23="","",Simulação!R23) -> 23.77749175 | S23: =IF($C23="","",Simulação!S23) -> - | T23: =IF($C23="","",Simulação!T23) -> 17.1536337 | U23: =IF($C23="","",Simulação!U23) -> - | V23: =IF($C23="","",Simulação!V23) -> 10.35234724 | W23: =IF($C23="","",Simulação!W23) -> - | X23: =IF($C23="","",Simulação!X23) -> 0 | Y23: =IF($C23="","",Simulação!Y23) -> - | Z23: =IF($C23="","",Simulação!Z23) -> 0 | AA23: =IF($C23="","",Simulação!AA23) -> - | AB23: =IF($C23="","",Simulação!AB23) -> 0 | AC23: =IF($C23="","",Simulação!AC23) -> - | AD23: =IF($C23="","",Simulação!AD23) -> 0 | AE23: =IF($C23="","",Simulação!AE23) -> - | AF23: =IF($C23="","",Simulação!AF23) -> 0 | AG23: =IF($C23="","",Simulação!AG23) -> - | AH23: =IF($C23="","",Simulação!AH23) -> 0 | AI23: =IF($C23="","",Simulação!AI23) -> - | AJ23: =IF($C23="","",Simulação!AJ23) -> 0 | AK23: =IF($C23="","",Simulação!AK23) -> - | AL23: =IF($C23="","",Simulação!AL23) -> 0 | AM23: =IF($C23="","",Simulação!AM23) -> - | AN23: =IF($C23="","",Simulação!AN23) -> 0 | AO23: =IF($C23="","",Simulação!AO23) -> - | AP23: =IF($C23="","",Simulação!AP23) -> 0 | AQ23: =IF($C23="","",Simulação!AQ23) -> - | AR23: =IF($C23="","",Simulação!AR23) -> 0
B24: 17 | C24: =IF(Chegadas!J25<=$C$5,Chegadas!J25,"") -> 17.4 | D24: =IF($C24="","",Simulação!D24) -> 6.516438238 | E24: =IF($C24="","",Simulação!E24) -> * | F24: =IF($C24="","",Simulação!F24) -> 20.91280701 | G24: =IF($C24="","",Simulação!G24) -> * | H24: =IF($C24="","",Simulação!H24) -> 20.83529055 | I24: =IF($C24="","",Simulação!I24) -> * | J24: =IF($C24="","",Simulação!J24) -> 17.83679953 | K24: =IF($C24="","",Simulação!K24) -> * | L24: =IF($C24="","",Simulação!L24) -> 27.34620712 | M24: =IF($C24="","",Simulação!M24) -> 17.4 | N24: =IF($C24="","",Simulação!N24) -> 23.91643824 | O24: =IF($C24="","",Simulação!O24) -> - | P24: =IF($C24="","",Simulação!P24) -> 23.35575612 | Q24: =IF($C24="","",Simulação!Q24) -> - | R24: =IF($C24="","",Simulação!R24) -> 23.77749175 | S24: =IF($C24="","",Simulação!S24) -> - | T24: =IF($C24="","",Simulação!T24) -> 17.1536337 | U24: =IF($C24="","",Simulação!U24) -> - | V24: =IF($C24="","",Simulação!V24) -> 10.35234724 | W24: =IF($C24="","",Simulação!W24) -> - | X24: =IF($C24="","",Simulação!X24) -> 0 | Y24: =IF($C24="","",Simulação!Y24) -> - | Z24: =IF($C24="","",Simulação!Z24) -> 0 | AA24: =IF($C24="","",Simulação!AA24) -> - | AB24: =IF($C24="","",Simulação!AB24) -> 0 | AC24: =IF($C24="","",Simulação!AC24) -> - | AD24: =IF($C24="","",Simulação!AD24) -> 0 | AE24: =IF($C24="","",Simulação!AE24) -> - | AF24: =IF($C24="","",Simulação!AF24) -> 0 | AG24: =IF($C24="","",Simulação!AG24) -> - | AH24: =IF($C24="","",Simulação!AH24) -> 0 | AI24: =IF($C24="","",Simulação!AI24) -> - | AJ24: =IF($C24="","",Simulação!AJ24) -> 0 | AK24: =IF($C24="","",Simulação!AK24) -> - | AL24: =IF($C24="","",Simulação!AL24) -> 0 | AM24: =IF($C24="","",Simulação!AM24) -> - | AN24: =IF($C24="","",Simulação!AN24) -> 0 | AO24: =IF($C24="","",Simulação!AO24) -> - | AP24: =IF($C24="","",Simulação!AP24) -> 0 | AQ24: =IF($C24="","",Simulação!AQ24) -> - | AR24: =IF($C24="","",Simulação!AR24) -> 0
B25: 18 | C25: =IF(Chegadas!J26<=$C$5,Chegadas!J26,"") -> 17.47 | D25: =IF($C25="","",Simulação!D25) -> 6.409122577 | E25: =IF($C25="","",Simulação!E25) -> * | F25: =IF($C25="","",Simulação!F25) -> 20.91280701 | G25: =IF($C25="","",Simulação!G25) -> * | H25: =IF($C25="","",Simulação!H25) -> 20.83529055 | I25: =IF($C25="","",Simulação!I25) -> * | J25: =IF($C25="","",Simulação!J25) -> 17.83679953 | K25: =IF($C25="","",Simulação!K25) -> * | L25: =IF($C25="","",Simulação!L25) -> 27.34620712 | M25: =IF($C25="","",Simulação!M25) -> * | N25: =IF($C25="","",Simulação!N25) -> 23.91643824 | O25: =IF($C25="","",Simulação!O25) -> * | P25: =IF($C25="","",Simulação!P25) -> 23.35575612 | Q25: =IF($C25="","",Simulação!Q25) -> * | R25: =IF($C25="","",Simulação!R25) -> 23.77749175 | S25: =IF($C25="","",Simulação!S25) -> 17.47 | T25: =IF($C25="","",Simulação!T25) -> 23.87912258 | U25: =IF($C25="","",Simulação!U25) -> - | V25: =IF($C25="","",Simulação!V25) -> 10.35234724 | W25: =IF($C25="","",Simulação!W25) -> - | X25: =IF($C25="","",Simulação!X25) -> 0 | Y25: =IF($C25="","",Simulação!Y25) -> - | Z25: =IF($C25="","",Simulação!Z25) -> 0 | AA25: =IF($C25="","",Simulação!AA25) -> - | AB25: =IF($C25="","",Simulação!AB25) -> 0 | AC25: =IF($C25="","",Simulação!AC25) -> - | AD25: =IF($C25="","",Simulação!AD25) -> 0 | AE25: =IF($C25="","",Simulação!AE25) -> - | AF25: =IF($C25="","",Simulação!AF25) -> 0 | AG25: =IF($C25="","",Simulação!AG25) -> - | AH25: =IF($C25="","",Simulação!AH25) -> 0 | AI25: =IF($C25="","",Simulação!AI25) -> - | AJ25: =IF($C25="","",Simulação!AJ25) -> 0 | AK25: =IF($C25="","",Simulação!AK25) -> - | AL25: =IF($C25="","",Simulação!AL25) -> 0 | AM25: =IF($C25="","",Simulação!AM25) -> - | AN25: =IF($C25="","",Simulação!AN25) -> 0 | AO25: =IF($C25="","",Simulação!AO25) -> - | AP25: =IF($C25="","",Simulação!AP25) -> 0 | AQ25: =IF($C25="","",Simulação!AQ25) -> - | AR25: =IF($C25="","",Simulação!AR25) -> 0
B26: 19 | C26: =IF(Chegadas!J27<=$C$5,Chegadas!J27,"") -> 18.63 | D26: =IF($C26="","",Simulação!D26) -> 10.54417042 | E26: =IF($C26="","",Simulação!E26) -> * | F26: =IF($C26="","",Simulação!F26) -> 20.91280701 | G26: =IF($C26="","",Simulação!G26) -> * | H26: =IF($C26="","",Simulação!H26) -> 20.83529055 | I26: =IF($C26="","",Simulação!I26) -> 18.63 | J26: =IF($C26="","",Simulação!J26) -> 29.17417042 | K26: =IF($C26="","",Simulação!K26) -> - | L26: =IF($C26="","",Simulação!L26) -> 27.34620712 | M26: =IF($C26="","",Simulação!M26) -> - | N26: =IF($C26="","",Simulação!N26) -> 23.91643824 | O26: =IF($C26="","",Simulação!O26) -> - | P26: =IF($C26="","",Simulação!P26) -> 23.35575612 | Q26: =IF($C26="","",Simulação!Q26) -> - | R26: =IF($C26="","",Simulação!R26) -> 23.77749175 | S26: =IF($C26="","",Simulação!S26) -> - | T26: =IF($C26="","",Simulação!T26) -> 23.87912258 | U26: =IF($C26="","",Simulação!U26) -> - | V26: =IF($C26="","",Simulação!V26) -> 10.35234724 | W26: =IF($C26="","",Simulação!W26) -> - | X26: =IF($C26="","",Simulação!X26) -> 0 | Y26: =IF($C26="","",Simulação!Y26) -> - | Z26: =IF($C26="","",Simulação!Z26) -> 0 | AA26: =IF($C26="","",Simulação!AA26) -> - | AB26: =IF($C26="","",Simulação!AB26) -> 0 | AC26: =IF($C26="","",Simulação!AC26) -> - | AD26: =IF($C26="","",Simulação!AD26) -> 0 | AE26: =IF($C26="","",Simulação!AE26) -> - | AF26: =IF($C26="","",Simulação!AF26) -> 0 | AG26: =IF($C26="","",Simulação!AG26) -> - | AH26: =IF($C26="","",Simulação!AH26) -> 0 | AI26: =IF($C26="","",Simulação!AI26) -> - | AJ26: =IF($C26="","",Simulação!AJ26) -> 0 | AK26: =IF($C26="","",Simulação!AK26) -> - | AL26: =IF($C26="","",Simulação!AL26) -> 0 | AM26: =IF($C26="","",Simulação!AM26) -> - | AN26: =IF($C26="","",Simulação!AN26) -> 0 | AO26: =IF($C26="","",Simulação!AO26) -> - | AP26: =IF($C26="","",Simulação!AP26) -> 0 | AQ26: =IF($C26="","",Simulação!AQ26) -> - | AR26: =IF($C26="","",Simulação!AR26) -> 0
B27: 20 | C27: =IF(Chegadas!J28<=$C$5,Chegadas!J28,"") -> 18.8 | D27: =IF($C27="","",Simulação!D27) -> 2.226945874 | E27: =IF($C27="","",Simulação!E27) -> * | F27: =IF($C27="","",Simulação!F27) -> 20.91280701 | G27: =IF($C27="","",Simulação!G27) -> * | H27: =IF($C27="","",Simulação!H27) -> 20.83529055 | I27: =IF($C27="","",Simulação!I27) -> * | J27: =IF($C27="","",Simulação!J27) -> 29.17417042 | K27: =IF($C27="","",Simulação!K27) -> * | L27: =IF($C27="","",Simulação!L27) -> 27.34620712 | M27: =IF($C27="","",Simulação!M27) -> * | N27: =IF($C27="","",Simulação!N27) -> 23.91643824 | O27: =IF($C27="","",Simulação!O27) -> * | P27: =IF($C27="","",Simulação!P27) -> 23.35575612 | Q27: =IF($C27="","",Simulação!Q27) -> * | R27: =IF($C27="","",Simulação!R27) -> 23.77749175 | S27: =IF($C27="","",Simulação!S27) -> * | T27: =IF($C27="","",Simulação!T27) -> 23.87912258 | U27: =IF($C27="","",Simulação!U27) -> 18.8 | V27: =IF($C27="","",Simulação!V27) -> 21.02694587 | W27: =IF($C27="","",Simulação!W27) -> - | X27: =IF($C27="","",Simulação!X27) -> 0 | Y27: =IF($C27="","",Simulação!Y27) -> - | Z27: =IF($C27="","",Simulação!Z27) -> 0 | AA27: =IF($C27="","",Simulação!AA27) -> - | AB27: =IF($C27="","",Simulação!AB27) -> 0 | AC27: =IF($C27="","",Simulação!AC27) -> - | AD27: =IF($C27="","",Simulação!AD27) -> 0 | AE27: =IF($C27="","",Simulação!AE27) -> - | AF27: =IF($C27="","",Simulação!AF27) -> 0 | AG27: =IF($C27="","",Simulação!AG27) -> - | AH27: =IF($C27="","",Simulação!AH27) -> 0 | AI27: =IF($C27="","",Simulação!AI27) -> - | AJ27: =IF($C27="","",Simulação!AJ27) -> 0 | AK27: =IF($C27="","",Simulação!AK27) -> - | AL27: =IF($C27="","",Simulação!AL27) -> 0 | AM27: =IF($C27="","",Simulação!AM27) -> - | AN27: =IF($C27="","",Simulação!AN27) -> 0 | AO27: =IF($C27="","",Simulação!AO27) -> - | AP27: =IF($C27="","",Simulação!AP27) -> 0 | AQ27: =IF($C27="","",Simulação!AQ27) -> - | AR27: =IF($C27="","",Simulação!AR27) -> 0
B28: 21 | C28: =IF(Chegadas!J29<=$C$5,Chegadas!J29,"") -> 19.37 | D28: =IF($C28="","",Simulação!D28) -> 2.176437318 | E28: =IF($C28="","",Simulação!E28) -> * | F28: =IF($C28="","",Simulação!F28) -> 20.91280701 | G28: =IF($C28="","",Simulação!G28) -> * | H28: =IF($C28="","",Simulação!H28) -> 20.83529055 | I28: =IF($C28="","",Simulação!I28) -> * | J28: =IF($C28="","",Simulação!J28) -> 29.17417042 | K28: =IF($C28="","",Simulação!K28) -> * | L28: =IF($C28="","",Simulação!L28) -> 27.34620712 | M28: =IF($C28="","",Simulação!M28) -> * | N28: =IF($C28="","",Simulação!N28) -> 23.91643824 | O28: =IF($C28="","",Simulação!O28) -> * | P28: =IF($C28="","",Simulação!P28) -> 23.35575612 | Q28: =IF($C28="","",Simulação!Q28) -> * | R28: =IF($C28="","",Simulação!R28) -> 23.77749175 | S28: =IF($C28="","",Simulação!S28) -> * | T28: =IF($C28="","",Simulação!T28) -> 23.87912258 | U28: =IF($C28="","",Simulação!U28) -> * | V28: =IF($C28="","",Simulação!V28) -> 21.02694587 | W28: =IF($C28="","",Simulação!W28) -> 19.37 | X28: =IF($C28="","",Simulação!X28) -> 21.54643732 | Y28: =IF($C28="","",Simulação!Y28) -> - | Z28: =IF($C28="","",Simulação!Z28) -> 0 | AA28: =IF($C28="","",Simulação!AA28) -> - | AB28: =IF($C28="","",Simulação!AB28) -> 0 | AC28: =IF($C28="","",Simulação!AC28) -> - | AD28: =IF($C28="","",Simulação!AD28) -> 0 | AE28: =IF($C28="","",Simulação!AE28) -> - | AF28: =IF($C28="","",Simulação!AF28) -> 0 | AG28: =IF($C28="","",Simulação!AG28) -> - | AH28: =IF($C28="","",Simulação!AH28) -> 0 | AI28: =IF($C28="","",Simulação!AI28) -> - | AJ28: =IF($C28="","",Simulação!AJ28) -> 0 | AK28: =IF($C28="","",Simulação!AK28) -> - | AL28: =IF($C28="","",Simulação!AL28) -> 0 | AM28: =IF($C28="","",Simulação!AM28) -> - | AN28: =IF($C28="","",Simulação!AN28) -> 0 | AO28: =IF($C28="","",Simulação!AO28) -> - | AP28: =IF($C28="","",Simulação!AP28) -> 0 | AQ28: =IF($C28="","",Simulação!AQ28) -> - | AR28: =IF($C28="","",Simulação!AR28) -> 0
B29: 22 | C29: =IF(Chegadas!J30<=$C$5,Chegadas!J30,"") -> 19.64 | D29: =IF($C29="","",Simulação!D29) -> 11.88263889 | E29: =IF($C29="","",Simulação!E29) -> * | F29: =IF($C29="","",Simulação!F29) -> 20.91280701 | G29: =IF($C29="","",Simulação!G29) -> * | H29: =IF($C29="","",Simulação!H29) -> 20.83529055 | I29: =IF($C29="","",Simulação!I29) -> * | J29: =IF($C29="","",Simulação!J29) -> 29.17417042 | K29: =IF($C29="","",Simulação!K29) -> * | L29: =IF($C29="","",Simulação!L29) -> 27.34620712 | M29: =IF($C29="","",Simulação!M29) -> * | N29: =IF($C29="","",Simulação!N29) -> 23.91643824 | O29: =IF($C29="","",Simulação!O29) -> * | P29: =IF($C29="","",Simulação!P29) -> 23.35575612 | Q29: =IF($C29="","",Simulação!Q29) -> * | R29: =IF($C29="","",Simulação!R29) -> 23.77749175 | S29: =IF($C29="","",Simulação!S29) -> * | T29: =IF($C29="","",Simulação!T29) -> 23.87912258 | U29: =IF($C29="","",Simulação!U29) -> * | V29: =IF($C29="","",Simulação!V29) -> 21.02694587 | W29: =IF($C29="","",Simulação!W29) -> * | X29: =IF($C29="","",Simulação!X29) -> 21.54643732 | Y29: =IF($C29="","",Simulação!Y29) -> 19.64 | Z29: =IF($C29="","",Simulação!Z29) -> 31.52263889 | AA29: =IF($C29="","",Simulação!AA29) -> - | AB29: =IF($C29="","",Simulação!AB29) -> 0 | AC29: =IF($C29="","",Simulação!AC29) -> - | AD29: =IF($C29="","",Simulação!AD29) -> 0 | AE29: =IF($C29="","",Simulação!AE29) -> - | AF29: =IF($C29="","",Simulação!AF29) -> 0 | AG29: =IF($C29="","",Simulação!AG29) -> - | AH29: =IF($C29="","",Simulação!AH29) -> 0 | AI29: =IF($C29="","",Simulação!AI29) -> - | AJ29: =IF($C29="","",Simulação!AJ29) -> 0 | AK29: =IF($C29="","",Simulação!AK29) -> - | AL29: =IF($C29="","",Simulação!AL29) -> 0 | AM29: =IF($C29="","",Simulação!AM29) -> - | AN29: =IF($C29="","",Simulação!AN29) -> 0 | AO29: =IF($C29="","",Simulação!AO29) -> - | AP29: =IF($C29="","",Simulação!AP29) -> 0 | AQ29: =IF($C29="","",Simulação!AQ29) -> - | AR29: =IF($C29="","",Simulação!AR29) -> 0
B30: 23 | C30: =IF(Chegadas!J31<=$C$5,Chegadas!J31,"") -> 19.67 | D30: =IF($C30="","",Simulação!D30) -> 8.961555014 | E30: =IF($C30="","",Simulação!E30) -> * | F30: =IF($C30="","",Simulação!F30) -> 20.91280701 | G30: =IF($C30="","",Simulação!G30) -> * | H30: =IF($C30="","",Simulação!H30) -> 20.83529055 | I30: =IF($C30="","",Simulação!I30) -> * | J30: =IF($C30="","",Simulação!J30) -> 29.17417042 | K30: =IF($C30="","",Simulação!K30) -> * | L30: =IF($C30="","",Simulação!L30) -> 27.34620712 | M30: =IF($C30="","",Simulação!M30) -> * | N30: =IF($C30="","",Simulação!N30) -> 23.91643824 | O30: =IF($C30="","",Simulação!O30) -> * | P30: =IF($C30="","",Simulação!P30) -> 23.35575612 | Q30: =IF($C30="","",Simulação!Q30) -> * | R30: =IF($C30="","",Simulação!R30) -> 23.77749175 | S30: =IF($C30="","",Simulação!S30) -> * | T30: =IF($C30="","",Simulação!T30) -> 23.87912258 | U30: =IF($C30="","",Simulação!U30) -> * | V30: =IF($C30="","",Simulação!V30) -> 21.02694587 | W30: =IF($C30="","",Simulação!W30) -> * | X30: =IF($C30="","",Simulação!X30) -> 21.54643732 | Y30: =IF($C30="","",Simulação!Y30) -> * | Z30: =IF($C30="","",Simulação!Z30) -> 31.52263889 | AA30: =IF($C30="","",Simulação!AA30) -> 19.67 | AB30: =IF($C30="","",Simulação!AB30) -> 28.63155501 | AC30: =IF($C30="","",Simulação!AC30) -> - | AD30: =IF($C30="","",Simulação!AD30) -> 0 | AE30: =IF($C30="","",Simulação!AE30) -> - | AF30: =IF($C30="","",Simulação!AF30) -> 0 | AG30: =IF($C30="","",Simulação!AG30) -> - | AH30: =IF($C30="","",Simulação!AH30) -> 0 | AI30: =IF($C30="","",Simulação!AI30) -> - | AJ30: =IF($C30="","",Simulação!AJ30) -> 0 | AK30: =IF($C30="","",Simulação!AK30) -> - | AL30: =IF($C30="","",Simulação!AL30) -> 0 | AM30: =IF($C30="","",Simulação!AM30) -> - | AN30: =IF($C30="","",Simulação!AN30) -> 0 | AO30: =IF($C30="","",Simulação!AO30) -> - | AP30: =IF($C30="","",Simulação!AP30) -> 0 | AQ30: =IF($C30="","",Simulação!AQ30) -> - | AR30: =IF($C30="","",Simulação!AR30) -> 0
B31: 24 | C31: =IF(Chegadas!J32<=$C$5,Chegadas!J32,"") -> 20.08 | D31: =IF($C31="","",Simulação!D31) -> 8.546474228 | E31: =IF($C31="","",Simulação!E31) -> * | F31: =IF($C31="","",Simulação!F31) -> 20.91280701 | G31: =IF($C31="","",Simulação!G31) -> * | H31: =IF($C31="","",Simulação!H31) -> 20.83529055 | I31: =IF($C31="","",Simulação!I31) -> * | J31: =IF($C31="","",Simulação!J31) -> 29.17417042 | K31: =IF($C31="","",Simulação!K31) -> * | L31: =IF($C31="","",Simulação!L31) -> 27.34620712 | M31: =IF($C31="","",Simulação!M31) -> * | N31: =IF($C31="","",Simulação!N31) -> 23.91643824 | O31: =IF($C31="","",Simulação!O31) -> * | P31: =IF($C31="","",Simulação!P31) -> 23.35575612 | Q31: =IF($C31="","",Simulação!Q31) -> * | R31: =IF($C31="","",Simulação!R31) -> 23.77749175 | S31: =IF($C31="","",Simulação!S31) -> * | T31: =IF($C31="","",Simulação!T31) -> 23.87912258 | U31: =IF($C31="","",Simulação!U31) -> * | V31: =IF($C31="","",Simulação!V31) -> 21.02694587 | W31: =IF($C31="","",Simulação!W31) -> * | X31: =IF($C31="","",Simulação!X31) -> 21.54643732 | Y31: =IF($C31="","",Simulação!Y31) -> * | Z31: =IF($C31="","",Simulação!Z31) -> 31.52263889 | AA31: =IF($C31="","",Simulação!AA31) -> * | AB31: =IF($C31="","",Simulação!AB31) -> 28.63155501 | AC31: =IF($C31="","",Simulação!AC31) -> 20.08 | AD31: =IF($C31="","",Simulação!AD31) -> 28.62647423 | AE31: =IF($C31="","",Simulação!AE31) -> - | AF31: =IF($C31="","",Simulação!AF31) -> 0 | AG31: =IF($C31="","",Simulação!AG31) -> - | AH31: =IF($C31="","",Simulação!AH31) -> 0 | AI31: =IF($C31="","",Simulação!AI31) -> - | AJ31: =IF($C31="","",Simulação!AJ31) -> 0 | AK31: =IF($C31="","",Simulação!AK31) -> - | AL31: =IF($C31="","",Simulação!AL31) -> 0 | AM31: =IF($C31="","",Simulação!AM31) -> - | AN31: =IF($C31="","",Simulação!AN31) -> 0 | AO31: =IF($C31="","",Simulação!AO31) -> - | AP31: =IF($C31="","",Simulação!AP31) -> 0 | AQ31: =IF($C31="","",Simulação!AQ31) -> - | AR31: =IF($C31="","",Simulação!AR31) -> 0
B32: 25 | C32: =IF(Chegadas!J33<=$C$5,Chegadas!J33,"") -> 20.45 | D32: =IF($C32="","",Simulação!D32) -> 3.240939903 | E32: =IF($C32="","",Simulação!E32) -> * | F32: =IF($C32="","",Simulação!F32) -> 20.91280701 | G32: =IF($C32="","",Simulação!G32) -> * | H32: =IF($C32="","",Simulação!H32) -> 20.83529055 | I32: =IF($C32="","",Simulação!I32) -> * | J32: =IF($C32="","",Simulação!J32) -> 29.17417042 | K32: =IF($C32="","",Simulação!K32) -> * | L32: =IF($C32="","",Simulação!L32) -> 27.34620712 | M32: =IF($C32="","",Simulação!M32) -> * | N32: =IF($C32="","",Simulação!N32) -> 23.91643824 | O32: =IF($C32="","",Simulação!O32) -> * | P32: =IF($C32="","",Simulação!P32) -> 23.35575612 | Q32: =IF($C32="","",Simulação!Q32) -> * | R32: =IF($C32="","",Simulação!R32) -> 23.77749175 | S32: =IF($C32="","",Simulação!S32) -> * | T32: =IF($C32="","",Simulação!T32) -> 23.87912258 | U32: =IF($C32="","",Simulação!U32) -> * | V32: =IF($C32="","",Simulação!V32) -> 21.02694587 | W32: =IF($C32="","",Simulação!W32) -> * | X32: =IF($C32="","",Simulação!X32) -> 21.54643732 | Y32: =IF($C32="","",Simulação!Y32) -> * | Z32: =IF($C32="","",Simulação!Z32) -> 31.52263889 | AA32: =IF($C32="","",Simulação!AA32) -> * | AB32: =IF($C32="","",Simulação!AB32) -> 28.63155501 | AC32: =IF($C32="","",Simulação!AC32) -> * | AD32: =IF($C32="","",Simulação!AD32) -> 28.62647423 | AE32: =IF($C32="","",Simulação!AE32) -> 20.45 | AF32: =IF($C32="","",Simulação!AF32) -> 23.6909399 | AG32: =IF($C32="","",Simulação!AG32) -> - | AH32: =IF($C32="","",Simulação!AH32) -> 0 | AI32: =IF($C32="","",Simulação!AI32) -> - | AJ32: =IF($C32="","",Simulação!AJ32) -> 0 | AK32: =IF($C32="","",Simulação!AK32) -> - | AL32: =IF($C32="","",Simulação!AL32) -> 0 | AM32: =IF($C32="","",Simulação!AM32) -> - | AN32: =IF($C32="","",Simulação!AN32) -> 0 | AO32: =IF($C32="","",Simulação!AO32) -> - | AP32: =IF($C32="","",Simulação!AP32) -> 0 | AQ32: =IF($C32="","",Simulação!AQ32) -> - | AR32: =IF($C32="","",Simulação!AR32) -> 0
B33: 26 | C33: =IF(Chegadas!J34<=$C$5,Chegadas!J34,"") -> 21.55 | D33: =IF($C33="","",Simulação!D33) -> 10.47146866 | E33: =IF($C33="","",Simulação!E33) -> 21.55 | F33: =IF($C33="","",Simulação!F33) -> 32.02146866 | G33: =IF($C33="","",Simulação!G33) -> - | H33: =IF($C33="","",Simulação!H33) -> 20.83529055 | I33: =IF($C33="","",Simulação!I33) -> - | J33: =IF($C33="","",Simulação!J33) -> 29.17417042 | K33: =IF($C33="","",Simulação!K33) -> - | L33: =IF($C33="","",Simulação!L33) -> 27.34620712 | M33: =IF($C33="","",Simulação!M33) -> - | N33: =IF($C33="","",Simulação!N33) -> 23.91643824 | O33: =IF($C33="","",Simulação!O33) -> - | P33: =IF($C33="","",Simulação!P33) -> 23.35575612 | Q33: =IF($C33="","",Simulação!Q33) -> - | R33: =IF($C33="","",Simulação!R33) -> 23.77749175 | S33: =IF($C33="","",Simulação!S33) -> - | T33: =IF($C33="","",Simulação!T33) -> 23.87912258 | U33: =IF($C33="","",Simulação!U33) -> - | V33: =IF($C33="","",Simulação!V33) -> 21.02694587 | W33: =IF($C33="","",Simulação!W33) -> - | X33: =IF($C33="","",Simulação!X33) -> 21.54643732 | Y33: =IF($C33="","",Simulação!Y33) -> - | Z33: =IF($C33="","",Simulação!Z33) -> 31.52263889 | AA33: =IF($C33="","",Simulação!AA33) -> - | AB33: =IF($C33="","",Simulação!AB33) -> 28.63155501 | AC33: =IF($C33="","",Simulação!AC33) -> - | AD33: =IF($C33="","",Simulação!AD33) -> 28.62647423 | AE33: =IF($C33="","",Simulação!AE33) -> - | AF33: =IF($C33="","",Simulação!AF33) -> 23.6909399 | AG33: =IF($C33="","",Simulação!AG33) -> - | AH33: =IF($C33="","",Simulação!AH33) -> 0 | AI33: =IF($C33="","",Simulação!AI33) -> - | AJ33: =IF($C33="","",Simulação!AJ33) -> 0 | AK33: =IF($C33="","",Simulação!AK33) -> - | AL33: =IF($C33="","",Simulação!AL33) -> 0 | AM33: =IF($C33="","",Simulação!AM33) -> - | AN33: =IF($C33="","",Simulação!AN33) -> 0 | AO33: =IF($C33="","",Simulação!AO33) -> - | AP33: =IF($C33="","",Simulação!AP33) -> 0 | AQ33: =IF($C33="","",Simulação!AQ33) -> - | AR33: =IF($C33="","",Simulação!AR33) -> 0
B34: 27 | C34: =IF(Chegadas!J35<=$C$5,Chegadas!J35,"") -> 22.05 | D34: =IF($C34="","",Simulação!D34) -> 8.455489171 | E34: =IF($C34="","",Simulação!E34) -> * | F34: =IF($C34="","",Simulação!F34) -> 32.02146866 | G34: =IF($C34="","",Simulação!G34) -> 22.05 | H34: =IF($C34="","",Simulação!H34) -> 30.50548917 | I34: =IF($C34="","",Simulação!I34) -> - | J34: =IF($C34="","",Simulação!J34) -> 29.17417042 | K34: =IF($C34="","",Simulação!K34) -> - | L34: =IF($C34="","",Simulação!L34) -> 27.34620712 | M34: =IF($C34="","",Simulação!M34) -> - | N34: =IF($C34="","",Simulação!N34) -> 23.91643824 | O34: =IF($C34="","",Simulação!O34) -> - | P34: =IF($C34="","",Simulação!P34) -> 23.35575612 | Q34: =IF($C34="","",Simulação!Q34) -> - | R34: =IF($C34="","",Simulação!R34) -> 23.77749175 | S34: =IF($C34="","",Simulação!S34) -> - | T34: =IF($C34="","",Simulação!T34) -> 23.87912258 | U34: =IF($C34="","",Simulação!U34) -> - | V34: =IF($C34="","",Simulação!V34) -> 21.02694587 | W34: =IF($C34="","",Simulação!W34) -> - | X34: =IF($C34="","",Simulação!X34) -> 21.54643732 | Y34: =IF($C34="","",Simulação!Y34) -> - | Z34: =IF($C34="","",Simulação!Z34) -> 31.52263889 | AA34: =IF($C34="","",Simulação!AA34) -> - | AB34: =IF($C34="","",Simulação!AB34) -> 28.63155501 | AC34: =IF($C34="","",Simulação!AC34) -> - | AD34: =IF($C34="","",Simulação!AD34) -> 28.62647423 | AE34: =IF($C34="","",Simulação!AE34) -> - | AF34: =IF($C34="","",Simulação!AF34) -> 23.6909399 | AG34: =IF($C34="","",Simulação!AG34) -> - | AH34: =IF($C34="","",Simulação!AH34) -> 0 | AI34: =IF($C34="","",Simulação!AI34) -> - | AJ34: =IF($C34="","",Simulação!AJ34) -> 0 | AK34: =IF($C34="","",Simulação!AK34) -> - | AL34: =IF($C34="","",Simulação!AL34) -> 0 | AM34: =IF($C34="","",Simulação!AM34) -> - | AN34: =IF($C34="","",Simulação!AN34) -> 0 | AO34: =IF($C34="","",Simulação!AO34) -> - | AP34: =IF($C34="","",Simulação!AP34) -> 0 | AQ34: =IF($C34="","",Simulação!AQ34) -> - | AR34: =IF($C34="","",Simulação!AR34) -> 0
B35: 28 | C35: =IF(Chegadas!J36<=$C$5,Chegadas!J36,"") -> 22.49 | D35: =IF($C35="","",Simulação!D35) -> 5.715078498 | E35: =IF($C35="","",Simulação!E35) -> * | F35: =IF($C35="","",Simulação!F35) -> 32.02146866 | G35: =IF($C35="","",Simulação!G35) -> * | H35: =IF($C35="","",Simulação!H35) -> 30.50548917 | I35: =IF($C35="","",Simulação!I35) -> * | J35: =IF($C35="","",Simulação!J35) -> 29.17417042 | K35: =IF($C35="","",Simulação!K35) -> * | L35: =IF($C35="","",Simulação!L35) -> 27.34620712 | M35: =IF($C35="","",Simulação!M35) -> * | N35: =IF($C35="","",Simulação!N35) -> 23.91643824 | O35: =IF($C35="","",Simulação!O35) -> * | P35: =IF($C35="","",Simulação!P35) -> 23.35575612 | Q35: =IF($C35="","",Simulação!Q35) -> * | R35: =IF($C35="","",Simulação!R35) -> 23.77749175 | S35: =IF($C35="","",Simulação!S35) -> * | T35: =IF($C35="","",Simulação!T35) -> 23.87912258 | U35: =IF($C35="","",Simulação!U35) -> 22.49 | V35: =IF($C35="","",Simulação!V35) -> 28.2050785 | W35: =IF($C35="","",Simulação!W35) -> - | X35: =IF($C35="","",Simulação!X35) -> 21.54643732 | Y35: =IF($C35="","",Simulação!Y35) -> - | Z35: =IF($C35="","",Simulação!Z35) -> 31.52263889 | AA35: =IF($C35="","",Simulação!AA35) -> - | AB35: =IF($C35="","",Simulação!AB35) -> 28.63155501 | AC35: =IF($C35="","",Simulação!AC35) -> - | AD35: =IF($C35="","",Simulação!AD35) -> 28.62647423 | AE35: =IF($C35="","",Simulação!AE35) -> - | AF35: =IF($C35="","",Simulação!AF35) -> 23.6909399 | AG35: =IF($C35="","",Simulação!AG35) -> - | AH35: =IF($C35="","",Simulação!AH35) -> 0 | AI35: =IF($C35="","",Simulação!AI35) -> - | AJ35: =IF($C35="","",Simulação!AJ35) -> 0 | AK35: =IF($C35="","",Simulação!AK35) -> - | AL35: =IF($C35="","",Simulação!AL35) -> 0 | AM35: =IF($C35="","",Simulação!AM35) -> - | AN35: =IF($C35="","",Simulação!AN35) -> 0 | AO35: =IF($C35="","",Simulação!AO35) -> - | AP35: =IF($C35="","",Simulação!AP35) -> 0 | AQ35: =IF($C35="","",Simulação!AQ35) -> - | AR35: =IF($C35="","",Simulação!AR35) -> 0
B36: 29 | C36: =IF(Chegadas!J37<=$C$5,Chegadas!J37,"") -> 22.57 | D36: =IF($C36="","",Simulação!D36) -> 5.05525574 | E36: =IF($C36="","",Simulação!E36) -> * | F36: =IF($C36="","",Simulação!F36) -> 32.02146866 | G36: =IF($C36="","",Simulação!G36) -> * | H36: =IF($C36="","",Simulação!H36) -> 30.50548917 | I36: =IF($C36="","",Simulação!I36) -> * | J36: =IF($C36="","",Simulação!J36) -> 29.17417042 | K36: =IF($C36="","",Simulação!K36) -> * | L36: =IF($C36="","",Simulação!L36) -> 27.34620712 | M36: =IF($C36="","",Simulação!M36) -> * | N36: =IF($C36="","",Simulação!N36) -> 23.91643824 | O36: =IF($C36="","",Simulação!O36) -> * | P36: =IF($C36="","",Simulação!P36) -> 23.35575612 | Q36: =IF($C36="","",Simulação!Q36) -> * | R36: =IF($C36="","",Simulação!R36) -> 23.77749175 | S36: =IF($C36="","",Simulação!S36) -> * | T36: =IF($C36="","",Simulação!T36) -> 23.87912258 | U36: =IF($C36="","",Simulação!U36) -> * | V36: =IF($C36="","",Simulação!V36) -> 28.2050785 | W36: =IF($C36="","",Simulação!W36) -> 22.57 | X36: =IF($C36="","",Simulação!X36) -> 27.62525574 | Y36: =IF($C36="","",Simulação!Y36) -> - | Z36: =IF($C36="","",Simulação!Z36) -> 31.52263889 | AA36: =IF($C36="","",Simulação!AA36) -> - | AB36: =IF($C36="","",Simulação!AB36) -> 28.63155501 | AC36: =IF($C36="","",Simulação!AC36) -> - | AD36: =IF($C36="","",Simulação!AD36) -> 28.62647423 | AE36: =IF($C36="","",Simulação!AE36) -> - | AF36: =IF($C36="","",Simulação!AF36) -> 23.6909399 | AG36: =IF($C36="","",Simulação!AG36) -> - | AH36: =IF($C36="","",Simulação!AH36) -> 0 | AI36: =IF($C36="","",Simulação!AI36) -> - | AJ36: =IF($C36="","",Simulação!AJ36) -> 0 | AK36: =IF($C36="","",Simulação!AK36) -> - | AL36: =IF($C36="","",Simulação!AL36) -> 0 | AM36: =IF($C36="","",Simulação!AM36) -> - | AN36: =IF($C36="","",Simulação!AN36) -> 0 | AO36: =IF($C36="","",Simulação!AO36) -> - | AP36: =IF($C36="","",Simulação!AP36) -> 0 | AQ36: =IF($C36="","",Simulação!AQ36) -> - | AR36: =IF($C36="","",Simulação!AR36) -> 0
B37: 30 | C37: =IF(Chegadas!J38<=$C$5,Chegadas!J38,"") -> 23.02 | D37: =IF($C37="","",Simulação!D37) -> 6.216023829 | E37: =IF($C37="","",Simulação!E37) -> * | F37: =IF($C37="","",Simulação!F37) -> 32.02146866 | G37: =IF($C37="","",Simulação!G37) -> * | H37: =IF($C37="","",Simulação!H37) -> 30.50548917 | I37: =IF($C37="","",Simulação!I37) -> * | J37: =IF($C37="","",Simulação!J37) -> 29.17417042 | K37: =IF($C37="","",Simulação!K37) -> * | L37: =IF($C37="","",Simulação!L37) -> 27.34620712 | M37: =IF($C37="","",Simulação!M37) -> * | N37: =IF($C37="","",Simulação!N37) -> 23.91643824 | O37: =IF($C37="","",Simulação!O37) -> * | P37: =IF($C37="","",Simulação!P37) -> 23.35575612 | Q37: =IF($C37="","",Simulação!Q37) -> * | R37: =IF($C37="","",Simulação!R37) -> 23.77749175 | S37: =IF($C37="","",Simulação!S37) -> * | T37: =IF($C37="","",Simulação!T37) -> 23.87912258 | U37: =IF($C37="","",Simulação!U37) -> * | V37: =IF($C37="","",Simulação!V37) -> 28.2050785 | W37: =IF($C37="","",Simulação!W37) -> * | X37: =IF($C37="","",Simulação!X37) -> 27.62525574 | Y37: =IF($C37="","",Simulação!Y37) -> * | Z37: =IF($C37="","",Simulação!Z37) -> 31.52263889 | AA37: =IF($C37="","",Simulação!AA37) -> * | AB37: =IF($C37="","",Simulação!AB37) -> 28.63155501 | AC37: =IF($C37="","",Simulação!AC37) -> * | AD37: =IF($C37="","",Simulação!AD37) -> 28.62647423 | AE37: =IF($C37="","",Simulação!AE37) -> * | AF37: =IF($C37="","",Simulação!AF37) -> 23.6909399 | AG37: =IF($C37="","",Simulação!AG37) -> 23.02 | AH37: =IF($C37="","",Simulação!AH37) -> 29.23602383 | AI37: =IF($C37="","",Simulação!AI37) -> - | AJ37: =IF($C37="","",Simulação!AJ37) -> 0 | AK37: =IF($C37="","",Simulação!AK37) -> - | AL37: =IF($C37="","",Simulação!AL37) -> 0 | AM37: =IF($C37="","",Simulação!AM37) -> - | AN37: =IF($C37="","",Simulação!AN37) -> 0 | AO37: =IF($C37="","",Simulação!AO37) -> - | AP37: =IF($C37="","",Simulação!AP37) -> 0 | AQ37: =IF($C37="","",Simulação!AQ37) -> - | AR37: =IF($C37="","",Simulação!AR37) -> 0
B38: 31 | C38: =IF(Chegadas!J39<=$C$5,Chegadas!J39,"") -> 23.13 | D38: =IF($C38="","",Simulação!D38) -> 9.915125394 | E38: =IF($C38="","",Simulação!E38) -> * | F38: =IF($C38="","",Simulação!F38) -> 32.02146866 | G38: =IF($C38="","",Simulação!G38) -> * | H38: =IF($C38="","",Simulação!H38) -> 30.50548917 | I38: =IF($C38="","",Simulação!I38) -> * | J38: =IF($C38="","",Simulação!J38) -> 29.17417042 | K38: =IF($C38="","",Simulação!K38) -> * | L38: =IF($C38="","",Simulação!L38) -> 27.34620712 | M38: =IF($C38="","",Simulação!M38) -> * | N38: =IF($C38="","",Simulação!N38) -> 23.91643824 | O38: =IF($C38="","",Simulação!O38) -> * | P38: =IF($C38="","",Simulação!P38) -> 23.35575612 | Q38: =IF($C38="","",Simulação!Q38) -> * | R38: =IF($C38="","",Simulação!R38) -> 23.77749175 | S38: =IF($C38="","",Simulação!S38) -> * | T38: =IF($C38="","",Simulação!T38) -> 23.87912258 | U38: =IF($C38="","",Simulação!U38) -> * | V38: =IF($C38="","",Simulação!V38) -> 28.2050785 | W38: =IF($C38="","",Simulação!W38) -> * | X38: =IF($C38="","",Simulação!X38) -> 27.62525574 | Y38: =IF($C38="","",Simulação!Y38) -> * | Z38: =IF($C38="","",Simulação!Z38) -> 31.52263889 | AA38: =IF($C38="","",Simulação!AA38) -> * | AB38: =IF($C38="","",Simulação!AB38) -> 28.63155501 | AC38: =IF($C38="","",Simulação!AC38) -> * | AD38: =IF($C38="","",Simulação!AD38) -> 28.62647423 | AE38: =IF($C38="","",Simulação!AE38) -> * | AF38: =IF($C38="","",Simulação!AF38) -> 23.6909399 | AG38: =IF($C38="","",Simulação!AG38) -> * | AH38: =IF($C38="","",Simulação!AH38) -> 29.23602383 | AI38: =IF($C38="","",Simulação!AI38) -> 23.13 | AJ38: =IF($C38="","",Simulação!AJ38) -> 33.04512539 | AK38: =IF($C38="","",Simulação!AK38) -> - | AL38: =IF($C38="","",Simulação!AL38) -> 0 | AM38: =IF($C38="","",Simulação!AM38) -> - | AN38: =IF($C38="","",Simulação!AN38) -> 0 | AO38: =IF($C38="","",Simulação!AO38) -> - | AP38: =IF($C38="","",Simulação!AP38) -> 0 | AQ38: =IF($C38="","",Simulação!AQ38) -> - | AR38: =IF($C38="","",Simulação!AR38) -> 0
B39: 32 | C39: =IF(Chegadas!J40<=$C$5,Chegadas!J40,"") -> 23.45 | D39: =IF($C39="","",Simulação!D39) -> 1.234712966 | E39: =IF($C39="","",Simulação!E39) -> * | F39: =IF($C39="","",Simulação!F39) -> 32.02146866 | G39: =IF($C39="","",Simulação!G39) -> * | H39: =IF($C39="","",Simulação!H39) -> 30.50548917 | I39: =IF($C39="","",Simulação!I39) -> * | J39: =IF($C39="","",Simulação!J39) -> 29.17417042 | K39: =IF($C39="","",Simulação!K39) -> * | L39: =IF($C39="","",Simulação!L39) -> 27.34620712 | M39: =IF($C39="","",Simulação!M39) -> * | N39: =IF($C39="","",Simulação!N39) -> 23.91643824 | O39: =IF($C39="","",Simulação!O39) -> 23.45 | P39: =IF($C39="","",Simulação!P39) -> 24.68471297 | Q39: =IF($C39="","",Simulação!Q39) -> - | R39: =IF($C39="","",Simulação!R39) -> 23.77749175 | S39: =IF($C39="","",Simulação!S39) -> - | T39: =IF($C39="","",Simulação!T39) -> 23.87912258 | U39: =IF($C39="","",Simulação!U39) -> - | V39: =IF($C39="","",Simulação!V39) -> 28.2050785 | W39: =IF($C39="","",Simulação!W39) -> - | X39: =IF($C39="","",Simulação!X39) -> 27.62525574 | Y39: =IF($C39="","",Simulação!Y39) -> - | Z39: =IF($C39="","",Simulação!Z39) -> 31.52263889 | AA39: =IF($C39="","",Simulação!AA39) -> - | AB39: =IF($C39="","",Simulação!AB39) -> 28.63155501 | AC39: =IF($C39="","",Simulação!AC39) -> - | AD39: =IF($C39="","",Simulação!AD39) -> 28.62647423 | AE39: =IF($C39="","",Simulação!AE39) -> - | AF39: =IF($C39="","",Simulação!AF39) -> 23.6909399 | AG39: =IF($C39="","",Simulação!AG39) -> - | AH39: =IF($C39="","",Simulação!AH39) -> 29.23602383 | AI39: =IF($C39="","",Simulação!AI39) -> - | AJ39: =IF($C39="","",Simulação!AJ39) -> 33.04512539 | AK39: =IF($C39="","",Simulação!AK39) -> - | AL39: =IF($C39="","",Simulação!AL39) -> 0 | AM39: =IF($C39="","",Simulação!AM39) -> - | AN39: =IF($C39="","",Simulação!AN39) -> 0 | AO39: =IF($C39="","",Simulação!AO39) -> - | AP39: =IF($C39="","",Simulação!AP39) -> 0 | AQ39: =IF($C39="","",Simulação!AQ39) -> - | AR39: =IF($C39="","",Simulação!AR39) -> 0
B40: 33 | C40: =IF(Chegadas!J41<=$C$5,Chegadas!J41,"") -> 23.45 | D40: =IF($C40="","",Simulação!D40) -> 8.577218816 | E40: =IF($C40="","",Simulação!E40) -> * | F40: =IF($C40="","",Simulação!F40) -> 32.02146866 | G40: =IF($C40="","",Simulação!G40) -> * | H40: =IF($C40="","",Simulação!H40) -> 30.50548917 | I40: =IF($C40="","",Simulação!I40) -> * | J40: =IF($C40="","",Simulação!J40) -> 29.17417042 | K40: =IF($C40="","",Simulação!K40) -> * | L40: =IF($C40="","",Simulação!L40) -> 27.34620712 | M40: =IF($C40="","",Simulação!M40) -> * | N40: =IF($C40="","",Simulação!N40) -> 23.91643824 | O40: =IF($C40="","",Simulação!O40) -> * | P40: =IF($C40="","",Simulação!P40) -> 24.68471297 | Q40: =IF($C40="","",Simulação!Q40) -> * | R40: =IF($C40="","",Simulação!R40) -> 23.77749175 | S40: =IF($C40="","",Simulação!S40) -> * | T40: =IF($C40="","",Simulação!T40) -> 23.87912258 | U40: =IF($C40="","",Simulação!U40) -> * | V40: =IF($C40="","",Simulação!V40) -> 28.2050785 | W40: =IF($C40="","",Simulação!W40) -> * | X40: =IF($C40="","",Simulação!X40) -> 27.62525574 | Y40: =IF($C40="","",Simulação!Y40) -> * | Z40: =IF($C40="","",Simulação!Z40) -> 31.52263889 | AA40: =IF($C40="","",Simulação!AA40) -> * | AB40: =IF($C40="","",Simulação!AB40) -> 28.63155501 | AC40: =IF($C40="","",Simulação!AC40) -> * | AD40: =IF($C40="","",Simulação!AD40) -> 28.62647423 | AE40: =IF($C40="","",Simulação!AE40) -> * | AF40: =IF($C40="","",Simulação!AF40) -> 23.6909399 | AG40: =IF($C40="","",Simulação!AG40) -> * | AH40: =IF($C40="","",Simulação!AH40) -> 29.23602383 | AI40: =IF($C40="","",Simulação!AI40) -> * | AJ40: =IF($C40="","",Simulação!AJ40) -> 33.04512539 | AK40: =IF($C40="","",Simulação!AK40) -> 23.45 | AL40: =IF($C40="","",Simulação!AL40) -> 32.02721882 | AM40: =IF($C40="","",Simulação!AM40) -> - | AN40: =IF($C40="","",Simulação!AN40) -> 0 | AO40: =IF($C40="","",Simulação!AO40) -> - | AP40: =IF($C40="","",Simulação!AP40) -> 0 | AQ40: =IF($C40="","",Simulação!AQ40) -> - | AR40: =IF($C40="","",Simulação!AR40) -> 0
B41: 34 | C41: =IF(Chegadas!J42<=$C$5,Chegadas!J42,"") -> 23.87 | D41: =IF($C41="","",Simulação!D41) -> 7.513881504 | E41: =IF($C41="","",Simulação!E41) -> * | F41: =IF($C41="","",Simulação!F41) -> 32.02146866 | G41: =IF($C41="","",Simulação!G41) -> * | H41: =IF($C41="","",Simulação!H41) -> 30.50548917 | I41: =IF($C41="","",Simulação!I41) -> * | J41: =IF($C41="","",Simulação!J41) -> 29.17417042 | K41: =IF($C41="","",Simulação!K41) -> * | L41: =IF($C41="","",Simulação!L41) -> 27.34620712 | M41: =IF($C41="","",Simulação!M41) -> * | N41: =IF($C41="","",Simulação!N41) -> 23.91643824 | O41: =IF($C41="","",Simulação!O41) -> * | P41: =IF($C41="","",Simulação!P41) -> 24.68471297 | Q41: =IF($C41="","",Simulação!Q41) -> 23.87 | R41: =IF($C41="","",Simulação!R41) -> 31.3838815 | S41: =IF($C41="","",Simulação!S41) -> - | T41: =IF($C41="","",Simulação!T41) -> 23.87912258 | U41: =IF($C41="","",Simulação!U41) -> - | V41: =IF($C41="","",Simulação!V41) -> 28.2050785 | W41: =IF($C41="","",Simulação!W41) -> - | X41: =IF($C41="","",Simulação!X41) -> 27.62525574 | Y41: =IF($C41="","",Simulação!Y41) -> - | Z41: =IF($C41="","",Simulação!Z41) -> 31.52263889 | AA41: =IF($C41="","",Simulação!AA41) -> - | AB41: =IF($C41="","",Simulação!AB41) -> 28.63155501 | AC41: =IF($C41="","",Simulação!AC41) -> - | AD41: =IF($C41="","",Simulação!AD41) -> 28.62647423 | AE41: =IF($C41="","",Simulação!AE41) -> - | AF41: =IF($C41="","",Simulação!AF41) -> 23.6909399 | AG41: =IF($C41="","",Simulação!AG41) -> - | AH41: =IF($C41="","",Simulação!AH41) -> 29.23602383 | AI41: =IF($C41="","",Simulação!AI41) -> - | AJ41: =IF($C41="","",Simulação!AJ41) -> 33.04512539 | AK41: =IF($C41="","",Simulação!AK41) -> - | AL41: =IF($C41="","",Simulação!AL41) -> 32.02721882 | AM41: =IF($C41="","",Simulação!AM41) -> - | AN41: =IF($C41="","",Simulação!AN41) -> 0 | AO41: =IF($C41="","",Simulação!AO41) -> - | AP41: =IF($C41="","",Simulação!AP41) -> 0 | AQ41: =IF($C41="","",Simulação!AQ41) -> - | AR41: =IF($C41="","",Simulação!AR41) -> 0
B42: 35 | C42: =IF(Chegadas!J43<=$C$5,Chegadas!J43,"") -> 24.08 | D42: =IF($C42="","",Simulação!D42) -> 8.323120856 | E42: =IF($C42="","",Simulação!E42) -> * | F42: =IF($C42="","",Simulação!F42) -> 32.02146866 | G42: =IF($C42="","",Simulação!G42) -> * | H42: =IF($C42="","",Simulação!H42) -> 30.50548917 | I42: =IF($C42="","",Simulação!I42) -> * | J42: =IF($C42="","",Simulação!J42) -> 29.17417042 | K42: =IF($C42="","",Simulação!K42) -> * | L42: =IF($C42="","",Simulação!L42) -> 27.34620712 | M42: =IF($C42="","",Simulação!M42) -> 24.08 | N42: =IF($C42="","",Simulação!N42) -> 32.40312086 | O42: =IF($C42="","",Simulação!O42) -> - | P42: =IF($C42="","",Simulação!P42) -> 24.68471297 | Q42: =IF($C42="","",Simulação!Q42) -> - | R42: =IF($C42="","",Simulação!R42) -> 31.3838815 | S42: =IF($C42="","",Simulação!S42) -> - | T42: =IF($C42="","",Simulação!T42) -> 23.87912258 | U42: =IF($C42="","",Simulação!U42) -> - | V42: =IF($C42="","",Simulação!V42) -> 28.2050785 | W42: =IF($C42="","",Simulação!W42) -> - | X42: =IF($C42="","",Simulação!X42) -> 27.62525574 | Y42: =IF($C42="","",Simulação!Y42) -> - | Z42: =IF($C42="","",Simulação!Z42) -> 31.52263889 | AA42: =IF($C42="","",Simulação!AA42) -> - | AB42: =IF($C42="","",Simulação!AB42) -> 28.63155501 | AC42: =IF($C42="","",Simulação!AC42) -> - | AD42: =IF($C42="","",Simulação!AD42) -> 28.62647423 | AE42: =IF($C42="","",Simulação!AE42) -> - | AF42: =IF($C42="","",Simulação!AF42) -> 23.6909399 | AG42: =IF($C42="","",Simulação!AG42) -> - | AH42: =IF($C42="","",Simulação!AH42) -> 29.23602383 | AI42: =IF($C42="","",Simulação!AI42) -> - | AJ42: =IF($C42="","",Simulação!AJ42) -> 33.04512539 | AK42: =IF($C42="","",Simulação!AK42) -> - | AL42: =IF($C42="","",Simulação!AL42) -> 32.02721882 | AM42: =IF($C42="","",Simulação!AM42) -> - | AN42: =IF($C42="","",Simulação!AN42) -> 0 | AO42: =IF($C42="","",Simulação!AO42) -> - | AP42: =IF($C42="","",Simulação!AP42) -> 0 | AQ42: =IF($C42="","",Simulação!AQ42) -> - | AR42: =IF($C42="","",Simulação!AR42) -> 0
B43: 36 | C43: =IF(Chegadas!J44<=$C$5,Chegadas!J44,"") -> 25.1 | D43: =IF($C43="","",Simulação!D43) -> 1.564388549 | E43: =IF($C43="","",Simulação!E43) -> * | F43: =IF($C43="","",Simulação!F43) -> 32.02146866 | G43: =IF($C43="","",Simulação!G43) -> * | H43: =IF($C43="","",Simulação!H43) -> 30.50548917 | I43: =IF($C43="","",Simulação!I43) -> * | J43: =IF($C43="","",Simulação!J43) -> 29.17417042 | K43: =IF($C43="","",Simulação!K43) -> * | L43: =IF($C43="","",Simulação!L43) -> 27.34620712 | M43: =IF($C43="","",Simulação!M43) -> * | N43: =IF($C43="","",Simulação!N43) -> 32.40312086 | O43: =IF($C43="","",Simulação!O43) -> 25.1 | P43: =IF($C43="","",Simulação!P43) -> 26.66438855 | Q43: =IF($C43="","",Simulação!Q43) -> - | R43: =IF($C43="","",Simulação!R43) -> 31.3838815 | S43: =IF($C43="","",Simulação!S43) -> - | T43: =IF($C43="","",Simulação!T43) -> 23.87912258 | U43: =IF($C43="","",Simulação!U43) -> - | V43: =IF($C43="","",Simulação!V43) -> 28.2050785 | W43: =IF($C43="","",Simulação!W43) -> - | X43: =IF($C43="","",Simulação!X43) -> 27.62525574 | Y43: =IF($C43="","",Simulação!Y43) -> - | Z43: =IF($C43="","",Simulação!Z43) -> 31.52263889 | AA43: =IF($C43="","",Simulação!AA43) -> - | AB43: =IF($C43="","",Simulação!AB43) -> 28.63155501 | AC43: =IF($C43="","",Simulação!AC43) -> - | AD43: =IF($C43="","",Simulação!AD43) -> 28.62647423 | AE43: =IF($C43="","",Simulação!AE43) -> - | AF43: =IF($C43="","",Simulação!AF43) -> 23.6909399 | AG43: =IF($C43="","",Simulação!AG43) -> - | AH43: =IF($C43="","",Simulação!AH43) -> 29.23602383 | AI43: =IF($C43="","",Simulação!AI43) -> - | AJ43: =IF($C43="","",Simulação!AJ43) -> 33.04512539 | AK43: =IF($C43="","",Simulação!AK43) -> - | AL43: =IF($C43="","",Simulação!AL43) -> 32.02721882 | AM43: =IF($C43="","",Simulação!AM43) -> - | AN43: =IF($C43="","",Simulação!AN43) -> 0 | AO43: =IF($C43="","",Simulação!AO43) -> - | AP43: =IF($C43="","",Simulação!AP43) -> 0 | AQ43: =IF($C43="","",Simulação!AQ43) -> - | AR43: =IF($C43="","",Simulação!AR43) -> 0
B44: 37 | C44: =IF(Chegadas!J45<=$C$5,Chegadas!J45,"") -> 25.44 | D44: =IF($C44="","",Simulação!D44) -> 11.00939473 | E44: =IF($C44="","",Simulação!E44) -> * | F44: =IF($C44="","",Simulação!F44) -> 32.02146866 | G44: =IF($C44="","",Simulação!G44) -> * | H44: =IF($C44="","",Simulação!H44) -> 30.50548917 | I44: =IF($C44="","",Simulação!I44) -> * | J44: =IF($C44="","",Simulação!J44) -> 29.17417042 | K44: =IF($C44="","",Simulação!K44) -> * | L44: =IF($C44="","",Simulação!L44) -> 27.34620712 | M44: =IF($C44="","",Simulação!M44) -> * | N44: =IF($C44="","",Simulação!N44) -> 32.40312086 | O44: =IF($C44="","",Simulação!O44) -> * | P44: =IF($C44="","",Simulação!P44) -> 26.66438855 | Q44: =IF($C44="","",Simulação!Q44) -> * | R44: =IF($C44="","",Simulação!R44) -> 31.3838815 | S44: =IF($C44="","",Simulação!S44) -> 25.44 | T44: =IF($C44="","",Simulação!T44) -> 36.44939473 | U44: =IF($C44="","",Simulação!U44) -> - | V44: =IF($C44="","",Simulação!V44) -> 28.2050785 | W44: =IF($C44="","",Simulação!W44) -> - | X44: =IF($C44="","",Simulação!X44) -> 27.62525574 | Y44: =IF($C44="","",Simulação!Y44) -> - | Z44: =IF($C44="","",Simulação!Z44) -> 31.52263889 | AA44: =IF($C44="","",Simulação!AA44) -> - | AB44: =IF($C44="","",Simulação!AB44) -> 28.63155501 | AC44: =IF($C44="","",Simulação!AC44) -> - | AD44: =IF($C44="","",Simulação!AD44) -> 28.62647423 | AE44: =IF($C44="","",Simulação!AE44) -> - | AF44: =IF($C44="","",Simulação!AF44) -> 23.6909399 | AG44: =IF($C44="","",Simulação!AG44) -> - | AH44: =IF($C44="","",Simulação!AH44) -> 29.23602383 | AI44: =IF($C44="","",Simulação!AI44) -> - | AJ44: =IF($C44="","",Simulação!AJ44) -> 33.04512539 | AK44: =IF($C44="","",Simulação!AK44) -> - | AL44: =IF($C44="","",Simulação!AL44) -> 32.02721882 | AM44: =IF($C44="","",Simulação!AM44) -> - | AN44: =IF($C44="","",Simulação!AN44) -> 0 | AO44: =IF($C44="","",Simulação!AO44) -> - | AP44: =IF($C44="","",Simulação!AP44) -> 0 | AQ44: =IF($C44="","",Simulação!AQ44) -> - | AR44: =IF($C44="","",Simulação!AR44) -> 0
B45: 38 | C45: =IF(Chegadas!J46<=$C$5,Chegadas!J46,"") -> 25.63 | D45: =IF($C45="","",Simulação!D45) -> 8.758240562 | E45: =IF($C45="","",Simulação!E45) -> * | F45: =IF($C45="","",Simulação!F45) -> 32.02146866 | G45: =IF($C45="","",Simulação!G45) -> * | H45: =IF($C45="","",Simulação!H45) -> 30.50548917 | I45: =IF($C45="","",Simulação!I45) -> * | J45: =IF($C45="","",Simulação!J45) -> 29.17417042 | K45: =IF($C45="","",Simulação!K45) -> * | L45: =IF($C45="","",Simulação!L45) -> 27.34620712 | M45: =IF($C45="","",Simulação!M45) -> * | N45: =IF($C45="","",Simulação!N45) -> 32.40312086 | O45: =IF($C45="","",Simulação!O45) -> * | P45: =IF($C45="","",Simulação!P45) -> 26.66438855 | Q45: =IF($C45="","",Simulação!Q45) -> * | R45: =IF($C45="","",Simulação!R45) -> 31.3838815 | S45: =IF($C45="","",Simulação!S45) -> * | T45: =IF($C45="","",Simulação!T45) -> 36.44939473 | U45: =IF($C45="","",Simulação!U45) -> * | V45: =IF($C45="","",Simulação!V45) -> 28.2050785 | W45: =IF($C45="","",Simulação!W45) -> * | X45: =IF($C45="","",Simulação!X45) -> 27.62525574 | Y45: =IF($C45="","",Simulação!Y45) -> * | Z45: =IF($C45="","",Simulação!Z45) -> 31.52263889 | AA45: =IF($C45="","",Simulação!AA45) -> * | AB45: =IF($C45="","",Simulação!AB45) -> 28.63155501 | AC45: =IF($C45="","",Simulação!AC45) -> * | AD45: =IF($C45="","",Simulação!AD45) -> 28.62647423 | AE45: =IF($C45="","",Simulação!AE45) -> 25.63 | AF45: =IF($C45="","",Simulação!AF45) -> 34.38824056 | AG45: =IF($C45="","",Simulação!AG45) -> - | AH45: =IF($C45="","",Simulação!AH45) -> 29.23602383 | AI45: =IF($C45="","",Simulação!AI45) -> - | AJ45: =IF($C45="","",Simulação!AJ45) -> 33.04512539 | AK45: =IF($C45="","",Simulação!AK45) -> - | AL45: =IF($C45="","",Simulação!AL45) -> 32.02721882 | AM45: =IF($C45="","",Simulação!AM45) -> - | AN45: =IF($C45="","",Simulação!AN45) -> 0 | AO45: =IF($C45="","",Simulação!AO45) -> - | AP45: =IF($C45="","",Simulação!AP45) -> 0 | AQ45: =IF($C45="","",Simulação!AQ45) -> - | AR45: =IF($C45="","",Simulação!AR45) -> 0
B46: 39 | C46: =IF(Chegadas!J47<=$C$5,Chegadas!J47,"") -> 25.68 | D46: =IF($C46="","",Simulação!D46) -> 6.537563507 | E46: =IF($C46="","",Simulação!E46) -> * | F46: =IF($C46="","",Simulação!F46) -> 32.02146866 | G46: =IF($C46="","",Simulação!G46) -> * | H46: =IF($C46="","",Simulação!H46) -> 30.50548917 | I46: =IF($C46="","",Simulação!I46) -> * | J46: =IF($C46="","",Simulação!J46) -> 29.17417042 | K46: =IF($C46="","",Simulação!K46) -> * | L46: =IF($C46="","",Simulação!L46) -> 27.34620712 | M46: =IF($C46="","",Simulação!M46) -> * | N46: =IF($C46="","",Simulação!N46) -> 32.40312086 | O46: =IF($C46="","",Simulação!O46) -> * | P46: =IF($C46="","",Simulação!P46) -> 26.66438855 | Q46: =IF($C46="","",Simulação!Q46) -> * | R46: =IF($C46="","",Simulação!R46) -> 31.3838815 | S46: =IF($C46="","",Simulação!S46) -> * | T46: =IF($C46="","",Simulação!T46) -> 36.44939473 | U46: =IF($C46="","",Simulação!U46) -> * | V46: =IF($C46="","",Simulação!V46) -> 28.2050785 | W46: =IF($C46="","",Simulação!W46) -> * | X46: =IF($C46="","",Simulação!X46) -> 27.62525574 | Y46: =IF($C46="","",Simulação!Y46) -> * | Z46: =IF($C46="","",Simulação!Z46) -> 31.52263889 | AA46: =IF($C46="","",Simulação!AA46) -> * | AB46: =IF($C46="","",Simulação!AB46) -> 28.63155501 | AC46: =IF($C46="","",Simulação!AC46) -> * | AD46: =IF($C46="","",Simulação!AD46) -> 28.62647423 | AE46: =IF($C46="","",Simulação!AE46) -> * | AF46: =IF($C46="","",Simulação!AF46) -> 34.38824056 | AG46: =IF($C46="","",Simulação!AG46) -> * | AH46: =IF($C46="","",Simulação!AH46) -> 29.23602383 | AI46: =IF($C46="","",Simulação!AI46) -> * | AJ46: =IF($C46="","",Simulação!AJ46) -> 33.04512539 | AK46: =IF($C46="","",Simulação!AK46) -> * | AL46: =IF($C46="","",Simulação!AL46) -> 32.02721882 | AM46: =IF($C46="","",Simulação!AM46) -> 25.68 | AN46: =IF($C46="","",Simulação!AN46) -> 32.21756351 | AO46: =IF($C46="","",Simulação!AO46) -> - | AP46: =IF($C46="","",Simulação!AP46) -> 0 | AQ46: =IF($C46="","",Simulação!AQ46) -> - | AR46: =IF($C46="","",Simulação!AR46) -> 0
B47: 40 | C47: =IF(Chegadas!J48<=$C$5,Chegadas!J48,"") -> 26.88 | D47: =IF($C47="","",Simulação!D47) -> 3.88122756 | E47: =IF($C47="","",Simulação!E47) -> * | F47: =IF($C47="","",Simulação!F47) -> 32.02146866 | G47: =IF($C47="","",Simulação!G47) -> * | H47: =IF($C47="","",Simulação!H47) -> 30.50548917 | I47: =IF($C47="","",Simulação!I47) -> * | J47: =IF($C47="","",Simulação!J47) -> 29.17417042 | K47: =IF($C47="","",Simulação!K47) -> * | L47: =IF($C47="","",Simulação!L47) -> 27.34620712 | M47: =IF($C47="","",Simulação!M47) -> * | N47: =IF($C47="","",Simulação!N47) -> 32.40312086 | O47: =IF($C47="","",Simulação!O47) -> 26.88 | P47: =IF($C47="","",Simulação!P47) -> 30.76122756 | Q47: =IF($C47="","",Simulação!Q47) -> - | R47: =IF($C47="","",Simulação!R47) -> 31.3838815 | S47: =IF($C47="","",Simulação!S47) -> - | T47: =IF($C47="","",Simulação!T47) -> 36.44939473 | U47: =IF($C47="","",Simulação!U47) -> - | V47: =IF($C47="","",Simulação!V47) -> 28.2050785 | W47: =IF($C47="","",Simulação!W47) -> - | X47: =IF($C47="","",Simulação!X47) -> 27.62525574 | Y47: =IF($C47="","",Simulação!Y47) -> - | Z47: =IF($C47="","",Simulação!Z47) -> 31.52263889 | AA47: =IF($C47="","",Simulação!AA47) -> - | AB47: =IF($C47="","",Simulação!AB47) -> 28.63155501 | AC47: =IF($C47="","",Simulação!AC47) -> - | AD47: =IF($C47="","",Simulação!AD47) -> 28.62647423 | AE47: =IF($C47="","",Simulação!AE47) -> - | AF47: =IF($C47="","",Simulação!AF47) -> 34.38824056 | AG47: =IF($C47="","",Simulação!AG47) -> - | AH47: =IF($C47="","",Simulação!AH47) -> 29.23602383 | AI47: =IF($C47="","",Simulação!AI47) -> - | AJ47: =IF($C47="","",Simulação!AJ47) -> 33.04512539 | AK47: =IF($C47="","",Simulação!AK47) -> - | AL47: =IF($C47="","",Simulação!AL47) -> 32.02721882 | AM47: =IF($C47="","",Simulação!AM47) -> - | AN47: =IF($C47="","",Simulação!AN47) -> 32.21756351 | AO47: =IF($C47="","",Simulação!AO47) -> - | AP47: =IF($C47="","",Simulação!AP47) -> 0 | AQ47: =IF($C47="","",Simulação!AQ47) -> - | AR47: =IF($C47="","",Simulação!AR47) -> 0
B48: 41 | C48: =IF(Chegadas!J49<=$C$5,Chegadas!J49,"") -> 27.02 | D48: =IF($C48="","",Simulação!D48) -> 9.386016086 | E48: =IF($C48="","",Simulação!E48) -> * | F48: =IF($C48="","",Simulação!F48) -> 32.02146866 | G48: =IF($C48="","",Simulação!G48) -> * | H48: =IF($C48="","",Simulação!H48) -> 30.50548917 | I48: =IF($C48="","",Simulação!I48) -> * | J48: =IF($C48="","",Simulação!J48) -> 29.17417042 | K48: =IF($C48="","",Simulação!K48) -> * | L48: =IF($C48="","",Simulação!L48) -> 27.34620712 | M48: =IF($C48="","",Simulação!M48) -> * | N48: =IF($C48="","",Simulação!N48) -> 32.40312086 | O48: =IF($C48="","",Simulação!O48) -> * | P48: =IF($C48="","",Simulação!P48) -> 30.76122756 | Q48: =IF($C48="","",Simulação!Q48) -> * | R48: =IF($C48="","",Simulação!R48) -> 31.3838815 | S48: =IF($C48="","",Simulação!S48) -> * | T48: =IF($C48="","",Simulação!T48) -> 36.44939473 | U48: =IF($C48="","",Simulação!U48) -> * | V48: =IF($C48="","",Simulação!V48) -> 28.2050785 | W48: =IF($C48="","",Simulação!W48) -> * | X48: =IF($C48="","",Simulação!X48) -> 27.62525574 | Y48: =IF($C48="","",Simulação!Y48) -> * | Z48: =IF($C48="","",Simulação!Z48) -> 31.52263889 | AA48: =IF($C48="","",Simulação!AA48) -> * | AB48: =IF($C48="","",Simulação!AB48) -> 28.63155501 | AC48: =IF($C48="","",Simulação!AC48) -> * | AD48: =IF($C48="","",Simulação!AD48) -> 28.62647423 | AE48: =IF($C48="","",Simulação!AE48) -> * | AF48: =IF($C48="","",Simulação!AF48) -> 34.38824056 | AG48: =IF($C48="","",Simulação!AG48) -> * | AH48: =IF($C48="","",Simulação!AH48) -> 29.23602383 | AI48: =IF($C48="","",Simulação!AI48) -> * | AJ48: =IF($C48="","",Simulação!AJ48) -> 33.04512539 | AK48: =IF($C48="","",Simulação!AK48) -> * | AL48: =IF($C48="","",Simulação!AL48) -> 32.02721882 | AM48: =IF($C48="","",Simulação!AM48) -> * | AN48: =IF($C48="","",Simulação!AN48) -> 32.21756351 | AO48: =IF($C48="","",Simulação!AO48) -> 27.02 | AP48: =IF($C48="","",Simulação!AP48) -> 36.40601609 | AQ48: =IF($C48="","",Simulação!AQ48) -> - | AR48: =IF($C48="","",Simulação!AR48) -> 0
B49: 42 | C49: =IF(Chegadas!J50<=$C$5,Chegadas!J50,"") -> 28.25 | D49: =IF($C49="","",Simulação!D49) -> 7.793891537 | E49: =IF($C49="","",Simulação!E49) -> * | F49: =IF($C49="","",Simulação!F49) -> 32.02146866 | G49: =IF($C49="","",Simulação!G49) -> * | H49: =IF($C49="","",Simulação!H49) -> 30.50548917 | I49: =IF($C49="","",Simulação!I49) -> * | J49: =IF($C49="","",Simulação!J49) -> 29.17417042 | K49: =IF($C49="","",Simulação!K49) -> 28.25 | L49: =IF($C49="","",Simulação!L49) -> 36.04389154 | M49: =IF($C49="","",Simulação!M49) -> - | N49: =IF($C49="","",Simulação!N49) -> 32.40312086 | O49: =IF($C49="","",Simulação!O49) -> - | P49: =IF($C49="","",Simulação!P49) -> 30.76122756 | Q49: =IF($C49="","",Simulação!Q49) -> - | R49: =IF($C49="","",Simulação!R49) -> 31.3838815 | S49: =IF($C49="","",Simulação!S49) -> - | T49: =IF($C49="","",Simulação!T49) -> 36.44939473 | U49: =IF($C49="","",Simulação!U49) -> - | V49: =IF($C49="","",Simulação!V49) -> 28.2050785 | W49: =IF($C49="","",Simulação!W49) -> - | X49: =IF($C49="","",Simulação!X49) -> 27.62525574 | Y49: =IF($C49="","",Simulação!Y49) -> - | Z49: =IF($C49="","",Simulação!Z49) -> 31.52263889 | AA49: =IF($C49="","",Simulação!AA49) -> - | AB49: =IF($C49="","",Simulação!AB49) -> 28.63155501 | AC49: =IF($C49="","",Simulação!AC49) -> - | AD49: =IF($C49="","",Simulação!AD49) -> 28.62647423 | AE49: =IF($C49="","",Simulação!AE49) -> - | AF49: =IF($C49="","",Simulação!AF49) -> 34.38824056 | AG49: =IF($C49="","",Simulação!AG49) -> - | AH49: =IF($C49="","",Simulação!AH49) -> 29.23602383 | AI49: =IF($C49="","",Simulação!AI49) -> - | AJ49: =IF($C49="","",Simulação!AJ49) -> 33.04512539 | AK49: =IF($C49="","",Simulação!AK49) -> - | AL49: =IF($C49="","",Simulação!AL49) -> 32.02721882 | AM49: =IF($C49="","",Simulação!AM49) -> - | AN49: =IF($C49="","",Simulação!AN49) -> 32.21756351 | AO49: =IF($C49="","",Simulação!AO49) -> - | AP49: =IF($C49="","",Simulação!AP49) -> 36.40601609 | AQ49: =IF($C49="","",Simulação!AQ49) -> - | AR49: =IF($C49="","",Simulação!AR49) -> 0
B50: 43 | C50: =IF(Chegadas!J51<=$C$5,Chegadas!J51,"") -> 28.39 | D50: =IF($C50="","",Simulação!D50) -> 11.95695406 | E50: =IF($C50="","",Simulação!E50) -> * | F50: =IF($C50="","",Simulação!F50) -> 32.02146866 | G50: =IF($C50="","",Simulação!G50) -> * | H50: =IF($C50="","",Simulação!H50) -> 30.50548917 | I50: =IF($C50="","",Simulação!I50) -> * | J50: =IF($C50="","",Simulação!J50) -> 29.17417042 | K50: =IF($C50="","",Simulação!K50) -> * | L50: =IF($C50="","",Simulação!L50) -> 36.04389154 | M50: =IF($C50="","",Simulação!M50) -> * | N50: =IF($C50="","",Simulação!N50) -> 32.40312086 | O50: =IF($C50="","",Simulação!O50) -> * | P50: =IF($C50="","",Simulação!P50) -> 30.76122756 | Q50: =IF($C50="","",Simulação!Q50) -> * | R50: =IF($C50="","",Simulação!R50) -> 31.3838815 | S50: =IF($C50="","",Simulação!S50) -> * | T50: =IF($C50="","",Simulação!T50) -> 36.44939473 | U50: =IF($C50="","",Simulação!U50) -> 28.39 | V50: =IF($C50="","",Simulação!V50) -> 40.34695406 | W50: =IF($C50="","",Simulação!W50) -> - | X50: =IF($C50="","",Simulação!X50) -> 27.62525574 | Y50: =IF($C50="","",Simulação!Y50) -> - | Z50: =IF($C50="","",Simulação!Z50) -> 31.52263889 | AA50: =IF($C50="","",Simulação!AA50) -> - | AB50: =IF($C50="","",Simulação!AB50) -> 28.63155501 | AC50: =IF($C50="","",Simulação!AC50) -> - | AD50: =IF($C50="","",Simulação!AD50) -> 28.62647423 | AE50: =IF($C50="","",Simulação!AE50) -> - | AF50: =IF($C50="","",Simulação!AF50) -> 34.38824056 | AG50: =IF($C50="","",Simulação!AG50) -> - | AH50: =IF($C50="","",Simulação!AH50) -> 29.23602383 | AI50: =IF($C50="","",Simulação!AI50) -> - | AJ50: =IF($C50="","",Simulação!AJ50) -> 33.04512539 | AK50: =IF($C50="","",Simulação!AK50) -> - | AL50: =IF($C50="","",Simulação!AL50) -> 32.02721882 | AM50: =IF($C50="","",Simulação!AM50) -> - | AN50: =IF($C50="","",Simulação!AN50) -> 32.21756351 | AO50: =IF($C50="","",Simulação!AO50) -> - | AP50: =IF($C50="","",Simulação!AP50) -> 36.40601609 | AQ50: =IF($C50="","",Simulação!AQ50) -> - | AR50: =IF($C50="","",Simulação!AR50) -> 0
B51: 44 | C51: =IF(Chegadas!J52<=$C$5,Chegadas!J52,"") -> 29.94 | D51: =IF($C51="","",Simulação!D51) -> 8.464949403 | E51: =IF($C51="","",Simulação!E51) -> * | F51: =IF($C51="","",Simulação!F51) -> 32.02146866 | G51: =IF($C51="","",Simulação!G51) -> * | H51: =IF($C51="","",Simulação!H51) -> 30.50548917 | I51: =IF($C51="","",Simulação!I51) -> 29.94 | J51: =IF($C51="","",Simulação!J51) -> 38.4049494 | K51: =IF($C51="","",Simulação!K51) -> - | L51: =IF($C51="","",Simulação!L51) -> 36.04389154 | M51: =IF($C51="","",Simulação!M51) -> - | N51: =IF($C51="","",Simulação!N51) -> 32.40312086 | O51: =IF($C51="","",Simulação!O51) -> - | P51: =IF($C51="","",Simulação!P51) -> 30.76122756 | Q51: =IF($C51="","",Simulação!Q51) -> - | R51: =IF($C51="","",Simulação!R51) -> 31.3838815 | S51: =IF($C51="","",Simulação!S51) -> - | T51: =IF($C51="","",Simulação!T51) -> 36.44939473 | U51: =IF($C51="","",Simulação!U51) -> - | V51: =IF($C51="","",Simulação!V51) -> 40.34695406 | W51: =IF($C51="","",Simulação!W51) -> - | X51: =IF($C51="","",Simulação!X51) -> 27.62525574 | Y51: =IF($C51="","",Simulação!Y51) -> - | Z51: =IF($C51="","",Simulação!Z51) -> 31.52263889 | AA51: =IF($C51="","",Simulação!AA51) -> - | AB51: =IF($C51="","",Simulação!AB51) -> 28.63155501 | AC51: =IF($C51="","",Simulação!AC51) -> - | AD51: =IF($C51="","",Simulação!AD51) -> 28.62647423 | AE51: =IF($C51="","",Simulação!AE51) -> - | AF51: =IF($C51="","",Simulação!AF51) -> 34.38824056 | AG51: =IF($C51="","",Simulação!AG51) -> - | AH51: =IF($C51="","",Simulação!AH51) -> 29.23602383 | AI51: =IF($C51="","",Simulação!AI51) -> - | AJ51: =IF($C51="","",Simulação!AJ51) -> 33.04512539 | AK51: =IF($C51="","",Simulação!AK51) -> - | AL51: =IF($C51="","",Simulação!AL51) -> 32.02721882 | AM51: =IF($C51="","",Simulação!AM51) -> - | AN51: =IF($C51="","",Simulação!AN51) -> 32.21756351 | AO51: =IF($C51="","",Simulação!AO51) -> - | AP51: =IF($C51="","",Simulação!AP51) -> 36.40601609 | AQ51: =IF($C51="","",Simulação!AQ51) -> - | AR51: =IF($C51="","",Simulação!AR51) -> 0
B52: 45 | C52: =IF(Chegadas!J53<=$C$5,Chegadas!J53,"") -> 30.33 | D52: =IF($C52="","",Simulação!D52) -> 6.372447259 | E52: =IF($C52="","",Simulação!E52) -> * | F52: =IF($C52="","",Simulação!F52) -> 32.02146866 | G52: =IF($C52="","",Simulação!G52) -> * | H52: =IF($C52="","",Simulação!H52) -> 30.50548917 | I52: =IF($C52="","",Simulação!I52) -> * | J52: =IF($C52="","",Simulação!J52) -> 38.4049494 | K52: =IF($C52="","",Simulação!K52) -> * | L52: =IF($C52="","",Simulação!L52) -> 36.04389154 | M52: =IF($C52="","",Simulação!M52) -> * | N52: =IF($C52="","",Simulação!N52) -> 32.40312086 | O52: =IF($C52="","",Simulação!O52) -> * | P52: =IF($C52="","",Simulação!P52) -> 30.76122756 | Q52: =IF($C52="","",Simulação!Q52) -> * | R52: =IF($C52="","",Simulação!R52) -> 31.3838815 | S52: =IF($C52="","",Simulação!S52) -> * | T52: =IF($C52="","",Simulação!T52) -> 36.44939473 | U52: =IF($C52="","",Simulação!U52) -> * | V52: =IF($C52="","",Simulação!V52) -> 40.34695406 | W52: =IF($C52="","",Simulação!W52) -> 30.33 | X52: =IF($C52="","",Simulação!X52) -> 36.70244726 | Y52: =IF($C52="","",Simulação!Y52) -> - | Z52: =IF($C52="","",Simulação!Z52) -> 31.52263889 | AA52: =IF($C52="","",Simulação!AA52) -> - | AB52: =IF($C52="","",Simulação!AB52) -> 28.63155501 | AC52: =IF($C52="","",Simulação!AC52) -> - | AD52: =IF($C52="","",Simulação!AD52) -> 28.62647423 | AE52: =IF($C52="","",Simulação!AE52) -> - | AF52: =IF($C52="","",Simulação!AF52) -> 34.38824056 | AG52: =IF($C52="","",Simulação!AG52) -> - | AH52: =IF($C52="","",Simulação!AH52) -> 29.23602383 | AI52: =IF($C52="","",Simulação!AI52) -> - | AJ52: =IF($C52="","",Simulação!AJ52) -> 33.04512539 | AK52: =IF($C52="","",Simulação!AK52) -> - | AL52: =IF($C52="","",Simulação!AL52) -> 32.02721882 | AM52: =IF($C52="","",Simulação!AM52) -> - | AN52: =IF($C52="","",Simulação!AN52) -> 32.21756351 | AO52: =IF($C52="","",Simulação!AO52) -> - | AP52: =IF($C52="","",Simulação!AP52) -> 36.40601609 | AQ52: =IF($C52="","",Simulação!AQ52) -> - | AR52: =IF($C52="","",Simulação!AR52) -> 0
B53: 46 | C53: =IF(Chegadas!J54<=$C$5,Chegadas!J54,"") -> 31.99 | D53: =IF($C53="","",Simulação!D53) -> 7.270909748 | E53: =IF($C53="","",Simulação!E53) -> * | F53: =IF($C53="","",Simulação!F53) -> 32.02146866 | G53: =IF($C53="","",Simulação!G53) -> 31.99 | H53: =IF($C53="","",Simulação!H53) -> 39.26090975 | I53: =IF($C53="","",Simulação!I53) -> - | J53: =IF($C53="","",Simulação!J53) -> 38.4049494 | K53: =IF($C53="","",Simulação!K53) -> - | L53: =IF($C53="","",Simulação!L53) -> 36.04389154 | M53: =IF($C53="","",Simulação!M53) -> - | N53: =IF($C53="","",Simulação!N53) -> 32.40312086 | O53: =IF($C53="","",Simulação!O53) -> - | P53: =IF($C53="","",Simulação!P53) -> 30.76122756 | Q53: =IF($C53="","",Simulação!Q53) -> - | R53: =IF($C53="","",Simulação!R53) -> 31.3838815 | S53: =IF($C53="","",Simulação!S53) -> - | T53: =IF($C53="","",Simulação!T53) -> 36.44939473 | U53: =IF($C53="","",Simulação!U53) -> - | V53: =IF($C53="","",Simulação!V53) -> 40.34695406 | W53: =IF($C53="","",Simulação!W53) -> - | X53: =IF($C53="","",Simulação!X53) -> 36.70244726 | Y53: =IF($C53="","",Simulação!Y53) -> - | Z53: =IF($C53="","",Simulação!Z53) -> 31.52263889 | AA53: =IF($C53="","",Simulação!AA53) -> - | AB53: =IF($C53="","",Simulação!AB53) -> 28.63155501 | AC53: =IF($C53="","",Simulação!AC53) -> - | AD53: =IF($C53="","",Simulação!AD53) -> 28.62647423 | AE53: =IF($C53="","",Simulação!AE53) -> - | AF53: =IF($C53="","",Simulação!AF53) -> 34.38824056 | AG53: =IF($C53="","",Simulação!AG53) -> - | AH53: =IF($C53="","",Simulação!AH53) -> 29.23602383 | AI53: =IF($C53="","",Simulação!AI53) -> - | AJ53: =IF($C53="","",Simulação!AJ53) -> 33.04512539 | AK53: =IF($C53="","",Simulação!AK53) -> - | AL53: =IF($C53="","",Simulação!AL53) -> 32.02721882 | AM53: =IF($C53="","",Simulação!AM53) -> - | AN53: =IF($C53="","",Simulação!AN53) -> 32.21756351 | AO53: =IF($C53="","",Simulação!AO53) -> - | AP53: =IF($C53="","",Simulação!AP53) -> 36.40601609 | AQ53: =IF($C53="","",Simulação!AQ53) -> - | AR53: =IF($C53="","",Simulação!AR53) -> 0
B54: 47 | C54: =IF(Chegadas!J55<=$C$5,Chegadas!J55,"") -> 32.15 | D54: =IF($C54="","",Simulação!D54) -> 4.734965256 | E54: =IF($C54="","",Simulação!E54) -> 32.15 | F54: =IF($C54="","",Simulação!F54) -> 36.88496526 | G54: =IF($C54="","",Simulação!G54) -> - | H54: =IF($C54="","",Simulação!H54) -> 39.26090975 | I54: =IF($C54="","",Simulação!I54) -> - | J54: =IF($C54="","",Simulação!J54) -> 38.4049494 | K54: =IF($C54="","",Simulação!K54) -> - | L54: =IF($C54="","",Simulação!L54) -> 36.04389154 | M54: =IF($C54="","",Simulação!M54) -> - | N54: =IF($C54="","",Simulação!N54) -> 32.40312086 | O54: =IF($C54="","",Simulação!O54) -> - | P54: =IF($C54="","",Simulação!P54) -> 30.76122756 | Q54: =IF($C54="","",Simulação!Q54) -> - | R54: =IF($C54="","",Simulação!R54) -> 31.3838815 | S54: =IF($C54="","",Simulação!S54) -> - | T54: =IF($C54="","",Simulação!T54) -> 36.44939473 | U54: =IF($C54="","",Simulação!U54) -> - | V54: =IF($C54="","",Simulação!V54) -> 40.34695406 | W54: =IF($C54="","",Simulação!W54) -> - | X54: =IF($C54="","",Simulação!X54) -> 36.70244726 | Y54: =IF($C54="","",Simulação!Y54) -> - | Z54: =IF($C54="","",Simulação!Z54) -> 31.52263889 | AA54: =IF($C54="","",Simulação!AA54) -> - | AB54: =IF($C54="","",Simulação!AB54) -> 28.63155501 | AC54: =IF($C54="","",Simulação!AC54) -> - | AD54: =IF($C54="","",Simulação!AD54) -> 28.62647423 | AE54: =IF($C54="","",Simulação!AE54) -> - | AF54: =IF($C54="","",Simulação!AF54) -> 34.38824056 | AG54: =IF($C54="","",Simulação!AG54) -> - | AH54: =IF($C54="","",Simulação!AH54) -> 29.23602383 | AI54: =IF($C54="","",Simulação!AI54) -> - | AJ54: =IF($C54="","",Simulação!AJ54) -> 33.04512539 | AK54: =IF($C54="","",Simulação!AK54) -> - | AL54: =IF($C54="","",Simulação!AL54) -> 32.02721882 | AM54: =IF($C54="","",Simulação!AM54) -> - | AN54: =IF($C54="","",Simulação!AN54) -> 32.21756351 | AO54: =IF($C54="","",Simulação!AO54) -> - | AP54: =IF($C54="","",Simulação!AP54) -> 36.40601609 | AQ54: =IF($C54="","",Simulação!AQ54) -> - | AR54: =IF($C54="","",Simulação!AR54) -> 0
B55: 48 | C55: =IF(Chegadas!J56<=$C$5,Chegadas!J56,"") -> 33.84 | D55: =IF($C55="","",Simulação!D55) -> 3.607137079 | E55: =IF($C55="","",Simulação!E55) -> * | F55: =IF($C55="","",Simulação!F55) -> 36.88496526 | G55: =IF($C55="","",Simulação!G55) -> * | H55: =IF($C55="","",Simulação!H55) -> 39.26090975 | I55: =IF($C55="","",Simulação!I55) -> * | J55: =IF($C55="","",Simulação!J55) -> 38.4049494 | K55: =IF($C55="","",Simulação!K55) -> * | L55: =IF($C55="","",Simulação!L55) -> 36.04389154 | M55: =IF($C55="","",Simulação!M55) -> 33.84 | N55: =IF($C55="","",Simulação!N55) -> 37.44713708 | O55: =IF($C55="","",Simulação!O55) -> - | P55: =IF($C55="","",Simulação!P55) -> 30.76122756 | Q55: =IF($C55="","",Simulação!Q55) -> - | R55: =IF($C55="","",Simulação!R55) -> 31.3838815 | S55: =IF($C55="","",Simulação!S55) -> - | T55: =IF($C55="","",Simulação!T55) -> 36.44939473 | U55: =IF($C55="","",Simulação!U55) -> - | V55: =IF($C55="","",Simulação!V55) -> 40.34695406 | W55: =IF($C55="","",Simulação!W55) -> - | X55: =IF($C55="","",Simulação!X55) -> 36.70244726 | Y55: =IF($C55="","",Simulação!Y55) -> - | Z55: =IF($C55="","",Simulação!Z55) -> 31.52263889 | AA55: =IF($C55="","",Simulação!AA55) -> - | AB55: =IF($C55="","",Simulação!AB55) -> 28.63155501 | AC55: =IF($C55="","",Simulação!AC55) -> - | AD55: =IF($C55="","",Simulação!AD55) -> 28.62647423 | AE55: =IF($C55="","",Simulação!AE55) -> - | AF55: =IF($C55="","",Simulação!AF55) -> 34.38824056 | AG55: =IF($C55="","",Simulação!AG55) -> - | AH55: =IF($C55="","",Simulação!AH55) -> 29.23602383 | AI55: =IF($C55="","",Simulação!AI55) -> - | AJ55: =IF($C55="","",Simulação!AJ55) -> 33.04512539 | AK55: =IF($C55="","",Simulação!AK55) -> - | AL55: =IF($C55="","",Simulação!AL55) -> 32.02721882 | AM55: =IF($C55="","",Simulação!AM55) -> - | AN55: =IF($C55="","",Simulação!AN55) -> 32.21756351 | AO55: =IF($C55="","",Simulação!AO55) -> - | AP55: =IF($C55="","",Simulação!AP55) -> 36.40601609 | AQ55: =IF($C55="","",Simulação!AQ55) -> - | AR55: =IF($C55="","",Simulação!AR55) -> 0
B56: 49 | C56: =IF(Chegadas!J57<=$C$5,Chegadas!J57,"") -> 36.15 | D56: =IF($C56="","",Simulação!D56) -> 5.421676165 | E56: =IF($C56="","",Simulação!E56) -> * | F56: =IF($C56="","",Simulação!F56) -> 36.88496526 | G56: =IF($C56="","",Simulação!G56) -> * | H56: =IF($C56="","",Simulação!H56) -> 39.26090975 | I56: =IF($C56="","",Simulação!I56) -> * | J56: =IF($C56="","",Simulação!J56) -> 38.4049494 | K56: =IF($C56="","",Simulação!K56) -> 36.15 | L56: =IF($C56="","",Simulação!L56) -> 41.57167616 | M56: =IF($C56="","",Simulação!M56) -> - | N56: =IF($C56="","",Simulação!N56) -> 37.44713708 | O56: =IF($C56="","",Simulação!O56) -> - | P56: =IF($C56="","",Simulação!P56) -> 30.76122756 | Q56: =IF($C56="","",Simulação!Q56) -> - | R56: =IF($C56="","",Simulação!R56) -> 31.3838815 | S56: =IF($C56="","",Simulação!S56) -> - | T56: =IF($C56="","",Simulação!T56) -> 36.44939473 | U56: =IF($C56="","",Simulação!U56) -> - | V56: =IF($C56="","",Simulação!V56) -> 40.34695406 | W56: =IF($C56="","",Simulação!W56) -> - | X56: =IF($C56="","",Simulação!X56) -> 36.70244726 | Y56: =IF($C56="","",Simulação!Y56) -> - | Z56: =IF($C56="","",Simulação!Z56) -> 31.52263889 | AA56: =IF($C56="","",Simulação!AA56) -> - | AB56: =IF($C56="","",Simulação!AB56) -> 28.63155501 | AC56: =IF($C56="","",Simulação!AC56) -> - | AD56: =IF($C56="","",Simulação!AD56) -> 28.62647423 | AE56: =IF($C56="","",Simulação!AE56) -> - | AF56: =IF($C56="","",Simulação!AF56) -> 34.38824056 | AG56: =IF($C56="","",Simulação!AG56) -> - | AH56: =IF($C56="","",Simulação!AH56) -> 29.23602383 | AI56: =IF($C56="","",Simulação!AI56) -> - | AJ56: =IF($C56="","",Simulação!AJ56) -> 33.04512539 | AK56: =IF($C56="","",Simulação!AK56) -> - | AL56: =IF($C56="","",Simulação!AL56) -> 32.02721882 | AM56: =IF($C56="","",Simulação!AM56) -> - | AN56: =IF($C56="","",Simulação!AN56) -> 32.21756351 | AO56: =IF($C56="","",Simulação!AO56) -> - | AP56: =IF($C56="","",Simulação!AP56) -> 36.40601609 | AQ56: =IF($C56="","",Simulação!AQ56) -> - | AR56: =IF($C56="","",Simulação!AR56) -> 0
B57: 50 | C57: =IF(Chegadas!J58<=$C$5,Chegadas!J58,"") -> 36.23 | D57: =IF($C57="","",Simulação!D57) -> 4.510703322 | E57: =IF($C57="","",Simulação!E57) -> * | F57: =IF($C57="","",Simulação!F57) -> 36.88496526 | G57: =IF($C57="","",Simulação!G57) -> * | H57: =IF($C57="","",Simulação!H57) -> 39.26090975 | I57: =IF($C57="","",Simulação!I57) -> * | J57: =IF($C57="","",Simulação!J57) -> 38.4049494 | K57: =IF($C57="","",Simulação!K57) -> * | L57: =IF($C57="","",Simulação!L57) -> 41.57167616 | M57: =IF($C57="","",Simulação!M57) -> * | N57: =IF($C57="","",Simulação!N57) -> 37.44713708 | O57: =IF($C57="","",Simulação!O57) -> 36.23 | P57: =IF($C57="","",Simulação!P57) -> 40.74070332 | Q57: =IF($C57="","",Simulação!Q57) -> - | R57: =IF($C57="","",Simulação!R57) -> 31.3838815 | S57: =IF($C57="","",Simulação!S57) -> - | T57: =IF($C57="","",Simulação!T57) -> 36.44939473 | U57: =IF($C57="","",Simulação!U57) -> - | V57: =IF($C57="","",Simulação!V57) -> 40.34695406 | W57: =IF($C57="","",Simulação!W57) -> - | X57: =IF($C57="","",Simulação!X57) -> 36.70244726 | Y57: =IF($C57="","",Simulação!Y57) -> - | Z57: =IF($C57="","",Simulação!Z57) -> 31.52263889 | AA57: =IF($C57="","",Simulação!AA57) -> - | AB57: =IF($C57="","",Simulação!AB57) -> 28.63155501 | AC57: =IF($C57="","",Simulação!AC57) -> - | AD57: =IF($C57="","",Simulação!AD57) -> 28.62647423 | AE57: =IF($C57="","",Simulação!AE57) -> - | AF57: =IF($C57="","",Simulação!AF57) -> 34.38824056 | AG57: =IF($C57="","",Simulação!AG57) -> - | AH57: =IF($C57="","",Simulação!AH57) -> 29.23602383 | AI57: =IF($C57="","",Simulação!AI57) -> - | AJ57: =IF($C57="","",Simulação!AJ57) -> 33.04512539 | AK57: =IF($C57="","",Simulação!AK57) -> - | AL57: =IF($C57="","",Simulação!AL57) -> 32.02721882 | AM57: =IF($C57="","",Simulação!AM57) -> - | AN57: =IF($C57="","",Simulação!AN57) -> 32.21756351 | AO57: =IF($C57="","",Simulação!AO57) -> - | AP57: =IF($C57="","",Simulação!AP57) -> 36.40601609 | AQ57: =IF($C57="","",Simulação!AQ57) -> - | AR57: =IF($C57="","",Simulação!AR57) -> 0
B58: 51 | C58: =IF(Chegadas!J59<=$C$5,Chegadas!J59,"") -> 41.57 | D58: =IF($C58="","",Simulação!D58) -> 2.758287269 | E58: =IF($C58="","",Simulação!E58) -> 41.57 | F58: =IF($C58="","",Simulação!F58) -> 44.32828727 | G58: =IF($C58="","",Simulação!G58) -> - | H58: =IF($C58="","",Simulação!H58) -> 39.26090975 | I58: =IF($C58="","",Simulação!I58) -> - | J58: =IF($C58="","",Simulação!J58) -> 38.4049494 | K58: =IF($C58="","",Simulação!K58) -> - | L58: =IF($C58="","",Simulação!L58) -> 41.57167616 | M58: =IF($C58="","",Simulação!M58) -> - | N58: =IF($C58="","",Simulação!N58) -> 37.44713708 | O58: =IF($C58="","",Simulação!O58) -> - | P58: =IF($C58="","",Simulação!P58) -> 40.74070332 | Q58: =IF($C58="","",Simulação!Q58) -> - | R58: =IF($C58="","",Simulação!R58) -> 31.3838815 | S58: =IF($C58="","",Simulação!S58) -> - | T58: =IF($C58="","",Simulação!T58) -> 36.44939473 | U58: =IF($C58="","",Simulação!U58) -> - | V58: =IF($C58="","",Simulação!V58) -> 40.34695406 | W58: =IF($C58="","",Simulação!W58) -> - | X58: =IF($C58="","",Simulação!X58) -> 36.70244726 | Y58: =IF($C58="","",Simulação!Y58) -> - | Z58: =IF($C58="","",Simulação!Z58) -> 31.52263889 | AA58: =IF($C58="","",Simulação!AA58) -> - | AB58: =IF($C58="","",Simulação!AB58) -> 28.63155501 | AC58: =IF($C58="","",Simulação!AC58) -> - | AD58: =IF($C58="","",Simulação!AD58) -> 28.62647423 | AE58: =IF($C58="","",Simulação!AE58) -> - | AF58: =IF($C58="","",Simulação!AF58) -> 34.38824056 | AG58: =IF($C58="","",Simulação!AG58) -> - | AH58: =IF($C58="","",Simulação!AH58) -> 29.23602383 | AI58: =IF($C58="","",Simulação!AI58) -> - | AJ58: =IF($C58="","",Simulação!AJ58) -> 33.04512539 | AK58: =IF($C58="","",Simulação!AK58) -> - | AL58: =IF($C58="","",Simulação!AL58) -> 32.02721882 | AM58: =IF($C58="","",Simulação!AM58) -> - | AN58: =IF($C58="","",Simulação!AN58) -> 32.21756351 | AO58: =IF($C58="","",Simulação!AO58) -> - | AP58: =IF($C58="","",Simulação!AP58) -> 36.40601609 | AQ58: =IF($C58="","",Simulação!AQ58) -> - | AR58: =IF($C58="","",Simulação!AR58) -> 0
B59: 52 | C59: =IF(Chegadas!J60<=$C$5,Chegadas!J60,"") -> 41.6 | D59: =IF($C59="","",Simulação!D59) -> 3.434623319 | E59: =IF($C59="","",Simulação!E59) -> * | F59: =IF($C59="","",Simulação!F59) -> 44.32828727 | G59: =IF($C59="","",Simulação!G59) -> 41.6 | H59: =IF($C59="","",Simulação!H59) -> 45.03462332 | I59: =IF($C59="","",Simulação!I59) -> - | J59: =IF($C59="","",Simulação!J59) -> 38.4049494 | K59: =IF($C59="","",Simulação!K59) -> - | L59: =IF($C59="","",Simulação!L59) -> 41.57167616 | M59: =IF($C59="","",Simulação!M59) -> - | N59: =IF($C59="","",Simulação!N59) -> 37.44713708 | O59: =IF($C59="","",Simulação!O59) -> - | P59: =IF($C59="","",Simulação!P59) -> 40.74070332 | Q59: =IF($C59="","",Simulação!Q59) -> - | R59: =IF($C59="","",Simulação!R59) -> 31.3838815 | S59: =IF($C59="","",Simulação!S59) -> - | T59: =IF($C59="","",Simulação!T59) -> 36.44939473 | U59: =IF($C59="","",Simulação!U59) -> - | V59: =IF($C59="","",Simulação!V59) -> 40.34695406 | W59: =IF($C59="","",Simulação!W59) -> - | X59: =IF($C59="","",Simulação!X59) -> 36.70244726 | Y59: =IF($C59="","",Simulação!Y59) -> - | Z59: =IF($C59="","",Simulação!Z59) -> 31.52263889 | AA59: =IF($C59="","",Simulação!AA59) -> - | AB59: =IF($C59="","",Simulação!AB59) -> 28.63155501 | AC59: =IF($C59="","",Simulação!AC59) -> - | AD59: =IF($C59="","",Simulação!AD59) -> 28.62647423 | AE59: =IF($C59="","",Simulação!AE59) -> - | AF59: =IF($C59="","",Simulação!AF59) -> 34.38824056 | AG59: =IF($C59="","",Simulação!AG59) -> - | AH59: =IF($C59="","",Simulação!AH59) -> 29.23602383 | AI59: =IF($C59="","",Simulação!AI59) -> - | AJ59: =IF($C59="","",Simulação!AJ59) -> 33.04512539 | AK59: =IF($C59="","",Simulação!AK59) -> - | AL59: =IF($C59="","",Simulação!AL59) -> 32.02721882 | AM59: =IF($C59="","",Simulação!AM59) -> - | AN59: =IF($C59="","",Simulação!AN59) -> 32.21756351 | AO59: =IF($C59="","",Simulação!AO59) -> - | AP59: =IF($C59="","",Simulação!AP59) -> 36.40601609 | AQ59: =IF($C59="","",Simulação!AQ59) -> - | AR59: =IF($C59="","",Simulação!AR59) -> 0
B60: 53 | C60: =IF(Chegadas!J61<=$C$5,Chegadas!J61,"") -> 41.82 | D60: =IF($C60="","",Simulação!D60) -> 8.001649608 | E60: =IF($C60="","",Simulação!E60) -> * | F60: =IF($C60="","",Simulação!F60) -> 44.32828727 | G60: =IF($C60="","",Simulação!G60) -> * | H60: =IF($C60="","",Simulação!H60) -> 45.03462332 | I60: =IF($C60="","",Simulação!I60) -> 41.82 | J60: =IF($C60="","",Simulação!J60) -> 49.82164961 | K60: =IF($C60="","",Simulação!K60) -> - | L60: =IF($C60="","",Simulação!L60) -> 41.57167616 | M60: =IF($C60="","",Simulação!M60) -> - | N60: =IF($C60="","",Simulação!N60) -> 37.44713708 | O60: =IF($C60="","",Simulação!O60) -> - | P60: =IF($C60="","",Simulação!P60) -> 40.74070332 | Q60: =IF($C60="","",Simulação!Q60) -> - | R60: =IF($C60="","",Simulação!R60) -> 31.3838815 | S60: =IF($C60="","",Simulação!S60) -> - | T60: =IF($C60="","",Simulação!T60) -> 36.44939473 | U60: =IF($C60="","",Simulação!U60) -> - | V60: =IF($C60="","",Simulação!V60) -> 40.34695406 | W60: =IF($C60="","",Simulação!W60) -> - | X60: =IF($C60="","",Simulação!X60) -> 36.70244726 | Y60: =IF($C60="","",Simulação!Y60) -> - | Z60: =IF($C60="","",Simulação!Z60) -> 31.52263889 | AA60: =IF($C60="","",Simulação!AA60) -> - | AB60: =IF($C60="","",Simulação!AB60) -> 28.63155501 | AC60: =IF($C60="","",Simulação!AC60) -> - | AD60: =IF($C60="","",Simulação!AD60) -> 28.62647423 | AE60: =IF($C60="","",Simulação!AE60) -> - | AF60: =IF($C60="","",Simulação!AF60) -> 34.38824056 | AG60: =IF($C60="","",Simulação!AG60) -> - | AH60: =IF($C60="","",Simulação!AH60) -> 29.23602383 | AI60: =IF($C60="","",Simulação!AI60) -> - | AJ60: =IF($C60="","",Simulação!AJ60) -> 33.04512539 | AK60: =IF($C60="","",Simulação!AK60) -> - | AL60: =IF($C60="","",Simulação!AL60) -> 32.02721882 | AM60: =IF($C60="","",Simulação!AM60) -> - | AN60: =IF($C60="","",Simulação!AN60) -> 32.21756351 | AO60: =IF($C60="","",Simulação!AO60) -> - | AP60: =IF($C60="","",Simulação!AP60) -> 36.40601609 | AQ60: =IF($C60="","",Simulação!AQ60) -> - | AR60: =IF($C60="","",Simulação!AR60) -> 0
